Workbook

Sheet TitlePage
A1: Title page | I1: SERA XLSM-056-12-02b-Att-01
C6: Bifenthrin Foliar Applications [Backpack, Ground Broadcast, and Aerial]
E17: WorksheetMaker Version | F17: 6.00.14
A51: 2015-08-19

Sheet Disclaimer
A1: DISCLAIMER

Sheet General Notes
A1: General Notes
B2: Prepared by: | C2: Patrick R. Durkin
B3: Program Version: | C3: 6.00.14
B4: Database Used: | C4: FS WsMkr V06-00-01.mdb
B5: Template Workbook: | C5: FS WsMkr V06-00-01.mdb
B6: Base Workbook: | C6: FS WSMkr Blank V06-00-01.xlsm
A8: Color Codes in WorksheetMaker
A13: Color Codes used in Workbook for Front Matter, Data and Calculation Worksheets
B14: Green shading | C14: This is a default value or a user specified a value. You can change these values as you see fit but you should have a reason for doing so.
B15: Yellow shading | C15: This is a source for a link in other parts of the workbook. If you have good reason to change the value, you should note the change (with your reason) in the “Revisions” page.
B16: Blue shading | C16: This cell is linked to another cell in the workbook. Do not change this value. If you change any of these values, the workbook may not update correctly.
B17: Blue shading blue border | C17: This cell is linked to a Program parameter in Worksheet A01. Do not change this value. If you want the value to change, go to Worksheet A01 and change the value in that worksheet.
B18: Purple Shading | C18: Indicates (for information only) that the typical of order of Lower and Upper values is intentionally reversed. This is only used in the second (label) column.
B19: Italics, no shading | C19: The value in this cell is generated by a formula (the number that you see is the result of an equation). This cell is linked only to other cells in the worksheet. Do not change this value.
A25: Color Codes used in Workbook for Risk Characterization Worksheets
B26: HQ ≥ 2 | C26: For hazard quotient greater than 2, the number is in bold font with a red background and rounded to the nearest integer.
B27: HQ > 1 but < 2 | C27: For hazard quotient greater than 1 but less than two, the number is in bold font with a white background and rounded to one significant place after the decimal.
B28: HQ ≥ 0.1 but <1 | C28: For hazard quotient greater than 0.1 but less than one, the number is in regular font with a white background and rounded to one significant place after the decimal.
B29: HQ < 0.1 | C29: For hazard quotient less than 0.1, the number is in regular font with a white background. The number is expressed in scientific notation and rounded to one significant place -- e.g., 2E-02 rather than 0.02.
B55: Prepared by: | C55: Patrick R. Durkin
B56: Program Version: | C56: 6.00.14
B57: Database Used: | C57: FS WsMkr V06-00-01.mdb
B58: Template Workbook: | C58: FS WsMkr V06-00-01.mdb
B59: Base Workbook: | C59: FS WSMkr Blank V06-00-01.xlsm

Sheet Chemical Notes
A1: Chemical specific notes
A2: Risk Assessment: | D2: SERA TR-056-12-01a
A3: Report Date: | D3: 2015-06-01
A6: The area below is an embedded MS Word Document. Add chemical-specific notes as appropriate.

Sheet Revisions
A1: Revision Histroy
A8: The area below is an embedded MS Word Document. Add revision notes as appropriate.

Sheet Contents
A1: Table of Contents | C1: Toc
A2: Work-sheet No. | B2: Worksheet Title
A3: TitlePage | B3: Title page
A4: Disclaimer | B4: DISCLAIMER
A5: General Notes | B5: General Notes
A6: Chemical Notes | B6: Chemical specific notes
A7: Revisions | B7: Revision Histroy
A8: Contents | B8: Table of Contents
A9: A01 | B9: Program Data: Application rates, application volumns, and concentrations in field solutions
A10: A02a | B10: General reference values and exposure factors used in worksheets.
A11: A02b | B11: General reference values and exposure factors used in worksheets.
A12: A02c | B12: General reference values and exposure factors used in worksheets.
A13: A02d | B13: General reference values and exposure factors used in worksheets.
A14: A03 | B14: Food items for terrestrial animals
A15: A04 | B15: Drift from Backpack Directed Foliar application at distances downwindfrom the application site
A16: B01 | B16: Chemical and Physical Properties for Bifenthrin
A17: B02 | B17: Toxicity values for Bifenthrin
A18: B03a | B18: Calculation of Zero-Order Dermal Permeability Rate (Kp) in cm/hour
A19: B03b | B19: Calculation of First-Order Dermal Absorption Rate
A20: B04Rt | B20: Estimates of Water Contamination Rates -- i.e., the concentration in ambient water per pound applied per acre
A21: B04a | B21: Expected Concentrations in Surface Water
A22: B04b | B22: Pond: Concentration of pesticide (liquid formulation) in pond water after an accidental spill
A23: B04c | B23: Concentration in pond water after direct spray or after drift at distances downwind in feet from the application site
A24: B04d | B24: Concentration in stream water after direct spray or after drift at distances downwind in feet from the application site
A25: B05a | B25: Concentration of Pesticide in Contaminated Fruit
A26: B05b | B26: Concentration of Pesticide in Contaminated Broadleaf Vegetation
A27: B05c | B27: Concentration of Pesticide in Contaminated Short Grass
A28: B05d | B28: Concentration of Pesticide in Contaminated Tall Grass
A29: C01a | B29: Exposure estimates for Backpack Worker based on the amount of material handled per day
A30: C01b | B30: Exposure estimates for Ground Boom Worker based on the amount of material handled per day
A31: C01c | B31: Exposure estimates for Aerial Spray Worker based on the amount of material handled per day
A32: C02a | B32: Accidental Dermal Exposure Assessment Using Zero-Order Absorption, Worker, Surface Area, Hands, for 1 minute(s)
A33: C02b | B33: Accidental Dermal Exposure Assessment Using Zero-Order Absorption, Worker, Surface Area, Hands, for 60 minute(s)
A34: C03a | B34: Accidental Dermal Exposure Assessment Using First-Order Absorption, Worker, Surface Area, Hands, for 60 minute(s)
A35: C03b | B35: Accidental Dermal Exposure Assessment Using First-Order Absorption, Worker, Surface Area, Lower legs, for 60 minute(s)
A36: D01a | B36: Accidental Dermal Exposure Assessment Using First-Order Absorption, Child, Surface Area, Whole body, for 60 minute(s)
A37: D01b | B37: Accidental Dermal Exposure Assessment Using First-Order Absorption, Adult Female, Surface Area, Feet and lower Legs, for 60 minute(s)
A38: D02 | B38: Dermal Contact with Contaminated Vegetation, Adult Female, Surface Area, Wearing shorts and T-shirt, for 1 hour(s)
A39: D03a | B39: Consumption of Fruit by a Adult Female, Acute exposure.
A40: D03b | B40: Consumption of Vegetation by a Adult Female, Acute exposure.
A41: D04a | B41: Consumption of Fruit by a Adult Female, Chronic exposure.
A42: D04b | B42: Consumption of Vegetation by a Adult Female, Chronic exposure.
A43: D05 | B43: Consumption of contaminated water by Child, Accidental Spill
A44: D06 | B44: Consumption of contaminated water by Child, Peak Conentrations
A45: D07 | B45: Consumption of contaminated water by Adult Male, Longer-term Conentrations
A46: D08a | B46: Consumption of Contaminated Fish (Accidental Spill), Adult Male, acute exposure
A47: D08b | B47: Consumption of Contaminated Fish (Accidental Spill), Subsistence Populations, acute exposure
A48: D09a | B48: Consumption of Contaminated Fish (Longer-term), Adult Male, chronic exposure
A49: D09b | B49: Consumption of Contaminated Fish (Longer-term), Subsistence Populations, chronic exposure
A50: D09c | B50: Consumption of Contaminated Fish (Peak Exposure), Adult Male, acute exposure
A51: D09d | B51: Consumption of Contaminated Fish (Peak Exposure), Subsistence Populations, acute exposure
A52: D10 | B52: Swimming Exposure Assessment Using Zero-Order Absorption, Adult Female, Surface Area, Whole body, for 60 minute(s)
A53: E01 | B53: Summary of Worker Exposure Assessments
A54: E02 | B54: Summary of Worker Hazard Quotients (Toxicity)
A55: E03 | B55: Summary of Exposure Assessments for the General Public
A56: E04 | B56: Summary of Hazard Quotients (Toxicity) for the General Public
A57: F01a | B57: Direct spray of Mammal, small assuming first-order absorption kinetics with spray of 0.5 of the body surface
A58: F01b | B58: Direct spray of Mammal, small assuming 100% absorption
A59: F02a | B59: Consumption of contaminated water by Mammal, small, Accidental Spill
A60: F02b | B60: Consumption of contaminated water by Mammal, 400 g, Accidental Spill
A61: F02c | B61: Consumption of contaminated water by Mammal, carnivorous, Accidental Spill
A62: F02d | B62: Consumption of contaminated water by Mammal, large, Accidental Spill
A63: F02e | B63: Consumption of contaminated water by Bird, small, Accidental Spill
A64: F02f | B64: Consumption of contaminated water by Bird, large, Accidental Spill
A65: F03a | B65: Acute scenario for the consumption of Contaminated Fish (Accidental Spill) by Mammal, large carnivorous
A66: F03b | B66: Acute scenario for the consumption of Contaminated Fish (Accidental Spill) by Mammal, carnivorous
A67: F03c | B67: Acute scenario for the consumption of Contaminated Fish (Accidental Spill) by Bird, piscivorous
A68: F04a | B68: Consumption of Fruit by a Mammal, small after Acute exposure.
A69: F04b | B69: Consumption of Fruit by a Mammal, 400 g after Acute exposure.
A70: F04c | B70: Consumption of Fruit by a Mammal, large after Acute exposure.
A71: F04d | B71: Consumption of Fruit by a Bird, small after Acute exposure.
A72: F04e | B72: Consumption of Fruit by a Bird, large after Acute exposure.
A73: F05a | B73: Consumption of Broadleaf Vegetation by a Mammal, small after Acute exposure.
A74: F05b | B74: Consumption of Broadleaf Vegetation by a Mammal, 400 g after Acute exposure.
A75: F05c | B75: Consumption of Broadleaf Vegetation by a Mammal, large after Acute exposure.
A76: F05d | B76: Consumption of Broadleaf Vegetation by a Bird, small after Acute exposure.
A77: F05e | B77: Consumption of Broadleaf Vegetation by a Bird, large after Acute exposure.
A78: F06a | B78: Consumption of Tall grass by a Mammal, small after Acute exposure.
A79: F06b | B79: Consumption of Tall grass by a Mammal, 400 g after Acute exposure.
A80: F06c | B80: Consumption of Tall grass by a Mammal, large after Acute exposure.
A81: F06d | B81: Consumption of Tall grass by a Bird, small after Acute exposure.
A82: F06e | B82: Consumption of Tall grass by a Bird, large after Acute exposure.
A83: F07a | B83: Consumption of Short grass by a Mammal, small after Acute exposure.
A84: F07b | B84: Consumption of Short grass by a Mammal, 400 g after Acute exposure.
A85: F07c | B85: Consumption of Short grass by a Mammal, large after Acute exposure.
A86: F07d | B86: Consumption of Short grass by a Bird, small after Acute exposure.
A87: F07e | B87: Consumption of Short grass by a Bird, large after Acute exposure.
A88: F08a | B88: Consumption of contaminated water by Mammal, small, Peak Concentrations
A89: F08b | B89: Consumption of contaminated water by Mammal, 400 g, Peak Concentrations
A90: F08c | B90: Consumption of contaminated water by Mammal, carnivorous, Peak Concentrations
A91: F08d | B91: Consumption of contaminated water by Mammal, large, Peak Concentrations
A92: F08e | B92: Consumption of contaminated water by Bird, small, Peak Concentrations
A93: F08f | B93: Consumption of contaminated water by Bird, large, Peak Concentrations
A94: F09a | B94: Consumption of Small Insects by a Mammal, small after Acute exposure.
A95: F09b | B95: Consumption of Small Insects by a Mammal, 400 g after Acute exposure.
A96: F09c | B96: Consumption of Small Insects by a Bird, small after Acute exposure.
A97: F10a | B97: Consumption of Small Mammal by Mammal, carnivorous, acute exposure scenario
A98: F10b | B98: Consumption of Small Mammal by Bird, carnivorous, acute exposure scenario
A99: F11a | B99: Acute scenario for the consumption of Contaminated Fish (Peak) by Mammal, large carnivorous
A100: F11b | B100: Acute scenario for the consumption of Contaminated Fish (Peak) by Mammal, carnivorous
A101: F11c | B101: Acute scenario for the consumption of Contaminated Fish (Peak) by Bird, piscivorous
A102: F12a | B102: Consumption of Fruit by a Mammal, small after Chronic exposure.
A103: F12b | B103: Consumption of Fruit by a Mammal, 400 g after Chronic exposure.
A104: F12c | B104: Consumption of Fruit by a Mammal, large after Chronic exposure.
A105: F12d | B105: Consumption of Fruit by a Bird, small after Chronic exposure.
A106: F12e | B106: Consumption of Fruit by a Bird, large after Chronic exposure.
A107: F13a | B107: Consumption of Broadleaf Vegetation by a Mammal, small after Chronic exposure.
A108: F13b | B108: Consumption of Broadleaf Vegetation by a Mammal, 400 g after Chronic exposure.
A109: F13c | B109: Consumption of Broadleaf Vegetation by a Mammal, large after Chronic exposure.
A110: F13d | B110: Consumption of Broadleaf Vegetation by a Bird, small after Chronic exposure.
A111: F13e | B111: Consumption of Broadleaf Vegetation by a Bird, large after Chronic exposure.
A112: F14a | B112: Consumption of Tall grass by a Mammal, small after Chronic exposure.
A113: F14b | B113: Consumption of Tall grass by a Mammal, 400 g after Chronic exposure.
A114: F14c | B114: Consumption of Tall grass by a Mammal, large after Chronic exposure.
A115: F14d | B115: Consumption of Tall grass by a Bird, small after Chronic exposure.
A116: F14e | B116: Consumption of Tall grass by a Bird, large after Chronic exposure.
A117: F15a | B117: Consumption of Short grass by a Mammal, small after Chronic exposure.
A118: F15b | B118: Consumption of Short grass by a Mammal, 400 g after Chronic exposure.
A119: F15c | B119: Consumption of Short grass by a Mammal, large after Chronic exposure.
A120: F15d | B120: Consumption of Short grass by a Bird, small after Chronic exposure.
A121: F15e | B121: Consumption of Short grass by a Bird, large after Chronic exposure.
A122: F16a | B122: Consumption of contaminated water by Mammal, small, Longer-term Concentrations
A123: F16b | B123: Consumption of contaminated water by Mammal, 400 g, Longer-term Concentrations
A124: F16c | B124: Consumption of contaminated water by Mammal, carnivorous, Longer-term Concentrations
A125: F16d | B125: Consumption of contaminated water by Mammal, large, Longer-term Concentrations
A126: F16e | B126: Consumption of contaminated water by Bird, small, Longer-term Concentrations
A127: F16f | B127: Consumption of contaminated water by Bird, large, Longer-term Concentrations
A128: F17a | B128: Chronic scenario for the consumption of Contaminated Fish (Longer-term) by Mammal, large carnivorous
A129: F17b | B129: Chronic scenario for the consumption of Contaminated Fish (Longer-term) by Mammal, carnivorous
A130: F17c | B130: Chronic scenario for the consumption of Contaminated Fish (Longer-term) by Bird, piscivorous
A131: G01a | B131: Summary of Exposure Assessments for the Mammals
A132: G01b | B132: Summary of Exposure Assessments for the Birds
A133: G02a | B133: Summary of Hazard Quotients (Toxicity) for the Mammals
A134: G02b | B134: Summary of Hazard Quotients (Toxicity) for the Birds
A135: G03 | B135: Worksheet G03: Summary of Hazard Quotients for Aquatic Species
A136: G07a | B136: Consumption of Fruit by a Herbivorous Insect, Acute exposure.
A137: G07b | B137: Consumption of Broadleaf/Small Insects by a Herbivorous Insect, Acute exposure.
A138: G07c | B138: Consumption of Short grass by a Herbivorous Insect, Acute exposure.
A139: G07d | B139: Consumption of Tall Grass by a Herbivorous Insect, Acute exposure.
A140: G08a | B140: Summary of Exposure Assessments for the Herbivorous or Predatory Insects
A141: G08b | B141: Summary of Hazard Quotients (Toxicity) for the Herbivorous or Predatory Insects
A142: G09 | B142: Exposures and HQs for a Terrestrial Insect (Honeybee) Associated with Direct Spray or Drift Following Terrestrial Applications
A143: References | B143: References cited in workbook

Sheet A01
A1: Program Data: Application rates, application volumns, and concentrations in field solutions
A2: Parameter/Assumption | B2: Code / Range | C2: Equation/ Value | D2: Units | E2: Reference/ Equation
A3: Application Rate | B3: ApRt | C3: 0.2 | D3: lb/acre | E3: Program Input
A4: Application Volume | B4: ApVol
B5: Central | C5: 100 | D5: gal/acre | E5: Program Input
B6: Upper | C6: 400 | E6: Program Input
B7: Lower | C7: 80 | E7: Program Input
A8: Concentration in field solution (lb/gal) | B8: Concppg | C8: ApRt (lb/acre) / ApVol (gal/acre) | E8: Note 1
B9: Central | C9: =IF(C5>0, C$3/C5, "N/A") -> 0.002 | D9: lb/gal | E9: Eq
B10: Lower | C10: =IF(C6>0, C$3/C6, "N/A") -> 0.0005 | E10: Eq
B11: Upper | C11: =IF(C7>0, C$3/C7, "N/A") -> 0.0025 | E11: Eq
A12: Conversion Factor for lbs/gal to mg/mL | B12: CnvF | C12: 119.8 | D12: mg/mL per lb/gal
A13: Concentration in field solution (mg/mL) | B13: FldConc | C13: Concppg * CnvF | E13: Note 2
B14: Central | C14: =IF(C5>0, DigitRound( C9*C$12, C$17), "NA") -> 0.24 | D14: mg/mL | E14: Eq
B15: Lower | C15: =IF(C6>0, DigitRound( C10*C$12, C$17), "NA") -> 0.06 | E15: Eq
B16: Upper | C16: =IF(C7>0, DigitRound( C11*C$12, C$17), "NA") -> 0.3 | E16: Eq
A17: Number of significant figures used for FldConc. | B17: NSig | C17: 2
A20: Number of Applications | B20: nApps | C20: 1 | D20: Unitless | E20: Program Input
A21: Application Interval | B21: ApIntv | C21: 1 | D21: Days | E21: Program Input
A22: Standard Values/Options for Scenarios
A23: Surface area of pond for spill | B23: PondSA_M | C23: 1000 | D23: Sq. Meters | E23: Risk assessment.
A24: Pond depth | B24: PondDepthM | C24: 1 | D24: Meters | E24: Risk assessment.
A25: Stream flow rate for drift scenario | B25: StreamFlowLD | C25: 710000 | D25: Liters/day | E25: Risk assessment.
A26: Stream length for drift scenario | B26: StreamLengthFt | C26: 1038 | D26: Feet | E26: Risk assessment.
A27: Stream width for drift scenario | B27: StreamWidthFt | C27: 6 | D27: Feet | E27: Risk assessment.
A28: Duration for longer-term exposures | B28: SubChDays | C28: 90 | D28: Days | E28: Risk assessment.
A29: Duration for swimming scenarios | B29: SwimMin | C29: 60 | D29: Minutes | E29: Risk assessment.
A30: Protection factor for workers based on PPE. | B30: WrkProtectFact
B31: Central | C31: 0 | E31: Risk assessment.
B32: Lower | C32: 0
B33: Upper | C33: 0
A34: Toxic Equivalency Factor for formulation | B34: TEF
B35: Central | C35: 1 | E35: Risk assessment.
B36: Lower | C36: 1
B37: Upper | C37: 1
A38: Drift used in food commody worksheets | B38: DriftToFood
B39: Central | C39: 1 | E39: Risk assessment.
B40: Lower | C40: 1
B41: Upper | C41: 1
A42: Amount spilled into ponds | B42: PondSpillVolGal
B43: Central | C43: 100 | D43: Gal | E43: Risk assessment.
B44: Lower | C44: 20
B45: Upper | C45: 200
A46: Dislodgeable residue, as a proportion of the application rate. | B46: DislogRes
B47: Central | C47: 0.1 | E47: Risk assessment.
B48: Lower | C48: 0.1
B49: Upper | C49: 0.1
A50: Residue rates for short grass | B50: VegRRSGT
B51: Central | C51: 85 | D51: ppm per lb/ac | E51: Risk assessment.
B52: Lower | C52: 30
B53: Upper | C53: 240
A54: Residue rates for long grass | B54: VegRRTGT
B55: Central | C55: 36 | D55: ppm per lb/ac | E55: Risk assessment.
B56: Lower | C56: 12
B57: Upper | C57: 110
A58: Residue rates for broadleaf/forage plants and small insects | B58: VegRRBLT
B59: Central | C59: 45 | D59: ppm per lb/ac | E59: Risk assessment.
B60: Lower | C60: 15
B61: Upper | C61: 135
A62: Residue rates for fruit | B62: VegRRFRT
B63: Central | C63: 7 | D63: ppm per lb/ac | E63: Risk assessment.
B64: Lower | C64: 3.2
B65: Upper | C65: 15
A66: Number of acres that the worker will treat per hour. | B66: WrkAcPerHr
B67: Central | C67: 0.625 | D67: Acres/hr | E67: Risk assessment.
B68: Lower | C68: 0.25
B69: Upper | C69: 1
A70: Number of hours of worker exposure per day. | B70: WrkHsPerDy
B71: Central | C71: 7 | D71: Hrs/day | E71: Risk assessment.
B72: Lower | C72: 6
B73: Upper | C73: 8

Sheet A02a
A1: General reference values and exposure factors used in worksheets.
A3: Receptor | B3: Factor | C3: Value | D3: Units | E3: Reference | F3: Reference Note
A4: Adult Female | B4: Body weight | C4: 64 | D4: kg | E4: U.S. EPA/ORD 1985 | F4: page 5, Table 2-2
A5: Adult Female | B5: Surface Area, Feet and lower Legs | C5: 2915 | D5: cm2 | E5: U.S. EPA/ORD 1992 | F5: p. 8-11, Table 8-3, total for feet and lower legs
A6: Adult Female | B6: Surface Area, Wearing shorts and T-shirt | C6: 5300 | D6: cm2 | E6: U.S. EPA/ORD 1992 | F6: p. 8-11, Table 8-3, total for arms, hands, lower legs, and feet.
A7: Adult Female | B7: Surface Area, Whole body | C7: 16900 | D7: cm2 | E7: U.S. EPA/ORD 1997 | F7: p. 6-13, Table 6-3, whole body, 50th percentile
A8: Adult Male | B8: Body weight | C8: 70 | D8: kg | E8: ICRP 1975 | F8: p. 13.
A9: Subsistence Populations | B9: Body weight | C9: 70 | D9: kg | E9: ICRP 1975 | F9: p. 13
A10: Worker, Aerial Spray | B10: Absorbed dose rate, central estimate | C10: 3e-05 | D10: (mg/kg bw)/(lbs handled per day) | E10: SERA 2007 | F10: Acres treated per hour
A11: Worker, Aerial Spray | B11: Absorbed dose rate, lower range | C11: 1e-06 | D11: (mg/kg bw)/(lbs handled per day) | E11: SERA 2007 | F11: Acres treated per hour
A12: Worker, Aerial Spray | B12: Absorbed dose rate, upper range | C12: 0.0001 | D12: (mg/kg bw)/(lbs handled per day) | E12: SERA 2007 | F12: Acres treated per hour
A13: Worker, Aerial Spray | B13: Hours of application per day, central estimate | C13: 7 | D13: Hours per day | E13: USDA 1989a | F13: N/A
A14: Worker, Aerial Spray | B14: Hours of application per day, lower range | C14: 6 | D14: Hours per day | E14: USDA 1989a | F14: N/A
A15: Worker, Aerial Spray | B15: Hours of application per day, upper range | C15: 8 | D15: Hours per day | E15: USDA 1989a | F15: N/A
A16: Worker, Aerial Spray | B16: Acres treated per hour, central estimate | C16: 70 | D16: acres/hour | E16: USDA 1989a | F16: Acres treated per hour
A17: Worker, Aerial Spray | B17: Acres treated per hour, lower range | C17: 40 | D17: acres/hour | E17: USDA 1989a | F17: Acres treated per hour
A18: Worker, Aerial Spray | B18: Acres treated per hour, upper range | C18: 100 | D18: acres/hour | E18: USDA 1989a | F18: Acres treated per hour
A19: Worker, Backpack | B19: Absorbed dose rate, central estimate | C19: 0.003 | D19: (mg/kg bw)/(lbs handled per day) | E19: SERA 2007 | F19: Acres treated per hour
A20: Worker, Backpack | B20: Absorbed dose rate, lower range | C20: 0.0003 | D20: (mg/kg bw)/(lbs handled per day) | E20: SERA 2007 | F20: Acres treated per hour
A21: Worker, Backpack | B21: Absorbed dose rate, upper range | C21: 0.01 | D21: (mg/kg bw)/(lbs handled per day) | E21: SERA 2007 | F21: Acres treated per hour
A22: Worker, Backpack | B22: Hours of application per day, central estimate | C22: 7 | D22: Hours per day | E22: USDA 1989a | F22: N/A
A23: Worker, Backpack | B23: Hours of application per day, lower range | C23: 6 | D23: Hours per day | E23: USDA 1989a | F23: N/A
A24: Worker, Backpack | B24: Hours of application per day, upper range | C24: 8 | D24: Hours per day | E24: USDA 1989a | F24: N/A
A25: Worker, Backpack | B25: Acres treated per hour, central estimate | C25: 0.625 | D25: acres/hour | E25: USDA 1989a | F25: Acres treated per hour
A26: Worker, Backpack | B26: Acres treated per hour, lower range | C26: 0.25 | D26: acres/hour | E26: USDA 1989a | F26: Acres treated per hour
A27: Worker, Backpack | B27: Acres treated per hour, upper range | C27: 1 | D27: acres/hour | E27: USDA 1989a | F27: Acres treated per hour
A28: Child | B28: Body weight | C28: 13.3 | D28: kg | E28: U.S. EPA/ORD 1996 | F28: p. 7-1, Table 7-2
A29: Child | B29: Surface Area, Whole body | C29: 6030 | D29: cm2 | E29: U.S. EPA/ORD 1996 | F29: p. 6-15, Table 6-6, 50th percentile.
A30: Worker, Ground Spray | B30: Absorbed dose rate, central estimate | C30: 0.0002 | D30: (mg/kg bw)/(lbs handled per day) | E30: SERA 2007 | F30: Acres treated per hour
A31: Worker, Ground Spray | B31: Absorbed dose rate, lower range | C31: 1e-05 | D31: (mg/kg bw)/(lbs handled per day) | E31: SERA 2007 | F31: Acres treated per hour
A32: Worker, Ground Spray | B32: Absorbed dose rate, upper range | C32: 0.0009 | D32: (mg/kg bw)/(lbs handled per day) | E32: SERA 2007 | F32: Acres treated per hour
A33: Worker, Ground Spray | B33: Hours of application per day, central estimate | C33: 7 | D33: Hours per day | E33: USDA 1989a | F33: N/A
A34: Worker, Ground Spray | B34: Hours of application per day, lower range | C34: 6 | D34: Hours per day | E34: USDA 1989a | F34: N/A
A35: Worker, Ground Spray | B35: Hours of application per day, upper range | C35: 8 | D35: Hours per day | E35: USDA 1989a | F35: N/A
A36: Worker, Ground Spray | B36: Acres treated per hour, central estimate | C36: 16 | D36: acres/hour | E36: USDA 1989a | F36: Acres treated per hour
A37: Worker, Ground Spray | B37: Acres treated per hour, lower range | C37: 11 | D37: acres/hour | E37: USDA 1989a | F37: Acres treated per hour
A38: Worker, Ground Spray | B38: Acres treated per hour, upper range | C38: 21 | D38: acres/hour | E38: USDA 1989a | F38: Acres treated per hour
A39: Worker | B39: Body weight | C39: 70 | D39: kg | E39: ICRP 1975 | F39: p. 13
A40: Worker | B40: Surface Area, Hands | C40: 840 | D40: cm2 | E40: U.S. EPA/ORD 1992 | F40: p. 8-11
A41: Worker | B41: Surface Area, Lower legs | C41: 2070 | D41: cm2 | E41: U.S. EPA/ORD 1992 | F41: p. 8-11

Sheet A02b
A1: General reference values and exposure factors used in worksheets.
A3: Receptor | B3: Factor | C3: Value | D3: Units | E3: Reference | F3: Reference Note
A4: Amphibian | B4: Kilocalories, alpha parameter for allometric equation | C4: 0.054 | D4: BW(g),Kcal (kcal/day) | E4: U.S. EPA/ORD 1993 | F4: p. 3-7, equation 3-14
A5: Amphibian | B5: Kilocalories, beta parameter for allometric equation | C5: 0.799 | D5: BW(g),Kcal (kcal/day) | E5: U.S. EPA/ORD 1993 | F5: p. 3-7, equation 3-14
A6: Amphibian, bull frog | B6: Food consumption, alpha parameter for allometric equation | C6: 1.09 | D6: BW(g),FC(g) | E6: SERA 2010 | F6: Figure 15
A7: Amphibian, bull frog | B7: Food consumption, beta parameter for allometric equation | C7: 0.1723 | D7: BW(g),FC(g) | E7: SERA 2010 | F7: Figure 15
A8: Bird, NOS | B8: Food consumption, alpha parameter for allometric equation | C8: 0.648 | D8: BW(g),FC(g) | E8: U.S. EPA/ORD 1993 | F8: Eq. 3-3, p. 3-4, all birds
A9: Bird, NOS | B9: Food consumption, beta parameter for allometric equation | C9: 0.651 | D9: BW(g),FC(g) | E9: U.S. EPA/ORD 1993 | F9: Eq. 3-3, p. 3-4, all birds
A10: Bird, carnivorous | B10: Body weight | C10: 0.64 | D10: kg | E10: Dunning 1993 | F10: p. 97. Female Spotted Owl (Strix occidentalis). Range of 548 to 760 g.
A11: Bird, carnivorous | B11: Kilocalories, alpha parameter for allometric equation | C11: 1.146 | D11: BW(g),KCal(kcal/day) | E11: U.S. EPA/ORD 1993 | F11: Eq. 3-37, nonpasserines
A12: Bird, carnivorous | B12: Kilocalories, beta parameter for allometric equation | C12: 0.749 | D12: BW(g),KCal(kcal/day) | E12: U.S. EPA/ORD 1993 | F12: Eq. 3-37, nonpasserines
A13: Bird, carnivorous | B13: Water consumption, alpha parameter for allometric equation | C13: 0.059 | D13: BW(kg), WC(L) | E13: U.S. EPA/ORD 1993 | F13: Eq. 3-15, p. 3-8
A14: Bird, carnivorous | B14: Water consumption, beta parameter for allometric equation | C14: 0.67 | D14: BW(kg), WC(L) | E14: U.S. EPA/ORD 1993 | F14: Eq. 3-15, p. 3-8
A15: Bird, large | B15: Body weight | C15: 4 | D15: kg | E15: Default | F15: Canada goose
A16: Bird, large | B16: Kilocalories, alpha parameter for allometric equation | C16: 1.146 | D16: BW(g),KCal(kcal/day) | E16: U.S. EPA/ORD 1993 | F16: Eq. 3-37, non-passerines
A17: Bird, large | B17: Kilocalories, beta parameter for allometric equation | C17: 0.749 | D17: BW(g),KCal(kcal/day) | E17: U.S. EPA/ORD 1993 | F17: Eq. 3-37, non-passerines
A18: Bird, large | B18: Water consumption, alpha parameter for allometric equation | C18: 0.059 | D18: BW(kg), WC(L) | E18: U.S. EPA/ORD 1993 | F18: Eq. 3-15, p. 3-8
A19: Bird, large | B19: Water consumption, beta parameter for allometric equation | C19: 0.67 | D19: BW(kg), WC(L) | E19: U.S. EPA/ORD 1993 | F19: Eq. 3-15, p. 3-8
A20: Bird, non-Passerine | B20: Food consumption, alpha parameter for allometric equation | C20: 0.301 | D20: BW(g),FC(g) | E20: U.S. EPA/ORD 1993 | F20: Eq. 3-5, p. 3-5, non-passerines
A21: Bird, non-Passerine | B21: Food consumption, beta parameter for allometric equation | C21: 0.751 | D21: BW(g),FC(g) | E21: U.S. EPA/ORD 1993 | F21: Eq. 3-5, p. 3-5, non-passerines
A22: Bird, Passerine | B22: Food consumption, alpha parameter for allometric equation | C22: 0.398 | D22: BW(g),FC(g) | E22: U.S. EPA/ORD 1993 | F22: Eq. 3-4, p. 3-4, passerines
A23: Bird, Passerine | B23: Food consumption, beta parameter for allometric equation | C23: 0.85 | D23: BW(g),FC(g) | E23: U.S. EPA/ORD 1993 | F23: Eq. 3-4, p. 3-4, passerines
A24: Bird, piscivorous | B24: Body weight | C24: 2.4 | D24: kg | E24: Sibley 2000 | F24: p. 60. Great Blue Heron
A25: Bird, piscivorous | B25: Food consumption, alpha parameter for allometric equation | C25: 0.495 | D25: BW(g), FC(g) | E25: U.S. EPA/ORD 1993 | F25: Eq. 3-6, p. 3-5, seabird
A26: Bird, piscivorous | B26: Food consumption, beta parameter for allometric equation | C26: 0.704 | D26: BW(g), FC(g) | E26: U.S. EPA/ORD 1993 | F26: Eq. 3-6, p. 3-5, seabird
A27: Bird, piscivorous | B27: Kilocalories, alpha parameter for allometric equation | C27: 1.916 | D27: BW(g),KCal(kcal/day) | E27: U.S. EPA/ORD 1993 | F27: Eq. 3-38, p. 3-23, seabird
A28: Bird, piscivorous | B28: Kilocalories, beta parameter for allometric equation | C28: 0.704 | D28: BW(g),KCal(kcal/day) | E28: U.S. EPA/ORD 1993 | F28: Eq. 3-38, p. 3-23, seabird
A29: Bird, piscivorous | B29: Water consumption, alpha parameter for allometric equation | C29: 0.059 | D29: BW(kg), WC(L) | E29: U.S. EPA/ORD 1993 | F29: Eq. 3-15, p. 3-8
A30: Bird, piscivorous | B30: Water consumption, beta parameter for allometric equation | C30: 0.67 | D30: BW(kg), WC(L) | E30: U.S. EPA/ORD 1993 | F30: Eq. 3-15, p. 3-8
A31: Bird, small | B31: Body weight | C31: 0.01 | D31: kg | E31: Default | F31: N/A
A32: Bird, small | B32: Kilocalories, alpha parameter for allometric equation | C32: 3.12 | D32: BW(g),KCal(kcal/day) | E32: U.S. EPA/ORD 1993 | F32: Equation 3-36, passerines
A33: Bird, small | B33: Kilocalories, beta parameter for allometric equation | C33: 0.605 | D33: BW(g),KCal(kcal/day) | E33: U.S. EPA/ORD 1993 | F33: Equation 3-36, passerines
A34: Bird, small | B34: Water consumption, alpha parameter for allometric equation | C34: 0.059 | D34: BW(kg), WC(L) | E34: U.S. EPA/ORD 1993 | F34: Eq. 3-15, p. 3-8
A35: Bird, small | B35: Water consumption, beta parameter for allometric equation | C35: 0.67 | D35: BW(kg), WC(L) | E35: U.S. EPA/ORD 1993 | F35: Eq. 3-15, p. 3-8
A36: Honeybee | B36: Body weight | C36: 0.000116 | D36: kg | E36: Winston 1987 | F36: p. 54. Arithmetic average of range: 81 to 151 mg/bee.
A37: Honeybee | B37: Surface Area, Whole body | C37: 1.42 | D37: cm2 | E37: Humphery and Dykes 2008 | F37: Based on a bee with a body length of 1.44 cm.
A38: Mammal, Nos | B38: Food consumption, alpha parameter for allometric equation | C38: 0.235 | D38: BW(g),FC(g) | E38: U.S. EPA/ORD 1993 | F38: Eq. 3-7 ,p. 3-6, all mammals
A39: Mammal, Nos | B39: Food consumption, beta parameter for allometric equation | C39: 0.822 | D39: BW(g),FC(g) | E39: U.S. EPA/ORD 1993 | F39: Eq. 3-7 ,p. 3-6, all mammals
A40: Mammal, 400 g | B40: Body weight | C40: 0.4 | D40: kg | E40: Default | F40: N/A
A41: Mammal, 400 g | B41: Food consumption, alpha parameter for allometric equation | C41: 0.621 | D41: BW(g),FC(g) | E41: U.S. EPA/ORD 1993 | F41: Eq. 3-8, p. 3-6, equation for rodents
A42: Mammal, 400 g | B42: Food consumption, beta parameter for allometric equation | C42: 0.564 | D42: BW(g),FC(g) | E42: U.S. EPA/ORD 1993 | F42: Eq. 3-8, p. 3-6, equation for rodents
A43: Mammal, 400 g | B43: Kilocalories, alpha parameter for allometric equation | C43: 2.514 | D43: BW(g),KCal(kcal/day) | E43: U.S. EPA/ORD 1993 | F43: Equation 3-48, rodent
A44: Mammal, 400 g | B44: Kilocalories, beta parameter for allometric equation | C44: 0.507 | D44: BW(g),KCal(kcal/day) | E44: U.S. EPA/ORD 1993 | F44: Equation 3-48, rodent
A45: Mammal, 400 g | B45: Water consumption, alpha parameter for allometric equation | C45: 0.099 | D45: BW(kg),WC(L) | E45: U.S. EPA/ORD 1993 | F45: Eq. 3-17, p. 3-10, all mammals
A46: Mammal, 400 g | B46: Water consumption, beta parameter for allometric equation | C46: 0.9 | D46: BW(kg),WC(L) | E46: U.S. EPA/ORD 1993 | F46: Eq. 3-17, p. 3-10, all mammals
A47: Mammal, carnivorous | B47: Body weight | C47: 5 | D47: kg | E47: U.S. EPA/ORD 1993 | F47: p. 2-221. Central value for red fox with a range of 3 to 7 kg.
A48: Mammal, carnivorous | B48: Kilocalories, alpha parameter for allometric equation | C48: 0.6167 | D48: BW(g),KCal(kcal/day) | E48: U.S. EPA/ORD 1993 | F48: Equation 3-47, non-herbivore
A49: Mammal, carnivorous | B49: Kilocalories, beta parameter for allometric equation | C49: 0.862 | D49: BW(g),KCal(kcal/day) | E49: U.S. EPA/ORD 1993 | F49: Equation 3-47, non-herbivore
A50: Mammal, carnivorous | B50: Water consumption, alpha parameter for allometric equation | C50: 0.099 | D50: BW(kg),WC(L) | E50: U.S. EPA/ORD 1993 | F50: Eq. 3-17, p. 3-10, all mammals
A51: Mammal, carnivorous | B51: Water consumption, beta parameter for allometric equation | C51: 0.9 | D51: BW(kg), WC(L) | E51: U.S. EPA/ORD 1993 | F51: Eq. 3-17, p. 3-10, all mammals
A52: Mammal, large carnivorous | B52: Body weight | C52: 70 | D52: kg | E52: Reid 2006 | F52: pp. 451-453. Black bear or small grizzly.
A53: Mammal, large carnivorous | B53: Kilocalories, alpha parameter for allometric equation | C53: 0.6167 | D53: BW(g),KCal(kcal/day) | E53: U.S. EPA/ORD 1993 | F53: Equation 3-47, non-herbivore
A54: Mammal, large carnivorous | B54: Kilocalories, beta parameter for allometric equation | C54: 0.862 | D54: BW(g),KCal(kcal/day) | E54: U.S. EPA/ORD 1993 | F54: Equation 3-47, non-herbivore
A55: Mammal, large carnivorous | B55: Water consumption, alpha parameter for allometric equation | C55: 0.099 | D55: BW(kg),WC(L) | E55: U.S. EPA/ORD 1993 | F55: Eq. 3-17, p. 3-10, all mammals
A56: Mammal, large carnivorous | B56: Water consumption, beta parameter for allometric equation | C56: 0.9 | D56: BW(kg), WC(L) | E56: U.S. EPA/ORD 1993 | F56: Eq. 3-17, p. 3-10, all mammals
A57: Mammal, herbivorous | B57: Food consumption, alpha parameter for allometric equation | C57: 0.577 | D57: BW(g),FC(g) | E57: U.S. EPA/ORD 1993 | F57: Eq. 3-9, p. 3-6, equation for herbivores
A58: Mammal, herbivorous | B58: Food consumption, beta parameter for allometric equation | C58: 0.727 | D58: BW(g),FC(g) | E58: U.S. EPA/ORD 1993 | F58: Eq. 3-9, p. 3-6, equation for herbivores
A59: Mammal, herbivorous | B59: Kilocalories, alpha parameter for allometric equation | C59: 1.518 | D59: BW(g),KCal(kcal/day) | E59: U.S. EPA/ORD 1993 | F59: Equation 3-46, herbivores
A60: Mammal, herbivorous | B60: Kilocalories, beta parameter for allometric equation | C60: 0.73 | D60: BW(g),KCal(kcal/day) | E60: U.S. EPA/ORD 1993 | F60: Equation 3-46, herbivores
A61: Mammal, large | B61: Body weight | C61: 70 | D61: kg | E61: Default | F61: N/A
A62: Mammal, large | B62: Kilocalories, alpha parameter for allometric equation | C62: 1.518 | D62: BW(g),KCal(kcal/day) | E62: U.S. EPA/ORD 1993 | F62: p. 3-6, Eq. 3-10, herbivores
A63: Mammal, large | B63: Kilocalories, beta parameter for allometric equation | C63: 0.73 | D63: BW(g),KCal(kcal/day) | E63: U.S. EPA/ORD 1993 | F63: p. 3-6, Eq. 3-10, herbivores
A64: Mammal, large | B64: Water consumption, alpha parameter for allometric equation | C64: 0.099 | D64: BW(kg),WC(L) | E64: U.S. EPA/ORD 1993 | F64: Eq. 3-17, p. 3-10, all mammals
A65: Mammal, large | B65: Water consumption, beta parameter for allometric equation | C65: 0.9 | D65: BW(kg), WC(L) | E65: U.S. EPA/ORD 1993 | F65: Eq. 3-17, p. 3-10, all mammals
A66: Mammal, rabbit | B66: Body weight | C66: 1.3 | D66: kg | E66: Default | F66: N/A
A67: Mammal, rabbit | B67: Surface Area, alpha parameter for allometric equation | C67: 0.11 | D67: BW(kg),SA(m2) | E67: U.S. EPA/ORD 1993 | F67: p. 3-14, Eq. 3-22, for all mammals
A68: Mammal, rabbit | B68: Surface Area, beta parameter for allometric equation | C68: 0.65 | D68: BW(kg),SA(m2) | E68: U.S. EPA/ORD 1993 | F68: p. 3-14, Eq. 3-22, for all mammals
A69: Mammal, rodent | B69: Food consumption, alpha parameter for allometric equation | C69: 0.621 | D69: BW(g),FC(g) | E69: U.S. EPA/ORD 1993 | F69: Eq. 3-8, p. 3-6, equation for rodents
A70: Mammal, rodent | B70: Food consumption, beta parameter for allometric equation | C70: 0.584 | D70: BW(g),FC(g) | E70: U.S. EPA/ORD 1993 | F70: Eq. 3-8,p. 3-6, equation for rodents
A71: Mammal, small | B71: Body weight | C71: 0.02 | D71: kg | E71: Default | F71: N/A
A72: Mammal, small | B72: Caloric content (wet weight) | C72: 1.7 | D72: kcal/g (wet weight) | E72: U.S. EPA/ORD 1993 | F72: Table 4-1, p. 4-13. Value for small mammals. Wet weight.
A73: Mammal, small | B73: Food consumption, alpha parameter for allometric equation | C73: 0.621 | D73: BW(g),FC(g) | E73: U.S. EPA/ORD 1993 | F73: Eq. 3-8, p. 3-6, equation for rodents
A74: Mammal, small | B74: Food consumption, beta parameter for allometric equation | C74: 0.564 | D74: BW(g),FC(g) | E74: U.S. EPA/ORD 1993 | F74: Eq. 3-8, p. 3-6, equation for rodents
A75: Mammal, small | B75: Kilocalories, alpha parameter for allometric equation | C75: 2.514 | D75: BW(g),KCal(kcal/day) | E75: U.S. EPA/ORD 1993 | F75: Equation 3-48, rodent
A76: Mammal, small | B76: Kilocalories, beta parameter for allometric equation | C76: 0.507 | D76: BW(g),KCal(kcal/day) | E76: U.S. EPA/ORD 1993 | F76: Equation 3-48, rodent
A77: Mammal, small | B77: Surface Area, alpha parameter for allometric equation | C77: 0.11 | D77: BW(kg),SA(m2) | E77: U.S. EPA/ORD 1993 | F77: p. 3-14, Eq. 3-22, for all mammals
A78: Mammal, small | B78: Surface Area, beta parameter for allometric equation | C78: 0.65 | D78: BW(kg),SA(m2) | E78: U.S. EPA/ORD 1993 | F78: p. 3-14, Eq. 3-22, for all mammals
A79: Mammal, small | B79: Water consumption, alpha parameter for allometric equation | C79: 0.099 | D79: BW(kg),WC(L) | E79: U.S. EPA/ORD 1993 | F79: Eq. 3-17, p. 3-10, all mammals
A80: Mammal, small | B80: Water consumption, beta parameter for allometric equation | C80: 0.9 | D80: BW(kg),WC(L) | E80: U.S. EPA/ORD 1993 | F80: Eq. 3-17, p. 3-10, all mammals

Sheet A02c
A1: General reference values and exposure factors used in worksheets.
A3: Receptor | B3: Factor | C3: Value | D3: Units | E3: Reference | F3: Reference Note
A4: Small Insects | B4: Caloric content (wet weight) | C4: 1.5 | D4: kcal/g (wet weight) | E4: U.S. EPA/ORD 1993 | F4: Table 4-1, p. 4-13. Value for beetles. Wet weight
A5: Fish | B5: Caloric content (wet weight) | C5: 1.2 | D5: kcal/g (wet weight) | E5: U.S. EPA/ORD 1993 | F5: Table 4-1, p. 4-13. Value for bony fish. Wet weight
A6: Vegetation | B6: Caloric content (dry weight) | C6: 2.26 | D6: kcal/g | E6: U.S. EPA/ORD 1993 | F6: p. 3-5, Table 3-1
A7: Vegetation | B7: Water content (proportion) | C7: 0.85 | D7: unitless | E7: U.S. EPA/ORD 1993 | F7: p. 4-14
A8: VegRR | B8: Broadleaf/forage plants and small insects, central estimate | C8: 45 | D8: mg chem/kg veg | E8: Fletcher et al. 1994 | F8: Broadleaf/forage plants and small insects
A9: VegRR | B9: Broadleaf/forage plants and small insects, upper range | C9: 135 | D9: mg chem/kg veg | E9: Fletcher et al. 1994 | F9: Broadleaf/forage plants and small insects
A10: VegRR | B10: Fruits, pods, seeds, and large insects, central estimate | C10: 7 | D10: mg chem/kg veg | E10: Fletcher et al. 1994 | F10: Fruits, pods, seeds, and large insects
A11: VegRR | B11: Fruits, pods, seeds, and large insects, upper range | C11: 15 | D11: mg chem/kg veg | E11: Fletcher et al. 1994 | F11: Fruits, pods, seeds, and large insects
A12: VegRR | B12: Broadleaf plants and small insects, granular applications, central estimate | C12: 1.8 | D12: mg chem/kg veg | E12: SERA 2005 | F12: Broadleaf forage plants and contaminated insects after granular application
A13: VegRR | B13: Broadleaf plants and small insects, granular applications, upper range | C13: 5.4 | D13: mg chem/kg veg | E13: SERA 2005 | F13: Broadleaf forage plants and contaminated insects after granular application
A14: VegRR | B14: Fruits, granular applications, central estimate | C14: 0.28 | D14: mg chem/kg veg | E14: SERA 2005 | F14: Fruit after granular application
A15: VegRR | B15: Fruits, granular applications, upper range | C15: 0.6 | D15: mg chem/kg veg | E15: SERA 2005 | F15: Fruit after granular application
A16: VegRR | B16: Short grass, granular applications, lower range | C16: 1.2 | D16: mg chem/kg veg | E16: SERA 2005 | F16: Short grass after granular application
A17: VegRR | B17: Short grass, granular applications, upper range | C17: 9.6 | D17: mg chem/kg veg | E17: SERA 2005 | F17: Short grass after granular application
A18: VegRR | B18: Tall grass, granular applications, central estimate | C18: 1.44 | D18: mg chem/kg veg | E18: SERA 2005 | F18: Tall grass after granular application
A19: VegRR | B19: Tall grass, granular applications, upper range | C19: 4.4 | D19: mg chem/kg veg | E19: SERA 2005 | F19: Tall grass after granular application
A20: VegRR | B20: Short grass, central estimate | C20: 85 | D20: mg chem/kg veg | E20: Fletcher et al. 1994 | F20: Short grass
A21: VegRR | B21: Short grass, lower range | C21: 30 | D21: mg chem/kg veg | E21: SERA 2007 | F21: Short grass
A22: VegRR | B22: Short grass, upper range | C22: 240 | D22: mg chem/kg veg | E22: Fletcher et al. 1994 | F22: Short grass
A23: VegRR | B23: Tall grass, central estimate | C23: 36 | D23: mg chem/kg veg | E23: Fletcher et al. 1994 | F23: Tall grass
A24: VegRR | B24: Tall grass, upper range | C24: 110 | D24: mg chem/kg veg | E24: Fletcher et al. 1994 | F24: Tall grass

Sheet A02d
A1: General reference values and exposure factors used in worksheets.
A3: Receptor | B3: Factor | C3: Value | D3: Units | E3: Reference | F3: Reference Note
A4: Conversion Factors | B4: acrefoot2gal | C4: 325900 | D4: gal/acre-foot | E4: Budavari 1989 | F4: N/A
A5: Conversion Factors | B5: liters per gal | C5: 3.785 | D5: L/gal | E5: Budavari 1989 | F5: N/A
A6: Conversion Factors | B6: pound per milligram | C6: 453600 | D6: mg/lb | E6: Budavari 1989 | F6: N/A
A7: Conversion Factors | B7: lbac2mgcm2 | C7: 0.01121 | D7: mg/cm2 per lb/acre | E7: Budavari 1989 | F7: N/A
A8: Conversion Factors | B8: lbac2ugcm2 | C8: 11.21 | D8: ug/cm2 per lb/acre | E8: Budavari 1989 | F8: N/A
A9: Conversion Factors | B9: conversion for milligrams to pounds | C9: 2.204e-06 | D9: lb/mg | E9: Budavari 1989 | F9: N/A
A10: Conversion Factors | B10: conversion for milliliters to gallons | C10: 3785 | D10: ml/gal | E10: Budavari 1989 | F10: N/A
A11: Misc | B11: Liquid adhering to skin | C11: 0.008 | D11: mL/cm2 | E11: Mason and Johnson 1987 | F11: Weight of liquid adhering to surface of skin after a spill
A12: Misc | B12: Dislodgeable residue as proportion | C12: 0.1 | D12: none | E12: Harris and Solomon 1992 | F12: Estimate of dislodgeable residue as a proportion of application rate shortly after application based on 2,4-D.
A13: Standard Pond | B13: Depth | C13: 1 | D13: m | E13: Default | F13: Depth of pond
A14: Standard Pond | B14: Surface Area | C14: 1000 | D14: m^2 | E14: Default | F14: Surface Area
A15: Standard Pond | B15: Volume of Spill | C15: 200 | D15: gallons | E15: Default | F15: Volume of spill
A16: VegRR | B16: Broadleaf/forage plants and small insects, lower range | C16: 15 | D16: mg chem/kg veg | E16: SERA 2007 | F16: Broadleaf/forage plants and small insects
A17: VegRR | B17: Fruits, pods, seeds, and large insects, lower range | C17: 3.2 | D17: mg chem/kg veg | E17: SERA 2007 | F17: Fruits, pods, seeds, and large insects
A18: VegRR | B18: Broadleaf plants and small insects, granular applications, lower range | C18: 0.6 | D18: mg chem/kg veg | E18: SERA 2007 | F18: Broadleaf/forage plants after granular application
A19: VegRR | B19: Fruits, granular applications, lower range | C19: 0.13 | D19: mg chem/kg veg | E19: SERA 2007 | F19: Fruit after granular application
A20: VegRR | B20: Short grass, granular applications, central estimate | C20: 3.4 | D20: mg chem/kg veg | E20: SERA 2005 | F20: Short grass after granular application
A21: VegRR | B21: Short grass, granular applications, lower range | C21: 1.2 | D21: mg chem/kg veg | E21: SERA 2007 | F21: Short grass after granular application
A22: VegRR | B22: Tall grass, granular applications, lower range | C22: 0.48 | D22: mg chem/kg veg | E22: SERA 2007 | F22: Tall grass after granular application
A23: VegRR | B23: Short grass, lower range | C23: 30 | D23: mg chem/kg veg | E23: Fletcher et al. 1994 | F23: Short grass
A24: VegRR | B24: Tall grass, lower range | C24: 12 | D24: mg chem/kg veg | E24: SERA 2007 | F24: Tall grass

Sheet A03
A1: Food items for terrestrial animals
A3: Receptor | B3: Consumer | C3: Qualifier | D3: Modifier | E3: Value | F3: Units | G3: Reference | H3: Reference Note
A4: Adult Female | B4: Fish | C4: Amount | D4: central estimate | E4: 0.01 | F4: kg/day | G4: U.S. EPA/ORD 1996 | H4: p. 10-51, average of means from four studies rounded to one significant place.
A5: Adult Female | B5: Fish | C5: Amount | D5: upper range | E5: 0.158 | F5: kg/day | G5: Ruffle et al. 1994 | H5: N/A
A6: Adult Female | B6: Fruit | C6: Proportion of body weight | D6: central estimate | E6: 0.00168 | F6: kg fruit/kg bw/day | G6: U.S. EPA/ORD 1996 | H6: Table 9-3, p. 9-11, mean value.
A7: Adult Female | B7: Fruit | C7: Proportion of body weight | D7: lower range | E7: 0.00168 | F7: kg fruit/kg bw/day | G7: U.S. EPA/ORD 1996 | H7: Table 9-3, p. 9-11. The 5th percentile is given as zero. For these worksheets, the central estimate is used for the lower bound.
A8: Adult Female | B8: Fruit | C8: Proportion of body weight | D8: upper range | E8: 0.01244 | F8: kg fruit/kg bw/day | G8: U.S. EPA/ORD 1996 | H8: Table 9-3, p. 9-11, 95th percentile value.
A9: Adult Female | B9: Vegetation, home grown | C9: Proportion of body weight | D9: central estimate | E9: 0.00076 | F9: kg veg/kg bw/day | G9: U.S. EPA/ORD 1996 | H9: Table 12-15, p. 9-14, mean for individuals between 20 and 39 years old.
A10: Adult Female | B10: Vegetation, home grown | C10: Proportion of body weight | D10: lower range | E10: 8e-05 | F10: kg veg/kg bw/day | G10: U.S. EPA/ORD 1996 | H10: Table 12-15, p. 9-14, 5th percentile for individuals between 20 and 39 years old.
A11: Adult Female | B11: Vegetation, home grown | C11: Proportion of body weight | D11: upper range | E11: 0.00492 | F11: kg veg/kg bw/day | G11: U.S. EPA/ORD 1996 | H11: Table 12-15, p. 9-14, 95th percentile for individuals between 20 and 39 years old.
A12: Adult Female | B12: Vegetation | C12: Amount | D12: Extreme | E12: 0.454 | F12: kg food | G12: U.S. EPA/ORD 1996 | H12: 1 lb. The approximate mid range of the above typical and upper limits based on the 64 kg body weight.
A13: Adult Female | B13: Vegetation | C13: Proportion of body weight | D13: central estimate | E13: 0.0036 | F13: kg veg/kg bw/day | G13: U.S. EPA/ORD 1996 | H13: Table 9-12, p. 9-12, mean.
A14: Adult Female | B14: Vegetation | C14: Proportion of body weight | D14: lower range | E14: 0.00075 | F14: kg veg/kg bw/day | G14: U.S. EPA/ORD 1996 | H14: Table 9-12, p. 9-12, 5th percentile.
A15: Adult Female | B15: Vegetation | C15: Proportion of body weight | D15: upper range | E15: 0.01 | F15: kg veg/kg bw/day | G15: U.S. EPA/ORD 1996 | H15: Table 9-12, p. 9-12, 95th percentile.
A16: Adult Female | B16: Water | C16: Amount | D16: central estimate | E16: 2 | F16: L/day | G16: U.S. EPA/ORD 1996 | H16: p. 3-28, Table 3-30, midpoint of mean (1.4 L/day) and 90th percentile (2.4 L/day) rounded to one significant place.
A17: Adult Female | B17: Water | C17: Amount | D17: lower range | E17: 1.4 | F17: L/day | G17: U.S. EPA/ORD 1996 | H17: p. 3-28, Table 3-30, mean
A18: Adult Female | B18: Water | C18: Amount | D18: upper range | E18: 2.4 | F18: L/day | G18: U.S. EPA/ORD 1996 | H18: p. 3-28, Table 3-30, 90th percentile
A19: Adult Male | B19: Fish | C19: Amount | D19: central estimate | E19: 0.01 | F19: kg/day | G19: U.S. EPA/ORD 1996 | H19: p. 10-51, average of means from four studies rounded to one significant place.
A20: Adult Male | B20: Fish | C20: Amount | D20: upper range | E20: 0.158 | F20: kg/day | G20: Ruffle et al. 1994 | H20: N/A
A21: Adult Male | B21: Fruit | C21: Proportion of body weight | D21: central estimate | E21: 0.00168 | F21: unitless | G21: U.S. EPA/ORD 1996 | H21: Table 9-3, p. 9-11, mean value.
A22: Adult Male | B22: Fruit | C22: Proportion of body weight | D22: lower range | E22: 0.00168 | F22: unitless | G22: U.S. EPA/ORD 1996 | H22: Table 9-3, p. 9-11. The 5th percentile is given as zero. For these worksheets, the central estimate is used for the lower bound.
A23: Adult Male | B23: Fruit | C23: Proportion of body weight | D23: upper range | E23: 0.01244 | F23: unitless | G23: U.S. EPA/ORD 1996 | H23: Table 9-3, p. 9-11, 95th percentile value.
A24: Adult Male | B24: Vegetation, home grown | C24: Proportion of body weight | D24: central estimate | E24: 0.00076 | F24: unitless | G24: U.S. EPA/ORD 1996 | H24: Table 12-15, p. 9-14, mean for individuals between 20 and 39 years old.
A25: Adult Male | B25: Vegetation, home grown | C25: Proportion of body weight | D25: lower range | E25: 8e-05 | F25: unitless | G25: U.S. EPA/ORD 1996 | H25: Table 12-15, p. 9-14, 5th percentile for individuals between 20 and 39 years old.
A26: Adult Male | B26: Vegetation, home grown | C26: Proportion of body weight | D26: upper range | E26: 0.00492 | F26: unitless | G26: U.S. EPA/ORD 1996 | H26: Table 12-15, p. 9-14, 95th percentile for individuals between 20 and 39 years old.
A27: Adult Male | B27: Vegetation | C27: Amount | D27: Extreme | E27: 0.454 | F27: kg/day | G27: U.S. EPA/ORD 1996 | H27: 1 lb. The approximate mid range of the above typical and upper limits based on the 64 kg body weight.
A28: Adult Male | B28: Vegetation | C28: Proportion of body weight | D28: central estimate | E28: 0.0036 | F28: unitless | G28: U.S. EPA/ORD 1996 | H28: Table 9-12, p. 9-12, mean.
A29: Adult Male | B29: Vegetation | C29: Proportion of body weight | D29: lower range | E29: 0.00075 | F29: unitless | G29: U.S. EPA/ORD 1996 | H29: Table 9-12, p. 9-12, 5th percentile.
A30: Adult Male | B30: Vegetation | C30: Proportion of body weight | D30: upper range | E30: 0.01 | F30: unitless | G30: U.S. EPA/ORD 1996 | H30: Table 9-12, p. 9-12, 95th percentile.
A31: Adult Male | B31: Water | C31: Amount | D31: central estimate | E31: 2 | F31: L/day | G31: U.S. EPA/ORD 1996 | H31: p. 3-28, Table 3-30, midpoint of mean (1.4 L/day) and 90th percentile (2.4 L/day) rounded to one significant place.
A32: Adult Male | B32: Water | C32: Amount | D32: lower range | E32: 1.4 | F32: L/day | G32: U.S. EPA/ORD 1996 | H32: p. 3-28, Table 3-30, mean
A33: Adult Male | B33: Water | C33: Amount | D33: upper range | E33: 2.4 | F33: L/day | G33: U.S. EPA/ORD 1996 | H33: p. 3-28, Table 3-30, 90th percentile
A34: Subsistence Populations | B34: Fish | C34: Amount | D34: central estimate | E34: 0.081 | F34: kg/day | G34: U.S. EPA/ORD 1996 | H34: p. 10-51, median value of 94 individuals
A35: Subsistence Populations | B35: Fish | C35: Amount | D35: upper range | E35: 0.77 | F35: kg/day | G35: U.S. EPA/ORD 1993 | H35: p. 10-51, highest value of 94 individuals
A36: Bird, NOS | B36: Fish | C36: Kilocalories | D36: FoodVal | E36: 3.87 | F36: Kcal/gram (dw) | G36: U.S. EPA/ORD 1993 | H36: Table 3-1, p. 3-5
A37: Bird, NOS | B37: Fish | C37: Wat | D37: FoodVal | E37: 0.7 | F37: Unitless | G37: Ali et al. 2005 | H37: N/A
A38: Bird, NOS | B38: Fruit | C38: Kilocalories | D38: FoodVal | E38: 1.1 | F38: Kcal/gram (dw) | G38: U.S. EPA/ORD 1993 | H38: Gross caloric value of 2.2 kcal/g dw (U.S. EPA/ORD 1993, Table 4-2) with assim fact of 0.51
A39: Bird, NOS | B39: Fruit | C39: Wat | D39: FoodVal | E39: 0.77 | F39: Unitless | G39: U.S. EPA/ORD 1993 | H39: Table 4-2, p. 4-14
A40: Bird, NOS | B40: Insect | C40: Kilocalories | D40: FoodVal | E40: 4.3 | F40: Kcal/gram (dw) | G40: U.S. EPA/ORD 1993 | H40: Table 4-2, p. 4-14
A41: Bird, NOS | B41: Insect | C41: Wat | D41: FoodVal | E41: 0.7 | F41: Unitless | G41: Chapman 1998 | H41: Typrical range 60-80%
A42: Bird, NOS | B42: Vegetation | C42: Kilocalories | D42: FoodVal | E42: 2 | F42: Kcal/gram (dw) | G42: U.S. EPA/ORD 1993 | H42: gross caloric value of 4.2 kcal/g dw for dicot leaves (U.S. EPA/ORD 1993, Table 4-2) with assim fact of 0.47
A43: Bird, NOS | B43: Vegetation | C43: Wat | D43: FoodVal | E43: 0.85 | F43: Unitless | G43: U.S. EPA/ORD 1993 | H43: Table 4-2, p. 4-14
A44: Child | B44: Water | C44: Amount | D44: central estimate | E44: 1 | F44: L/day | G44: U.S. EPA/ORD 1996 | H44: p. 3-28, Table 3-30, midpoint of mean (0.61L/day) and 90th percentile (1.5 L/day) rounded to one significant place.
A45: Child | B45: Water | C45: Amount | D45: lower range | E45: 0.61 | F45: L/day | G45: U.S. EPA/ORD 1996 | H45: p. 3-28, Table 3-30, mean
A46: Child | B46: Water | C46: Amount | D46: upper range | E46: 1.5 | F46: L/day | G46: U.S. EPA/ORD 1996 | H46: p. 3-28, Table 3-30, 90th percentile
A47: Herbivorous Insect | B47: Broadleaf/Small Insects | C47: Proportion of body weight | D47: central estimate | E47: 1.3 | F47: kg food/kg bw/day | G47: Waldbauer 1968 | H47: N/A
A48: Herbivorous Insect | B48: Broadleaf/Small Insects | C48: Proportion of body weight | D48: lower range | E48: 0.6 | F48: kg food/kg bw/day | G48: Reichle et al. 1973 | H48: N/A
A49: Herbivorous Insect | B49: Broadleaf/Small Insects | C49: Proportion of body weight | D49: upper range | E49: 2.2 | F49: kg food/kg bw/day | G49: Waldbauer 1968 | H49: N/A
A50: Herbivorous Insect | B50: Fruit | C50: Proportion of body weight | D50: central estimate | E50: 1.3 | F50: kg food/kg bw/day | G50: Waldbauer 1968 | H50: N/A
A51: Herbivorous Insect | B51: Fruit | C51: Proportion of body weight | D51: lower range | E51: 0.6 | F51: kg food/kg bw/day | G51: Reichle et al. 1973 | H51: N/A
A52: Herbivorous Insect | B52: Fruit | C52: Proportion of body weight | D52: upper range | E52: 2.2 | F52: kg food/kg bw/day | G52: Waldbauer 1968 | H52: N/A
A53: Herbivorous Insect | B53: Short grass | C53: Proportion of body weight | D53: central estimate | E53: 1.3 | F53: kg food/kg bw/day | G53: Waldbauer 1968 | H53: N/A
A54: Herbivorous Insect | B54: Short grass | C54: Proportion of body weight | D54: lower range | E54: 0.6 | F54: kg food/kg bw/day | G54: Reichle et al. 1973 | H54: N/A
A55: Herbivorous Insect | B55: Short grass | C55: Proportion of body weight | D55: upper range | E55: 2.2 | F55: kg food/kg bw/day | G55: Waldbauer 1968 | H55: N/A
A56: Herbivorous Insect | B56: Tall Grass | C56: Proportion of body weight | D56: central estimate | E56: 1.3 | F56: kg food/kg bw/day | G56: Waldbauer 1968 | H56: N/A
A57: Herbivorous Insect | B57: Tall Grass | C57: Proportion of body weight | D57: lower range | E57: 0.6 | F57: kg food/kg bw/day | G57: Reichle et al. 1973 | H57: N/A
A58: Herbivorous Insect | B58: Tall Grass | C58: Proportion of body weight | D58: upper range | E58: 2.2 | F58: kg food/kg bw/day | G58: Waldbauer 1968 | H58: N/A
A59: Mammal, Nos | B59: Fish | C59: Kilocalories | D59: FoodVal | E59: 4.47 | F59: Kcal/gram (dw) | G59: U.S. EPA/ORD 1993 | H59: Table 3-1, p. 3-5
A60: Mammal, Nos | B60: Fish | C60: Wat | D60: FoodVal | E60: 0.7 | F60: Unitless | G60: Ali et al. 2005 | H60: N/A
A61: Mammal, Nos | B61: Fruit | C61: Kilocalories | D61: FoodVal | E61: 1.1 | F61: Kcal/gram (dw) | G61: U.S. EPA/ORD 1993 | H61: Gross caloric value of 2.2 kcal/g dw (U.S. EPA/ORD 1993, Table 4-2) with assim fact of 0.51
A62: Mammal, Nos | B62: Fruit | C62: Wat | D62: FoodVal | E62: 0.77 | F62: Unitless | G62: U.S. EPA/ORD 1993 | H62: Table 4-2, p. 4-14
A63: Mammal, Nos | B63: Insect | C63: Kilocalories | D63: FoodVal | E63: 4.47 | F63: Kcal/gram (dw) | G63: U.S. EPA/ORD 1993 | H63: Table 4-2, p. 4-14
A64: Mammal, Nos | B64: Insect | C64: Wat | D64: FoodVal | E64: 0.7 | F64: Unitless | G64: Chapman 1998 | H64: Typrical range 60-80%
A65: Mammal, Nos | B65: Vegetation | C65: Kilocalories | D65: FoodVal | E65: 2.26 | F65: Kcal/gram (dw) | G65: U.S. EPA/ORD 1993 | H65: Table 3-1, p. 3-5
A66: Mammal, Nos | B66: Vegetation | C66: Wat | D66: FoodVal | E66: 0.85 | F66: Unitless | G66: U.S. EPA/ORD 1993 | H66: Table 4-2, p. 4-14

Sheet A04
A1: Drift from Backpack Directed Foliar application at distances downwindfrom the application site
A2: Short Title | B2: Drift | E2: DriftArea
A3: Receptor | B3: Downwind receptors
A4: Duration | B4: Acute
A5: Parameter/Assumption | B5: Code / Range | C5: Equation/ Value | D5: Units | E5: Reference/Designation
A6: Proportion of Drift at distances downwind in feet | B6: Prop | E6: Program Speciified
A7: Direct Spray | B7: feet | C7: 1 | D7: unitless
A8: 25 | B8: feet | C8: 0.00832
A9: 50 | B9: feet | C9: 0.00433
A10: 100 | B10: feet | C10: 0.00241
A11: 300 | B11: feet | C11: 0.000941
A12: 500 | B12: feet | C12: 0.000579
A13: 900 | B13: feet | C13: 0.000312

Sheet B01
A1: Chemical and Physical Properties for Bifenthrin
A3: Property | B3: Receptor | C3: Value | D3: Units | E3: Document Reference
A4: Bioconcentration Factor (BCF), edible, acute | B4: N/A | C4: 6090 | D4: L/kg fish | E4: N/A
A5: Bioconcentration Factor (BCF), edible, chronic | B5: N/A | C5: 2140 | D5: L/kg fish | E5: N/A
A6: Bioconcentration Factor (BCF), whole fish, acute | B6: N/A | C6: 6090 | D6: L/kg fish | E6: N/A
A7: Bioconcentration Factor (BCF), whole fish, chronic | B7: N/A | C7: 2140 | D7: L/kg fish | E7: N/A
A8: Kow (Octanol-water partition coefficient) | B8: N/A | C8: 3000000 | D8: unitless | E8: Table 3
A9: Molecular weight | B9: N/A | C9: 422.9 | D9: grams/mole | E9: Table 3
A10: Water Solubility | B10: N/A | C10: 1.4e-05 | D10: mg/L | E10: Table 3
A11: First order dermal absorption rate (ka), central estimate | B11: N/A | C11: 0.0013 | D11: per hour | E11: N/A
A12: First order dermal absorption rate (ka), lower range | B12: N/A | C12: 0.00029 | D12: per hour | E12: N/A
A13: First order dermal absorption rate (ka), upper range | B13: N/A | C13: 0.0061 | D13: per hour | E13: N/A
A14: Dermal permeability (Kp), central estimate | B14: N/A | C14: 0.0096 | D14: cm/hour | E14: N/A
A15: Dermal permeability (Kp), lower range | B15: N/A | C15: 0.0028 | D15: cm/hour | E15: N/A
A16: Dermal permeability (Kp), upper range | B16: N/A | C16: 0.032 | D16: cm/hour | E16: N/A
A17: Halftime, central estimate | B17: Fruit | C17: 7 | D17: days | E17: Table 3
A18: Halftime, lower range | B18: Fruit | C18: 2 | D18: days | E18: Table 3
A19: Halftime, upper range | B19: Fruit | C19: 12 | D19: days | E19: Table 3
A20: Halftime, central estimate | B20: Vegetation | C20: 12.7 | D20: days | E20: Table 3
A21: Halftime, lower range | B21: Vegetation | C21: 2.4 | D21: days | E21: Table 3
A22: Halftime, upper range | B22: Vegetation | C22: 23 | D22: days | E22: Table 3

Sheet B02
A1: Toxicity values for Bifenthrin
A3: Receptor | B3: Receptor | C3: Qualifier | D3: Endpoint | E3: Value | F3: Units | G3: Document Reference
A4: Human | B4: acute | C4: N/A | D4: Reference Dose (RfD) | E4: 0.031 | F4: mg/kg bw | G4: N/A
A5: Human | B5: chronic | C5: N/A | D5: Reference Dose (RfD) | E5: 0.031 | F5: mg/kg bw/day | G5: N/A
A6: Mammal, Nos | B6: acute | C6: N/A | D6: NOAEL | E6: 3.1 | F6: mg/kg bw | G6: N/A
A7: Mammal, Nos | B7: chronic | C7: N/A | D7: NOAEL | E7: 3.1 | F7: mg/kg bw/day | G7: N/A
A8: Bird, NOS | B8: acute | C8: N/A | D8: NOAEL | E8: 51 | F8: mg/kg bw | G8: N/A
A9: Bird, NOS | B9: chronic | C9: N/A | D9: NOAEL | E9: 5.25 | F9: mg/kg bw/day | G9: N/A
A10: Honeybee | B10: acute | C10: N/A | D10: NOAEL | E10: 0.013 | F10: mg/kg bw | G10: N/A
A11: Herbivorous Insect | B11: acute | C11: N/A | D11: NOAEL | E11: 0.013 | F11: mg/kg bw | G11: N/A
A12: Aquatic invertebrate | B12: acute | C12: sensitive species | D12: NOAEC | E12: 1.7e-07 | F12: mg/L | G12: N/A
A13: Aquatic invertebrate | B13: acute | C13: tolerant species | D13: NOAEC | E13: 0.0006 | F13: mg/L | G13: N/A
A14: Aquatic invertebrate | B14: chronic | C14: sensitive species | D14: NOAEC | E14: 1.7e-07 | F14: mg/L | G14: N/A
A15: Aquatic invertebrate | B15: chronic | C15: tolerant species | D15: NOAEC | E15: 1.3e-06 | F15: mg/L | G15: N/A
A16: Fish | B16: acute | C16: sensitive species | D16: NOAEC | E16: 9.4e-05 | F16: mg/L | G16: N/A
A17: Fish | B17: acute | C17: tolerant species | D17: NOAEC | E17: 0.005 | F17: mg/L | G17: N/A
A18: Fish | B18: chronic | C18: sensitive species | D18: NOAEC | E18: 4e-06 | F18: mg/L | G18: N/A
A19: Fish | B19: chronic | C19: tolerant species | D19: NOAEC | E19: 0.0002 | F19: mg/L | G19: N/A
A20: Algae | B20: N/A | C20: tolerant species | D20: NOAEC | E20: 0.04 | F20: mg/L | G20: N/A
A21: Human | B21: acute | C21: Child | D21: Reference Dose (RfD) | E21: 0.01 | F21: mg/kg bw | G21: N/A

Sheet B03a
A1: Calculation of Zero-Order Dermal Permeability Rate (Kp) in cm/hour
A2: Short Title | B2: Calculation of Kp | E2: ChemDrmKp
A3: Parameter/Assumption | B3: Code / Range | C3: Equation/ Value | D3: Units | E3: Reference/Designation
A4: Molecular weight | B4: MW | C4: ='B01'!$C$9 -> 422.9 | D4: g/mole | E4: Table 3
A5: Ko/w | B5: Kow | C5: ='B01'!$C$8 -> 3000000 | D5: unitless | E5: Table 3
A6: Vector a[] | B6: a[1] | C6: 1
B7: a[2] | C7: =C4 -> 422.9
B8: a[3] | C8: =LOG10(C5) -> 6.477121255
A9: Transpose of a[] (a') | B9: =$C$6 -> 1 | C9: =$C$7 -> 422.9 | D9: =$C$8 -> 6.477121255
A10: X'X Cross Product Matrix | B10: X'X
B11: 0.055931 | C11: -9.41546e-05 | D11: -0.0103443
B12: -9.41546e-05 | C12: 5.978e-07 | D12: -2.22508e-05
B13: -0.0103443 | C13: -2.22508e-05 | D13: 0.00740677
A14: a'X'X a | B14: a'X'X a | C14: =MMULT(B9:D9,MMULT(B11:D13, C6:C8)) -> 0.138044966
A15: Coefficients for model
A16: Intercept | B16: K0 | C16: -2.72576
A17: Coeff for MW | B17: K1 | C17: -0.006151
A18: Coeff for Log10(Kow) | B18: K2 | C18: 0.706648
A19: Standard deviation of model | B19: s | C19: 0.727129
A20: Critical value at 0.025 with 87 d.f. | B20: t0.025 | C20: 1.96
A21: Log10 of Estimated dermal permeability rate (Kp) | B21: Log(Kp) = | C21: K0 + K1 MW + K2 Log10(Kow)
B22: Central | C22: =$C$16 + ($C$17*$C$4) + ($C$18*LOG10($C$5)) -> -0.7499731196 | E22: Eq
B23: Lower 95% CI | C23: =$C$22 - ($C$20 * $C$19 * ($C$14^0.5)) -> -1.27948758 | E23: Eq
B24: Upper 95% CI | C24: =$C$22 + ($C$20 * $C$19 * ($C$14^0.5)) -> -0.2204586596 | E24: Eq
A25: Estimated dermal permeability rate (Kp) | B25: Kp = | C25: 10Log(Kp)
B26: Central | C26: =10^C22 -> 0.1778389479 | D26: cm/hour | E26: Eq
B27: Lower 95% CI | C27: =10^C23 -> 0.05254270416 | E27: Eq
B28: Upper 95% CI | C28: =10^C24 -> 0.6019235572 | E28: Eq

Sheet B03b
A1: Calculation of First-Order Dermal Absorption Rate
A2: Short Title | B2: Calculation of ka | E2: ChemDrmKa
A3: Parameter/Assumption | B3: Code / Range | C3: Equation/ Value | D3: Units | E3: Reference/Designation
A4: Molecular weight | B4: MW | C4: ='B01'!$C$9 -> 422.9 | D4: g/mole | E4: Table 3
A5: Ko/w | B5: Kow | C5: ='B01'!$C$8 -> 3000000 | D5: unitless | E5: Table 3
A6: Vector a[] | B6: a[1] | C6: 1
B7: a[2] | C7: =C4 -> 422.9
B8: a[3] | C8: =LOG10(C5) -> 6.477121255
A9: Transpose of a[] (a') | B9: =$C$6 -> 1 | C9: =$C$7 -> 422.9 | D9: =$C$8 -> 6.477121255
A10: X'X Cross Product Matrix | B10: X'X
B11: 0.307537 | C11: -0.00103089 | D11: 0.00822769
B12: -0.00103089 | C12: 4.377e-06 | D12: -9.44359e-05
B13: 0.00822769 | C13: -9.44359e-05 | D13: 0.0085286
A14: a'X'X a | B14: a'X'X a | C14: =MMULT(B9:D9,MMULT(B11:D13, C6:C8)) -> 0.1654440855
A15: Coefficients for model
A16: Intercept | B16: K0 | C16: -1.49615
A17: Coeff for MW | B17: K1 | C17: -0.005657
A18: Coeff for Log10(Kow) | B18: K2 | C18: 0.233255
A19: Standard deviation of model | B19: s | C19: 0.787218
A20: Critical value at 0.025 with 26 d.f. | B20: t0.025 | C20: 2.056
A21: Log10 of Estimated first-order absorption rate | B21: Log(ka) = | C21: K0 + K1 MW + K2 Log10(Kow)
B22: Central | C22: =$C$16 + ($C$17*$C$4) + ($C$18*LOG10($C$5)) -> -2.377674382 | E22: Eq
B23: Lower 95% CI | C23: =$C$22 - ($C$20 * $C$19 * ($C$14^0.5)) -> -3.036004538 | E23: Eq
B24: Upper 95% CI | C24: =$C$22 + ($C$20 * $C$19 * ($C$14^0.5)) -> -1.719344226 | E24: Eq
A25: Estimated first-order absorption rate | B25: ka = | C25: 10Log(ka)
B26: Central | C26: =10^C22 -> 0.004191076791 | D26: hour-1 | E26: Eq
B27: Lower 95% CI | C27: =10^C23 -> 0.0009204399547 | E27: Eq
B28: Upper 95% CI | C28: =10^C24 -> 0.01908340091 | E28: Eq

Sheet B04Rt
A1: Estimates of Water Contamination Rates -- i.e., the concentration in ambient water per pound applied per acre
A2: Parameter/Assumption | B2: Code / Range | C2: Equation/ Value | D2: Units | E2: WCRV6
A3: Short-term peak concentrations | B3: Peak | E3: WCRV6
B4: Central | C4: 0.00035 | D4: mg/L
B5: Lower | C5: 5e-05
B6: Upper | C6: 0.004
A7: Longer-term average concentrations | B7: Average
B8: Central | C8: 6.5e-05 | D8: mg/L
B9: Lower | C9: 4e-06
B10: Upper | C10: 0.0006
A11: User Specified Gleams-Driver File: | B11: None

Sheet B04a
A1: Expected Concentrations in Surface Water | E1: EECRtV6
A2: Parameter/Assumption | B2: Code / Range | C2: Equation/ Value | D2: Units | E2: EECRtV6
A3: Application Rate | B3: ApRt | C3: ='A01'!ApRt_C -> 0.2 | D3: lb/acre | E3: Worksheet A01
A4: Water Contamination Rates
A5: Short-term peak water contamination rates (WCR) | B5: Peak
B6: Central | C6: =B04Rt!$C$4 -> 0.00035 | D6: mg/L
B7: Lower | C7: =B04Rt!$C$5 -> 5e-05
B8: Upper | C8: =B04Rt!$C$6 -> 0.004
A9: Longer-term average water contamination rates (WCR) | B9: Average
B10: Central | C10: =B04Rt!$C$8 -> 6.5e-05 | D10: mg/L
B11: Lower | C11: =B04Rt!$C$9 -> 4e-06
B12: Upper | C12: =B04Rt!$C$10 -> 0.0006
A13: Nominal EECs in Surface Water
A14: Short-term peak concentrations | B14: Peak
B15: Central | C15: =$C$3*C6 -> 7e-05 | D15: mg/L | E15: Eq
B16: Lower | C16: =$C$3*C7 -> 1e-05 | E16: Eq
B17: Upper | C17: 0.0008 | E17: Eq
A18: Longer-term average concentrations | B18: Average
B19: Central | C19: 1.3e-05 | D19: mg/L | E19: Eq
B20: Lower | C20: 8e-07 | E20: Eq
B21: Upper | C21: 0.00012 | E21: Eq
B22: Water Solubility Cap | C22: ='B01'!$C$10 -> 1.4e-05
A23: EECs in Surface Water Adjusted for Water Solubility Cap
A24: Short-term peak concentrations | B24: Peak
B25: Central | C25: =IF(C15>$C$22, $C$22, C15) -> 1.4e-05 | D25: mg/L | E25: Eq
B26: Lower | C26: =IF(C16>$C$22, $C$22, C16) -> 1e-05 | E26: Eq
B27: Upper | C27: 1.4e-05 | E27: Eq
A28: Longer-term average concentrations | B28: Average
B29: Central | C29: 1.3e-05 | D29: mg/L | E29: Eq
B30: Lower | C30: 8e-07 | E30: Eq
B31: Upper | C31: 1.4e-05 | E31: Eq

Sheet B04b
A1: Pond: Concentration of pesticide (liquid formulation) in pond water after an accidental spill
A2: Short Title | B2: Pond Spill | E2: PondSpillLiqV6
A3: Receptor | B3: Pond
A4: Duration | B4: Acute
A5: Parameter/Assumption | B5: Code / Range | C5: Equation/ Value | D5: Units | E5: Reference/Designation
A6: Surface Area of Pond | B6: SA | C6: ='A01'!C$23 -> 1000 | D6: m2 | E6: Worksheet A01
A7: Depth of Pond | B7: Depth | C7: ='A01'!C$24 -> 1 | D7: meter | E7: Worksheet A01
A8: Volume of Pond | B8: VPM | C8: =C6*C7 -> 1000 | D8: m3 | E8: Eq
B9: VPL | C9: =1000*C8 -> 1000000 | D9: liters | E9: Eq
A10: Concentration in solution | B10: Conc
B11: Central | C11: ='A01'!FldConc_C -> 0.24 | D11: mg/mL | E11: Worksheet A01
B12: Lower | C12: ='A01'!FldConc_L -> 0.06 | E12: Worksheet A01
B13: Upper | C13: ='A01'!FldConc_U -> 0.3 | E13: Worksheet A01
A14: Volume of Spill (gallons) | B14: VSGal
B15: Central | C15: ='A01'!C$43 -> 100 | D15: gallons | E15: Worksheet A01
B16: Lower | C16: ='A01'!C$44 -> 20 | E16: Worksheet A01
B17: Upper | C17: ='A01'!C$45 -> 200 | E17: Worksheet A01
A18: Conversion factor for gallons to liters | B18: Conv | C18: 3.785 | D18: liters/gal
A19: Volume of Spill (liters) | B19: VSLit | C19: VSGal x Conv
B20: Central | C20: =C15*C$18 -> 378.5 | D20: liters | E20: Eq
B21: Lower | C21: =C16*C$18 -> 75.7 | D21: liters | E21: Eq
B22: Upper | C22: =C17*C$18 -> 757 | D22: liters | E22: Eq
A23: NOMINAL
A24: Concentration in pond water at various times after as spill | B24: ConcWat | C24: Conc × 1000 mL/L × VSL ÷ VPL
B25: Central | C25: Lower | D25: Upper
B26: =C11*1000*C20/C$9 -> 0.09084 | C26: =C12*1000*C21/C$9 -> 0.004542 | D26: =C13*1000*C22/C$9 -> 0.2271 | E26: mg/L
A27: Water Solubility Cap | B27: ='B01'!$C$10 -> 1.4e-05
A28: Adjusted for Water Solubility Cap
A29: Concentration in pond water at various times after as spill | B29: ConcWat | C29: Conc × 1000 mL/L × VSL ÷ VPL
B30: Central | C30: Lower | D30: Upper
B31: =IF(B26>$B$27, $B$27, B26) -> 1.4e-05 | C31: =IF(C26>$B$27, $B$27, C26) -> 1.4e-05 | D31: 1.4e-05 | E31: mg/L

Sheet B04c
A1: Concentration in pond water after direct spray or after drift at distances downwind in feet from the application site
A2: Short Title | B2: Pond, Drift | E2: PondDrift3Apps
A3: Receptor | B3: Pond
A4: Duration | B4: Acute
A5: Parameter/Assumption | B5: Code / Range | C5: Equation/ Value | D5: Units | E5: Reference/Designation
A6: Application rate | B6: ApRt | C6: ='A01'!ApRt_C -> 0.2 | D6: lb/acre | E6: Worksheet A01
A7: Surface Area of Water Column | B7: SA | C7: 1 | D7: m2
A8: Depth of Pond | B8: Depth | C8: ='A01'!C$24 -> 1 | D8: meter | E8: Worksheet A01
A9: Volume of Water Column | B9: V | C9: = SA × Depth
B10: VPM | C10: =C7*C8 -> 1 | D10: m3 | E10: Eq
B11: VPL | C11: =1000*C10 -> 1000 | D11: liters | E11: Eq
A12: Proportion of Drift at distances downwind in feet [0 feet = direct spray] | B12: Prop | C12: Aerial | D12: High Boom Ground Broadcast | E12: Low Boom Ground Broadcast | F12: Backpack
A13: 0 | C13: 1 | D13: 1 | E13: 1 | F13: 1
A14: 25 | C14: 0.223 | D14: 0.104 | E14: 0.035 | F14: 0.00832
A15: 50 | C15: 0.171 | D15: 0.05 | E15: 0.0177 | F15: 0.00433
A16: 100 | C16: 0.0979 | D16: 0.0248 | E16: 0.00948 | F16: 0.00241
A17: 300 | C17: 0.0312 | D17: 0.00753 | E17: 0.0035 | F17: 0.000941
A18: 500 | C18: 0.0192 | D18: 0.00391 | E18: 0.00209 | F18: 0.000579
A19: 900 | C19: 0.0124 | D19: 0.00166 | E19: 0.00109 | F19: 0.000312
A20: Converstion Factor | B20: Conv | C20: 112.1 | D20: mg/m2 per lb/acre
A21: Concentration in water at distances downwind in feet | B21: Conc = | C21: SA × Prop × ApR × Conv / VPL
A22: Concentration in water at distances downwind in feet | C22: Aerial | D22: High Boom Ground Broadcast | E22: Low Boom Ground Broadcast | F22: Backpack
A23: =A13 -> 0 | C23: =$C$7*C13*$C$6*$C$20/$C$11 -> 0.02242 | D23: =$C$7*D13*$C$6*$C$20/$C$11 -> 0.02242 | E23: =$C$7*E13*$C$6*$C$20/$C$11 -> 0.02242 | F23: =$C$7*F13*$C$6*$C$20/$C$11 -> 0.02242 | G23: mg/L
A24: 25 | C24: =$C$7*C14*$C$6*$C$20/$C$11 -> 0.00499966 | D24: 0.00233168 | E24: 0.0007847 | F24: 0.0001865344 | G24: mg/L
A25: 50 | C25: 0.00383382 | D25: 0.001121 | E25: 0.000396834 | F25: 9.70786e-05 | G25: mg/L
A26: 100 | C26: 0.002194918 | D26: 0.000556016 | E26: 0.0002125416 | F26: 5.40322e-05 | G26: mg/L
A27: 300 | C27: 0.000699504 | D27: 0.0001688226 | E27: 7.847e-05 | F27: 2.109722e-05 | G27: mg/L
A28: 500 | C28: 0.000430464 | D28: 8.76622e-05 | E28: 4.68578e-05 | F28: 1.298118e-05 | G28: mg/L
A29: 900 | C29: 0.000278008 | D29: 3.72172e-05 | E29: 2.44378e-05 | F29: 6.99504e-06 | G29: mg/L

Sheet B04d
A1: Concentration in stream water after direct spray or after drift at distances downwind in feet from the application site
A2: Short Title | B2: Stream, Drift | E2: StreamDrift3Apps
A3: Receptor | B3: Stream
A4: Duration | B4: Acute
A5: Parameter/Assumption | B5: Code / Range | C5: Equation/ Value | D5: Units | E5: Reference/Designation
A6: Application rate, lbs/acre | B6: ApRt | C6: ='A01'!ApRt_C -> 0.2 | D6: lb/acre | E6: Worksheet A01
A7: Flow rate of stream | B7: Flow | C7: ='A01'!C$25 -> 710000 | D7: L/day | E7: Worksheet A01
A8: Converstion Factor, lb/acre to mg/m2 | B8: Conv1 | C8: 112.1 | D8: mg/m2 per lb/acre
A9: Deposition rate, nominal | C9: Dep = ApR × Conv1
B10: Dep | C10: =C6*C8 -> 22.42 | D10: mg/m2 | E10: Eq
A11: Length of steam segment | B11: L | C11: ='A01'!C$26 -> 1038 | D11: feet | E11: Worksheet A01
A12: Width of steam segment | B12: W | C12: ='A01'!C$27 -> 6 | D12: feet | E12: Worksheet A01
A13: Surface Area of Stream Sprayed, square feet | B13: SA_ft | C13: =C11*C12 -> 6228 | D13: ft2 | E13: Eq
A14: Converstion Factor, square feet to square meters | B14: Conv2 | C14: 0.0929 | D14: m2/ft2
A15: Surface Area of Stream Sprayed, square meters | B15: SA_msq | C15: =C13*C14 -> 578.5812 | E15: Eq
A16: Amount deposited on stream surface on spray day | B16: Amnt | C16: =C10*C15 -> 12971.7905 | D16: mg/day | E16: Eq
A17: Proportion of Drift at distances downwind in feet [0 feet = direct spray] | B17: Prop | C17: Aerial | D17: High Boom Ground Broadcast | E17: Low Boom Ground Broadcast | F17: Backpack
A18: 0 | C18: 1 | D18: 1 | E18: 1 | F18: 1
A19: 25 | C19: 0.223 | D19: 0.104 | E19: 0.035 | F19: 0.00832
A20: 50 | C20: 0.171 | D20: 0.05 | E20: 0.0177 | F20: 0.00433
A21: 100 | C21: 0.0979 | D21: 0.0248 | E21: 0.00948 | F21: 0.00241
A22: 300 | C22: 0.0312 | D22: 0.00753 | E22: 0.0035 | F22: 0.000941
A23: 500 | C23: 0.0192 | D23: 0.00391 | E23: 0.00209 | F23: 0.000579
A24: 900 | C24: 0.0124 | D24: 0.00166 | E24: 0.00109 | F24: 0.000312
B25: Conc = | C25: Amnt × Prop / Flow
A26: Concentration in water at distances downwind in feet | C26: Aerial | D26: High Boom Ground Broadcast | E26: Low Boom Ground Broadcast | F26: Backpack
A27: =A18 -> 0 | C27: =$C$16 * C18 /$C$7 -> 0.01827012747 | D27: =$C$16 * D18 /$C$7 -> 0.01827012747 | E27: =$C$16 * E18 /$C$7 -> 0.01827012747 | F27: =$C$16 * F18 /$C$7 -> 0.01827012747 | G27: mg/L
A28: 25 | C28: =$C$16 * C19 /$C$7 -> 0.004074238426 | D28: 0.001900093257 | E28: 0.0006394544615 | F28: 0.0001520074606 | G28: mg/L
A29: 50 | C29: 0.003124191797 | D29: 0.0009135063735 | E29: 0.0003233812562 | F29: 7.910965195e-05 | G29: mg/L
A30: 100 | C30: 0.001788645479 | D30: 0.0004530991613 | E30: 0.0001732008084 | F30: 4.40310072e-05 | G30: mg/L
A31: 300 | C31: 0.0005700279771 | D31: 0.0001375740599 | E31: 6.394544615e-05 | F31: 1.719218995e-05 | G31: mg/L
A32: 500 | C32: 0.0003507864474 | D32: 7.143619841e-05 | E32: 3.818456641e-05 | F32: 1.057840381e-05 | G32: mg/L
A33: 900 | C33: 0.0002265495806 | D33: 3.03284116e-05 | E33: 1.991443894e-05 | F33: 5.700279771e-06 | G33: mg/L

Sheet B05a
A1: Concentration of Pesticide in Contaminated Fruit
A2: Short Title | B2: Concentration in food item | E2: FoodConcV6
A3: Material consumed | C3: Fruit | E3: Scenario parameter
A4: Parameter/Assumption | B4: Code / Range | C4: Equation/ Value | D4: Units | E4: Reference/Designation
A5: Application Information
A6: Application Rate (lbs/acre) | B6: ApRt | C6: ='A01'!ApRt_C -> 0.2 | D6: lb/acre | E6: Worksheet A01
A7: Number of applications | B7: n | C7: ='A01'!C$20 -> 1 | D7: unitless | E7: Worksheet A01
A8: Interval between applications | B8: intv | C8: ='A01'!C$21 -> 1 | D8: days | E8: Worksheet A01
A9: Special Adjustments (See Note 1)
A10: Metabolite Adjustment Factor : (See risk assessment if this has a value other than 1.) | B10: MetFact
B11: Central | C11: 1 | D11: unitless | E11: Default
B12: Lower | C12: 1 | E12: Default
B13: Upper | C13: 1 | E13: Default
A14: Toxic Equivalency Factor for formulation: (See risk assessment if this has a value other than 1.) | B14: TEF
B15: Central | C15: ='A01'!C$35 -> 1 | D15: Unitless | E15: Worksheet A01
B16: Lower | C16: ='A01'!C$36 -> 1 | E16: Worksheet A01
B17: Upper | C17: ='A01'!C$37 -> 1 | E17: Worksheet A01
A18: Acute Concentrations
A19: Residue Rates | B19: rr
B20: Central | C20: ='A01'!C$63 -> 7 | D20: mg/kg food per lb/acre | E20: Worksheet A01
B21: Lower | C21: ='A01'!C$64 -> 3.2 | E21: Worksheet A01
B22: Upper | C22: ='A01'!C$65 -> 15 | E22: Worksheet A01
A23: Drift | B23: Drift
B24: Central | C24: ='A01'!C$39 -> 1 | D24: proportion | E24: Worksheet A01
B25: Lower | C25: ='A01'!C$40 -> 1 | E25: Worksheet A01
B26: Upper | C26: ='A01'!C$41 -> 1 | E26: Worksheet A01
A27: Concentration on commodity immediately after first application. | B27: C0 | C27: ApR × rr × Drift × MetFact × TEF
B28: Central | C28: =C$6*C20*$C$24*C11*C15 -> 1.4 | E28: Eq
B29: Lower | C29: =C$6*C21*$C$24*C12*C16 -> 0.64 | E29: Eq
B30: Upper | C30: =C$6*C22*$C$24*C13*C17 -> 3 | E30: Eq
A31: Half-life on commodity | B31: Halflife
B32: Central | C32: ='B01'!$C$17 -> 7 | D32: Days | E32: Table 3
B33: Lower | C33: ='B01'!$C$18 -> 2 | E33: Table 3
B34: Upper | C34: ='B01'!$C$19 -> 12 | E34: Table 3
A35: Decay Coefficient | B35: k | C35: Ln(2)/Halflife
B36: Central | C36: =LN(2)/C32 -> 0.09902102579 | D36: Days-1 | E36: Eq
B37: Upper | C37: =LN(2)/C33 -> 0.3465735903 | D37: Note 2 | E37: Eq
B38: Lower | C38: =LN(2)/C34 -> 0.05776226505 | D38: Note 2 | E38: Eq
A39: Proportion remaining at end of each application interval | B39: p | C39: exp( -k × intv)
B40: Central | C40: =EXP(-C36*C$8) -> 0.9057236643 | D40: proportion | E40: Eq
B41: Lower | C41: =EXP(-C37*C$8) -> 0.7071067812 | E41: Eq
B42: Upper | C42: =EXP(-C38*C$8) -> 0.9438743127 | E42: Eq
A43: Concentration on commodity immediately after last application. | B43: Cn | C43: Cn = C0 × (1- pn) ÷ (1- p)
B44: Central | C44: =C28 * (1-C40^C$7)/(1-C40) -> 1.4 | D44: mg/kg food item | E44: Eq
B45: Lower | C45: =C29 * (1-C41^C$7)/(1-C41) -> 0.64 | E45: Eq
B46: Upper | C46: =C30 * (1-C42^C$7)/(1-C42) -> 3 | E46: Eq
A47: Longer-term Concentrations
A48: Duration for time-weighted average exposure | B48: T | C48: ='A01'!C$28 -> 90 | D48: Days | E48: Worksheet A01
A49: Time-weighted average concentration on commodity over time, T, after the last application. | B49: ConcTWA | C49: Cn × (1-e-kT) ÷ (k T)
B50: Central | C50: =C44*(1-EXP(-C36*$C$48))/(C36*$C$48) -> 0.1570722875 | D50: mg/kg food item | E50: Eq
B51: Lower | C51: =C45*(1-EXP(-C37*$C$48))/(C37*$C$48) -> 0.02051832947 | E51: Eq
B52: Upper | C52: 0.5738900806 | E52: Eq
A53: Maximum Time-weighted average concentration on commodity over time, T. | B53: ConcTWA | C53: See Documentation
B54: Central | C54: =IF($C$7=1, C50, MaxTWAWsFn(C28, $C$7, $C$8, $C$48, C36)) -> 0.1570722875 | D54: mg/kg food item | E54: Eq
B55: Lower | C55: =IF($C$7=1, C51, MaxTWAWsFn(C29, $C$7, $C$8, $C$48, C37)) -> 0.02051832947 | E55: Eq
B56: Upper | C56: =IF($C$7=1, C52, MaxTWAWsFn(C30, $C$7, $C$8, $C$48, C38)) -> 0.5738900806 | E56: Eq

Sheet B05b
A1: Concentration of Pesticide in Contaminated Broadleaf Vegetation
A2: Short Title | B2: Concentration in food item | E2: FoodConcV6
A3: Material consumed | C3: Broadleaf Vegetation | E3: Scenario parameter
A4: Parameter/Assumption | B4: Code / Range | C4: Equation/ Value | D4: Units | E4: Reference/Designation
A5: Application Information
A6: Application Rate (lbs/acre) | B6: ApRt | C6: ='A01'!ApRt_C -> 0.2 | D6: lb/acre | E6: Worksheet A01
A7: Number of applications | B7: n | C7: ='A01'!C$20 -> 1 | D7: unitless | E7: Worksheet A01
A8: Interval between applications | B8: intv | C8: ='A01'!C$21 -> 1 | D8: days | E8: Worksheet A01
A9: Special Adjustments (See Note 1)
A10: Metabolite Adjustment Factor : (See risk assessment if this has a value other than 1.) | B10: MetFact
B11: Central | C11: 1 | D11: unitless | E11: Default
B12: Lower | C12: 1 | E12: Default
B13: Upper | C13: 1 | E13: Default
A14: Toxic Equivalency Factor for formulation: (See risk assessment if this has a value other than 1.) | B14: TEF
B15: Central | C15: ='A01'!C$35 -> 1 | D15: Unitless | E15: Worksheet A01
B16: Lower | C16: ='A01'!C$36 -> 1 | E16: Worksheet A01
B17: Upper | C17: ='A01'!C$37 -> 1 | E17: Worksheet A01
A18: Acute Concentrations
A19: Residue Rates | B19: rr
B20: Central | C20: ='A01'!C$59 -> 45 | D20: mg/kg food per lb/acre | E20: Worksheet A01
B21: Lower | C21: ='A01'!C$60 -> 15 | E21: Worksheet A01
B22: Upper | C22: ='A01'!C$61 -> 135 | E22: Worksheet A01
A23: Drift | B23: Drift
B24: Central | C24: ='A01'!C$39 -> 1 | D24: proportion | E24: Worksheet A01
B25: Lower | C25: ='A01'!C$40 -> 1 | E25: Worksheet A01
B26: Upper | C26: ='A01'!C$41 -> 1 | E26: Worksheet A01
A27: Concentration on commodity immediately after first application. | B27: C0 | C27: ApR × rr × Drift × MetFact × TEF
B28: Central | C28: =C$6*C20*$C$24*C11*C15 -> 9 | E28: Eq
B29: Lower | C29: =C$6*C21*$C$24*C12*C16 -> 3 | E29: Eq
B30: Upper | C30: =C$6*C22*$C$24*C13*C17 -> 27 | E30: Eq
A31: Half-life on commodity | B31: Halflife
B32: Central | C32: ='B01'!$C$20 -> 12.7 | D32: Days | E32: Table 3
B33: Lower | C33: ='B01'!$C$21 -> 2.4 | E33: Table 3
B34: Upper | C34: ='B01'!$C$22 -> 23 | E34: Table 3
A35: Decay Coefficient | B35: k | C35: Ln(2)/Halflife
B36: Central | C36: =LN(2)/C32 -> 0.05457851815 | D36: Days-1 | E36: Eq
B37: Upper | C37: =LN(2)/C33 -> 0.2888113252 | D37: Note 2 | E37: Eq
B38: Lower | C38: =LN(2)/C34 -> 0.03013683394 | D38: Note 2 | E38: Eq
A39: Proportion remaining at end of each application interval | B39: p | C39: exp( -k × intv)
B40: Central | C40: =EXP(-C36*C$8) -> 0.9468841583 | D40: proportion | E40: Eq
B41: Lower | C41: =EXP(-C37*C$8) -> 0.7491535384 | E41: Eq
B42: Upper | C42: =EXP(-C38*C$8) -> 0.9703127527 | E42: Eq
A43: Concentration on commodity immediately after last application. | B43: Cn | C43: Cn = C0 × (1- pn) ÷ (1- p)
B44: Central | C44: =C28 * (1-C40^C$7)/(1-C40) -> 9 | D44: mg/kg food item | E44: Eq
B45: Lower | C45: =C29 * (1-C41^C$7)/(1-C41) -> 3 | E45: Eq
B46: Upper | C46: =C30 * (1-C42^C$7)/(1-C42) -> 27 | E46: Eq
A47: Longer-term Concentrations
A48: Duration for time-weighted average exposure | B48: T | C48: ='A01'!C$28 -> 90 | D48: Days | E48: Worksheet A01
A49: Time-weighted average concentration on commodity over time, T, after the last application. | B49: ConcTWA | C49: Cn × (1-e-kT) ÷ (k T)
B50: Central | C50: =C44*(1-EXP(-C36*$C$48))/(C36*$C$48) -> 1.818742549 | D50: mg/kg food item | E50: Eq
B51: Lower | C51: =C45*(1-EXP(-C37*$C$48))/(C37*$C$48) -> 0.1154156033 | E51: Eq
B52: Upper | C52: 9.293780362 | E52: Eq
A53: Maximum Time-weighted average concentration on commodity over time, T. | B53: ConcTWA | C53: See Documentation
B54: Central | C54: =IF($C$7=1, C50, MaxTWAWsFn(C28, $C$7, $C$8, $C$48, C36)) -> 1.818742549 | D54: mg/kg food item | E54: Eq
B55: Lower | C55: =IF($C$7=1, C51, MaxTWAWsFn(C29, $C$7, $C$8, $C$48, C37)) -> 0.1154156033 | E55: Eq
B56: Upper | C56: =IF($C$7=1, C52, MaxTWAWsFn(C30, $C$7, $C$8, $C$48, C38)) -> 9.293780362 | E56: Eq

Sheet B05c
A1: Concentration of Pesticide in Contaminated Short Grass
A2: Short Title | B2: Concentration in food item | E2: FoodConcV6
A3: Material consumed | C3: Short Grass | E3: Scenario parameter
A4: Parameter/Assumption | B4: Code / Range | C4: Equation/ Value | D4: Units | E4: Reference/Designation
A5: Application Information
A6: Application Rate (lbs/acre) | B6: ApRt | C6: ='A01'!ApRt_C -> 0.2 | D6: lb/acre | E6: Worksheet A01
A7: Number of applications | B7: n | C7: ='A01'!C$20 -> 1 | D7: unitless | E7: Worksheet A01
A8: Interval between applications | B8: intv | C8: ='A01'!C$21 -> 1 | D8: days | E8: Worksheet A01
A9: Special Adjustments (See Note 1)
A10: Metabolite Adjustment Factor : (See risk assessment if this has a value other than 1.) | B10: MetFact
B11: Central | C11: 1 | D11: unitless | E11: Default
B12: Lower | C12: 1 | E12: Default
B13: Upper | C13: 1 | E13: Default
A14: Toxic Equivalency Factor for formulation: (See risk assessment if this has a value other than 1.) | B14: TEF
B15: Central | C15: ='A01'!C$35 -> 1 | D15: Unitless | E15: Worksheet A01
B16: Lower | C16: ='A01'!C$36 -> 1 | E16: Worksheet A01
B17: Upper | C17: ='A01'!C$37 -> 1 | E17: Worksheet A01
A18: Acute Concentrations
A19: Residue Rates | B19: rr
B20: Central | C20: ='A01'!C$51 -> 85 | D20: mg/kg food per lb/acre | E20: Worksheet A01
B21: Lower | C21: ='A01'!C$52 -> 30 | E21: Worksheet A01
B22: Upper | C22: ='A01'!C$53 -> 240 | E22: Worksheet A01
A23: Drift | B23: Drift
B24: Central | C24: ='A01'!C$39 -> 1 | D24: proportion | E24: Worksheet A01
B25: Lower | C25: ='A01'!C$40 -> 1 | E25: Worksheet A01
B26: Upper | C26: ='A01'!C$41 -> 1 | E26: Worksheet A01
A27: Concentration on commodity immediately after first application. | B27: C0 | C27: ApR × rr × Drift × MetFact × TEF
B28: Central | C28: =C$6*C20*$C$24*C11*C15 -> 17 | E28: Eq
B29: Lower | C29: =C$6*C21*$C$24*C12*C16 -> 6 | E29: Eq
B30: Upper | C30: =C$6*C22*$C$24*C13*C17 -> 48 | E30: Eq
A31: Half-life on commodity | B31: Halflife
B32: Central | C32: ='B01'!$C$20 -> 12.7 | D32: Days | E32: Table 3
B33: Lower | C33: ='B01'!$C$21 -> 2.4 | E33: Table 3
B34: Upper | C34: ='B01'!$C$22 -> 23 | E34: Table 3
A35: Decay Coefficient | B35: k | C35: Ln(2)/Halflife
B36: Central | C36: =LN(2)/C32 -> 0.05457851815 | D36: Days-1 | E36: Eq
B37: Upper | C37: =LN(2)/C33 -> 0.2888113252 | D37: Note 2 | E37: Eq
B38: Lower | C38: =LN(2)/C34 -> 0.03013683394 | D38: Note 2 | E38: Eq
A39: Proportion remaining at end of each application interval | B39: p | C39: exp( -k × intv)
B40: Central | C40: =EXP(-C36*C$8) -> 0.9468841583 | D40: proportion | E40: Eq
B41: Lower | C41: =EXP(-C37*C$8) -> 0.7491535384 | E41: Eq
B42: Upper | C42: =EXP(-C38*C$8) -> 0.9703127527 | E42: Eq
A43: Concentration on commodity immediately after last application. | B43: Cn | C43: Cn = C0 × (1- pn) ÷ (1- p)
B44: Central | C44: =C28 * (1-C40^C$7)/(1-C40) -> 17 | D44: mg/kg food item | E44: Eq
B45: Lower | C45: =C29 * (1-C41^C$7)/(1-C41) -> 6 | E45: Eq
B46: Upper | C46: =C30 * (1-C42^C$7)/(1-C42) -> 48 | E46: Eq
A47: Longer-term Concentrations
A48: Duration for time-weighted average exposure | B48: T | C48: ='A01'!C$28 -> 90 | D48: Days | E48: Worksheet A01
A49: Time-weighted average concentration on commodity over time, T, after the last application. | B49: ConcTWA | C49: Cn × (1-e-kT) ÷ (k T)
B50: Central | C50: =C44*(1-EXP(-C36*$C$48))/(C36*$C$48) -> 3.435402592 | D50: mg/kg food item | E50: Eq
B51: Lower | C51: =C45*(1-EXP(-C37*$C$48))/(C37*$C$48) -> 0.2308312065 | E51: Eq
B52: Upper | C52: 16.5222762 | E52: Eq
A53: Maximum Time-weighted average concentration on commodity over time, T. | B53: ConcTWA | C53: See Documentation
B54: Central | C54: =IF($C$7=1, C50, MaxTWAWsFn(C28, $C$7, $C$8, $C$48, C36)) -> 3.435402592 | D54: mg/kg food item | E54: Eq
B55: Lower | C55: =IF($C$7=1, C51, MaxTWAWsFn(C29, $C$7, $C$8, $C$48, C37)) -> 0.2308312065 | E55: Eq
B56: Upper | C56: =IF($C$7=1, C52, MaxTWAWsFn(C30, $C$7, $C$8, $C$48, C38)) -> 16.5222762 | E56: Eq

Sheet B05d
A1: Concentration of Pesticide in Contaminated Tall Grass
A2: Short Title | B2: Concentration in food item | E2: FoodConcV6
A3: Material consumed | C3: Tall Grass | E3: Scenario parameter
A4: Parameter/Assumption | B4: Code / Range | C4: Equation/ Value | D4: Units | E4: Reference/Designation
A5: Application Information
A6: Application Rate (lbs/acre) | B6: ApRt | C6: ='A01'!ApRt_C -> 0.2 | D6: lb/acre | E6: Worksheet A01
A7: Number of applications | B7: n | C7: ='A01'!C$20 -> 1 | D7: unitless | E7: Worksheet A01
A8: Interval between applications | B8: intv | C8: ='A01'!C$21 -> 1 | D8: days | E8: Worksheet A01
A9: Special Adjustments (See Note 1)
A10: Metabolite Adjustment Factor : (See risk assessment if this has a value other than 1.) | B10: MetFact
B11: Central | C11: 1 | D11: unitless | E11: Default
B12: Lower | C12: 1 | E12: Default
B13: Upper | C13: 1 | E13: Default
A14: Toxic Equivalency Factor for formulation: (See risk assessment if this has a value other than 1.) | B14: TEF
B15: Central | C15: ='A01'!C$35 -> 1 | D15: Unitless | E15: Worksheet A01
B16: Lower | C16: ='A01'!C$36 -> 1 | E16: Worksheet A01
B17: Upper | C17: ='A01'!C$37 -> 1 | E17: Worksheet A01
A18: Acute Concentrations
A19: Residue Rates | B19: rr
B20: Central | C20: ='A01'!C$55 -> 36 | D20: mg/kg food per lb/acre | E20: Worksheet A01
B21: Lower | C21: ='A01'!C$56 -> 12 | E21: Worksheet A01
B22: Upper | C22: ='A01'!C$57 -> 110 | E22: Worksheet A01
A23: Drift | B23: Drift
B24: Central | C24: ='A01'!C$39 -> 1 | D24: proportion | E24: Worksheet A01
B25: Lower | C25: ='A01'!C$40 -> 1 | E25: Worksheet A01
B26: Upper | C26: ='A01'!C$41 -> 1 | E26: Worksheet A01
A27: Concentration on commodity immediately after first application. | B27: C0 | C27: ApR × rr × Drift × MetFact × TEF
B28: Central | C28: =C$6*C20*$C$24*C11*C15 -> 7.2 | E28: Eq
B29: Lower | C29: =C$6*C21*$C$24*C12*C16 -> 2.4 | E29: Eq
B30: Upper | C30: =C$6*C22*$C$24*C13*C17 -> 22 | E30: Eq
A31: Half-life on commodity | B31: Halflife
B32: Central | C32: ='B01'!$C$20 -> 12.7 | D32: Days | E32: Table 3
B33: Lower | C33: ='B01'!$C$21 -> 2.4 | E33: Table 3
B34: Upper | C34: ='B01'!$C$22 -> 23 | E34: Table 3
A35: Decay Coefficient | B35: k | C35: Ln(2)/Halflife
B36: Central | C36: =LN(2)/C32 -> 0.05457851815 | D36: Days-1 | E36: Eq
B37: Upper | C37: =LN(2)/C33 -> 0.2888113252 | D37: Note 2 | E37: Eq
B38: Lower | C38: =LN(2)/C34 -> 0.03013683394 | D38: Note 2 | E38: Eq
A39: Proportion remaining at end of each application interval | B39: p | C39: exp( -k × intv)
B40: Central | C40: =EXP(-C36*C$8) -> 0.9468841583 | D40: proportion | E40: Eq
B41: Lower | C41: =EXP(-C37*C$8) -> 0.7491535384 | E41: Eq
B42: Upper | C42: =EXP(-C38*C$8) -> 0.9703127527 | E42: Eq
A43: Concentration on commodity immediately after last application. | B43: Cn | C43: Cn = C0 × (1- pn) ÷ (1- p)
B44: Central | C44: =C28 * (1-C40^C$7)/(1-C40) -> 7.2 | D44: mg/kg food item | E44: Eq
B45: Lower | C45: =C29 * (1-C41^C$7)/(1-C41) -> 2.4 | E45: Eq
B46: Upper | C46: =C30 * (1-C42^C$7)/(1-C42) -> 22 | E46: Eq
A47: Longer-term Concentrations
A48: Duration for time-weighted average exposure | B48: T | C48: ='A01'!C$28 -> 90 | D48: Days | E48: Worksheet A01
A49: Time-weighted average concentration on commodity over time, T, after the last application. | B49: ConcTWA | C49: Cn × (1-e-kT) ÷ (k T)
B50: Central | C50: =C44*(1-EXP(-C36*$C$48))/(C36*$C$48) -> 1.454994039 | D50: mg/kg food item | E50: Eq
B51: Lower | C51: =C45*(1-EXP(-C37*$C$48))/(C37*$C$48) -> 0.09233248262 | E51: Eq
B52: Upper | C52: 7.572709925 | E52: Eq
A53: Maximum Time-weighted average concentration on commodity over time, T. | B53: ConcTWA | C53: See Documentation
B54: Central | C54: =IF($C$7=1, C50, MaxTWAWsFn(C28, $C$7, $C$8, $C$48, C36)) -> 1.454994039 | D54: mg/kg food item | E54: Eq
B55: Lower | C55: =IF($C$7=1, C51, MaxTWAWsFn(C29, $C$7, $C$8, $C$48, C37)) -> 0.09233248262 | E55: Eq
B56: Upper | C56: =IF($C$7=1, C52, MaxTWAWsFn(C30, $C$7, $C$8, $C$48, C38)) -> 7.572709925 | E56: Eq

Sheet C01a
A1: Exposure estimates for Backpack Worker based on the amount of material handled per day
A2: Short Title | B2: General exposure | E2: WkGenExp
A3: Receptor | B3: Backpack Worker | E3: Worksheet A01
A4: Duration | B4: Chronic
A5: Parameter/Assumption | B5: Code / Range | C5: Equation/ Value | D5: Units | E5: Reference/Equation
A6: Application rates | B6: ApRt | C6: ='A01'!ApRt_C -> 0.2 | D6: lb/acre | E6: Worksheet A01
A7: Hours of application per day | B7: Hrs
B8: Central | C8: ='A01'!C$71 -> 7 | D8: hours | E8: Worksheet A01
B9: Lower | C9: ='A01'!C$72 -> 6 | E9: Worksheet A01
B10: Upper | C10: ='A01'!C$73 -> 8 | E10: Worksheet A01
A11: Acres treated per hour | B11: APH
B12: Central | C12: ='A01'!C$67 -> 0.625 | D12: acres/hour | E12: Worksheet A01
B13: Lower | C13: ='A01'!C$68 -> 0.25 | E13: Worksheet A01
B14: Upper | C14: ='A01'!C$69 -> 1 | E14: Worksheet A01
A15: Acres treated per day: | B15: ATD | C15: Hrs × APH
B16: Central | C16: =C8*C12 -> 4.375 | D16: acres/day | E16: Eq
B17: Lower | C17: =C9*C13 -> 1.5 | E17: Eq
B18: Upper | C18: =C10*C14 -> 8 | E18: Eq
A19: Toxic Equivalency Factor for formulation: (See risk assessment if this has a value other than 1.) | B19: TEF
B20: Central | C20: ='A01'!C$35 -> 1 | D20: unitless | E20: Worksheet A01
B21: Lower | C21: ='A01'!C$36 -> 1 | E21: Worksheet A01
B22: Upper | C22: ='A01'!C$37 -> 1 | E22: Worksheet A01
A23: Amount handled per day: | B23: Amnt | C23: ApRt × ATD × TEF
B24: Central | C24: =C$6*C16 *C20 -> 0.875 | D24: lb/day | E24: Eq
B25: Lower | C25: =C$6*C17 *C21 -> 0.3 | E25: Eq
B26: Upper | C26: =C$6*C18 *C22 -> 1.6 | E26: Eq
A27: Absorbed dose rate: | B27: ADR
B28: Central | C28: 0.01 | D28: (mg agent/kg bw) ÷ (lbs agent handled per day) | E28: Risk Assessment
B29: Lower | C29: 0.002 | E29: Risk Assessment
B30: Upper | C30: 0.04 | E30: Risk Assessment
A31: Clothing Protection Factor | B31: Prot
B32: Central | C32: ='A01'!C$31 -> 0 | D32: Unitless (value between 0 [no protection] and 1 [complete protection]) | E32: Worksheet A01
B33: Upper | C33: ='A01'!C$33 -> 0 | E33: Worksheet A01
B34: Lower | C34: ='A01'!C$32 -> 0 | E34: Worksheet A01
A35: Absorbed dose | B35: Dose | C35: Amnt × ADR × (1-Prot)
B36: Central | C36: =C24*C28*(1-C32) -> 0.00875 | D36: mg/kg bw/day | E36: Eq
B37: Lower | C37: =C25*C29*(1-C33) -> 0.0006 | E37: Eq
B38: Upper | C38: =C26*C30*(1-C34) -> 0.064 | E38: Eq

Sheet C01b
A1: Exposure estimates for Ground Boom Worker based on the amount of material handled per day
A2: Short Title | B2: General exposure | E2: WkGenExp
A3: Receptor | B3: Ground Boom Worker | E3: Worksheet A01
A4: Duration | B4: Chronic
A5: Parameter/Assumption | B5: Code / Range | C5: Equation/ Value | D5: Units | E5: Reference/Equation
A6: Application rates | B6: ApRt | C6: ='A01'!ApRt_C -> 0.2 | D6: lb/acre | E6: Worksheet A01
A7: Hours of application per day | B7: Hrs
B8: Central | C8: 7 | D8: hours | E8: Worksheet A01
B9: Lower | C9: 6 | E9: Worksheet A01
B10: Upper | C10: 8 | E10: Worksheet A01
A11: Acres treated per hour | B11: APH
B12: Central | C12: 16 | D12: acres/hour | E12: Worksheet A01
B13: Lower | C13: 11 | E13: Worksheet A01
B14: Upper | C14: 21 | E14: Worksheet A01
A15: Acres treated per day: | B15: ATD | C15: Hrs × APH
B16: Central | C16: =C8*C12 -> 112 | D16: acres/day | E16: Eq
B17: Lower | C17: =C9*C13 -> 66 | E17: Eq
B18: Upper | C18: =C10*C14 -> 168 | E18: Eq
A19: Toxic Equivalency Factor for formulation: (See risk assessment if this has a value other than 1.) | B19: TEF
B20: Central | C20: ='A01'!C$35 -> 1 | D20: unitless | E20: Worksheet A01
B21: Lower | C21: ='A01'!C$36 -> 1 | E21: Worksheet A01
B22: Upper | C22: ='A01'!C$37 -> 1 | E22: Worksheet A01
A23: Amount handled per day: | B23: Amnt | C23: ApRt × ATD × TEF
B24: Central | C24: =C$6*C16 *C20 -> 22.4 | D24: lb/day | E24: Eq
B25: Lower | C25: =C$6*C17 *C21 -> 13.2 | E25: Eq
B26: Upper | C26: =C$6*C18 *C22 -> 33.6 | E26: Eq
A27: Absorbed dose rate: | B27: ADR
B28: Central | C28: 0.0002 | D28: (mg agent/kg bw) ÷ (lbs agent handled per day) | E28: Risk Assessment
B29: Lower | C29: 4e-06 | E29: Risk Assessment
B30: Upper | C30: 0.01 | E30: Risk Assessment
A31: Clothing Protection Factor | B31: Prot
B32: Central | C32: ='A01'!C$31 -> 0 | D32: Unitless (value between 0 [no protection] and 1 [complete protection]) | E32: Worksheet A01
B33: Upper | C33: ='A01'!C$33 -> 0 | E33: Worksheet A01
B34: Lower | C34: ='A01'!C$32 -> 0 | E34: Worksheet A01
A35: Absorbed dose | B35: Dose | C35: Amnt × ADR × (1-Prot)
B36: Central | C36: =C24*C28*(1-C32) -> 0.00448 | D36: mg/kg bw/day | E36: Eq
B37: Lower | C37: =C25*C29*(1-C33) -> 5.28e-05 | E37: Eq
B38: Upper | C38: =C26*C30*(1-C34) -> 0.336 | E38: Eq

Sheet C01c
A1: Exposure estimates for Aerial Spray Worker based on the amount of material handled per day
A2: Short Title | B2: General exposure | E2: WkGenExp
A3: Receptor | B3: Aerial Spray Worker | E3: Worksheet A01
A4: Duration | B4: Chronic
A5: Parameter/Assumption | B5: Code / Range | C5: Equation/ Value | D5: Units | E5: Reference/Equation
A6: Application rates | B6: ApRt | C6: ='A01'!ApRt_C -> 0.2 | D6: lb/acre | E6: Worksheet A01
A7: Hours of application per day | B7: Hrs
B8: Central | C8: 7 | D8: hours | E8: Worksheet A01
B9: Lower | C9: 6 | E9: Worksheet A01
B10: Upper | C10: 8 | E10: Worksheet A01
A11: Acres treated per hour | B11: APH
B12: Central | C12: 70 | D12: acres/hour | E12: Worksheet A01
B13: Lower | C13: 40 | E13: Worksheet A01
B14: Upper | C14: 100 | E14: Worksheet A01
A15: Acres treated per day: | B15: ATD | C15: Hrs × APH
B16: Central | C16: =C8*C12 -> 490 | D16: acres/day | E16: Eq
B17: Lower | C17: =C9*C13 -> 240 | E17: Eq
B18: Upper | C18: =C10*C14 -> 800 | E18: Eq
A19: Toxic Equivalency Factor for formulation: (See risk assessment if this has a value other than 1.) | B19: TEF
B20: Central | C20: ='A01'!C$35 -> 1 | D20: unitless | E20: Worksheet A01
B21: Lower | C21: ='A01'!C$36 -> 1 | E21: Worksheet A01
B22: Upper | C22: ='A01'!C$37 -> 1 | E22: Worksheet A01
A23: Amount handled per day: | B23: Amnt | C23: ApRt × ATD × TEF
B24: Central | C24: =C$6*C16 *C20 -> 98 | D24: lb/day | E24: Eq
B25: Lower | C25: =C$6*C17 *C21 -> 48 | E25: Eq
B26: Upper | C26: =C$6*C18 *C22 -> 160 | E26: Eq
A27: Absorbed dose rate: | B27: ADR
B28: Central | C28: 4e-05 | D28: (mg agent/kg bw) ÷ (lbs agent handled per day) | E28: Worksheet A01
B29: Lower | C29: 1e-06 | E29: Worksheet A01
B30: Upper | C30: 0.002 | E30: Worksheet A01
A31: Clothing Protection Factor | B31: Prot
B32: Central | C32: ='A01'!C$31 -> 0 | D32: Unitless (value between 0 [no protection] and 1 [complete protection]) | E32: Worksheet A01
B33: Upper | C33: ='A01'!C$33 -> 0 | E33: Worksheet A01
B34: Lower | C34: ='A01'!C$32 -> 0 | E34: Worksheet A01
A35: Absorbed dose | B35: Dose | C35: Amnt × ADR × (1-Prot)
B36: Central | C36: =C24*C28*(1-C32) -> 0.00392 | D36: mg/kg bw/day | E36: Eq
B37: Lower | C37: =C25*C29*(1-C33) -> 4.8e-05 | E37: Eq
B38: Upper | C38: =C26*C30*(1-C34) -> 0.32 | E38: Eq

Sheet C02a
A1: Accidental Dermal Exposure Assessment Using Zero-Order Absorption, Worker, Surface Area, Hands, for 1 minute(s)
A2: Short Title | B2: Contaminated Gloves, 1 minute | E2: DrmZr
A3: Receptor | B3: Worker
A4: Duration | B4: Acute
A5: Surface Contaminated | B5: Surface Area, Hands
A6: Parameter/Assumption | B6: Code / Range | C6: Equation/ Value | D6: Units | E6: Reference/Designation
A7: Surface Area | B7: SA | C7: =A02a!$C$40 -> 840 | D7: cm2 | E7: U.S. EPA/ORD 1992
A8: Duration of Exposure | B8: T_min | C8: 1 | D8: minutes | E8: Scenario parameter
B9: T_hr | C9: =C8/60 -> 0.01666666667 | D9: hours | E9: Eq
A10: Body weight | B10: BW | C10: =A02a!$C$39 -> 70 | D10: kg | E10: ICRP 1975
A11: Concentration in solution (mg/mL) | B11: Conc
B12: Central | C12: ='A01'!FldConc_C -> 0.24 | D12: mg/mL | E12: Worksheet A01
B13: Lower | C13: ='A01'!FldConc_L -> 0.06 | E13: Worksheet A01
B14: Upper | C14: ='A01'!FldConc_U -> 0.3 | E14: Worksheet A01
A15: Toxic Equivalency Factor for formulation: (See risk assessment if this has a value other than 1.) | B15: TEF
B16: Central | C16: ='A01'!C$35 -> 1 | D16: Unitless | E16: Worksheet A01
B17: Lower | C17: ='A01'!C$36 -> 1 | E17: Worksheet A01
B18: Upper | C18: ='A01'!C$37 -> 1 | E18: Worksheet A01
A19: Dermal permeability | B19: Kp
B20: Central | C20: ='B01'!$C$14 -> 0.0096 | D20: cm/hour
B21: Lower | C21: ='B01'!$C$15 -> 0.0028
B22: Upper | C22: ='B01'!$C$16 -> 0.032
A23: Absorbed Dose | B23: Dose | C23: Kp × Conc × T_hr × SA x TEF ÷ BW
B24: Central | C24: =C20*C12*C$9*C$7*C16/C$10 -> 0.0004608 | D24: mg/kg | E24: Eq
B25: Lower | C25: =C21*C13*C$9*C$7*C17/C$10 -> 3.36e-05 | D25: mg/kg | E25: Eq
B26: Upper | C26: =C22*C14*C$9*C$7*C18/C$10 -> 0.00192 | D26: mg/kg | E26: Eq

Sheet C02b
A1: Accidental Dermal Exposure Assessment Using Zero-Order Absorption, Worker, Surface Area, Hands, for 60 minute(s)
A2: Short Title | B2: Contaminated Gloves, 1 Hour | E2: DrmZr
A3: Receptor | B3: Worker
A4: Duration | B4: Acute
A5: Surface Contaminated | B5: Surface Area, Hands
A6: Parameter/Assumption | B6: Code / Range | C6: Equation/ Value | D6: Units | E6: Reference/Designation
A7: Surface Area | B7: SA | C7: =A02a!$C$40 -> 840 | D7: cm2 | E7: U.S. EPA/ORD 1992
A8: Duration of Exposure | B8: T_min | C8: 60 | D8: minutes | E8: Scenario parameter
B9: T_hr | C9: =C8/60 -> 1 | D9: hours | E9: Eq
A10: Body weight | B10: BW | C10: =A02a!$C$39 -> 70 | D10: kg | E10: ICRP 1975
A11: Concentration in solution (mg/mL) | B11: Conc
B12: Central | C12: ='A01'!FldConc_C -> 0.24 | D12: mg/mL | E12: Worksheet A01
B13: Lower | C13: ='A01'!FldConc_L -> 0.06 | E13: Worksheet A01
B14: Upper | C14: ='A01'!FldConc_U -> 0.3 | E14: Worksheet A01
A15: Toxic Equivalency Factor for formulation: (See risk assessment if this has a value other than 1.) | B15: TEF
B16: Central | C16: ='A01'!C$35 -> 1 | D16: Unitless | E16: Worksheet A01
B17: Lower | C17: ='A01'!C$36 -> 1 | E17: Worksheet A01
B18: Upper | C18: ='A01'!C$37 -> 1 | E18: Worksheet A01
A19: Dermal permeability | B19: Kp
B20: Central | C20: ='B01'!$C$14 -> 0.0096 | D20: cm/hour
B21: Lower | C21: ='B01'!$C$15 -> 0.0028
B22: Upper | C22: ='B01'!$C$16 -> 0.032
A23: Absorbed Dose | B23: Dose | C23: Kp × Conc × T_hr × SA x TEF ÷ BW
B24: Central | C24: =C20*C12*C$9*C$7*C16/C$10 -> 0.027648 | D24: mg/kg | E24: Eq
B25: Lower | C25: =C21*C13*C$9*C$7*C17/C$10 -> 0.002016 | D25: mg/kg | E25: Eq
B26: Upper | C26: =C22*C14*C$9*C$7*C18/C$10 -> 0.1152 | D26: mg/kg | E26: Eq

Sheet C03a
A1: Accidental Dermal Exposure Assessment Using First-Order Absorption, Worker, Surface Area, Hands, for 60 minute(s)
A2: Short Title | B2: Spill on hands, 1 hour | E2: DrmFOA
A3: Receptor | B3: Worker
A4: Duration | B4: Acute
A5: Surface Contaminated | B5: Surface Area, Hands
A6: Parameter/Assumption | B6: Code / Range | C6: Equation/ Value | D6: Units | E6: Reference/Designation
A7: Surface Area | B7: SA | C7: =A02a!$C$40 -> 840 | D7: cm2 | E7: U.S. EPA/ORD 1992
A8: Duration of Exposure | C8: 60 | D8: minutes | E8: Scenario parameter
B9: T | C9: =C8/60 -> 1 | D9: hours | E9: Eq
A10: Body weight | B10: BW | C10: =A02a!$C$39 -> 70 | D10: kg | E10: ICRP 1975
A11: Liquid adhering to skin | B11: L | C11: =A02d!$C$11 -> 0.008 | D11: mL/cm2 | E11: Mason and Johnson 1987
A12: Concentration in solution | B12: Conc
B13: Central | C13: ='A01'!FldConc_C -> 0.24 | D13: mg/mL | E13: Worksheet A01
B14: Lower | C14: ='A01'!FldConc_L -> 0.06 | E14: Worksheet A01
B15: Upper | C15: ='A01'!FldConc_U -> 0.3 | E15: Worksheet A01
A16: First-order dermal absorption rates | B16: ka
B17: Central | C17: ='B01'!$C$11 -> 0.0013 | D17: hour-1
B18: Lower | C18: ='B01'!$C$12 -> 0.00029
B19: Upper | C19: ='B01'!$C$13 -> 0.0061
A20: Toxic Equivalency Factor for formulation: (See risk assessment if this has a value other than 1.) | B20: TEF
B21: Central | C21: ='A01'!C$35 -> 1 | D21: Unitless | E21: Worksheet A01
B22: Lower | C22: ='A01'!C$36 -> 1 | E22: Worksheet A01
B23: Upper | C23: ='A01'!C$37 -> 1 | E23: Worksheet A01
A24: Amount Deposited on Skin | B24: Amnt | C24: L × SA × Conc x TEF
B25: Central | C25: =$C$11*$C$7*C13*C21 -> 1.6128 | D25: mg | E25: Eq
B26: Lower | C26: =$C$11*$C$7*C14*C22 -> 0.4032 | E26: Eq
B27: Upper | C27: =$C$11*$C$7*C15*C23 -> 2.016 | E27: Eq
A28: Skin Loading | B28: Loading
B29: Central | C29: =C25/C$7 -> 0.00192 | D29: mg/cm2 | E29: Eq
B30: Lower | C30: =C26/C$7 -> 0.00048 | E30: Eq
B31: Upper | C31: =C27/C$7 -> 0.0024 | E31: Eq
A32: Proportion absorbed over period T | B32: Prop | C32: 1-exp(-ka T)
B33: Central | C33: =1-EXP(-C17 *$C$9) -> 0.001299155366 | D33: hour-1 | E33: Eq
B34: Lower | C34: =1-EXP(-C18 *$C$9) -> 0.0002899579541 | E34: Eq
B35: Upper | C35: =1-EXP(-C19 *$C$9) -> 0.006081432773 | E35: Eq
A36: Absorbed Dose | B36: Dose | C36: Amnt × Prop ÷ BW
B37: Central | C37: =C25*C33/$C$10 -> 2.993253963e-05 | D37: mg/kg bw | E37: Eq
B38: Lower | C38: =C26*C34/$C$10 -> 1.670157815e-06 | E38: Eq
B39: Upper | C39: =C27*C35/$C$10 -> 0.0001751452638 | E39: Eq

Sheet C03b
A1: Accidental Dermal Exposure Assessment Using First-Order Absorption, Worker, Surface Area, Lower legs, for 60 minute(s)
A2: Short Title | B2: Spill on lower legs, 1 hour | E2: DrmFOA
A3: Receptor | B3: Worker
A4: Duration | B4: Acute
A5: Surface Contaminated | B5: Surface Area, Lower legs
A6: Parameter/Assumption | B6: Code / Range | C6: Equation/ Value | D6: Units | E6: Reference/Designation
A7: Surface Area | B7: SA | C7: =A02a!$C$41 -> 2070 | D7: cm2 | E7: U.S. EPA/ORD 1992
A8: Duration of Exposure | C8: 60 | D8: minutes | E8: Scenario parameter
B9: T | C9: =C8/60 -> 1 | D9: hours | E9: Eq
A10: Body weight | B10: BW | C10: =A02a!$C$39 -> 70 | D10: kg | E10: ICRP 1975
A11: Liquid adhering to skin | B11: L | C11: =A02d!$C$11 -> 0.008 | D11: mL/cm2 | E11: Mason and Johnson 1987
A12: Concentration in solution | B12: Conc
B13: Central | C13: ='A01'!FldConc_C -> 0.24 | D13: mg/mL | E13: Worksheet A01
B14: Lower | C14: ='A01'!FldConc_L -> 0.06 | E14: Worksheet A01
B15: Upper | C15: ='A01'!FldConc_U -> 0.3 | E15: Worksheet A01
A16: First-order dermal absorption rates | B16: ka
B17: Central | C17: ='B01'!$C$11 -> 0.0013 | D17: hour-1
B18: Lower | C18: ='B01'!$C$12 -> 0.00029
B19: Upper | C19: ='B01'!$C$13 -> 0.0061
A20: Toxic Equivalency Factor for formulation: (See risk assessment if this has a value other than 1.) | B20: TEF
B21: Central | C21: ='A01'!C$35 -> 1 | D21: Unitless | E21: Worksheet A01
B22: Lower | C22: ='A01'!C$36 -> 1 | E22: Worksheet A01
B23: Upper | C23: ='A01'!C$37 -> 1 | E23: Worksheet A01
A24: Amount Deposited on Skin | B24: Amnt | C24: L × SA × Conc x TEF
B25: Central | C25: =$C$11*$C$7*C13*C21 -> 3.9744 | D25: mg | E25: Eq
B26: Lower | C26: =$C$11*$C$7*C14*C22 -> 0.9936 | E26: Eq
B27: Upper | C27: =$C$11*$C$7*C15*C23 -> 4.968 | E27: Eq
A28: Skin Loading | B28: Loading
B29: Central | C29: =C25/C$7 -> 0.00192 | D29: mg/cm2 | E29: Eq
B30: Lower | C30: =C26/C$7 -> 0.00048 | E30: Eq
B31: Upper | C31: =C27/C$7 -> 0.0024 | E31: Eq
A32: Proportion absorbed over period T | B32: Prop | C32: 1-exp(-ka T)
B33: Central | C33: =1-EXP(-C17 *$C$9) -> 0.001299155366 | D33: hour-1 | E33: Eq
B34: Lower | C34: =1-EXP(-C18 *$C$9) -> 0.0002899579541 | E34: Eq
B35: Upper | C35: =1-EXP(-C19 *$C$9) -> 0.006081432773 | E35: Eq
A36: Absorbed Dose | B36: Dose | C36: Amnt × Prop ÷ BW
B37: Central | C37: =C25*C33/$C$10 -> 7.376232981e-05 | D37: mg/kg bw | E37: Eq
B38: Lower | C38: =C26*C34/$C$10 -> 4.115746045e-06 | E38: Eq
B39: Upper | C39: =C27*C35/$C$10 -> 0.0004316079716 | E39: Eq

Sheet D01a
A1: Accidental Dermal Exposure Assessment Using First-Order Absorption, Child, Surface Area, Whole body, for 60 minute(s)
A2: Short Title | B2: Child direct spray, 1 hour | E2: DrmFOA
A3: Receptor | B3: Child
A4: Duration | B4: Acute
A5: Surface Contaminated | B5: Surface Area, Whole body
A6: Parameter/Assumption | B6: Code / Range | C6: Equation/ Value | D6: Units | E6: Reference/Designation
A7: Surface Area | B7: SA | C7: =A02a!$C$29 -> 6030 | D7: cm2 | E7: U.S. EPA/ORD 1996
A8: Duration of Exposure | C8: 60 | D8: minutes | E8: Scenario parameter
B9: T | C9: =C8/60 -> 1 | D9: hours | E9: Eq
A10: Body weight | B10: BW | C10: =A02a!$C$28 -> 13.3 | D10: kg | E10: U.S. EPA/ORD 1996
A11: Liquid adhering to skin | B11: L | C11: =A02d!$C$11 -> 0.008 | D11: mL/cm2 | E11: Mason and Johnson 1987
A12: Concentration in solution | B12: Conc
B13: Central | C13: ='A01'!FldConc_C -> 0.24 | D13: mg/mL | E13: Worksheet A01
B14: Lower | C14: ='A01'!FldConc_L -> 0.06 | E14: Worksheet A01
B15: Upper | C15: ='A01'!FldConc_U -> 0.3 | E15: Worksheet A01
A16: First-order dermal absorption rates | B16: ka
B17: Central | C17: ='B01'!$C$11 -> 0.0013 | D17: hour-1
B18: Lower | C18: ='B01'!$C$12 -> 0.00029
B19: Upper | C19: ='B01'!$C$13 -> 0.0061
A20: Toxic Equivalency Factor for formulation: (See risk assessment if this has a value other than 1.) | B20: TEF
B21: Central | C21: ='A01'!C$35 -> 1 | D21: Unitless | E21: Worksheet A01
B22: Lower | C22: ='A01'!C$36 -> 1 | E22: Worksheet A01
B23: Upper | C23: ='A01'!C$37 -> 1 | E23: Worksheet A01
A24: Amount Deposited on Skin | B24: Amnt | C24: L × SA × Conc x TEF
B25: Central | C25: =$C$11*$C$7*C13*C21 -> 11.5776 | D25: mg | E25: Eq
B26: Lower | C26: =$C$11*$C$7*C14*C22 -> 2.8944 | E26: Eq
B27: Upper | C27: =$C$11*$C$7*C15*C23 -> 14.472 | E27: Eq
A28: Skin Loading | B28: Loading
B29: Central | C29: =C25/C$7 -> 0.00192 | D29: mg/cm2 | E29: Eq
B30: Lower | C30: =C26/C$7 -> 0.00048 | E30: Eq
B31: Upper | C31: =C27/C$7 -> 0.0024 | E31: Eq
A32: Proportion absorbed over period T | B32: Prop | C32: 1-exp(-ka T)
B33: Central | C33: =1-EXP(-C17 *$C$9) -> 0.001299155366 | D33: hour-1 | E33: Eq
B34: Lower | C34: =1-EXP(-C18 *$C$9) -> 0.0002899579541 | E34: Eq
B35: Upper | C35: =1-EXP(-C19 *$C$9) -> 0.006081432773 | E35: Eq
A36: Absorbed Dose | B36: Dose | C36: Amnt × Prop ÷ BW
B37: Central | C37: =C25*C33/$C$10 -> 0.001130909862 | D37: mg/kg bw | E37: Eq
B38: Lower | C38: =C26*C34/$C$10 -> 6.310182724e-05 | E38: Eq
B39: Upper | C39: =C27*C35/$C$10 -> 0.006617330457 | E39: Eq

Sheet D01b
A1: Accidental Dermal Exposure Assessment Using First-Order Absorption, Adult Female, Surface Area, Feet and lower Legs, for 60 minute(s)
A2: Short Title | B2: Adult female, lower legs, 1 hour | E2: DrmFOA
A3: Receptor | B3: Adult Female
A4: Duration | B4: Acute
A5: Surface Contaminated | B5: Surface Area, Feet and lower Legs
A6: Parameter/Assumption | B6: Code / Range | C6: Equation/ Value | D6: Units | E6: Reference/Designation
A7: Surface Area | B7: SA | C7: =A02a!$C$5 -> 2915 | D7: cm2 | E7: U.S. EPA/ORD 1992
A8: Duration of Exposure | C8: 60 | D8: minutes | E8: Scenario parameter
B9: T | C9: =C8/60 -> 1 | D9: hours | E9: Eq
A10: Body weight | B10: BW | C10: =A02a!$C$4 -> 64 | D10: kg | E10: U.S. EPA/ORD 1985
A11: Liquid adhering to skin | B11: L | C11: =A02d!$C$11 -> 0.008 | D11: mL/cm2 | E11: Mason and Johnson 1987
A12: Concentration in solution | B12: Conc
B13: Central | C13: ='A01'!FldConc_C -> 0.24 | D13: mg/mL | E13: Worksheet A01
B14: Lower | C14: ='A01'!FldConc_L -> 0.06 | E14: Worksheet A01
B15: Upper | C15: ='A01'!FldConc_U -> 0.3 | E15: Worksheet A01
A16: First-order dermal absorption rates | B16: ka
B17: Central | C17: ='B01'!$C$11 -> 0.0013 | D17: hour-1
B18: Lower | C18: ='B01'!$C$12 -> 0.00029
B19: Upper | C19: ='B01'!$C$13 -> 0.0061
A20: Toxic Equivalency Factor for formulation: (See risk assessment if this has a value other than 1.) | B20: TEF
B21: Central | C21: ='A01'!C$35 -> 1 | D21: Unitless | E21: Worksheet A01
B22: Lower | C22: ='A01'!C$36 -> 1 | E22: Worksheet A01
B23: Upper | C23: ='A01'!C$37 -> 1 | E23: Worksheet A01
A24: Amount Deposited on Skin | B24: Amnt | C24: L × SA × Conc x TEF
B25: Central | C25: =$C$11*$C$7*C13*C21 -> 5.5968 | D25: mg | E25: Eq
B26: Lower | C26: =$C$11*$C$7*C14*C22 -> 1.3992 | E26: Eq
B27: Upper | C27: =$C$11*$C$7*C15*C23 -> 6.996 | E27: Eq
A28: Skin Loading | B28: Loading
B29: Central | C29: =C25/C$7 -> 0.00192 | D29: mg/cm2 | E29: Eq
B30: Lower | C30: =C26/C$7 -> 0.00048 | E30: Eq
B31: Upper | C31: =C27/C$7 -> 0.0024 | E31: Eq
A32: Proportion absorbed over period T | B32: Prop | C32: 1-exp(-ka T)
B33: Central | C33: =1-EXP(-C17 *$C$9) -> 0.001299155366 | D33: hour-1 | E33: Eq
B34: Lower | C34: =1-EXP(-C18 *$C$9) -> 0.0002899579541 | E34: Eq
B35: Upper | C35: =1-EXP(-C19 *$C$9) -> 0.006081432773 | E35: Eq
A36: Absorbed Dose | B36: Dose | C36: Amnt × Prop ÷ BW
B37: Central | C37: =C25*C33/$C$10 -> 0.0001136111368 | D37: mg/kg bw | E37: Eq
B38: Lower | C38: =C26*C34/$C$10 -> 6.339205771e-06 | E38: Eq
B39: Upper | C39: =C27*C35/$C$10 -> 0.0006647766199 | E39: Eq

Sheet D02
A1: Dermal Contact with Contaminated Vegetation, Adult Female, Surface Area, Wearing shorts and T-shirt, for 1 hour(s)
A2: Short Title | B2: Vegetation Contact, shorts and T-shirt | E2: DrmVegC
A3: Receptor | B3: Adult Female
A4: Surface Contaminated | B4: Surface Area, Wearing shorts and T-shirt
A5: Duration | B5: Acute
A6: Parameter/Assumption | B6: Code / Range | C6: Equation/ Value | D6: Units | E6: Reference/Designation
A7: Application Rate (lbs/acre) | B7: ApRt | C7: ='A01'!ApRt_C -> 0.2 | D7: lb/acre | E7: Worksheet A01
A8: Conversion Factor | B8: CnvF | C8: 11.21 | D8: ug/cm2/lb/acre
A9: Metric Application Rate (ug/cm2) | B9: ApR_m | C9: ApR × CnvF
C10: =C7*C$8 -> 2.242 | D10: ug/cm2 | E10: Eq
A11: Surface Area | B11: SA | C11: =A02a!$C$6 -> 5300 | D11: cm2 | E11: U.S. EPA/ORD 1992
A12: Contact Time | B12: Tc | C12: 1 | D12: hours | E12: Scenario parameter
A13: Exposure Time | B13: Te | C13: 24 | D13: hours | E13: Scenario parameter
A14: Body weight (W) | B14: BW | C14: =A02a!$C$4 -> 64 | D14: kg | E14: U.S. EPA/ORD 1985
A15: Proportion Dislodgeable | B15: PropDr
B16: Central | C16: ='A01'!C$47 -> 0.1 | D16: proportion | E16: Worksheet A01
B17: Lower | C17: ='A01'!C$48 -> 0.1 | E17: Worksheet A01
B18: Upper | C18: ='A01'!C$49 -> 0.1 | E18: Worksheet A01
A19: Dislodgeable Residue | B19: Dr | C19: ApR_m × PropDr
B20: Central | C20: =C$10*C16 -> 0.2242 | D20: ug/cm2 | E20: Eq
B21: Lower | C21: =C$10*C17 -> 0.2242 | E21: Eq
B22: Upper | C22: =C$10*C18 -> 0.2242 | E22: Eq
A23: Transfer Rate | B23: Tr | C23: 10 (1.09×Log10(Dr)+0.05) / 1000 µg/mg)
B24: Central | C24: =(10^( (1.09 * LOG(C20)) + 0.05)) / 1000 -> 0.000219883587 | D24: mg/(cm2 hr) | E24: Eq
B25: Lower | C25: =(10^( (1.09 * LOG(C21)) + 0.05)) / 1000 -> 0.000219883587 | E25: Eq
B26: Upper | C26: =(10^( (1.09 * LOG(C22)) + 0.05)) / 1000 -> 0.000219883587 | E26: Eq
A27: Toxic Equivalency Factor for formulation: (See risk assessment if this has a value other than 1.) | B27: TEF
B28: Central | C28: ='A01'!C$35 -> 1 | D28: Unitless | E28: Worksheet A01
B29: Lower | C29: ='A01'!C$36 -> 1 | E29: Worksheet A01
B30: Upper | C30: ='A01'!C$37 -> 1 | E30: Worksheet A01
A31: Amount Transferred to Skin Surface | B31: Amnt | C31: SA × Tr × Tc x TEF
B32: Central | C32: =C$11 * C$12 * C24 * C28 -> 1.165383011 | D32: mg | E32: Eq
B33: Lower | C33: =C$11 * C$12 * C25 * C29 -> 1.165383011 | E33: Eq
B34: Upper | C34: =C$11 * C$12 * C26 * C30 -> 1.165383011 | E34: Eq
A35: First-order dermal absorption rates | B35: ka
B36: Central | C36: ='B01'!$C$11 -> 0.0013 | D36: hour-1
B37: Lower | C37: ='B01'!$C$12 -> 0.00029
B38: Upper | C38: ='B01'!$C$13 -> 0.0061
A39: Skin Loading | B39: Loading
B40: Central | C40: =C36/C$11 -> 2.452830189e-07 | D40: mg/cm2 | E40: Eq
B41: Lower | C41: =C37/C$11 -> 5.471698113e-08 | E41: Eq
B42: Upper | C42: =C38/C$11 -> 1.150943396e-06 | E42: Eq
A43: Proportion absorbed over exposure period, Te | B43: Prop | C43: 1-exp(-ka Te)
B44: Central | C44: =1-EXP(-C36 *$C$13) -> 0.03071830265 | D44: hour-1 | E44: Eq
B45: Lower | C45: =1-EXP(-C37 *$C$13) -> 0.006935835295 | E45: Eq
B46: Upper | C46: =1-EXP(-C38 *$C$13) -> 0.1361878908 | E46: Eq
A47: Absorbed Dose | B47: Dose | C47: Amnt × Prop ÷ BW
B48: Central | C48: =C32*C44/$C$14 -> 0.000559352938 | D48: mg/kg bw | E48: Eq
B49: Lower | C49: =C33*C45/$C$14 -> 0.0001262953847 | E49: Eq
B50: Upper | C50: =C34*C46/$C$14 -> 0.002479860222 | E50: Eq
A52: Note 1: The method of Durkin et al. (1995, p. 68, equation 4) is used to calculate the transfer rate (Tr) in units of µg/(cm2 hr) based on the dislodgeable residue (Dr) in units of μg/cm2. This is converted to units of mg/(cm2 hr)) by dividing by 1000 µg/mg.

Sheet D03a
A1: Consumption of Fruit by a Adult Female, Acute exposure.
A2: Short Title | B2: Contaminated Fruit | E2: FdPropBwV6
A3: Receptor | B3: Adult Female
A4: Duration | B4: Acute | E4: Scenario parameter
A5: Material consumed | B5: Fruit
A6: Parameter/Assumption | B6: Code / Range | C6: Equation/ Value | D6: Units | E6: Reference/Designation
A7: Commodity
A8: Concentration on vegetation | B8: Conc
B9: Central | C9: =B05a!Acute_C -> 1.4 | D9: mg/kg food | E9: ='B05a'!Acute_C
B10: Lower | C10: =B05a!Acute_L -> 0.64 | E10: ='B05a'!Acute_L
B11: Upper | C11: =B05a!Acute_U -> 3 | E11: ='B05a'!Acute_U
A12: Receptor
A13: Amount consumed per day per unit body weight | B13: Amnt
B14: Central | C14: ='A03'!$E$6 -> 0.00168 | D14: kg food/kg BW per day | E14: U.S. EPA/ORD 1996
B15: Lower | C15: ='A03'!$E$7 -> 0.00168 | E15: U.S. EPA/ORD 1996
B16: Upper | C16: ='A03'!$E$8 -> 0.01244 | E16: U.S. EPA/ORD 1996
A17: Estimate
A18: Dose | B18: Dose | C18: Conc × Amnt
B19: Central | C19: =C14*C9 -> 0.002352 | D19: mg/kg bw | E19: Eq
B20: Lower | C20: =C15*C10 -> 0.0010752 | E20: Eq
B21: Upper | C21: =C16*C11 -> 0.03732 | E21: Eq

Sheet D03b
A1: Consumption of Vegetation by a Adult Female, Acute exposure.
A2: Short Title | B2: Contaminated Vegetation | E2: FdPropBwV6
A3: Receptor | B3: Adult Female
A4: Duration | B4: Acute | E4: Scenario parameter
A5: Material consumed | B5: Vegetation
A6: Parameter/Assumption | B6: Code / Range | C6: Equation/ Value | D6: Units | E6: Reference/Designation
A7: Commodity
A8: Concentration on vegetation | B8: Conc
B9: Central | C9: =B05b!Acute_C -> 9 | D9: mg/kg food | E9: ='B05b'!Acute_C
B10: Lower | C10: =B05b!Acute_L -> 3 | E10: ='B05b'!Acute_L
B11: Upper | C11: =B05b!Acute_U -> 27 | E11: ='B05b'!Acute_U
A12: Receptor
A13: Amount consumed per day per unit body weight | B13: Amnt
B14: Central | C14: ='A03'!$E$13 -> 0.0036 | D14: kg food/kg BW per day | E14: U.S. EPA/ORD 1996
B15: Lower | C15: ='A03'!$E$14 -> 0.00075 | E15: U.S. EPA/ORD 1996
B16: Upper | C16: ='A03'!$E$15 -> 0.01 | E16: U.S. EPA/ORD 1996
A17: Estimate
A18: Dose | B18: Dose | C18: Conc × Amnt
B19: Central | C19: =C14*C9 -> 0.0324 | D19: mg/kg bw | E19: Eq
B20: Lower | C20: =C15*C10 -> 0.00225 | E20: Eq
B21: Upper | C21: =C16*C11 -> 0.27 | E21: Eq

Sheet D04a
A1: Consumption of Fruit by a Adult Female, Chronic exposure.
A2: Short Title | B2: Contaminated Fruit | E2: FdPropBwV6
A3: Receptor | B3: Adult Female
A4: Duration | B4: Chronic | E4: Scenario parameter
A5: Material consumed | B5: Fruit
A6: Parameter/Assumption | B6: Code / Range | C6: Equation/ Value | D6: Units | E6: Reference/Designation
A7: Commodity
A8: Concentration on vegetation | B8: Conc
B9: Central | C9: =B05a!Chronic_C -> 0.1570722875 | D9: mg/kg food | E9: ='B05a'!Chronic_C
B10: Lower | C10: =B05a!Chronic_L -> 0.02051832947 | E10: ='B05a'!Chronic_L
B11: Upper | C11: =B05a!Chronic_U -> 0.5738900806 | E11: ='B05a'!Chronic_U
A12: Receptor
A13: Amount consumed per day per unit body weight | B13: Amnt
B14: Central | C14: ='A03'!$E$6 -> 0.00168 | D14: kg food/kg BW per day | E14: U.S. EPA/ORD 1996
B15: Lower | C15: ='A03'!$E$7 -> 0.00168 | E15: U.S. EPA/ORD 1996
B16: Upper | C16: ='A03'!$E$8 -> 0.01244 | E16: U.S. EPA/ORD 1996
A17: Estimate
A18: Dose | B18: Dose | C18: Conc × Amnt
B19: Central | C19: =C14*C9 -> 0.000263881443 | D19: mg/kg bw | E19: Eq
B20: Lower | C20: =C15*C10 -> 3.447079351e-05 | E20: Eq
B21: Upper | C21: =C16*C11 -> 0.007139192602 | E21: Eq

Sheet D04b
A1: Consumption of Vegetation by a Adult Female, Chronic exposure.
A2: Short Title | B2: Contaminated Vegetation | E2: FdPropBwV6
A3: Receptor | B3: Adult Female
A4: Duration | B4: Chronic | E4: Scenario parameter
A5: Material consumed | B5: Vegetation
A6: Parameter/Assumption | B6: Code / Range | C6: Equation/ Value | D6: Units | E6: Reference/Designation
A7: Commodity
A8: Concentration on vegetation | B8: Conc
B9: Central | C9: =B05b!Chronic_C -> 1.818742549 | D9: mg/kg food | E9: ='B05b'!Chronic_C
B10: Lower | C10: =B05b!Chronic_L -> 0.1154156033 | E10: ='B05b'!Chronic_L
B11: Upper | C11: =B05b!Chronic_U -> 9.293780362 | E11: ='B05b'!Chronic_U
A12: Receptor
A13: Amount consumed per day per unit body weight | B13: Amnt
B14: Central | C14: ='A03'!$E$13 -> 0.0036 | D14: kg food/kg BW per day | E14: U.S. EPA/ORD 1996
B15: Lower | C15: ='A03'!$E$14 -> 0.00075 | E15: U.S. EPA/ORD 1996
B16: Upper | C16: ='A03'!$E$15 -> 0.01 | E16: U.S. EPA/ORD 1996
A17: Estimate
A18: Dose | B18: Dose | C18: Conc × Amnt
B19: Central | C19: =C14*C9 -> 0.006547473176 | D19: mg/kg bw | E19: Eq
B20: Lower | C20: =C15*C10 -> 8.656170245e-05 | E20: Eq
B21: Upper | C21: =C16*C11 -> 0.09293780362 | E21: Eq

Sheet D05
A1: Consumption of contaminated water by Child, Accidental Spill
A2: Short Title | B2: Accidental Spill | E2: WatAmntV6
A3: Receptor | B3: Child
A4: Duration | B4: Acute | E4: Scenario parameter
A5: Parameter/Assumption | B5: Code / Range | C5: Equation/ Value | D5: Units | E5: Reference/Designation
A6: Concentration in water | B6: ConcWat
B7: Central | C7: =B04b!Acute_C -> 1.4e-05 | D7: mg/L | E7: ='B04b'!Acute_C
B8: Lower | C8: =B04b!Acute_L -> 1.4e-05 | E8: ='B04b'!Acute_L
B9: Upper | C9: =B04b!Acute_U -> 1.4e-05 | E9: ='B04b'!Acute_U
A10: Receptor
A11: Amount of water consumed in one day | B11: Amnt
B12: Central | C12: ='A03'!$E$44 -> 1 | D12: liters/day | E12: U.S. EPA/ORD 1996
B13: Lower | C13: ='A03'!$E$45 -> 0.61 | E13: U.S. EPA/ORD 1996
B14: Upper | C14: ='A03'!$E$46 -> 1.5 | E14: U.S. EPA/ORD 1996
A15: Body weight | B15: BW | C15: =A02a!$C$28 -> 13.3 | D15: kg | E15: U.S. EPA/ORD 1996
A16: Dose | B16: Dose | C16: ConcWat × Amnt ÷ BW
B17: Central | C17: =C7*C12/C$15 -> 1.052631579e-06 | D17: mg/kg | E17: Eq
B18: Lower | C18: =C8*C13/C$15 -> 6.421052632e-07 | D18: mg/kg | E18: Eq
B19: Upper | C19: =C9*C14/C$15 -> 1.578947368e-06 | D19: mg/kg | E19: Eq

Sheet D06
A1: Consumption of contaminated water by Child, Peak Conentrations
A2: Short Title | B2: Peak Conentrations | E2: WatAmntV6
A3: Receptor | B3: Child
A4: Duration | B4: Acute | E4: Scenario parameter
A5: Parameter/Assumption | B5: Code / Range | C5: Equation/ Value | D5: Units | E5: Reference/Designation
A6: Concentration in water | B6: ConcWat
B7: Central | C7: =B04a!Acute_C -> 1.4e-05 | D7: mg/L | E7: ='B04a'!Acute_C
B8: Lower | C8: =B04a!Acute_L -> 1e-05 | E8: ='B04a'!Acute_L
B9: Upper | C9: =B04a!Acute_U -> 1.4e-05 | E9: ='B04a'!Acute_U
A10: Receptor
A11: Amount of water consumed in one day | B11: Amnt
B12: Central | C12: ='A03'!$E$44 -> 1 | D12: liters/day | E12: U.S. EPA/ORD 1996
B13: Lower | C13: ='A03'!$E$45 -> 0.61 | E13: U.S. EPA/ORD 1996
B14: Upper | C14: ='A03'!$E$46 -> 1.5 | E14: U.S. EPA/ORD 1996
A15: Body weight | B15: BW | C15: =A02a!$C$28 -> 13.3 | D15: kg | E15: U.S. EPA/ORD 1996
A16: Dose | B16: Dose | C16: ConcWat × Amnt ÷ BW
B17: Central | C17: =C7*C12/C$15 -> 1.052631579e-06 | D17: mg/kg | E17: Eq
B18: Lower | C18: =C8*C13/C$15 -> 4.586466165e-07 | D18: mg/kg | E18: Eq
B19: Upper | C19: =C9*C14/C$15 -> 1.578947368e-06 | D19: mg/kg | E19: Eq

Sheet D07
A1: Consumption of contaminated water by Adult Male, Longer-term Conentrations
A2: Short Title | B2: Longer-term Conentrations | E2: WatAmntV6
A3: Receptor | B3: Adult Male
A4: Duration | B4: Chronic | E4: Scenario parameter
A5: Parameter/Assumption | B5: Code / Range | C5: Equation/ Value | D5: Units | E5: Reference/Designation
A6: Concentration in water | B6: ConcWat
B7: Central | C7: =B04a!Chronic_C -> 1.3e-05 | D7: mg/L | E7: ='B04a'!Chronic_C
B8: Lower | C8: =B04a!Chronic_L -> 8e-07 | E8: ='B04a'!Chronic_L
B9: Upper | C9: =B04a!Chronic_U -> 1.4e-05 | E9: ='B04a'!Chronic_U
A10: Receptor
A11: Amount of water consumed in one day | B11: Amnt
B12: Central | C12: ='A03'!$E$31 -> 2 | D12: liters/day | E12: U.S. EPA/ORD 1996
B13: Lower | C13: ='A03'!$E$32 -> 1.4 | E13: U.S. EPA/ORD 1996
B14: Upper | C14: ='A03'!$E$33 -> 2.4 | E14: U.S. EPA/ORD 1996
A15: Body weight | B15: BW | C15: =A02a!$C$8 -> 70 | D15: kg | E15: ICRP 1975
A16: Dose | B16: Dose | C16: ConcWat × Amnt ÷ BW
B17: Central | C17: =C7*C12/C$15 -> 3.714285714e-07 | D17: mg/kg | E17: Eq
B18: Lower | C18: =C8*C13/C$15 -> 1.6e-08 | D18: mg/kg | E18: Eq
B19: Upper | C19: =C9*C14/C$15 -> 4.8e-07 | D19: mg/kg | E19: Eq

Sheet D08a
A1: Consumption of Contaminated Fish (Accidental Spill), Adult Male, acute exposure
A2: Short Title | B2: Fish consumption | E2: FishAmntV6
A3: Receptor | B3: Adult Male
A4: Duration | B4: acute
A5: Parameter/Assumption | B5: Code / Range | C5: Equation/ Value | D5: Units | E5: Reference/Designation
A6: Water
A7: Concentration in water | B7: ConcWat | C7: ApR × WCR
B8: Central | C8: =B04b!Acute_C -> 1.4e-05 | D8: mg/L | E8: ='B04b'!Acute_C
B9: Lower | C9: =B04b!Acute_L -> 1.4e-05 | E9: ='B04b'!Acute_L
B10: Upper | C10: =B04b!Acute_U -> 1.4e-05 | E10: ='B04b'!Acute_U
A11: Fish
A12: Bioconcentration factor | B12: BCF
B13: Central | C13: ='B01'!$C$4 -> 6090 | D13: L/kg
B14: Lower | C14: ='B01'!$C$4 -> 6090
B15: Upper | C15: ='B01'!$C$4 -> 6090
A16: Concentration in fish | B16: ConcFish | C16: ConcWat × BCF
B17: Central | C17: =C8*C13 -> 0.08526 | D17: mg/kg | E17: Eq
B18: Lower | C18: =C9*C14 -> 0.08526 | E18: Eq
B19: Upper | C19: =C10*C15 -> 0.08526 | E19: Eq
A20: Receptor
A21: Amount of fish consumed | B21: Amnt
B22: Central | C22: ='A03'!$E$20 -> 0.158 | D22: kg/day | E22: Ruffle et al. 1994
B23: Lower | C23: ='A03'!$E$20 -> 0.158 | E23: Ruffle et al. 1994
B24: Upper | C24: ='A03'!$E$20 -> 0.158 | E24: Ruffle et al. 1994
A25: Toxic Equivalency Factor for formulation: (See risk assessment if this has a value other than 1.) | B25: TEF
B26: Central | C26: ='A01'!C$35 -> 1 | D26: Unitless | E26: Worksheet A01
B27: Lower | C27: ='A01'!C$36 -> 1 | E27: Worksheet A01
B28: Upper | C28: ='A01'!C$37 -> 1 | E28: Worksheet A01
A29: Body weight | B29: BW | C29: =A02a!$C$8 -> 70 | D29: kg | E29: ICRP 1975
A30: Dose | B30: Dose | C30: ConcFish× Amnt x TEF ÷ BW
B31: Central | C31: =C17*C22*C26/C$29 -> 0.000192444 | D31: mg/kg | E31: Eq
B32: Lower | C32: =C18*C23*C27/C$29 -> 0.000192444 | D32: mg/kg | E32: Eq
B33: Upper | C33: =C19*C24*C28/C$29 -> 0.000192444 | D33: mg/kg | E33: Eq
E34: FishAmntV6

Sheet D08b
A1: Consumption of Contaminated Fish (Accidental Spill), Subsistence Populations, acute exposure
A2: Short Title | B2: Fish consumption | E2: FishAmntV6
A3: Receptor | B3: Subsistence Populations
A4: Duration | B4: acute
A5: Parameter/Assumption | B5: Code / Range | C5: Equation/ Value | D5: Units | E5: Reference/Designation
A6: Water
A7: Concentration in water | B7: ConcWat | C7: ApR × WCR
B8: Central | C8: =B04b!Acute_C -> 1.4e-05 | D8: mg/L | E8: ='B04b'!Acute_C
B9: Lower | C9: =B04b!Acute_L -> 1.4e-05 | E9: ='B04b'!Acute_L
B10: Upper | C10: =B04b!Acute_U -> 1.4e-05 | E10: ='B04b'!Acute_U
A11: Fish
A12: Bioconcentration factor | B12: BCF
B13: Central | C13: ='B01'!$C$4 -> 6090 | D13: L/kg
B14: Lower | C14: ='B01'!$C$4 -> 6090
B15: Upper | C15: ='B01'!$C$4 -> 6090
A16: Concentration in fish | B16: ConcFish | C16: ConcWat × BCF
B17: Central | C17: =C8*C13 -> 0.08526 | D17: mg/kg | E17: Eq
B18: Lower | C18: =C9*C14 -> 0.08526 | E18: Eq
B19: Upper | C19: =C10*C15 -> 0.08526 | E19: Eq
A20: Receptor
A21: Amount of fish consumed | B21: Amnt
B22: Central | C22: ='A03'!$E$35 -> 0.77 | D22: kg/day | E22: U.S. EPA/ORD 1993
B23: Lower | C23: ='A03'!$E$35 -> 0.77 | E23: U.S. EPA/ORD 1993
B24: Upper | C24: ='A03'!$E$35 -> 0.77 | E24: U.S. EPA/ORD 1993
A25: Toxic Equivalency Factor for formulation: (See risk assessment if this has a value other than 1.) | B25: TEF
B26: Central | C26: ='A01'!C$35 -> 1 | D26: Unitless | E26: Worksheet A01
B27: Lower | C27: ='A01'!C$36 -> 1 | E27: Worksheet A01
B28: Upper | C28: ='A01'!C$37 -> 1 | E28: Worksheet A01
A29: Body weight | B29: BW | C29: =A02a!$C$9 -> 70 | D29: kg | E29: ICRP 1975
A30: Dose | B30: Dose | C30: ConcFish× Amnt x TEF ÷ BW
B31: Central | C31: =C17*C22*C26/C$29 -> 0.00093786 | D31: mg/kg | E31: Eq
B32: Lower | C32: =C18*C23*C27/C$29 -> 0.00093786 | D32: mg/kg | E32: Eq
B33: Upper | C33: =C19*C24*C28/C$29 -> 0.00093786 | D33: mg/kg | E33: Eq
E34: FishAmntV6

Sheet D09a
A1: Consumption of Contaminated Fish (Longer-term), Adult Male, chronic exposure
A2: Short Title | B2: Fish consumption | E2: FishAmntV6
A3: Receptor | B3: Adult Male
A4: Duration | B4: chronic
A5: Parameter/Assumption | B5: Code / Range | C5: Equation/ Value | D5: Units | E5: Reference/Designation
A6: Water
A7: Concentration in water | B7: ConcWat | C7: ApR × WCR
B8: Central | C8: =B04a!Chronic_C -> 1.3e-05 | D8: mg/L | E8: ='B04a'!Chronic_C
B9: Lower | C9: =B04a!Chronic_L -> 8e-07 | E9: ='B04a'!Chronic_L
B10: Upper | C10: =B04a!Chronic_U -> 1.4e-05 | E10: ='B04a'!Chronic_U
A11: Fish
A12: Bioconcentration factor | B12: BCF
B13: Central | C13: ='B01'!$C$5 -> 2140 | D13: L/kg
B14: Lower | C14: ='B01'!$C$5 -> 2140
B15: Upper | C15: ='B01'!$C$5 -> 2140
A16: Concentration in fish | B16: ConcFish | C16: ConcWat × BCF
B17: Central | C17: =C8*C13 -> 0.02782 | D17: mg/kg | E17: Eq
B18: Lower | C18: =C9*C14 -> 0.001712 | E18: Eq
B19: Upper | C19: =C10*C15 -> 0.02996 | E19: Eq
A20: Receptor
A21: Amount of fish consumed | B21: Amnt
B22: Central | C22: ='A03'!$E$19 -> 0.01 | D22: kg/day | E22: U.S. EPA/ORD 1996
B23: Lower | C23: ='A03'!$E$19 -> 0.01 | E23: U.S. EPA/ORD 1996
B24: Upper | C24: ='A03'!$E$19 -> 0.01 | E24: U.S. EPA/ORD 1996
A25: Toxic Equivalency Factor for formulation: (See risk assessment if this has a value other than 1.) | B25: TEF
B26: Central | C26: ='A01'!C$35 -> 1 | D26: Unitless | E26: Worksheet A01
B27: Lower | C27: ='A01'!C$36 -> 1 | E27: Worksheet A01
B28: Upper | C28: ='A01'!C$37 -> 1 | E28: Worksheet A01
A29: Body weight | B29: BW | C29: =A02a!$C$8 -> 70 | D29: kg | E29: ICRP 1975
A30: Dose | B30: Dose | C30: ConcFish× Amnt x TEF ÷ BW
B31: Central | C31: =C17*C22*C26/C$29 -> 3.974285714e-06 | D31: mg/kg | E31: Eq
B32: Lower | C32: =C18*C23*C27/C$29 -> 2.445714286e-07 | D32: mg/kg | E32: Eq
B33: Upper | C33: =C19*C24*C28/C$29 -> 4.28e-06 | D33: mg/kg | E33: Eq
E34: FishAmntV6

Sheet D09b
A1: Consumption of Contaminated Fish (Longer-term), Subsistence Populations, chronic exposure
A2: Short Title | B2: Fish consumption | E2: FishAmntV6
A3: Receptor | B3: Subsistence Populations
A4: Duration | B4: chronic
A5: Parameter/Assumption | B5: Code / Range | C5: Equation/ Value | D5: Units | E5: Reference/Designation
A6: Water
A7: Concentration in water | B7: ConcWat | C7: ApR × WCR
B8: Central | C8: =B04a!Chronic_C -> 1.3e-05 | D8: mg/L | E8: ='B04a'!Chronic_C
B9: Lower | C9: =B04a!Chronic_L -> 8e-07 | E9: ='B04a'!Chronic_L
B10: Upper | C10: =B04a!Chronic_U -> 1.4e-05 | E10: ='B04a'!Chronic_U
A11: Fish
A12: Bioconcentration factor | B12: BCF
B13: Central | C13: ='B01'!$C$5 -> 2140 | D13: L/kg
B14: Lower | C14: ='B01'!$C$5 -> 2140
B15: Upper | C15: ='B01'!$C$5 -> 2140
A16: Concentration in fish | B16: ConcFish | C16: ConcWat × BCF
B17: Central | C17: =C8*C13 -> 0.02782 | D17: mg/kg | E17: Eq
B18: Lower | C18: =C9*C14 -> 0.001712 | E18: Eq
B19: Upper | C19: =C10*C15 -> 0.02996 | E19: Eq
A20: Receptor
A21: Amount of fish consumed | B21: Amnt
B22: Central | C22: ='A03'!$E$34 -> 0.081 | D22: kg/day | E22: U.S. EPA/ORD 1996
B23: Lower | C23: ='A03'!$E$34 -> 0.081 | E23: U.S. EPA/ORD 1996
B24: Upper | C24: ='A03'!$E$34 -> 0.081 | E24: U.S. EPA/ORD 1996
A25: Toxic Equivalency Factor for formulation: (See risk assessment if this has a value other than 1.) | B25: TEF
B26: Central | C26: ='A01'!C$35 -> 1 | D26: Unitless | E26: Worksheet A01
B27: Lower | C27: ='A01'!C$36 -> 1 | E27: Worksheet A01
B28: Upper | C28: ='A01'!C$37 -> 1 | E28: Worksheet A01
A29: Body weight | B29: BW | C29: =A02a!$C$9 -> 70 | D29: kg | E29: ICRP 1975
A30: Dose | B30: Dose | C30: ConcFish× Amnt x TEF ÷ BW
B31: Central | C31: =C17*C22*C26/C$29 -> 3.219171429e-05 | D31: mg/kg | E31: Eq
B32: Lower | C32: =C18*C23*C27/C$29 -> 1.981028571e-06 | D32: mg/kg | E32: Eq
B33: Upper | C33: =C19*C24*C28/C$29 -> 3.4668e-05 | D33: mg/kg | E33: Eq
E34: FishAmntV6

Sheet D09c
A1: Consumption of Contaminated Fish (Peak Exposure), Adult Male, acute exposure
A2: Short Title | B2: Fish consumption | E2: FishAmntV6
A3: Receptor | B3: Adult Male
A4: Duration | B4: acute
A5: Parameter/Assumption | B5: Code / Range | C5: Equation/ Value | D5: Units | E5: Reference/Designation
A6: Water
A7: Concentration in water | B7: ConcWat | C7: ApR × WCR
B8: Central | C8: =B04a!Acute_C -> 1.4e-05 | D8: mg/L | E8: ='B04a'!Acute_C
B9: Lower | C9: =B04a!Acute_L -> 1e-05 | E9: ='B04a'!Acute_L
B10: Upper | C10: =B04a!Acute_U -> 1.4e-05 | E10: ='B04a'!Acute_U
A11: Fish
A12: Bioconcentration factor | B12: BCF
B13: Central | C13: ='B01'!$C$4 -> 6090 | D13: L/kg
B14: Lower | C14: ='B01'!$C$4 -> 6090
B15: Upper | C15: ='B01'!$C$4 -> 6090
A16: Concentration in fish | B16: ConcFish | C16: ConcWat × BCF
B17: Central | C17: =C8*C13 -> 0.08526 | D17: mg/kg | E17: Eq
B18: Lower | C18: =C9*C14 -> 0.0609 | E18: Eq
B19: Upper | C19: =C10*C15 -> 0.08526 | E19: Eq
A20: Receptor
A21: Amount of fish consumed | B21: Amnt
B22: Central | C22: ='A03'!$E$20 -> 0.158 | D22: kg/day | E22: Ruffle et al. 1994
B23: Lower | C23: ='A03'!$E$20 -> 0.158 | E23: Ruffle et al. 1994
B24: Upper | C24: ='A03'!$E$20 -> 0.158 | E24: Ruffle et al. 1994
A25: Toxic Equivalency Factor for formulation: (See risk assessment if this has a value other than 1.) | B25: TEF
B26: Central | C26: ='A01'!C$35 -> 1 | D26: Unitless | E26: Worksheet A01
B27: Lower | C27: ='A01'!C$36 -> 1 | E27: Worksheet A01
B28: Upper | C28: ='A01'!C$37 -> 1 | E28: Worksheet A01
A29: Body weight | B29: BW | C29: =A02a!$C$8 -> 70 | D29: kg | E29: ICRP 1975
A30: Dose | B30: Dose | C30: ConcFish× Amnt x TEF ÷ BW
B31: Central | C31: =C17*C22*C26/C$29 -> 0.000192444 | D31: mg/kg | E31: Eq
B32: Lower | C32: =C18*C23*C27/C$29 -> 0.00013746 | D32: mg/kg | E32: Eq
B33: Upper | C33: =C19*C24*C28/C$29 -> 0.000192444 | D33: mg/kg | E33: Eq
E34: FishAmntV6

Sheet D09d
A1: Consumption of Contaminated Fish (Peak Exposure), Subsistence Populations, acute exposure
A2: Short Title | B2: Fish consumption | E2: FishAmntV6
A3: Receptor | B3: Subsistence Populations
A4: Duration | B4: acute
A5: Parameter/Assumption | B5: Code / Range | C5: Equation/ Value | D5: Units | E5: Reference/Designation
A6: Water
A7: Concentration in water | B7: ConcWat | C7: ApR × WCR
B8: Central | C8: =B04a!Acute_C -> 1.4e-05 | D8: mg/L | E8: ='B04a'!Acute_C
B9: Lower | C9: =B04a!Acute_L -> 1e-05 | E9: ='B04a'!Acute_L
B10: Upper | C10: =B04a!Acute_U -> 1.4e-05 | E10: ='B04a'!Acute_U
A11: Fish
A12: Bioconcentration factor | B12: BCF
B13: Central | C13: ='B01'!$C$4 -> 6090 | D13: L/kg
B14: Lower | C14: ='B01'!$C$4 -> 6090
B15: Upper | C15: ='B01'!$C$4 -> 6090
A16: Concentration in fish | B16: ConcFish | C16: ConcWat × BCF
B17: Central | C17: =C8*C13 -> 0.08526 | D17: mg/kg | E17: Eq
B18: Lower | C18: =C9*C14 -> 0.0609 | E18: Eq
B19: Upper | C19: =C10*C15 -> 0.08526 | E19: Eq
A20: Receptor
A21: Amount of fish consumed | B21: Amnt
B22: Central | C22: ='A03'!$E$35 -> 0.77 | D22: kg/day | E22: U.S. EPA/ORD 1993
B23: Lower | C23: ='A03'!$E$35 -> 0.77 | E23: U.S. EPA/ORD 1993
B24: Upper | C24: ='A03'!$E$35 -> 0.77 | E24: U.S. EPA/ORD 1993
A25: Toxic Equivalency Factor for formulation: (See risk assessment if this has a value other than 1.) | B25: TEF
B26: Central | C26: ='A01'!C$35 -> 1 | D26: Unitless | E26: Worksheet A01
B27: Lower | C27: ='A01'!C$36 -> 1 | E27: Worksheet A01
B28: Upper | C28: ='A01'!C$37 -> 1 | E28: Worksheet A01
A29: Body weight | B29: BW | C29: =A02a!$C$9 -> 70 | D29: kg | E29: ICRP 1975
A30: Dose | B30: Dose | C30: ConcFish× Amnt x TEF ÷ BW
B31: Central | C31: =C17*C22*C26/C$29 -> 0.00093786 | D31: mg/kg | E31: Eq
B32: Lower | C32: =C18*C23*C27/C$29 -> 0.0006699 | D32: mg/kg | E32: Eq
B33: Upper | C33: =C19*C24*C28/C$29 -> 0.00093786 | D33: mg/kg | E33: Eq
E34: FishAmntV6

Sheet D10
A1: Swimming Exposure Assessment Using Zero-Order Absorption, Adult Female, Surface Area, Whole body, for 60 minute(s)
A2: Short Title | B2: Swimming | E2: DrmZrSwm
A3: Receptor | B3: Adult Female
A4: Duration | B4: Acute
A5: Surface Contaminated | B5: Surface Area, Whole body
A6: Parameter/Assumption | B6: Code / Range | C6: Equation/ Value | D6: Units | E6: Reference/Designation
A7: Application Rate | B7: ApRt | C7: ='A01'!ApRt_C -> 0.2 | D7: lb/acre | E7: Worksheet A01
A8: Surface Area | B8: SA | C8: =A02a!$C$7 -> 16900 | D8: cm2 | E8: U.S. EPA/ORD 1997
A9: Duration of Exposure | B9: T_min | C9: ='A01'!C$29 -> 60 | D9: minutes | E9: Worksheet A01
B10: T_hr | C10: =C9/60 -> 1 | D10: hours | E10: Eq
A11: Body weight | B11: BW | C11: =A02a!$C$4 -> 64 | D11: kg | E11: U.S. EPA/ORD 1985
A12: Water contamination rate | B12: WCR
B13: Central | C13: =B04Rt!$C$4 -> 0.00035 | D13: mg/L per lb/acre
B14: Lower | C14: =B04Rt!$C$5 -> 5e-05
B15: Upper | C15: =B04Rt!$C$6 -> 0.004
A16: Concentration in water in mg/mL | B16: ConcWat | C16: ApR × WCR / 1000
B17: Central | C17: =C$7*C13/1000 -> 7e-08 | D17: mg/mL | E17: Eq
B18: Lower | C18: =C$7*C14/1000 -> 1e-08 | E18: Eq
B19: Upper | C19: =C$7*C15/1000 -> 8e-07 | E19: Eq
A20: Toxic Equivalency Factor for formulation: (See risk assessment if this has a value other than 1.) | B20: TEF
B21: Central | C21: ='A01'!C$35 -> 1 | D21: Unitless | E21: Worksheet A01
B22: Lower | C22: ='A01'!C$36 -> 1 | E22: Worksheet A01
B23: Upper | C23: ='A01'!C$37 -> 1 | E23: Worksheet A01
A24: Dermal permeability | B24: Kp
B25: Central | C25: ='B01'!$C$14 -> 0.0096 | D25: cm/hour
B26: Lower | C26: ='B01'!$C$15 -> 0.0028
B27: Upper | C27: ='B01'!$C$16 -> 0.032
A28: Absorbed Dose | B28: Dose | C28: Kp × Conc × T_hr × SA × TEF ÷ BW
B29: Central | C29: =C25*C17*C$10*C$8*C21/C$11 -> 1.7745e-07 | D29: mg/kg
B30: Lower | C30: =C26*C18*C$10*C$8*C22/C$11 -> 7.39375e-09 | D30: mg/kg
B31: Upper | C31: =C27*C19*C$10*C$8*C23/C$11 -> 6.76e-06 | D31: mg/kg

Sheet E01
A1: Summary of Worker Exposure Assessments
A2: Application Rate: | B2: ='A01'!ApRt_C -> 0.2 | C2: lb a.i./acre | F2: E01aV5-3Wrkr
A3: Scenario | B3: Receptor | C3: mg/kg/day or mg/kg/event | F3: Detail Worksheet
C4: Central | D4: Lower | E4: Upper
A5: Accidental/Incidental Exposures
A6: Contaminated Gloves, 1 min. | B6: Worker | C6: ='C02a'!Dose_C -> 0.0004608 | D6: ='C02a'!Dose_L -> 3.36e-05 | E6: ='C02a'!Dose_U -> 0.00192 | F6: C02a
A7: Contaminated Gloves, 1 hour | B7: Worker | C7: ='C02b'!Dose_C -> 0.027648 | D7: ='C02b'!Dose_L -> 0.002016 | E7: ='C02b'!Dose_U -> 0.1152 | F7: C02b
A8: Spill on Hands, 1 hour | B8: Worker | C8: ='C03a'!Dose_C -> 2.993253963e-05 | D8: ='C03a'!Dose_L -> 1.670157815e-06 | E8: ='C03a'!Dose_U -> 0.0001751452638 | F8: C03a
A9: Spill on lower legs, 1 hour | B9: Worker | C9: ='C03b'!Dose_C -> 7.376232981e-05 | D9: ='C03b'!Dose_L -> 4.115746045e-06 | E9: ='C03b'!Dose_U -> 0.0004316079716 | F9: C03b
A10: General Exposures
B11: Backpack Applications: | C11: ='C01a'!Dose_C -> 0.00875 | D11: ='C01a'!Dose_L -> 0.0006 | E11: ='C01a'!Dose_U -> 0.064 | F11: C01a
B12: Ground Broadcast Applications: | C12: ='C01b'!Dose_C -> 0.00448 | D12: ='C01b'!Dose_L -> 5.28e-05 | E12: ='C01b'!Dose_U -> 0.336 | F12: C01b
B13: Aerial Applications: | C13: ='C01c'!Dose_C -> 0.00392 | D13: ='C01c'!Dose_L -> 4.8e-05 | E13: ='C01c'!Dose_U -> 0.32 | F13: C01c

Sheet E02
A1: Summary of Worker Hazard Quotients (Toxicity)
A2: Application Rate: | B2: ='A01'!ApRt_C -> 0.2 | C2: lb a.i./acre | F2: E01aV5-3Wrkr
A3: Scenario | B3: Receptor | C3: Hazard Quotients | F3: Toxicity Value
C4: Central | D4: Lower | E4: Upper
A5: Accidental/Incidental Exposures
A6: Contaminated Gloves, 1 min. | B6: Worker | C6: ='C02a'!$C$24/$F$6 -> 0.01486451613 | D6: ='C02a'!$C$25/$F$6 -> 0.001083870968 | E6: ='C02a'!$C$26/$F$6 -> 0.06193548387 | F6: ='B02'!$E$4 -> 0.031
A7: Contaminated Gloves, 1 hour | B7: Worker | C7: ='C02b'!$C$24/$F$7 -> 0.8918709677 | D7: ='C02b'!$C$25/$F$7 -> 0.06503225806 | E7: ='C02b'!$C$26/$F$7 -> 3.716129032 | F7: ='B02'!$E$4 -> 0.031
A8: Spill on Hands, 1 hour | B8: Worker | C8: ='C03a'!$C$37/$F$8 -> 0.0009655657946 | D8: ='C03a'!$C$38/$F$8 -> 5.387605856e-05 | E8: ='C03a'!$C$39/$F$8 -> 0.005649847221 | F8: ='B02'!$E$4 -> 0.031
A9: Spill on lower legs, 1 hour | B9: Worker | C9: ='C03b'!$C$37/$F$9 -> 0.002379429994 | D9: ='C03b'!$C$38/$F$9 -> 0.0001327660015 | E9: ='C03b'!$C$39/$F$9 -> 0.01392283779 | F9: ='B02'!$E$4 -> 0.031
A10: General Exposures
B11: Backpack Applications: | C11: ='C01a'!$C$36/$F$11 -> 0.2822580645 | D11: ='C01a'!$C$37/$F$11 -> 0.01935483871 | E11: ='C01a'!$C$38/$F$11 -> 2.064516129 | F11: ='B02'!$E$5 -> 0.031
B12: Ground Broadcast Applications: | C12: ='C01b'!$C$36/$F$12 -> 0.144516129 | D12: ='C01b'!$C$37/$F$12 -> 0.001703225806 | E12: ='C01b'!$C$38/$F$12 -> 10.83870968 | F12: ='B02'!$E$5 -> 0.031
B13: Aerial Applications: | C13: ='C01c'!$C$36/$F$13 -> 0.1264516129 | D13: ='C01c'!$C$37/$F$13 -> 0.001548387097 | E13: ='C01c'!$C$38/$F$13 -> 10.32258065 | F13: ='B02'!$E$5 -> 0.031

Sheet E03
A1: Summary of Exposure Assessments for the General Public
A2: Application Rate: | B2: ='A01'!ApRt_C -> 0.2 | C2: lb a.i./acre | F2: E03aV6
A3: Scenario | B3: Receptor | C3: mg/kg/day or mg/kg/event | F3: Detail Worksheet
C4: Central | D4: Lower | E4: Upper | K4: Lower | L4: Central | M4: Upper | N4: Check
A5: Accidental Acute Exposures (dose in mg/kg/event)
A6: Direct Spray of Child, whole body | B6: Child | C6: =D01a!Dose_C -> 0.001130909862 | D6: =D01a!Dose_L -> 6.310182724e-05 | E6: =D01a!Dose_U -> 0.006617330457 | F6: D01a | J6: Spray: Child | K6: =IF(D6>0, D6, "") -> 6.310182724e-05 | L6: =IF(ISERROR(C6-K6), "", C6-K6) -> 0.001067808035 | M6: =IF(ISERROR(E6-C6), "", E6-C6) -> 0.005486420595 | N6: =E6-SUM(K6:M6) -> 0
A7: Direct Spray of Woman, feet and lower legs | B7: Adult Female | C7: =D01b!Dose_C -> 0.0001136111368 | D7: =D01b!Dose_L -> 6.339205771e-06 | E7: =D01b!Dose_U -> 0.0006647766199 | F7: D01b | J7: Spray: Woman | K7: =IF(D7>0, D7, "") -> 6.339205771e-06 | L7: =IF(ISERROR(C7-K7), "", C7-K7) -> 0.000107271931 | M7: =IF(ISERROR(E7-C7), "", E7-C7) -> 0.0005511654832 | N7: =E7-SUM(K7:M7) -> 0
A8: Water consumption (spill) | B8: Child | C8: ='D05'!Dose_C -> 1.052631579e-06 | D8: ='D05'!Dose_L -> 6.421052632e-07 | E8: ='D05'!Dose_U -> 1.578947368e-06 | F8: D05 | J8: Water: Child | K8: 6.421052632e-07 | L8: 4.105263158e-07 | M8: 5.263157895e-07 | N8: 0
A9: Fish consumption (spill) | B9: Adult Male | C9: =D08a!Dose_C -> 0.000192444 | D9: =D08a!Dose_L -> 0.000192444 | E9: =D08a!Dose_U -> 0.000192444 | F9: D08a | J9: Fish: General | K9: 0.000192444 | L9: 0 | M9: 0 | N9: 0
A10: Fish consumption (spill) | B10: Subsistence Populations | C10: =D08b!Dose_C -> 0.00093786 | D10: =D08b!Dose_L -> 0.00093786 | E10: =D08b!Dose_U -> 0.00093786 | F10: D08b | J10: Fish: Subsist | K10: 0.00093786 | L10: 0 | M10: 0 | N10: 0
A11: Non-Accidental Acute Exposures (dose in mg/kg/event)
A12: Vegetation Contact, shorts and T-shirt | B12: Adult Female | C12: ='D02'!Dose_C -> 0.000559352938 | D12: ='D02'!Dose_L -> 0.0001262953847 | E12: ='D02'!Dose_U -> 0.002479860222 | F12: D02 | J12: Contact: Female | K12: =IF(D12>0, D12, "") -> 0.0001262953847 | L12: =IF(ISERROR(C12-K12), "", C12-K12) -> 0.0004330575533 | M12: =IF(ISERROR(E12-C12), "", E12-C12) -> 0.001920507284 | N12: =E12-SUM(K12:M12) -> 0
A13: Contaminated Fruit | B13: Adult Female | C13: =D03a!Dose_C -> 0.002352 | D13: =D03a!Dose_L -> 0.0010752 | E13: =D03a!Dose_U -> 0.03732 | F13: D03a | J13: Fruit: Female | K13: 0.0010752 | L13: 0.0012768 | M13: 0.034968 | N13: 0
A14: Contaminated Vegetation | B14: Adult Female | C14: =D03b!Dose_C -> 0.0324 | D14: =D03b!Dose_L -> 0.00225 | E14: =D03b!Dose_U -> 0.27 | F14: D03b | J14: Veg: Female | K14: 0.00225 | L14: 0.03015 | M14: 0.2376 | N14: 0
A15: Swimming, one hour | B15: Adult Female | C15: ='D10'!Dose_C -> 1.7745e-07 | D15: ='D10'!Dose_L -> 7.39375e-09 | E15: ='D10'!Dose_U -> 6.76e-06 | F15: D10 | J15: Swim: Female | K15: 7.39375e-09 | L15: 1.7005625e-07 | M15: 6.58255e-06 | N15: 0
A16: Water consumption | B16: Child | C16: ='D06'!Dose_C -> 1.052631579e-06 | D16: ='D06'!Dose_L -> 4.586466165e-07 | E16: ='D06'!Dose_U -> 1.578947368e-06 | F16: D06 | J16: Water: Child | K16: 4.586466165e-07 | L16: 5.939849624e-07 | M16: 5.263157895e-07 | N16: 0
A17: Fish consumption | B17: Adult Male | C17: =D09c!Dose_C -> 0.000192444 | D17: =D09c!Dose_L -> 0.00013746 | E17: =D09c!Dose_U -> 0.000192444 | F17: D09c | J17: Fish: Male | K17: 0.00013746 | L17: 5.4984e-05 | M17: 0 | N17: 0
A18: Fish consumption | B18: Subsistence Populations | C18: =D09d!Dose_C -> 0.00093786 | D18: =D09d!Dose_L -> 0.0006699 | E18: =D09d!Dose_U -> 0.00093786 | F18: D09d | J18: Fish: Subsist | K18: 0.0006699 | L18: 0.00026796 | M18: 0 | N18: 0
A19: Chronic/Longer Term Exposures (dose in mg/kg/day)
A20: Contaminated Fruit | B20: Adult Female | C20: =D04a!Dose_C -> 0.000263881443 | D20: =D04a!Dose_L -> 3.447079351e-05 | E20: =D04a!Dose_U -> 0.007139192602 | F20: D04a | J20: Fruit: Female | K20: =IF(D20>0, D20, "") -> 3.447079351e-05 | L20: =IF(ISERROR(C20-K20), "", C20-K20) -> 0.0002294106495 | M20: =IF(ISERROR(E20-C20), "", E20-C20) -> 0.006875311159 | N20: =E20-SUM(K20:M20) -> 0
A21: Contaminated Vegetation | B21: Adult Female | C21: =D04b!Dose_C -> 0.006547473176 | D21: =D04b!Dose_L -> 8.656170245e-05 | E21: =D04b!Dose_U -> 0.09293780362 | F21: D04b | J21: Veg: Female | K21: 8.656170245e-05 | L21: 0.006460911473 | M21: 0.08639033045 | N21: 0
A22: Water consumption | B22: Adult Male | C22: ='D07'!Dose_C -> 3.714285714e-07 | D22: ='D07'!Dose_L -> 1.6e-08 | E22: ='D07'!Dose_U -> 4.8e-07 | F22: D07 | J22: Water: Male | K22: 1.6e-08 | L22: 3.554285714e-07 | M22: 1.085714286e-07 | N22: 0
A23: Fish consumption | B23: Adult Male | C23: =D09a!Dose_C -> 3.974285714e-06 | D23: =D09a!Dose_L -> 2.445714286e-07 | E23: =D09a!Dose_U -> 4.28e-06 | F23: D09a | J23: Fish: Male | K23: 2.445714286e-07 | L23: 3.729714286e-06 | M23: 3.057142857e-07 | N23: 0
A24: Fish consumption | B24: Subsistence Populations | C24: =D09b!Dose_C -> 3.219171429e-05 | D24: =D09b!Dose_L -> 1.981028571e-06 | E24: =D09b!Dose_U -> 3.4668e-05 | F24: D09b | J24: Fish: Subsist | K24: 1.981028571e-06 | L24: 3.021068571e-05 | M24: 2.476285714e-06 | N24: 0

Sheet E04
A1: Summary of Hazard Quotients (Toxicity) for the General Public
A2: Application Rate: | B2: ='A01'!ApRt_C -> 0.2 | C2: lb a.i./acre | F2: E03aV6
A3: Scenario | B3: Receptor | C3: Hazard Quotients | F3: Toxicity Value
C4: Central | D4: Lower | E4: Upper | K4: Lower | L4: Central | M4: Upper | N4: Check
A5: Accidental Acute Exposures (dose in mg/kg/event)
A6: Direct Spray of Child, whole body | B6: Child | C6: =D01a!$C$37/$F$6 -> 0.1130909862 | D6: =D01a!$C$38/$F$6 -> 0.006310182724 | E6: =D01a!$C$39/$F$6 -> 0.6617330457 | F6: ='B02'!$E$21 -> 0.01 | J6: Spray: Child | K6: =IF(D6>0, D6, "") -> 0.006310182724 | L6: =IF(ISERROR(C6-K6), "", C6-K6) -> 0.1067808035 | M6: =IF(ISERROR(E6-C6), "", E6-C6) -> 0.5486420595 | N6: =E6-SUM(K6:M6) -> 0
A7: Direct Spray of Woman, feet and lower legs | B7: Adult Female | C7: =D01b!$C$37/$F$7 -> 0.003664875379 | D7: =D01b!$C$38/$F$7 -> 0.0002044905087 | E7: =D01b!$C$39/$F$7 -> 0.0214444071 | F7: ='B02'!$E$4 -> 0.031 | J7: Spray: Woman | K7: =IF(D7>0, D7, "") -> 0.0002044905087 | L7: =IF(ISERROR(C7-K7), "", C7-K7) -> 0.003460384871 | M7: =IF(ISERROR(E7-C7), "", E7-C7) -> 0.01777953172 | N7: =E7-SUM(K7:M7) -> 0
A8: Water consumption (spill) | B8: Child | C8: ='D05'!$C$17/$F$8 -> 0.0001052631579 | D8: ='D05'!$C$18/$F$8 -> 6.421052632e-05 | E8: ='D05'!$C$19/$F$8 -> 0.0001578947368 | F8: ='B02'!$E$21 -> 0.01 | J8: Water: Child | K8: 6.421052632e-05 | L8: 4.105263158e-05 | M8: 5.263157895e-05 | N8: 0
A9: Fish consumption (spill) | B9: Adult Male | C9: =D08a!$C$31/$F$9 -> 0.006207870968 | D9: =D08a!$C$32/$F$9 -> 0.006207870968 | E9: =D08a!$C$33/$F$9 -> 0.006207870968 | F9: ='B02'!$E$4 -> 0.031 | J9: Fish: General | K9: 0.006207870968 | L9: 0 | M9: 0 | N9: 0
A10: Fish consumption (spill) | B10: Subsistence Populations | C10: =D08b!$C$31/$F$10 -> 0.03025354839 | D10: =D08b!$C$32/$F$10 -> 0.03025354839 | E10: =D08b!$C$33/$F$10 -> 0.03025354839 | F10: ='B02'!$E$4 -> 0.031 | J10: Fish: Subsist | K10: 0.03025354839 | L10: 0 | M10: 0 | N10: 0
A11: Non-Accidental Acute Exposures (dose in mg/kg/event)
A12: Vegetation Contact, shorts and T-shirt | B12: Adult Female | C12: ='D02'!$C$48/$F$12 -> 0.01804364316 | D12: ='D02'!$C$49/$F$12 -> 0.004074044667 | E12: ='D02'!$C$50/$F$12 -> 0.07999549103 | F12: ='B02'!$E$4 -> 0.031 | J12: Contact: Female | K12: =IF(D12>0, D12, "") -> 0.004074044667 | L12: =IF(ISERROR(C12-K12), "", C12-K12) -> 0.01396959849 | M12: =IF(ISERROR(E12-C12), "", E12-C12) -> 0.06195184787 | N12: =E12-SUM(K12:M12) -> 0
A13: Contaminated Fruit | B13: Adult Female | C13: =D03a!$C$19/$F$13 -> 0.07587096774 | D13: =D03a!$C$20/$F$13 -> 0.03468387097 | E13: =D03a!$C$21/$F$13 -> 1.203870968 | F13: ='B02'!$E$4 -> 0.031 | J13: Fruit: Female | K13: 0.03468387097 | L13: 0.04118709677 | M13: 1.128 | N13: 0
A14: Contaminated Vegetation | B14: Adult Female | C14: =D03b!$C$19/$F$14 -> 1.04516129 | D14: =D03b!$C$20/$F$14 -> 0.07258064516 | E14: =D03b!$C$21/$F$14 -> 8.709677419 | F14: ='B02'!$E$4 -> 0.031 | J14: Veg: Female | K14: 0.07258064516 | L14: 0.9725806452 | M14: 7.664516129 | N14: 0
A15: Swimming, one hour | B15: Adult Female | C15: ='D10'!$C$29/$F$15 -> 5.724193548e-06 | D15: ='D10'!$C$30/$F$15 -> 2.385080645e-07 | E15: ='D10'!$C$31/$F$15 -> 0.0002180645161 | F15: ='B02'!$E$4 -> 0.031 | J15: Swim: Female | K15: 2.385080645e-07 | L15: 5.485685484e-06 | M15: 0.0002123403226 | N15: 0
A16: Water consumption | B16: Child | C16: ='D06'!$C$17/$F$16 -> 0.0001052631579 | D16: ='D06'!$C$18/$F$16 -> 4.586466165e-05 | E16: ='D06'!$C$19/$F$16 -> 0.0001578947368 | F16: ='B02'!$E$21 -> 0.01 | J16: Water: Child | K16: 4.586466165e-05 | L16: 5.939849624e-05 | M16: 5.263157895e-05 | N16: 0
A17: Fish consumption | B17: Adult Male | C17: =D09c!$C$31/$F$17 -> 0.006207870968 | D17: =D09c!$C$32/$F$17 -> 0.004434193548 | E17: =D09c!$C$33/$F$17 -> 0.006207870968 | F17: ='B02'!$E$4 -> 0.031 | J17: Fish: Male | K17: 0.004434193548 | L17: 0.001773677419 | M17: 0 | N17: 0
A18: Fish consumption | B18: Subsistence Populations | C18: =D09d!$C$31/$F$18 -> 0.03025354839 | D18: =D09d!$C$32/$F$18 -> 0.02160967742 | E18: =D09d!$C$33/$F$18 -> 0.03025354839 | F18: ='B02'!$E$4 -> 0.031 | J18: Fish: Subsist | K18: 0.02160967742 | L18: 0.008643870968 | M18: 0 | N18: 0
A19: Chronic/Longer Term Exposures (dose in mg/kg/day)
A20: Contaminated Fruit | B20: Adult Female | C20: =D04a!$C$19/$F$20 -> 0.008512304613 | D20: =D04a!$C$20/$F$20 -> 0.001111961081 | E20: =D04a!$C$21/$F$20 -> 0.2302965356 | F20: ='B02'!$E$5 -> 0.031 | J20: Fruit: Female | K20: =IF(D20>0, D20, "") -> 0.001111961081 | L20: =IF(ISERROR(C20-K20), "", C20-K20) -> 0.007400343532 | M20: =IF(ISERROR(E20-C20), "", E20-C20) -> 0.221784231 | N20: =E20-SUM(K20:M20) -> 0
A21: Contaminated Vegetation | B21: Adult Female | C21: =D04b!$C$19/$F$21 -> 0.2112088121 | D21: =D04b!$C$20/$F$21 -> 0.002792312982 | E21: =D04b!$C$21/$F$21 -> 2.997993665 | F21: ='B02'!$E$5 -> 0.031 | J21: Veg: Female | K21: 0.002792312982 | L21: 0.2084164991 | M21: 2.786784853 | N21: 0
A22: Water consumption | B22: Adult Male | C22: ='D07'!$C$17/$F$22 -> 1.198156682e-05 | D22: ='D07'!$C$18/$F$22 -> 5.161290323e-07 | E22: ='D07'!$C$19/$F$22 -> 1.548387097e-05 | F22: ='B02'!$E$5 -> 0.031 | J22: Water: Male | K22: 5.161290323e-07 | L22: 1.146543779e-05 | M22: 3.502304147e-06 | N22: 0
A23: Fish consumption | B23: Adult Male | C23: =D09a!$C$31/$F$23 -> 0.000128202765 | D23: =D09a!$C$32/$F$23 -> 7.889400922e-06 | E23: =D09a!$C$33/$F$23 -> 0.0001380645161 | F23: ='B02'!$E$5 -> 0.031 | J23: Fish: Male | K23: 7.889400922e-06 | L23: 0.0001203133641 | M23: 9.861751152e-06 | N23: 0
A24: Fish consumption | B24: Subsistence Populations | C24: =D09b!$C$31/$F$24 -> 0.001038442396 | D24: =D09b!$C$32/$F$24 -> 6.390414747e-05 | E24: =D09b!$C$33/$F$24 -> 0.001118322581 | F24: ='B02'!$E$5 -> 0.031 | J24: Fish: Subsist | K24: 6.390414747e-05 | L24: 0.0009745382488 | M24: 7.988018433e-05 | N24: 0

Sheet F01a
A1: Direct spray of Mammal, small assuming first-order absorption kinetics with spray of 0.5 of the body surface
A2: Short Title | B2: Direct spray, first-order absorption | E2: DrmFOA_Allo
A3: Receptor | B3: Mammal, small
A4: Duration | B4: Acute
A5: Parameter/Assumption | B5: Code / Range | C5: Equation/ Value | D5: Units | E5: Reference/Designation
A6: Application rate, lb/acre | B6: ApRt | C6: ='A01'!ApRt_C -> 0.2 | D6: lb/acre | E6: Worksheet A01
A7: Duration of Exposure | B7: T | C7: 24 | D7: hours | E7: Scenario parameter
A8: Body weight | B8: BW | C8: =A02b!$C$71 -> 0.02 | D8: kg | E8: Default
A9: Allometric coefficients for surface area
B10: alpha | C10: =A02b!$C$77 -> 0.11 | E10: U.S. EPA/ORD 1993
B11: beta | C11: =A02b!$C$78 -> 0.65 | E11: U.S. EPA/ORD 1993
A12: Surface Area | C12: =C10 * C8^C11 -> 0.008650917739 | D12: meters
B13: SA | C13: =C12*10000 -> 86.50917739 | D13: cm2 | E13: 10,000 cm2/m2
A14: Conversion Factor for lbs/acre to mg/cm2 | B14: CnvF | C14: 0.01121 | D14: mg/cm2/lb/acre
A15: Application rate, mg/cm2 | B15: ApRmgcm | C15: ApRlb/a × CnvF
C16: =C6*C$14 -> 0.002242 | D16: lb/acre | E16: Eq
A17: First-order dermal absorption rates | B17: ka
B18: Central | C18: ='B01'!$C$11 -> 0.0013 | D18: hour-1
B19: Lower | C19: ='B01'!$C$12 -> 0.00029
B20: Upper | C20: ='B01'!$C$13 -> 0.0061
A21: Proportion of body surface sprayed | B21: PrpSA | C21: 0.5 | D21: unitless | E21: Scenario parameter
A22: Toxic Equivalency Factor for formulation: (See risk assessment if this has a value other than 1.) | B22: TEF
B23: Central | C23: ='A01'!C$35 -> 1 | D23: Unitless | E23: Worksheet A01
B24: Lower | C24: ='A01'!C$36 -> 1 | E24: Worksheet A01
B25: Upper | C25: ='A01'!C$37 -> 1 | E25: Worksheet A01
A26: Amount Deposited on Skin | B26: Amnt | C26: ApRmgcm × SA × PrpSAx TEF
B27: Central | C27: =C$13*C$16*C$21*C23 -> 0.09697678785 | D27: mg | E27: Eq
B28: Lower | C28: =C$13*C$16*C$21*C24 -> 0.09697678785 | E28: Eq
B29: Upper | C29: =C$13*C$16*C$21*C25 -> 0.09697678785 | E29: Eq
A30: Skin Loading | B30: Loading
B31: Central | C31: =C27/C$13 -> 0.001121 | D31: mg/cm2 | E31: Eq
B32: Lower | C32: =C28/C$13 -> 0.001121 | E32: Eq
B33: Upper | C33: =C29/C$13 -> 0.001121 | E33: Eq
A35: Proportion absorbed over period T | B35: Prop | C35: 1-exp(-ka T)
B36: Central | C36: =1-EXP(-C18 *C$7) -> 0.03071830265 | D36: hour-1 | E36: Eq
B37: Lower | C37: =1-EXP(-C19 *C$7) -> 0.006935835295 | E37: Eq
B38: Upper | C38: =1-EXP(-C20 *C$7) -> 0.1361878908 | E38: Eq
A39: Absorbed Dose | B39: Dose | C39: Amnt × Prop ÷ BW
B40: Central | C40: =C27*C36/C$8 -> 0.148948116 | D40: mg/kg bw | E40: Eq
B41: Lower | C41: =C28*C37/C$8 -> 0.0336307514 | E41: Eq
B42: Upper | C42: =C29*C38/C$8 -> 0.6603532096 | E42: Eq

Sheet F01b
A1: Direct spray of Mammal, small assuming 100% absorption
A2: Short Title | B2: Direct spray, 100% absorption | E2: Drm100_Allo
A3: Receptor | B3: Mammal, small
A4: Duration | B4: Acute
A5: Parameter/Assumption | B5: Code / Range | C5: Equation/ Value | D5: Units | E5: Reference/Designation
A6: Application rate, lb/acre | B6: ApRlb/ac | C6: ='A01'!ApRt_C -> 0.2 | D6: lb/acre | E6: Worksheet A01
A7: Conversion Factor for lbs/acre to mg/cm2 | B7: CnvF | C7: 0.01121 | D7: mg/cm2/lb/acre
A8: Application rate, mg/cm2 | B8: ApRmgcm | C8: ApRlb/a × CnvF
C9: =C6*C7 -> 0.002242 | D9: lb/acre | E9: Eq
A10: Body weight | B10: BW | C10: =A02b!$C$71 -> 0.02 | D10: kg | E10: Default
A11: Allometric coefficients for surface area
B12: alpha | C12: =A02b!$C$77 -> 0.11 | E12: U.S. EPA/ORD 1993
B13: beta | C13: =A02b!$C$78 -> 0.65 | E13: U.S. EPA/ORD 1993
A14: Surface Area | C14: =C12 * C10^C13 -> 0.008650917739 | D14: meters
B15: SA | C15: =C14*10000 -> 86.50917739 | D15: cm2[10000 cm2/m2] | E15: Eq
A16: Proportion of body surface sprayed | B16: PrpSA
B17: Central | C17: 0.5 | D17: unitless | E17: Scenario parameter
B18: Lower | C18: 0.25 | E18: Scenario parameter
B19: Upper | C19: 1 | E19: Scenario parameter
A20: Toxic Equivalency Factor for formulation: (See risk assessment if this has a value other than 1.) | B20: TEF
B21: Central | C21: ='A01'!C$35 -> 1 | D21: Unitless | E21: Worksheet A01
B22: Lower | C22: ='A01'!C$36 -> 1 | E22: Worksheet A01
B23: Upper | C23: ='A01'!C$37 -> 1 | E23: Worksheet A01
A24: Amount Deposited on Skin | B24: Amnt | C24: ApRmgcm× SA × PrpSA× TEF
B25: Central | C25: =C$9*C$15*C17*C21 -> 0.09697678785 | D25: mg | E25: Eq
B26: Lower | C26: =C$9*C$15*C18*C22 -> 0.04848839392 | E26: Eq
B27: Upper | C27: 0.1939535757 | E27: Eq
A28: Absorbed Dose | B28: Dose | C28: Amnt ÷ BW
B29: Central | C29: =C25/C$10 -> 4.848839392 | D29: mg/kg bw | E29: Eq
B30: Lower | C30: =C26/C$10 -> 2.424419696 | E30: Eq
B31: Upper | C31: =C27/C$10 -> 9.697678785 | E31: Eq

Sheet F02a
A1: Consumption of contaminated water by Mammal, small, Accidental Spill
A2: Short Title | B2: Accidental Spill | E2: WatAlloV6
A3: Receptor | B3: Mammal, small
A4: Duration | B4: Acute | E4: Scenario parameter
A5: Parameter/Assumption | B5: Code / Range | C5: Equation/ Value | D5: Units | E5: Reference/Designation
A6: Concentration in water | B6: ConcWat
B7: Central | C7: =B04b!Acute_C -> 1.4e-05 | D7: mg/L | E7: ='B04b'!Acute_C
B8: Lower | C8: =B04b!Acute_L -> 1.4e-05 | E8: ='B04b'!Acute_L
B9: Upper | C9: =B04b!Acute_U -> 1.4e-05 | E9: ='B04b'!Acute_U
A10: Receptor
A11: Body weight | B11: BW | C11: =A02b!$C$71 -> 0.02 | D11: kg | E11: Default
A12: Allometric coefficients forwater consumption per day in liters and BW in kilograms
B13: alpha | C13: =A02b!$C$79 -> 0.099 | E13: U.S. EPA/ORD 1993
B14: beta | C14: =A02b!$C$80 -> 0.9 | E14: U.S. EPA/ORD 1993
A15: Amount of water consumed per day | C15: Amnt = alpha BW beta
B16: Amnt | C16: =C13*(C11^C14) -> 0.002927940121 | D16: liters | E16: Eq
A17: Absorbed Dose | B17: Dose | C17: ConcWat × Amnt ÷ BW
B18: Central | C18: =C7*C$16/C$11 -> 2.049558084e-06 | D18: mg/kg | E18: Eq
B19: Lower | C19: =C8*C$16/C$11 -> 2.049558084e-06 | D19: mg/kg | E19: Eq
B20: Upper | C20: =C9*C$16/C$11 -> 2.049558084e-06 | D20: mg/kg | E20: Eq

Sheet F02b
A1: Consumption of contaminated water by Mammal, 400 g, Accidental Spill
A2: Short Title | B2: Accidental Spill | E2: WatAlloV6
A3: Receptor | B3: Mammal, 400 g
A4: Duration | B4: Acute | E4: Scenario parameter
A5: Parameter/Assumption | B5: Code / Range | C5: Equation/ Value | D5: Units | E5: Reference/Designation
A6: Concentration in water | B6: ConcWat
B7: Central | C7: =B04b!Acute_C -> 1.4e-05 | D7: mg/L | E7: ='B04b'!Acute_C
B8: Lower | C8: =B04b!Acute_L -> 1.4e-05 | E8: ='B04b'!Acute_L
B9: Upper | C9: =B04b!Acute_U -> 1.4e-05 | E9: ='B04b'!Acute_U
A10: Receptor
A11: Body weight | B11: BW | C11: =A02b!$C$40 -> 0.4 | D11: kg | E11: Default
A12: Allometric coefficients forwater consumption per day in liters and BW in kilograms
B13: alpha | C13: =A02b!$C$45 -> 0.099 | E13: U.S. EPA/ORD 1993
B14: beta | C14: =A02b!$C$46 -> 0.9 | E14: U.S. EPA/ORD 1993
A15: Amount of water consumed per day | C15: Amnt = alpha BW beta
B16: Amnt | C16: =C13*(C11^C14) -> 0.04339994576 | D16: liters | E16: Eq
A17: Absorbed Dose | B17: Dose | C17: ConcWat × Amnt ÷ BW
B18: Central | C18: =C7*C$16/C$11 -> 1.518998102e-06 | D18: mg/kg | E18: Eq
B19: Lower | C19: =C8*C$16/C$11 -> 1.518998102e-06 | D19: mg/kg | E19: Eq
B20: Upper | C20: =C9*C$16/C$11 -> 1.518998102e-06 | D20: mg/kg | E20: Eq

Sheet F02c
A1: Consumption of contaminated water by Mammal, carnivorous, Accidental Spill
A2: Short Title | B2: Accidental Spill | E2: WatAlloV6
A3: Receptor | B3: Mammal, carnivorous
A4: Duration | B4: Acute | E4: Scenario parameter
A5: Parameter/Assumption | B5: Code / Range | C5: Equation/ Value | D5: Units | E5: Reference/Designation
A6: Concentration in water | B6: ConcWat
B7: Central | C7: =B04b!Acute_C -> 1.4e-05 | D7: mg/L | E7: ='B04b'!Acute_C
B8: Lower | C8: =B04b!Acute_L -> 1.4e-05 | E8: ='B04b'!Acute_L
B9: Upper | C9: =B04b!Acute_U -> 1.4e-05 | E9: ='B04b'!Acute_U
A10: Receptor
A11: Body weight | B11: BW | C11: =A02b!$C$47 -> 5 | D11: kg | E11: U.S. EPA/ORD 1993
A12: Allometric coefficients forwater consumption per day in liters and BW in kilograms
B13: alpha | C13: =A02b!$C$50 -> 0.099 | E13: U.S. EPA/ORD 1993
B14: beta | C14: =A02b!$C$51 -> 0.9 | E14: U.S. EPA/ORD 1993
A15: Amount of water consumed per day | C15: Amnt = alpha BW beta
B16: Amnt | C16: =C13*(C11^C14) -> 0.4214132616 | D16: liters | E16: Eq
A17: Absorbed Dose | B17: Dose | C17: ConcWat × Amnt ÷ BW
B18: Central | C18: =C7*C$16/C$11 -> 1.179957133e-06 | D18: mg/kg | E18: Eq
B19: Lower | C19: =C8*C$16/C$11 -> 1.179957133e-06 | D19: mg/kg | E19: Eq
B20: Upper | C20: =C9*C$16/C$11 -> 1.179957133e-06 | D20: mg/kg | E20: Eq

Sheet F02d
A1: Consumption of contaminated water by Mammal, large, Accidental Spill
A2: Short Title | B2: Accidental Spill | E2: WatAlloV6
A3: Receptor | B3: Mammal, large
A4: Duration | B4: Acute | E4: Scenario parameter
A5: Parameter/Assumption | B5: Code / Range | C5: Equation/ Value | D5: Units | E5: Reference/Designation
A6: Concentration in water | B6: ConcWat
B7: Central | C7: =B04b!Acute_C -> 1.4e-05 | D7: mg/L | E7: ='B04b'!Acute_C
B8: Lower | C8: =B04b!Acute_L -> 1.4e-05 | E8: ='B04b'!Acute_L
B9: Upper | C9: =B04b!Acute_U -> 1.4e-05 | E9: ='B04b'!Acute_U
A10: Receptor
A11: Body weight | B11: BW | C11: =A02b!$C$61 -> 70 | D11: kg | E11: Default
A12: Allometric coefficients forwater consumption per day in liters and BW in kilograms
B13: alpha | C13: =A02b!$C$64 -> 0.099 | E13: U.S. EPA/ORD 1993
B14: beta | C14: =A02b!$C$65 -> 0.9 | E14: U.S. EPA/ORD 1993
A15: Amount of water consumed per day | C15: Amnt = alpha BW beta
B16: Amnt | C16: =C13*(C11^C14) -> 4.531306412 | D16: liters | E16: Eq
A17: Absorbed Dose | B17: Dose | C17: ConcWat × Amnt ÷ BW
B18: Central | C18: =C7*C$16/C$11 -> 9.062612823e-07 | D18: mg/kg | E18: Eq
B19: Lower | C19: =C8*C$16/C$11 -> 9.062612823e-07 | D19: mg/kg | E19: Eq
B20: Upper | C20: =C9*C$16/C$11 -> 9.062612823e-07 | D20: mg/kg | E20: Eq

Sheet F02e
A1: Consumption of contaminated water by Bird, small, Accidental Spill
A2: Short Title | B2: Accidental Spill | E2: WatAlloV6
A3: Receptor | B3: Bird, small
A4: Duration | B4: Acute | E4: Scenario parameter
A5: Parameter/Assumption | B5: Code / Range | C5: Equation/ Value | D5: Units | E5: Reference/Designation
A6: Concentration in water | B6: ConcWat
B7: Central | C7: =B04b!Acute_C -> 1.4e-05 | D7: mg/L | E7: ='B04b'!Acute_C
B8: Lower | C8: =B04b!Acute_L -> 1.4e-05 | E8: ='B04b'!Acute_L
B9: Upper | C9: =B04b!Acute_U -> 1.4e-05 | E9: ='B04b'!Acute_U
A10: Receptor
A11: Body weight | B11: BW | C11: =A02b!$C$31 -> 0.01 | D11: kg | E11: Default
A12: Allometric coefficients forwater consumption per day in liters and BW in kilograms
B13: alpha | C13: =A02b!$C$34 -> 0.059 | E13: U.S. EPA/ORD 1993
B14: beta | C14: =A02b!$C$35 -> 0.67 | E14: U.S. EPA/ORD 1993
A15: Amount of water consumed per day | C15: Amnt = alpha BW beta
B16: Amnt | C16: =C13*(C11^C14) -> 0.002696820319 | D16: liters | E16: Eq
A17: Absorbed Dose | B17: Dose | C17: ConcWat × Amnt ÷ BW
B18: Central | C18: =C7*C$16/C$11 -> 3.775548446e-06 | D18: mg/kg | E18: Eq
B19: Lower | C19: =C8*C$16/C$11 -> 3.775548446e-06 | D19: mg/kg | E19: Eq
B20: Upper | C20: =C9*C$16/C$11 -> 3.775548446e-06 | D20: mg/kg | E20: Eq

Sheet F02f
A1: Consumption of contaminated water by Bird, large, Accidental Spill
A2: Short Title | B2: Accidental Spill | E2: WatAlloV6
A3: Receptor | B3: Bird, large
A4: Duration | B4: Acute | E4: Scenario parameter
A5: Parameter/Assumption | B5: Code / Range | C5: Equation/ Value | D5: Units | E5: Reference/Designation
A6: Concentration in water | B6: ConcWat
B7: Central | C7: =B04b!Acute_C -> 1.4e-05 | D7: mg/L | E7: ='B04b'!Acute_C
B8: Lower | C8: =B04b!Acute_L -> 1.4e-05 | E8: ='B04b'!Acute_L
B9: Upper | C9: =B04b!Acute_U -> 1.4e-05 | E9: ='B04b'!Acute_U
A10: Receptor
A11: Body weight | B11: BW | C11: =A02b!$C$15 -> 4 | D11: kg | E11: Default
A12: Allometric coefficients forwater consumption per day in liters and BW in kilograms
B13: alpha | C13: =A02b!$C$18 -> 0.059 | E13: U.S. EPA/ORD 1993
B14: beta | C14: =A02b!$C$19 -> 0.67 | E14: U.S. EPA/ORD 1993
A15: Amount of water consumed per day | C15: Amnt = alpha BW beta
B16: Amnt | C16: =C13*(C11^C14) -> 0.1493592781 | D16: liters | E16: Eq
A17: Absorbed Dose | B17: Dose | C17: ConcWat × Amnt ÷ BW
B18: Central | C18: =C7*C$16/C$11 -> 5.227574733e-07 | D18: mg/kg | E18: Eq
B19: Lower | C19: =C8*C$16/C$11 -> 5.227574733e-07 | D19: mg/kg | E19: Eq
B20: Upper | C20: =C9*C$16/C$11 -> 5.227574733e-07 | D20: mg/kg | E20: Eq

Sheet F03a
A1: Acute scenario for the consumption of Contaminated Fish (Accidental Spill) by Mammal, large carnivorous
A2: Short Title | B2: Fish consumption, accidental spill | E2: FishKcalV6
A3: Predator | B3: Mammal, large carnivorous
A4: Food Item (Prey) | B4: Fish
A5: Duration | B5: Acute | E5: Scenario parameter
A6: Parameter/Assumption | B6: Code / Range | C6: Equation/ Value | D6: Units | E6: Reference/Designation
A7: Water
A8: Concentration in water | B8: ConcWat
B9: Central | C9: =B04b!Acute_C -> 1.4e-05 | D9: mg/L | E9: ='B04b'!Acute_C
B10: Lower | C10: =B04b!Acute_L -> 1.4e-05 | E10: ='B04b'!Acute_L
B11: Upper | C11: =B04b!Acute_U -> 1.4e-05 | E11: ='B04b'!Acute_U
A12: Fish
A13: Bioconcentration factor | B13: BCF
B14: Central | C14: ='B01'!$C$6 -> 6090 | D14: L/kg
B15: Lower | C15: ='B01'!$C$6 -> 6090
B16: Upper | C16: ='B01'!$C$6 -> 6090
A17: Concentration in fish | B17: ConcFish | C17: ConcWat × BCF
B18: Central | C18: =C9*C14 -> 0.08526 | D18: mg/kg | E18: Eq
B19: Lower | C19: =C10*C15 -> 0.08526 | E19: Eq
B20: Upper | C20: =C11*C16 -> 0.08526 | E20: Eq
A21: Receptor
A22: Body weight | B22: BW | C22: =A02b!$C$52 -> 70 | D22: kg | E22: Reid 2006
A23: Allometric coefficients for caloric requirement per day in kilocalories and BW in grams
B24: alpha | C24: =A02b!$C$53 -> 0.6167 | E24: U.S. EPA/ORD 1993
B25: beta | C25: =A02b!$C$54 -> 0.862 | E25: U.S. EPA/ORD 1993
A26: Caloric requirement per day | B26: KR | C26: =C24*(C22*1000)^C25 -> 9258.666883 | D26: kcal/day | E26: Eq
A27: Caloric content of commodity (dry weight) | B27: KCD | C27: ='A03'!$E$59 -> 4.47 | D27: kcal/gdw [Note 1] | E27: U.S. EPA/ORD 1993
A28: Food consumed per day (dry weight) | B28: AmntDry | C28: = KR ÷ KCD
C29: =C26/C27 -> 2071.29013 | D29: gdry/day | E29: Eq
A30: Water content of vegetation as a proportion | B30: PropWater | C30: ='A03'!$E$60 -> 0.7 | D30: gwater/gfood | E30: Ali et al. 2005
A31: Dry weight content of vegetation as a proportion | B31: PropDry | C31: = 1-PropWater
C32: =1-C30 -> 0.3 | D32: gdry/gfood | E32: Eq
A33: Amount of fish consumed per day, wet weight | B33: AmntFish | C33: = (AmntDry ÷ PropDry) ÷ (1000g/kg)
B34: Central | C34: =(C29/C32)/1000 -> 6.904300435 | D34: kgfood/day | E34: Eq
B35: Lower | C35: =C34*0.3 -> 2.07129013 | D35: Note 1 | E35: Eq
B36: Upper | C36: =C34*1.7 -> 11.73731074 | D36: Note 1 | E36: Eq
A37: Proportion of diet that is contaminated | B37: Prop
B38: Central | C38: 0.3 | D38: Unitless | E38: Scenario parameter
B39: Lower | C39: 0.1 | E39: Scenario parameter
B40: Upper | C40: 1 | E40: Scenario parameter
A41: Dose
A42: Toxic Equivalency Factor for formulation: (See risk assessment if this has a value other than 1.) | B42: TEF
B43: Central | C43: ='A01'!C$35 -> 1 | D43: Unitless | E43: Worksheet A01
B44: Lower | C44: ='A01'!C$36 -> 1 | D44: Note 2 | E44: Worksheet A01
B45: Upper | C45: ='A01'!C$37 -> 1 | D45: Note 2 | E45: Worksheet A01
A46: Dose | B46: Dose | C46: = ConcFish × AmntFish × Prop ÷ BW
B47: Central | C47: =C18*C34*C38/C$22 -> 0.002522831379 | D47: mg/kg | E47: Eq
B48: Lower | C48: =C19*C35*C39/C$22 -> 0.0002522831379 | D48: mg/kg | E48: Eq
B49: Upper | C49: 0.01429604448 | D49: mg/kg | E49: Eq
E50: FishKcalV6

Sheet F03b
A1: Acute scenario for the consumption of Contaminated Fish (Accidental Spill) by Mammal, carnivorous
A2: Short Title | B2: Fish consumption, accidental spill | E2: FishKcalV6
A3: Predator | B3: Mammal, carnivorous
A4: Food Item (Prey) | B4: Fish
A5: Duration | B5: Acute | E5: Scenario parameter
A6: Parameter/Assumption | B6: Code / Range | C6: Equation/ Value | D6: Units | E6: Reference/Designation
A7: Water
A8: Concentration in water | B8: ConcWat
B9: Central | C9: =B04b!Acute_C -> 1.4e-05 | D9: mg/L | E9: ='B04b'!Acute_C
B10: Lower | C10: =B04b!Acute_L -> 1.4e-05 | E10: ='B04b'!Acute_L
B11: Upper | C11: =B04b!Acute_U -> 1.4e-05 | E11: ='B04b'!Acute_U
A12: Fish
A13: Bioconcentration factor | B13: BCF
B14: Central | C14: ='B01'!$C$6 -> 6090 | D14: L/kg
B15: Lower | C15: ='B01'!$C$6 -> 6090
B16: Upper | C16: ='B01'!$C$6 -> 6090
A17: Concentration in fish | B17: ConcFish | C17: ConcWat × BCF
B18: Central | C18: =C9*C14 -> 0.08526 | D18: mg/kg | E18: Eq
B19: Lower | C19: =C10*C15 -> 0.08526 | E19: Eq
B20: Upper | C20: =C11*C16 -> 0.08526 | E20: Eq
A21: Receptor
A22: Body weight | B22: BW | C22: =A02b!$C$47 -> 5 | D22: kg | E22: U.S. EPA/ORD 1993
A23: Allometric coefficients for caloric requirement per day in kilocalories and BW in grams
B24: alpha | C24: =A02b!$C$48 -> 0.6167 | E24: U.S. EPA/ORD 1993
B25: beta | C25: =A02b!$C$49 -> 0.862 | E25: U.S. EPA/ORD 1993
A26: Caloric requirement per day | B26: KR | C26: =C24*(C22*1000)^C25 -> 951.8885266 | D26: kcal/day | E26: Eq
A27: Caloric content of commodity (dry weight) | B27: KCD | C27: ='A03'!$E$59 -> 4.47 | D27: kcal/gdw [Note 1] | E27: U.S. EPA/ORD 1993
A28: Food consumed per day (dry weight) | B28: AmntDry | C28: = KR ÷ KCD
C29: =C26/C27 -> 212.9504534 | D29: gdry/day | E29: Eq
A30: Water content of vegetation as a proportion | B30: PropWater | C30: ='A03'!$E$60 -> 0.7 | D30: gwater/gfood | E30: Ali et al. 2005
A31: Dry weight content of vegetation as a proportion | B31: PropDry | C31: = 1-PropWater
C32: =1-C30 -> 0.3 | D32: gdry/gfood | E32: Eq
A33: Amount of fish consumed per day, wet weight | B33: AmntFish | C33: = (AmntDry ÷ PropDry) ÷ (1000g/kg)
B34: Central | C34: =(C29/C32)/1000 -> 0.7098348446 | D34: kgfood/day | E34: Eq
B35: Lower | C35: =C34*0.3 -> 0.2129504534 | D35: Note 1 | E35: Eq
B36: Upper | C36: =C34*1.7 -> 1.206719236 | D36: Note 1 | E36: Eq
A37: Proportion of diet that is contaminated | B37: Prop
B38: Central | C38: 0.3 | D38: Unitless | E38: Scenario parameter
B39: Lower | C39: 0.1 | E39: Scenario parameter
B40: Upper | C40: 1 | E40: Scenario parameter
A41: Dose
A42: Toxic Equivalency Factor for formulation: (See risk assessment if this has a value other than 1.) | B42: TEF
B43: Central | C43: ='A01'!C$35 -> 1 | D43: Unitless | E43: Worksheet A01
B44: Lower | C44: ='A01'!C$36 -> 1 | D44: Note 2 | E44: Worksheet A01
B45: Upper | C45: ='A01'!C$37 -> 1 | D45: Note 2 | E45: Worksheet A01
A46: Dose | B46: Dose | C46: = ConcFish × AmntFish × Prop ÷ BW
B47: Central | C47: =C18*C34*C38/C$22 -> 0.003631231131 | D47: mg/kg | E47: Eq
B48: Lower | C48: =C19*C35*C39/C$22 -> 0.0003631231131 | D48: mg/kg | E48: Eq
B49: Upper | C49: 0.02057697641 | D49: mg/kg | E49: Eq
E50: FishKcalV6

Sheet F03c
A1: Acute scenario for the consumption of Contaminated Fish (Accidental Spill) by Bird, piscivorous
A2: Short Title | B2: Fish consumption, accidental spill | E2: FishKcalV6
A3: Predator | B3: Bird, piscivorous
A4: Food Item (Prey) | B4: Fish
A5: Duration | B5: Acute | E5: Scenario parameter
A6: Parameter/Assumption | B6: Code / Range | C6: Equation/ Value | D6: Units | E6: Reference/Designation
A7: Water
A8: Concentration in water | B8: ConcWat
B9: Central | C9: =B04b!Acute_C -> 1.4e-05 | D9: mg/L | E9: ='B04b'!Acute_C
B10: Lower | C10: =B04b!Acute_L -> 1.4e-05 | E10: ='B04b'!Acute_L
B11: Upper | C11: =B04b!Acute_U -> 1.4e-05 | E11: ='B04b'!Acute_U
A12: Fish
A13: Bioconcentration factor | B13: BCF
B14: Central | C14: ='B01'!$C$6 -> 6090 | D14: L/kg
B15: Lower | C15: ='B01'!$C$6 -> 6090
B16: Upper | C16: ='B01'!$C$6 -> 6090
A17: Concentration in fish | B17: ConcFish | C17: ConcWat × BCF
B18: Central | C18: =C9*C14 -> 0.08526 | D18: mg/kg | E18: Eq
B19: Lower | C19: =C10*C15 -> 0.08526 | E19: Eq
B20: Upper | C20: =C11*C16 -> 0.08526 | E20: Eq
A21: Receptor
A22: Body weight | B22: BW | C22: =A02b!$C$24 -> 2.4 | D22: kg | E22: Sibley 2000
A23: Allometric coefficients for caloric requirement per day in kilocalories and BW in grams
B24: alpha | C24: =A02b!$C$27 -> 1.916 | E24: U.S. EPA/ORD 1993
B25: beta | C25: =A02b!$C$28 -> 0.704 | E25: U.S. EPA/ORD 1993
A26: Caloric requirement per day | B26: KR | C26: =C24*(C22*1000)^C25 -> 459.2659192 | D26: kcal/day | E26: Eq
A27: Caloric content of commodity (dry weight) | B27: KCD | C27: ='A03'!$E$36 -> 3.87 | D27: kcal/gdw [Note 1] | E27: U.S. EPA/ORD 1993
A28: Food consumed per day (dry weight) | B28: AmntDry | C28: = KR ÷ KCD
C29: =C26/C27 -> 118.6733641 | D29: gdry/day | E29: Eq
A30: Water content of vegetation as a proportion | B30: PropWater | C30: ='A03'!$E$37 -> 0.7 | D30: gwater/gfood | E30: Ali et al. 2005
A31: Dry weight content of vegetation as a proportion | B31: PropDry | C31: = 1-PropWater
C32: =1-C30 -> 0.3 | D32: gdry/gfood | E32: Eq
A33: Amount of fish consumed per day, wet weight | B33: AmntFish | C33: = (AmntDry ÷ PropDry) ÷ (1000g/kg)
B34: Central | C34: =(C29/C32)/1000 -> 0.3955778805 | D34: kgfood/day | E34: Eq
B35: Lower | C35: =C34*0.3 -> 0.1186733641 | D35: Note 1 | E35: Eq
B36: Upper | C36: =C34*1.7 -> 0.6724823968 | D36: Note 1 | E36: Eq
A37: Proportion of diet that is contaminated | B37: Prop
B38: Central | C38: 0.3 | D38: Unitless | E38: Scenario parameter
B39: Lower | C39: 0.1 | E39: Scenario parameter
B40: Upper | C40: 1 | E40: Scenario parameter
A41: Dose
A42: Toxic Equivalency Factor for formulation: (See risk assessment if this has a value other than 1.) | B42: TEF
B43: Central | C43: ='A01'!C$35 -> 1 | D43: Unitless | E43: Worksheet A01
B44: Lower | C44: ='A01'!C$36 -> 1 | D44: Note 2 | E44: Worksheet A01
B45: Upper | C45: ='A01'!C$37 -> 1 | D45: Note 2 | E45: Worksheet A01
A46: Dose | B46: Dose | C46: = ConcFish × AmntFish × Prop ÷ BW
B47: Central | C47: =C18*C34*C38/C$22 -> 0.004215871261 | D47: mg/kg | E47: Eq
B48: Lower | C48: =C19*C35*C39/C$22 -> 0.0004215871261 | D48: mg/kg | E48: Eq
B49: Upper | C49: 0.02388993715 | D49: mg/kg | E49: Eq
E50: FishKcalV6

Sheet F04a
A1: Consumption of Fruit by a Mammal, small after Acute exposure.
A2: Short Title | B2: Fruit | E2: FdKcalV6
A3: Receptor | B3: Mammal, small
A4: Duration | B4: Acute | E4: Scenario parameter
A5: Material consumed | B5: Fruit
A6: Parameter/Assumption | B6: Code / Range | C6: Equation/ Value | D6: Units | E6: Reference/Designation
A7: Commodity
A8: Concentration on consumed commodity | B8: Conc
B9: Central | C9: =B05a!Acute_C -> 1.4 | D9: mg/kg food wet weight | E9: ='B05a'!Acute_C
B10: Lower | C10: =B05a!Acute_L -> 0.64 | E10: ='B05a'!Acute_L
B11: Upper | C11: =B05a!Acute_U -> 3 | E11: ='B05a'!Acute_U
A12: Receptor
A13: Body weight | B13: BW | C13: =A02b!$C$71 -> 0.02 | D13: kg | E13: Default
A14: Allometric coefficients for caloric requirement per day in kilocalories and BW in grams
B15: alpha | C15: =A02b!$C$75 -> 2.514 | E15: U.S. EPA/ORD 1993
B16: beta | C16: =A02b!$C$76 -> 0.507 | E16: U.S. EPA/ORD 1993
A17: Caloric requirement per day | B17: KR | C17: = alpha x (BW x 1kg/1000g)beta
C18: =C15*((C13*1000)^C16) -> 11.48120526 | D18: kcal/day | E18: Eq
A19: Caloric content of commodity (dry weight) | B19: KCD | C19: ='A03'!$E$61 -> 1.1 | D19: kcal/gdw [Note 1] | E19: U.S. EPA/ORD 1993
A20: Food consumed per day (dry weight) | B20: AmntDry | C20: = KR ÷ KCD
C21: =C18/C19 -> 10.43745932 | D21: gdry/day | E21: Eq
A22: Water content of food item as a proportion | B22: PropWater | C22: ='A03'!$E$62 -> 0.77 | D22: gwater/gfood | E22: U.S. EPA/ORD 1993
A23: Dry weight content of food item as a proportion | B23: PropDry | C23: = 1-PropWater
C24: =1-C22 -> 0.23 | D24: gdry/gfood | E24: Eq
A25: Variability in caloric requirements not accounted for by allometric equation | B25: Error
B26: Central | C26: 1 | D26: Note 2
B27: Lower | C27: 0.3
B28: Upper | C28: 1.7
A29: Amount of food consumed per day, wet weight | B29: AmntFood | C29: = Error x (AmntDry ÷ PropDry) ÷ (1000g/kg)
B30: Central | C30: =C26*(C$21/C$24)/1000 -> 0.04538025793 | D30: kgfood/day | E30: Eq
B31: Lower | C31: =C27*(C$21/C$24)/1000 -> 0.01361407738 | E31: Eq
B32: Upper | C32: 0.07714643848 | E32: Eq
A33: Estimate
A34: Dose | B34: Dose | C34: = AmntFood × Conc / BW
B35: Central | C35: =$C30 * C9/C$13 -> 3.176618055 | D35: mg/kg bw/day | E35: Eq
B36: Lower | C36: =$C31 * C10/C$13 -> 0.4356504761 | E36: Eq
B37: Upper | C37: =$C32 * C11/C$13 -> 11.57196577 | E37: Eq

Sheet F04b
A1: Consumption of Fruit by a Mammal, 400 g after Acute exposure.
A2: Short Title | B2: Fruit | E2: FdKcalV6
A3: Receptor | B3: Mammal, 400 g
A4: Duration | B4: Acute | E4: Scenario parameter
A5: Material consumed | B5: Fruit
A6: Parameter/Assumption | B6: Code / Range | C6: Equation/ Value | D6: Units | E6: Reference/Designation
A7: Commodity
A8: Concentration on consumed commodity | B8: Conc
B9: Central | C9: =B05a!Acute_C -> 1.4 | D9: mg/kg food wet weight | E9: ='B05a'!Acute_C
B10: Lower | C10: =B05a!Acute_L -> 0.64 | E10: ='B05a'!Acute_L
B11: Upper | C11: =B05a!Acute_U -> 3 | E11: ='B05a'!Acute_U
A12: Receptor
A13: Body weight | B13: BW | C13: =A02b!$C$40 -> 0.4 | D13: kg | E13: Default
A14: Allometric coefficients for caloric requirement per day in kilocalories and BW in grams
B15: alpha | C15: =A02b!$C$43 -> 2.514 | E15: U.S. EPA/ORD 1993
B16: beta | C16: =A02b!$C$44 -> 0.507 | E16: U.S. EPA/ORD 1993
A17: Caloric requirement per day | B17: KR | C17: = alpha x (BW x 1kg/1000g)beta
C18: =C15*((C13*1000)^C16) -> 52.43360149 | D18: kcal/day | E18: Eq
A19: Caloric content of commodity (dry weight) | B19: KCD | C19: ='A03'!$E$61 -> 1.1 | D19: kcal/gdw [Note 1] | E19: U.S. EPA/ORD 1993
A20: Food consumed per day (dry weight) | B20: AmntDry | C20: = KR ÷ KCD
C21: =C18/C19 -> 47.66691044 | D21: gdry/day | E21: Eq
A22: Water content of food item as a proportion | B22: PropWater | C22: ='A03'!$E$62 -> 0.77 | D22: gwater/gfood | E22: U.S. EPA/ORD 1993
A23: Dry weight content of food item as a proportion | B23: PropDry | C23: = 1-PropWater
C24: =1-C22 -> 0.23 | D24: gdry/gfood | E24: Eq
A25: Variability in caloric requirements not accounted for by allometric equation | B25: Error
B26: Central | C26: 1 | D26: Note 2
B27: Lower | C27: 0.3
B28: Upper | C28: 1.7
A29: Amount of food consumed per day, wet weight | B29: AmntFood | C29: = Error x (AmntDry ÷ PropDry) ÷ (1000g/kg)
B30: Central | C30: =C26*(C$21/C$24)/1000 -> 0.2072474367 | D30: kgfood/day | E30: Eq
B31: Lower | C31: =C27*(C$21/C$24)/1000 -> 0.06217423101 | E31: Eq
B32: Upper | C32: 0.3523206424 | E32: Eq
A33: Estimate
A34: Dose | B34: Dose | C34: = AmntFood × Conc / BW
B35: Central | C35: =$C30 * C9/C$13 -> 0.7253660285 | D35: mg/kg bw/day | E35: Eq
B36: Lower | C36: =$C31 * C10/C$13 -> 0.09947876962 | E36: Eq
B37: Upper | C37: =$C32 * C11/C$13 -> 2.642404818 | E37: Eq

Sheet F04c
A1: Consumption of Fruit by a Mammal, large after Acute exposure.
A2: Short Title | B2: Fruit | E2: FdKcalV6
A3: Receptor | B3: Mammal, large
A4: Duration | B4: Acute | E4: Scenario parameter
A5: Material consumed | B5: Fruit
A6: Parameter/Assumption | B6: Code / Range | C6: Equation/ Value | D6: Units | E6: Reference/Designation
A7: Commodity
A8: Concentration on consumed commodity | B8: Conc
B9: Central | C9: =B05a!Acute_C -> 1.4 | D9: mg/kg food wet weight | E9: ='B05a'!Acute_C
B10: Lower | C10: =B05a!Acute_L -> 0.64 | E10: ='B05a'!Acute_L
B11: Upper | C11: =B05a!Acute_U -> 3 | E11: ='B05a'!Acute_U
A12: Receptor
A13: Body weight | B13: BW | C13: =A02b!$C$61 -> 70 | D13: kg | E13: Default
A14: Allometric coefficients for caloric requirement per day in kilocalories and BW in grams
B15: alpha | C15: =A02b!$C$62 -> 1.518 | E15: U.S. EPA/ORD 1993
B16: beta | C16: =A02b!$C$63 -> 0.73 | E16: U.S. EPA/ORD 1993
A17: Caloric requirement per day | B17: KR | C17: = alpha x (BW x 1kg/1000g)beta
C18: =C15*((C13*1000)^C16) -> 5226.28803 | D18: kcal/day | E18: Eq
A19: Caloric content of commodity (dry weight) | B19: KCD | C19: ='A03'!$E$61 -> 1.1 | D19: kcal/gdw [Note 1] | E19: U.S. EPA/ORD 1993
A20: Food consumed per day (dry weight) | B20: AmntDry | C20: = KR ÷ KCD
C21: =C18/C19 -> 4751.170936 | D21: gdry/day | E21: Eq
A22: Water content of food item as a proportion | B22: PropWater | C22: ='A03'!$E$62 -> 0.77 | D22: gwater/gfood | E22: U.S. EPA/ORD 1993
A23: Dry weight content of food item as a proportion | B23: PropDry | C23: = 1-PropWater
C24: =1-C22 -> 0.23 | D24: gdry/gfood | E24: Eq
A25: Variability in caloric requirements not accounted for by allometric equation | B25: Error
B26: Central | C26: 1 | D26: Note 2
B27: Lower | C27: 0.3
B28: Upper | C28: 1.7
A29: Amount of food consumed per day, wet weight | B29: AmntFood | C29: = Error x (AmntDry ÷ PropDry) ÷ (1000g/kg)
B30: Central | C30: =C26*(C$21/C$24)/1000 -> 20.65726494 | D30: kgfood/day | E30: Eq
B31: Lower | C31: =C27*(C$21/C$24)/1000 -> 6.197179482 | E31: Eq
B32: Upper | C32: 35.1173504 | E32: Eq
A33: Estimate
A34: Dose | B34: Dose | C34: = AmntFood × Conc / BW
B35: Central | C35: =$C30 * C9/C$13 -> 0.4131452988 | D35: mg/kg bw/day | E35: Eq
B36: Lower | C36: =$C31 * C10/C$13 -> 0.05665992669 | E36: Eq
B37: Upper | C37: =$C32 * C11/C$13 -> 1.505029303 | E37: Eq

Sheet F04d
A1: Consumption of Fruit by a Bird, small after Acute exposure.
A2: Short Title | B2: Fruit | E2: FdKcalV6
A3: Receptor | B3: Bird, small
A4: Duration | B4: Acute | E4: Scenario parameter
A5: Material consumed | B5: Fruit
A6: Parameter/Assumption | B6: Code / Range | C6: Equation/ Value | D6: Units | E6: Reference/Designation
A7: Commodity
A8: Concentration on consumed commodity | B8: Conc
B9: Central | C9: =B05a!Acute_C -> 1.4 | D9: mg/kg food wet weight | E9: ='B05a'!Acute_C
B10: Lower | C10: =B05a!Acute_L -> 0.64 | E10: ='B05a'!Acute_L
B11: Upper | C11: =B05a!Acute_U -> 3 | E11: ='B05a'!Acute_U
A12: Receptor
A13: Body weight | B13: BW | C13: =A02b!$C$31 -> 0.01 | D13: kg | E13: Default
A14: Allometric coefficients for caloric requirement per day in kilocalories and BW in grams
B15: alpha | C15: =A02b!$C$32 -> 3.12 | E15: U.S. EPA/ORD 1993
B16: beta | C16: =A02b!$C$33 -> 0.605 | E16: U.S. EPA/ORD 1993
A17: Caloric requirement per day | B17: KR | C17: = alpha x (BW x 1kg/1000g)beta
C18: =C15*((C13*1000)^C16) -> 12.56477147 | D18: kcal/day | E18: Eq
A19: Caloric content of commodity (dry weight) | B19: KCD | C19: ='A03'!$E$38 -> 1.1 | D19: kcal/gdw [Note 1] | E19: U.S. EPA/ORD 1993
A20: Food consumed per day (dry weight) | B20: AmntDry | C20: = KR ÷ KCD
C21: =C18/C19 -> 11.42251952 | D21: gdry/day | E21: Eq
A22: Water content of food item as a proportion | B22: PropWater | C22: ='A03'!$E$39 -> 0.77 | D22: gwater/gfood | E22: U.S. EPA/ORD 1993
A23: Dry weight content of food item as a proportion | B23: PropDry | C23: = 1-PropWater
C24: =1-C22 -> 0.23 | D24: gdry/gfood | E24: Eq
A25: Variability in caloric requirements not accounted for by allometric equation | B25: Error
B26: Central | C26: 1 | D26: Note 2
B27: Lower | C27: 0.3
B28: Upper | C28: 1.7
A29: Amount of food consumed per day, wet weight | B29: AmntFood | C29: = Error x (AmntDry ÷ PropDry) ÷ (1000g/kg)
B30: Central | C30: =C26*(C$21/C$24)/1000 -> 0.04966312834 | D30: kgfood/day | E30: Eq
B31: Lower | C31: =C27*(C$21/C$24)/1000 -> 0.0148989385 | E31: Eq
B32: Upper | C32: 0.08442731818 | E32: Eq
A33: Estimate
A34: Dose | B34: Dose | C34: = AmntFood × Conc / BW
B35: Central | C35: =$C30 * C9/C$13 -> 6.952837968 | D35: mg/kg bw/day | E35: Eq
B36: Lower | C36: =$C31 * C10/C$13 -> 0.9535320642 | E36: Eq
B37: Upper | C37: =$C32 * C11/C$13 -> 25.32819546 | E37: Eq

Sheet F04e
A1: Consumption of Fruit by a Bird, large after Acute exposure.
A2: Short Title | B2: Fruit | E2: FdKcalV6
A3: Receptor | B3: Bird, large
A4: Duration | B4: Acute | E4: Scenario parameter
A5: Material consumed | B5: Fruit
A6: Parameter/Assumption | B6: Code / Range | C6: Equation/ Value | D6: Units | E6: Reference/Designation
A7: Commodity
A8: Concentration on consumed commodity | B8: Conc
B9: Central | C9: =B05a!Acute_C -> 1.4 | D9: mg/kg food wet weight | E9: ='B05a'!Acute_C
B10: Lower | C10: =B05a!Acute_L -> 0.64 | E10: ='B05a'!Acute_L
B11: Upper | C11: =B05a!Acute_U -> 3 | E11: ='B05a'!Acute_U
A12: Receptor
A13: Body weight | B13: BW | C13: =A02b!$C$15 -> 4 | D13: kg | E13: Default
A14: Allometric coefficients for caloric requirement per day in kilocalories and BW in grams
B15: alpha | C15: =A02b!$C$16 -> 1.146 | E15: U.S. EPA/ORD 1993
B16: beta | C16: =A02b!$C$17 -> 0.749 | E16: U.S. EPA/ORD 1993
A17: Caloric requirement per day | B17: KR | C17: = alpha x (BW x 1kg/1000g)beta
C18: =C15*((C13*1000)^C16) -> 571.6465031 | D18: kcal/day | E18: Eq
A19: Caloric content of commodity (dry weight) | B19: KCD | C19: ='A03'!$E$38 -> 1.1 | D19: kcal/gdw [Note 1] | E19: U.S. EPA/ORD 1993
A20: Food consumed per day (dry weight) | B20: AmntDry | C20: = KR ÷ KCD
C21: =C18/C19 -> 519.6786392 | D21: gdry/day | E21: Eq
A22: Water content of food item as a proportion | B22: PropWater | C22: ='A03'!$E$39 -> 0.77 | D22: gwater/gfood | E22: U.S. EPA/ORD 1993
A23: Dry weight content of food item as a proportion | B23: PropDry | C23: = 1-PropWater
C24: =1-C22 -> 0.23 | D24: gdry/gfood | E24: Eq
A25: Variability in caloric requirements not accounted for by allometric equation | B25: Error
B26: Central | C26: 1 | D26: Note 2
B27: Lower | C27: 0.3
B28: Upper | C28: 1.7
A29: Amount of food consumed per day, wet weight | B29: AmntFood | C29: = Error x (AmntDry ÷ PropDry) ÷ (1000g/kg)
B30: Central | C30: =C26*(C$21/C$24)/1000 -> 2.259472344 | D30: kgfood/day | E30: Eq
B31: Lower | C31: =C27*(C$21/C$24)/1000 -> 0.6778417033 | E31: Eq
B32: Upper | C32: 3.841102985 | E32: Eq
A33: Estimate
A34: Dose | B34: Dose | C34: = AmntFood × Conc / BW
B35: Central | C35: =$C30 * C9/C$13 -> 0.7908153205 | D35: mg/kg bw/day | E35: Eq
B36: Lower | C36: =$C31 * C10/C$13 -> 0.1084546725 | E36: Eq
B37: Upper | C37: =$C32 * C11/C$13 -> 2.880827239 | E37: Eq

Sheet F05a
A1: Consumption of Broadleaf Vegetation by a Mammal, small after Acute exposure.
A2: Short Title | B2: Broadleaf | E2: FdKcalV6
A3: Receptor | B3: Mammal, small
A4: Duration | B4: Acute | E4: Scenario parameter
A5: Material consumed | B5: Broadleaf Vegetation
A6: Parameter/Assumption | B6: Code / Range | C6: Equation/ Value | D6: Units | E6: Reference/Designation
A7: Commodity
A8: Concentration on consumed commodity | B8: Conc
B9: Central | C9: =B05b!Acute_C -> 9 | D9: mg/kg food wet weight | E9: ='B05b'!Acute_C
B10: Lower | C10: =B05b!Acute_L -> 3 | E10: ='B05b'!Acute_L
B11: Upper | C11: =B05b!Acute_U -> 27 | E11: ='B05b'!Acute_U
A12: Receptor
A13: Body weight | B13: BW | C13: =A02b!$C$71 -> 0.02 | D13: kg | E13: Default
A14: Allometric coefficients for caloric requirement per day in kilocalories and BW in grams
B15: alpha | C15: =A02b!$C$75 -> 2.514 | E15: U.S. EPA/ORD 1993
B16: beta | C16: =A02b!$C$76 -> 0.507 | E16: U.S. EPA/ORD 1993
A17: Caloric requirement per day | B17: KR | C17: = alpha x (BW x 1kg/1000g)beta
C18: =C15*((C13*1000)^C16) -> 11.48120526 | D18: kcal/day | E18: Eq
A19: Caloric content of commodity (dry weight) | B19: KCD | C19: ='A03'!$E$65 -> 2.26 | D19: kcal/gdw [Note 1] | E19: U.S. EPA/ORD 1993
A20: Food consumed per day (dry weight) | B20: AmntDry | C20: = KR ÷ KCD
C21: =C18/C19 -> 5.080179317 | D21: gdry/day | E21: Eq
A22: Water content of food item as a proportion | B22: PropWater | C22: ='A03'!$E$66 -> 0.85 | D22: gwater/gfood | E22: U.S. EPA/ORD 1993
A23: Dry weight content of food item as a proportion | B23: PropDry | C23: = 1-PropWater
C24: =1-C22 -> 0.15 | D24: gdry/gfood | E24: Eq
A25: Variability in caloric requirements not accounted for by allometric equation | B25: Error
B26: Central | C26: 1 | D26: Note 2
B27: Lower | C27: 0.3
B28: Upper | C28: 1.7
A29: Amount of food consumed per day, wet weight | B29: AmntFood | C29: = Error x (AmntDry ÷ PropDry) ÷ (1000g/kg)
B30: Central | C30: =C26*(C$21/C$24)/1000 -> 0.03386786211 | D30: kgfood/day | E30: Eq
B31: Lower | C31: =C27*(C$21/C$24)/1000 -> 0.01016035863 | E31: Eq
B32: Upper | C32: 0.05757536559 | E32: Eq
A33: Estimate
A34: Dose | B34: Dose | C34: = AmntFood × Conc / BW
B35: Central | C35: =$C30 * C9/C$13 -> 15.24053795 | D35: mg/kg bw/day | E35: Eq
B36: Lower | C36: =$C31 * C10/C$13 -> 1.524053795 | E36: Eq
B37: Upper | C37: =$C32 * C11/C$13 -> 77.72674355 | E37: Eq

Sheet F05b
A1: Consumption of Broadleaf Vegetation by a Mammal, 400 g after Acute exposure.
A2: Short Title | B2: Broadleaf | E2: FdKcalV6
A3: Receptor | B3: Mammal, 400 g
A4: Duration | B4: Acute | E4: Scenario parameter
A5: Material consumed | B5: Broadleaf Vegetation
A6: Parameter/Assumption | B6: Code / Range | C6: Equation/ Value | D6: Units | E6: Reference/Designation
A7: Commodity
A8: Concentration on consumed commodity | B8: Conc
B9: Central | C9: =B05b!Acute_C -> 9 | D9: mg/kg food wet weight | E9: ='B05b'!Acute_C
B10: Lower | C10: =B05b!Acute_L -> 3 | E10: ='B05b'!Acute_L
B11: Upper | C11: =B05b!Acute_U -> 27 | E11: ='B05b'!Acute_U
A12: Receptor
A13: Body weight | B13: BW | C13: =A02b!$C$40 -> 0.4 | D13: kg | E13: Default
A14: Allometric coefficients for caloric requirement per day in kilocalories and BW in grams
B15: alpha | C15: =A02b!$C$43 -> 2.514 | E15: U.S. EPA/ORD 1993
B16: beta | C16: =A02b!$C$44 -> 0.507 | E16: U.S. EPA/ORD 1993
A17: Caloric requirement per day | B17: KR | C17: = alpha x (BW x 1kg/1000g)beta
C18: =C15*((C13*1000)^C16) -> 52.43360149 | D18: kcal/day | E18: Eq
A19: Caloric content of commodity (dry weight) | B19: KCD | C19: ='A03'!$E$65 -> 2.26 | D19: kcal/gdw [Note 1] | E19: U.S. EPA/ORD 1993
A20: Food consumed per day (dry weight) | B20: AmntDry | C20: = KR ÷ KCD
C21: =C18/C19 -> 23.20070862 | D21: gdry/day | E21: Eq
A22: Water content of food item as a proportion | B22: PropWater | C22: ='A03'!$E$66 -> 0.85 | D22: gwater/gfood | E22: U.S. EPA/ORD 1993
A23: Dry weight content of food item as a proportion | B23: PropDry | C23: = 1-PropWater
C24: =1-C22 -> 0.15 | D24: gdry/gfood | E24: Eq
A25: Variability in caloric requirements not accounted for by allometric equation | B25: Error
B26: Central | C26: 1 | D26: Note 2
B27: Lower | C27: 0.3
B28: Upper | C28: 1.7
A29: Amount of food consumed per day, wet weight | B29: AmntFood | C29: = Error x (AmntDry ÷ PropDry) ÷ (1000g/kg)
B30: Central | C30: =C26*(C$21/C$24)/1000 -> 0.1546713908 | D30: kgfood/day | E30: Eq
B31: Lower | C31: =C27*(C$21/C$24)/1000 -> 0.04640141724 | E31: Eq
B32: Upper | C32: 0.2629413644 | E32: Eq
A33: Estimate
A34: Dose | B34: Dose | C34: = AmntFood × Conc / BW
B35: Central | C35: =$C30 * C9/C$13 -> 3.480106293 | D35: mg/kg bw/day | E35: Eq
B36: Lower | C36: =$C31 * C10/C$13 -> 0.3480106293 | E36: Eq
B37: Upper | C37: =$C32 * C11/C$13 -> 17.7485421 | E37: Eq

Sheet F05c
A1: Consumption of Broadleaf Vegetation by a Mammal, large after Acute exposure.
A2: Short Title | B2: Broadleaf | E2: FdKcalV6
A3: Receptor | B3: Mammal, large
A4: Duration | B4: Acute | E4: Scenario parameter
A5: Material consumed | B5: Broadleaf Vegetation
A6: Parameter/Assumption | B6: Code / Range | C6: Equation/ Value | D6: Units | E6: Reference/Designation
A7: Commodity
A8: Concentration on consumed commodity | B8: Conc
B9: Central | C9: =B05b!Acute_C -> 9 | D9: mg/kg food wet weight | E9: ='B05b'!Acute_C
B10: Lower | C10: =B05b!Acute_L -> 3 | E10: ='B05b'!Acute_L
B11: Upper | C11: =B05b!Acute_U -> 27 | E11: ='B05b'!Acute_U
A12: Receptor
A13: Body weight | B13: BW | C13: =A02b!$C$61 -> 70 | D13: kg | E13: Default
A14: Allometric coefficients for caloric requirement per day in kilocalories and BW in grams
B15: alpha | C15: =A02b!$C$62 -> 1.518 | E15: U.S. EPA/ORD 1993
B16: beta | C16: =A02b!$C$63 -> 0.73 | E16: U.S. EPA/ORD 1993
A17: Caloric requirement per day | B17: KR | C17: = alpha x (BW x 1kg/1000g)beta
C18: =C15*((C13*1000)^C16) -> 5226.28803 | D18: kcal/day | E18: Eq
A19: Caloric content of commodity (dry weight) | B19: KCD | C19: ='A03'!$E$65 -> 2.26 | D19: kcal/gdw [Note 1] | E19: U.S. EPA/ORD 1993
A20: Food consumed per day (dry weight) | B20: AmntDry | C20: = KR ÷ KCD
C21: =C18/C19 -> 2312.516827 | D21: gdry/day | E21: Eq
A22: Water content of food item as a proportion | B22: PropWater | C22: ='A03'!$E$66 -> 0.85 | D22: gwater/gfood | E22: U.S. EPA/ORD 1993
A23: Dry weight content of food item as a proportion | B23: PropDry | C23: = 1-PropWater
C24: =1-C22 -> 0.15 | D24: gdry/gfood | E24: Eq
A25: Variability in caloric requirements not accounted for by allometric equation | B25: Error
B26: Central | C26: 1 | D26: Note 2
B27: Lower | C27: 0.3
B28: Upper | C28: 1.7
A29: Amount of food consumed per day, wet weight | B29: AmntFood | C29: = Error x (AmntDry ÷ PropDry) ÷ (1000g/kg)
B30: Central | C30: =C26*(C$21/C$24)/1000 -> 15.41677885 | D30: kgfood/day | E30: Eq
B31: Lower | C31: =C27*(C$21/C$24)/1000 -> 4.625033655 | E31: Eq
B32: Upper | C32: 26.20852404 | E32: Eq
A33: Estimate
A34: Dose | B34: Dose | C34: = AmntFood × Conc / BW
B35: Central | C35: =$C30 * C9/C$13 -> 1.982157281 | D35: mg/kg bw/day | E35: Eq
B36: Lower | C36: =$C31 * C10/C$13 -> 0.1982157281 | E36: Eq
B37: Upper | C37: =$C32 * C11/C$13 -> 10.10900213 | E37: Eq

Sheet F05d
A1: Consumption of Broadleaf Vegetation by a Bird, small after Acute exposure.
A2: Short Title | B2: Broadleaf | E2: FdKcalV6
A3: Receptor | B3: Bird, small
A4: Duration | B4: Acute | E4: Scenario parameter
A5: Material consumed | B5: Broadleaf Vegetation
A6: Parameter/Assumption | B6: Code / Range | C6: Equation/ Value | D6: Units | E6: Reference/Designation
A7: Commodity
A8: Concentration on consumed commodity | B8: Conc
B9: Central | C9: =B05b!Acute_C -> 9 | D9: mg/kg food wet weight | E9: ='B05b'!Acute_C
B10: Lower | C10: =B05b!Acute_L -> 3 | E10: ='B05b'!Acute_L
B11: Upper | C11: =B05b!Acute_U -> 27 | E11: ='B05b'!Acute_U
A12: Receptor
A13: Body weight | B13: BW | C13: =A02b!$C$31 -> 0.01 | D13: kg | E13: Default
A14: Allometric coefficients for caloric requirement per day in kilocalories and BW in grams
B15: alpha | C15: =A02b!$C$32 -> 3.12 | E15: U.S. EPA/ORD 1993
B16: beta | C16: =A02b!$C$33 -> 0.605 | E16: U.S. EPA/ORD 1993
A17: Caloric requirement per day | B17: KR | C17: = alpha x (BW x 1kg/1000g)beta
C18: =C15*((C13*1000)^C16) -> 12.56477147 | D18: kcal/day | E18: Eq
A19: Caloric content of commodity (dry weight) | B19: KCD | C19: ='A03'!$E$42 -> 2 | D19: kcal/gdw [Note 1] | E19: U.S. EPA/ORD 1993
A20: Food consumed per day (dry weight) | B20: AmntDry | C20: = KR ÷ KCD
C21: =C18/C19 -> 6.282385735 | D21: gdry/day | E21: Eq
A22: Water content of food item as a proportion | B22: PropWater | C22: ='A03'!$E$43 -> 0.85 | D22: gwater/gfood | E22: U.S. EPA/ORD 1993
A23: Dry weight content of food item as a proportion | B23: PropDry | C23: = 1-PropWater
C24: =1-C22 -> 0.15 | D24: gdry/gfood | E24: Eq
A25: Variability in caloric requirements not accounted for by allometric equation | B25: Error
B26: Central | C26: 1 | D26: Note 2
B27: Lower | C27: 0.3
B28: Upper | C28: 1.7
A29: Amount of food consumed per day, wet weight | B29: AmntFood | C29: = Error x (AmntDry ÷ PropDry) ÷ (1000g/kg)
B30: Central | C30: =C26*(C$21/C$24)/1000 -> 0.04188257157 | D30: kgfood/day | E30: Eq
B31: Lower | C31: =C27*(C$21/C$24)/1000 -> 0.01256477147 | E31: Eq
B32: Upper | C32: 0.07120037167 | E32: Eq
A33: Estimate
A34: Dose | B34: Dose | C34: = AmntFood × Conc / BW
B35: Central | C35: =$C30 * C9/C$13 -> 37.69431441 | D35: mg/kg bw/day | E35: Eq
B36: Lower | C36: =$C31 * C10/C$13 -> 3.769431441 | E36: Eq
B37: Upper | C37: =$C32 * C11/C$13 -> 192.2410035 | E37: Eq

Sheet F05e
A1: Consumption of Broadleaf Vegetation by a Bird, large after Acute exposure.
A2: Short Title | B2: Broadleaf | E2: FdKcalV6
A3: Receptor | B3: Bird, large
A4: Duration | B4: Acute | E4: Scenario parameter
A5: Material consumed | B5: Broadleaf Vegetation
A6: Parameter/Assumption | B6: Code / Range | C6: Equation/ Value | D6: Units | E6: Reference/Designation
A7: Commodity
A8: Concentration on consumed commodity | B8: Conc
B9: Central | C9: =B05b!Acute_C -> 9 | D9: mg/kg food wet weight | E9: ='B05b'!Acute_C
B10: Lower | C10: =B05b!Acute_L -> 3 | E10: ='B05b'!Acute_L
B11: Upper | C11: =B05b!Acute_U -> 27 | E11: ='B05b'!Acute_U
A12: Receptor
A13: Body weight | B13: BW | C13: =A02b!$C$15 -> 4 | D13: kg | E13: Default
A14: Allometric coefficients for caloric requirement per day in kilocalories and BW in grams
B15: alpha | C15: =A02b!$C$16 -> 1.146 | E15: U.S. EPA/ORD 1993
B16: beta | C16: =A02b!$C$17 -> 0.749 | E16: U.S. EPA/ORD 1993
A17: Caloric requirement per day | B17: KR | C17: = alpha x (BW x 1kg/1000g)beta
C18: =C15*((C13*1000)^C16) -> 571.6465031 | D18: kcal/day | E18: Eq
A19: Caloric content of commodity (dry weight) | B19: KCD | C19: ='A03'!$E$42 -> 2 | D19: kcal/gdw [Note 1] | E19: U.S. EPA/ORD 1993
A20: Food consumed per day (dry weight) | B20: AmntDry | C20: = KR ÷ KCD
C21: =C18/C19 -> 285.8232515 | D21: gdry/day | E21: Eq
A22: Water content of food item as a proportion | B22: PropWater | C22: ='A03'!$E$43 -> 0.85 | D22: gwater/gfood | E22: U.S. EPA/ORD 1993
A23: Dry weight content of food item as a proportion | B23: PropDry | C23: = 1-PropWater
C24: =1-C22 -> 0.15 | D24: gdry/gfood | E24: Eq
A25: Variability in caloric requirements not accounted for by allometric equation | B25: Error
B26: Central | C26: 1 | D26: Note 2
B27: Lower | C27: 0.3
B28: Upper | C28: 1.7
A29: Amount of food consumed per day, wet weight | B29: AmntFood | C29: = Error x (AmntDry ÷ PropDry) ÷ (1000g/kg)
B30: Central | C30: =C26*(C$21/C$24)/1000 -> 1.905488344 | D30: kgfood/day | E30: Eq
B31: Lower | C31: =C27*(C$21/C$24)/1000 -> 0.5716465031 | E31: Eq
B32: Upper | C32: 3.239330184 | E32: Eq
A33: Estimate
A34: Dose | B34: Dose | C34: = AmntFood × Conc / BW
B35: Central | C35: =$C30 * C9/C$13 -> 4.287348773 | D35: mg/kg bw/day | E35: Eq
B36: Lower | C36: =$C31 * C10/C$13 -> 0.4287348773 | E36: Eq
B37: Upper | C37: =$C32 * C11/C$13 -> 21.86547874 | E37: Eq

Sheet F06a
A1: Consumption of Tall grass by a Mammal, small after Acute exposure.
A2: Short Title | B2: Tall Grass | E2: FdKcalV6
A3: Receptor | B3: Mammal, small
A4: Duration | B4: Acute | E4: Scenario parameter
A5: Material consumed | B5: Tall grass
A6: Parameter/Assumption | B6: Code / Range | C6: Equation/ Value | D6: Units | E6: Reference/Designation
A7: Commodity
A8: Concentration on consumed commodity | B8: Conc
B9: Central | C9: =B05d!Acute_C -> 7.2 | D9: mg/kg food wet weight | E9: ='B05d'!Acute_C
B10: Lower | C10: =B05d!Acute_L -> 2.4 | E10: ='B05d'!Acute_L
B11: Upper | C11: =B05d!Acute_U -> 22 | E11: ='B05d'!Acute_U
A12: Receptor
A13: Body weight | B13: BW | C13: =A02b!$C$71 -> 0.02 | D13: kg | E13: Default
A14: Allometric coefficients for caloric requirement per day in kilocalories and BW in grams
B15: alpha | C15: =A02b!$C$75 -> 2.514 | E15: U.S. EPA/ORD 1993
B16: beta | C16: =A02b!$C$76 -> 0.507 | E16: U.S. EPA/ORD 1993
A17: Caloric requirement per day | B17: KR | C17: = alpha x (BW x 1kg/1000g)beta
C18: =C15*((C13*1000)^C16) -> 11.48120526 | D18: kcal/day | E18: Eq
A19: Caloric content of commodity (dry weight) | B19: KCD | C19: ='A03'!$E$65 -> 2.26 | D19: kcal/gdw [Note 1] | E19: U.S. EPA/ORD 1993
A20: Food consumed per day (dry weight) | B20: AmntDry | C20: = KR ÷ KCD
C21: =C18/C19 -> 5.080179317 | D21: gdry/day | E21: Eq
A22: Water content of food item as a proportion | B22: PropWater | C22: ='A03'!$E$66 -> 0.85 | D22: gwater/gfood | E22: U.S. EPA/ORD 1993
A23: Dry weight content of food item as a proportion | B23: PropDry | C23: = 1-PropWater
C24: =1-C22 -> 0.15 | D24: gdry/gfood | E24: Eq
A25: Variability in caloric requirements not accounted for by allometric equation | B25: Error
B26: Central | C26: 1 | D26: Note 2
B27: Lower | C27: 0.3
B28: Upper | C28: 1.7
A29: Amount of food consumed per day, wet weight | B29: AmntFood | C29: = Error x (AmntDry ÷ PropDry) ÷ (1000g/kg)
B30: Central | C30: =C26*(C$21/C$24)/1000 -> 0.03386786211 | D30: kgfood/day | E30: Eq
B31: Lower | C31: =C27*(C$21/C$24)/1000 -> 0.01016035863 | E31: Eq
B32: Upper | C32: 0.05757536559 | E32: Eq
A33: Estimate
A34: Dose | B34: Dose | C34: = AmntFood × Conc / BW
B35: Central | C35: =$C30 * C9/C$13 -> 12.19243036 | D35: mg/kg bw/day | E35: Eq
B36: Lower | C36: =$C31 * C10/C$13 -> 1.219243036 | E36: Eq
B37: Upper | C37: =$C32 * C11/C$13 -> 63.33290215 | E37: Eq

Sheet F06b
A1: Consumption of Tall grass by a Mammal, 400 g after Acute exposure.
A2: Short Title | B2: Tall Grass | E2: FdKcalV6
A3: Receptor | B3: Mammal, 400 g
A4: Duration | B4: Acute | E4: Scenario parameter
A5: Material consumed | B5: Tall grass
A6: Parameter/Assumption | B6: Code / Range | C6: Equation/ Value | D6: Units | E6: Reference/Designation
A7: Commodity
A8: Concentration on consumed commodity | B8: Conc
B9: Central | C9: =B05d!Acute_C -> 7.2 | D9: mg/kg food wet weight | E9: ='B05d'!Acute_C
B10: Lower | C10: =B05d!Acute_L -> 2.4 | E10: ='B05d'!Acute_L
B11: Upper | C11: =B05d!Acute_U -> 22 | E11: ='B05d'!Acute_U
A12: Receptor
A13: Body weight | B13: BW | C13: =A02b!$C$40 -> 0.4 | D13: kg | E13: Default
A14: Allometric coefficients for caloric requirement per day in kilocalories and BW in grams
B15: alpha | C15: =A02b!$C$43 -> 2.514 | E15: U.S. EPA/ORD 1993
B16: beta | C16: =A02b!$C$44 -> 0.507 | E16: U.S. EPA/ORD 1993
A17: Caloric requirement per day | B17: KR | C17: = alpha x (BW x 1kg/1000g)beta
C18: =C15*((C13*1000)^C16) -> 52.43360149 | D18: kcal/day | E18: Eq
A19: Caloric content of commodity (dry weight) | B19: KCD | C19: ='A03'!$E$65 -> 2.26 | D19: kcal/gdw [Note 1] | E19: U.S. EPA/ORD 1993
A20: Food consumed per day (dry weight) | B20: AmntDry | C20: = KR ÷ KCD
C21: =C18/C19 -> 23.20070862 | D21: gdry/day | E21: Eq
A22: Water content of food item as a proportion | B22: PropWater | C22: ='A03'!$E$66 -> 0.85 | D22: gwater/gfood | E22: U.S. EPA/ORD 1993
A23: Dry weight content of food item as a proportion | B23: PropDry | C23: = 1-PropWater
C24: =1-C22 -> 0.15 | D24: gdry/gfood | E24: Eq
A25: Variability in caloric requirements not accounted for by allometric equation | B25: Error
B26: Central | C26: 1 | D26: Note 2
B27: Lower | C27: 0.3
B28: Upper | C28: 1.7
A29: Amount of food consumed per day, wet weight | B29: AmntFood | C29: = Error x (AmntDry ÷ PropDry) ÷ (1000g/kg)
B30: Central | C30: =C26*(C$21/C$24)/1000 -> 0.1546713908 | D30: kgfood/day | E30: Eq
B31: Lower | C31: =C27*(C$21/C$24)/1000 -> 0.04640141724 | E31: Eq
B32: Upper | C32: 0.2629413644 | E32: Eq
A33: Estimate
A34: Dose | B34: Dose | C34: = AmntFood × Conc / BW
B35: Central | C35: =$C30 * C9/C$13 -> 2.784085035 | D35: mg/kg bw/day | E35: Eq
B36: Lower | C36: =$C31 * C10/C$13 -> 0.2784085035 | E36: Eq
B37: Upper | C37: =$C32 * C11/C$13 -> 14.46177504 | E37: Eq

Sheet F06c
A1: Consumption of Tall grass by a Mammal, large after Acute exposure.
A2: Short Title | B2: Tall Grass | E2: FdKcalV6
A3: Receptor | B3: Mammal, large
A4: Duration | B4: Acute | E4: Scenario parameter
A5: Material consumed | B5: Tall grass
A6: Parameter/Assumption | B6: Code / Range | C6: Equation/ Value | D6: Units | E6: Reference/Designation
A7: Commodity
A8: Concentration on consumed commodity | B8: Conc
B9: Central | C9: =B05d!Acute_C -> 7.2 | D9: mg/kg food wet weight | E9: ='B05d'!Acute_C
B10: Lower | C10: =B05d!Acute_L -> 2.4 | E10: ='B05d'!Acute_L
B11: Upper | C11: =B05d!Acute_U -> 22 | E11: ='B05d'!Acute_U
A12: Receptor
A13: Body weight | B13: BW | C13: =A02b!$C$61 -> 70 | D13: kg | E13: Default
A14: Allometric coefficients for caloric requirement per day in kilocalories and BW in grams
B15: alpha | C15: =A02b!$C$62 -> 1.518 | E15: U.S. EPA/ORD 1993
B16: beta | C16: =A02b!$C$63 -> 0.73 | E16: U.S. EPA/ORD 1993
A17: Caloric requirement per day | B17: KR | C17: = alpha x (BW x 1kg/1000g)beta
C18: =C15*((C13*1000)^C16) -> 5226.28803 | D18: kcal/day | E18: Eq
A19: Caloric content of commodity (dry weight) | B19: KCD | C19: ='A03'!$E$65 -> 2.26 | D19: kcal/gdw [Note 1] | E19: U.S. EPA/ORD 1993
A20: Food consumed per day (dry weight) | B20: AmntDry | C20: = KR ÷ KCD
C21: =C18/C19 -> 2312.516827 | D21: gdry/day | E21: Eq
A22: Water content of food item as a proportion | B22: PropWater | C22: ='A03'!$E$66 -> 0.85 | D22: gwater/gfood | E22: U.S. EPA/ORD 1993
A23: Dry weight content of food item as a proportion | B23: PropDry | C23: = 1-PropWater
C24: =1-C22 -> 0.15 | D24: gdry/gfood | E24: Eq
A25: Variability in caloric requirements not accounted for by allometric equation | B25: Error
B26: Central | C26: 1 | D26: Note 2
B27: Lower | C27: 0.3
B28: Upper | C28: 1.7
A29: Amount of food consumed per day, wet weight | B29: AmntFood | C29: = Error x (AmntDry ÷ PropDry) ÷ (1000g/kg)
B30: Central | C30: =C26*(C$21/C$24)/1000 -> 15.41677885 | D30: kgfood/day | E30: Eq
B31: Lower | C31: =C27*(C$21/C$24)/1000 -> 4.625033655 | E31: Eq
B32: Upper | C32: 26.20852404 | E32: Eq
A33: Estimate
A34: Dose | B34: Dose | C34: = AmntFood × Conc / BW
B35: Central | C35: =$C30 * C9/C$13 -> 1.585725824 | D35: mg/kg bw/day | E35: Eq
B36: Lower | C36: =$C31 * C10/C$13 -> 0.1585725824 | E36: Eq
B37: Upper | C37: =$C32 * C11/C$13 -> 8.236964699 | E37: Eq

Sheet F06d
A1: Consumption of Tall grass by a Bird, small after Acute exposure.
A2: Short Title | B2: Tall Grass | E2: FdKcalV6
A3: Receptor | B3: Bird, small
A4: Duration | B4: Acute | E4: Scenario parameter
A5: Material consumed | B5: Tall grass
A6: Parameter/Assumption | B6: Code / Range | C6: Equation/ Value | D6: Units | E6: Reference/Designation
A7: Commodity
A8: Concentration on consumed commodity | B8: Conc
B9: Central | C9: =B05d!Acute_C -> 7.2 | D9: mg/kg food wet weight | E9: ='B05d'!Acute_C
B10: Lower | C10: =B05d!Acute_L -> 2.4 | E10: ='B05d'!Acute_L
B11: Upper | C11: =B05d!Acute_U -> 22 | E11: ='B05d'!Acute_U
A12: Receptor
A13: Body weight | B13: BW | C13: =A02b!$C$31 -> 0.01 | D13: kg | E13: Default
A14: Allometric coefficients for caloric requirement per day in kilocalories and BW in grams
B15: alpha | C15: =A02b!$C$32 -> 3.12 | E15: U.S. EPA/ORD 1993
B16: beta | C16: =A02b!$C$33 -> 0.605 | E16: U.S. EPA/ORD 1993
A17: Caloric requirement per day | B17: KR | C17: = alpha x (BW x 1kg/1000g)beta
C18: =C15*((C13*1000)^C16) -> 12.56477147 | D18: kcal/day | E18: Eq
A19: Caloric content of commodity (dry weight) | B19: KCD | C19: ='A03'!$E$42 -> 2 | D19: kcal/gdw [Note 1] | E19: U.S. EPA/ORD 1993
A20: Food consumed per day (dry weight) | B20: AmntDry | C20: = KR ÷ KCD
C21: =C18/C19 -> 6.282385735 | D21: gdry/day | E21: Eq
A22: Water content of food item as a proportion | B22: PropWater | C22: ='A03'!$E$43 -> 0.85 | D22: gwater/gfood | E22: U.S. EPA/ORD 1993
A23: Dry weight content of food item as a proportion | B23: PropDry | C23: = 1-PropWater
C24: =1-C22 -> 0.15 | D24: gdry/gfood | E24: Eq
A25: Variability in caloric requirements not accounted for by allometric equation | B25: Error
B26: Central | C26: 1 | D26: Note 2
B27: Lower | C27: 0.3
B28: Upper | C28: 1.7
A29: Amount of food consumed per day, wet weight | B29: AmntFood | C29: = Error x (AmntDry ÷ PropDry) ÷ (1000g/kg)
B30: Central | C30: =C26*(C$21/C$24)/1000 -> 0.04188257157 | D30: kgfood/day | E30: Eq
B31: Lower | C31: =C27*(C$21/C$24)/1000 -> 0.01256477147 | E31: Eq
B32: Upper | C32: 0.07120037167 | E32: Eq
A33: Estimate
A34: Dose | B34: Dose | C34: = AmntFood × Conc / BW
B35: Central | C35: =$C30 * C9/C$13 -> 30.15545153 | D35: mg/kg bw/day | E35: Eq
B36: Lower | C36: =$C31 * C10/C$13 -> 3.015545153 | E36: Eq
B37: Upper | C37: =$C32 * C11/C$13 -> 156.6408177 | E37: Eq

Sheet F06e
A1: Consumption of Tall grass by a Bird, large after Acute exposure.
A2: Short Title | B2: Tall Grass | E2: FdKcalV6
A3: Receptor | B3: Bird, large
A4: Duration | B4: Acute | E4: Scenario parameter
A5: Material consumed | B5: Tall grass
A6: Parameter/Assumption | B6: Code / Range | C6: Equation/ Value | D6: Units | E6: Reference/Designation
A7: Commodity
A8: Concentration on consumed commodity | B8: Conc
B9: Central | C9: =B05d!Acute_C -> 7.2 | D9: mg/kg food wet weight | E9: ='B05d'!Acute_C
B10: Lower | C10: =B05d!Acute_L -> 2.4 | E10: ='B05d'!Acute_L
B11: Upper | C11: =B05d!Acute_U -> 22 | E11: ='B05d'!Acute_U
A12: Receptor
A13: Body weight | B13: BW | C13: =A02b!$C$15 -> 4 | D13: kg | E13: Default
A14: Allometric coefficients for caloric requirement per day in kilocalories and BW in grams
B15: alpha | C15: =A02b!$C$16 -> 1.146 | E15: U.S. EPA/ORD 1993
B16: beta | C16: =A02b!$C$17 -> 0.749 | E16: U.S. EPA/ORD 1993
A17: Caloric requirement per day | B17: KR | C17: = alpha x (BW x 1kg/1000g)beta
C18: =C15*((C13*1000)^C16) -> 571.6465031 | D18: kcal/day | E18: Eq
A19: Caloric content of commodity (dry weight) | B19: KCD | C19: ='A03'!$E$42 -> 2 | D19: kcal/gdw [Note 1] | E19: U.S. EPA/ORD 1993
A20: Food consumed per day (dry weight) | B20: AmntDry | C20: = KR ÷ KCD
C21: =C18/C19 -> 285.8232515 | D21: gdry/day | E21: Eq
A22: Water content of food item as a proportion | B22: PropWater | C22: ='A03'!$E$43 -> 0.85 | D22: gwater/gfood | E22: U.S. EPA/ORD 1993
A23: Dry weight content of food item as a proportion | B23: PropDry | C23: = 1-PropWater
C24: =1-C22 -> 0.15 | D24: gdry/gfood | E24: Eq
A25: Variability in caloric requirements not accounted for by allometric equation | B25: Error
B26: Central | C26: 1 | D26: Note 2
B27: Lower | C27: 0.3
B28: Upper | C28: 1.7
A29: Amount of food consumed per day, wet weight | B29: AmntFood | C29: = Error x (AmntDry ÷ PropDry) ÷ (1000g/kg)
B30: Central | C30: =C26*(C$21/C$24)/1000 -> 1.905488344 | D30: kgfood/day | E30: Eq
B31: Lower | C31: =C27*(C$21/C$24)/1000 -> 0.5716465031 | E31: Eq
B32: Upper | C32: 3.239330184 | E32: Eq
A33: Estimate
A34: Dose | B34: Dose | C34: = AmntFood × Conc / BW
B35: Central | C35: =$C30 * C9/C$13 -> 3.429879018 | D35: mg/kg bw/day | E35: Eq
B36: Lower | C36: =$C31 * C10/C$13 -> 0.3429879018 | E36: Eq
B37: Upper | C37: =$C32 * C11/C$13 -> 17.81631601 | E37: Eq

Sheet F07a
A1: Consumption of Short grass by a Mammal, small after Acute exposure.
A2: Short Title | B2: Short grass | E2: FdKcalV6
A3: Receptor | B3: Mammal, small
A4: Duration | B4: Acute | E4: Scenario parameter
A5: Material consumed | B5: Short grass
A6: Parameter/Assumption | B6: Code / Range | C6: Equation/ Value | D6: Units | E6: Reference/Designation
A7: Commodity
A8: Concentration on consumed commodity | B8: Conc
B9: Central | C9: =B05c!Acute_C -> 17 | D9: mg/kg food wet weight | E9: ='B05c'!Acute_C
B10: Lower | C10: =B05c!Acute_L -> 6 | E10: ='B05c'!Acute_L
B11: Upper | C11: =B05c!Acute_U -> 48 | E11: ='B05c'!Acute_U
A12: Receptor
A13: Body weight | B13: BW | C13: =A02b!$C$71 -> 0.02 | D13: kg | E13: Default
A14: Allometric coefficients for caloric requirement per day in kilocalories and BW in grams
B15: alpha | C15: =A02b!$C$75 -> 2.514 | E15: U.S. EPA/ORD 1993
B16: beta | C16: =A02b!$C$76 -> 0.507 | E16: U.S. EPA/ORD 1993
A17: Caloric requirement per day | B17: KR | C17: = alpha x (BW x 1kg/1000g)beta
C18: =C15*((C13*1000)^C16) -> 11.48120526 | D18: kcal/day | E18: Eq
A19: Caloric content of commodity (dry weight) | B19: KCD | C19: ='A03'!$E$65 -> 2.26 | D19: kcal/gdw [Note 1] | E19: U.S. EPA/ORD 1993
A20: Food consumed per day (dry weight) | B20: AmntDry | C20: = KR ÷ KCD
C21: =C18/C19 -> 5.080179317 | D21: gdry/day | E21: Eq
A22: Water content of food item as a proportion | B22: PropWater | C22: ='A03'!$E$66 -> 0.85 | D22: gwater/gfood | E22: U.S. EPA/ORD 1993
A23: Dry weight content of food item as a proportion | B23: PropDry | C23: = 1-PropWater
C24: =1-C22 -> 0.15 | D24: gdry/gfood | E24: Eq
A25: Variability in caloric requirements not accounted for by allometric equation | B25: Error
B26: Central | C26: 1 | D26: Note 2
B27: Lower | C27: 0.3
B28: Upper | C28: 1.7
A29: Amount of food consumed per day, wet weight | B29: AmntFood | C29: = Error x (AmntDry ÷ PropDry) ÷ (1000g/kg)
B30: Central | C30: =C26*(C$21/C$24)/1000 -> 0.03386786211 | D30: kgfood/day | E30: Eq
B31: Lower | C31: =C27*(C$21/C$24)/1000 -> 0.01016035863 | E31: Eq
B32: Upper | C32: 0.05757536559 | E32: Eq
A33: Estimate
A34: Dose | B34: Dose | C34: = AmntFood × Conc / BW
B35: Central | C35: =$C30 * C9/C$13 -> 28.7876828 | D35: mg/kg bw/day | E35: Eq
B36: Lower | C36: =$C31 * C10/C$13 -> 3.04810759 | E36: Eq
B37: Upper | C37: =$C32 * C11/C$13 -> 138.1808774 | E37: Eq

Sheet F07b
A1: Consumption of Short grass by a Mammal, 400 g after Acute exposure.
A2: Short Title | B2: Short grass | E2: FdKcalV6
A3: Receptor | B3: Mammal, 400 g
A4: Duration | B4: Acute | E4: Scenario parameter
A5: Material consumed | B5: Short grass
A6: Parameter/Assumption | B6: Code / Range | C6: Equation/ Value | D6: Units | E6: Reference/Designation
A7: Commodity
A8: Concentration on consumed commodity | B8: Conc
B9: Central | C9: =B05c!Acute_C -> 17 | D9: mg/kg food wet weight | E9: ='B05c'!Acute_C
B10: Lower | C10: =B05c!Acute_L -> 6 | E10: ='B05c'!Acute_L
B11: Upper | C11: =B05c!Acute_U -> 48 | E11: ='B05c'!Acute_U
A12: Receptor
A13: Body weight | B13: BW | C13: =A02b!$C$40 -> 0.4 | D13: kg | E13: Default
A14: Allometric coefficients for caloric requirement per day in kilocalories and BW in grams
B15: alpha | C15: =A02b!$C$43 -> 2.514 | E15: U.S. EPA/ORD 1993
B16: beta | C16: =A02b!$C$44 -> 0.507 | E16: U.S. EPA/ORD 1993
A17: Caloric requirement per day | B17: KR | C17: = alpha x (BW x 1kg/1000g)beta
C18: =C15*((C13*1000)^C16) -> 52.43360149 | D18: kcal/day | E18: Eq
A19: Caloric content of commodity (dry weight) | B19: KCD | C19: ='A03'!$E$65 -> 2.26 | D19: kcal/gdw [Note 1] | E19: U.S. EPA/ORD 1993
A20: Food consumed per day (dry weight) | B20: AmntDry | C20: = KR ÷ KCD
C21: =C18/C19 -> 23.20070862 | D21: gdry/day | E21: Eq
A22: Water content of food item as a proportion | B22: PropWater | C22: ='A03'!$E$66 -> 0.85 | D22: gwater/gfood | E22: U.S. EPA/ORD 1993
A23: Dry weight content of food item as a proportion | B23: PropDry | C23: = 1-PropWater
C24: =1-C22 -> 0.15 | D24: gdry/gfood | E24: Eq
A25: Variability in caloric requirements not accounted for by allometric equation | B25: Error
B26: Central | C26: 1 | D26: Note 2
B27: Lower | C27: 0.3
B28: Upper | C28: 1.7
A29: Amount of food consumed per day, wet weight | B29: AmntFood | C29: = Error x (AmntDry ÷ PropDry) ÷ (1000g/kg)
B30: Central | C30: =C26*(C$21/C$24)/1000 -> 0.1546713908 | D30: kgfood/day | E30: Eq
B31: Lower | C31: =C27*(C$21/C$24)/1000 -> 0.04640141724 | E31: Eq
B32: Upper | C32: 0.2629413644 | E32: Eq
A33: Estimate
A34: Dose | B34: Dose | C34: = AmntFood × Conc / BW
B35: Central | C35: =$C30 * C9/C$13 -> 6.57353411 | D35: mg/kg bw/day | E35: Eq
B36: Lower | C36: =$C31 * C10/C$13 -> 0.6960212587 | E36: Eq
B37: Upper | C37: =$C32 * C11/C$13 -> 31.55296373 | E37: Eq

Sheet F07c
A1: Consumption of Short grass by a Mammal, large after Acute exposure.
A2: Short Title | B2: Short grass | E2: FdKcalV6
A3: Receptor | B3: Mammal, large
A4: Duration | B4: Acute | E4: Scenario parameter
A5: Material consumed | B5: Short grass
A6: Parameter/Assumption | B6: Code / Range | C6: Equation/ Value | D6: Units | E6: Reference/Designation
A7: Commodity
A8: Concentration on consumed commodity | B8: Conc
B9: Central | C9: =B05c!Acute_C -> 17 | D9: mg/kg food wet weight | E9: ='B05c'!Acute_C
B10: Lower | C10: =B05c!Acute_L -> 6 | E10: ='B05c'!Acute_L
B11: Upper | C11: =B05c!Acute_U -> 48 | E11: ='B05c'!Acute_U
A12: Receptor
A13: Body weight | B13: BW | C13: =A02b!$C$61 -> 70 | D13: kg | E13: Default
A14: Allometric coefficients for caloric requirement per day in kilocalories and BW in grams
B15: alpha | C15: =A02b!$C$62 -> 1.518 | E15: U.S. EPA/ORD 1993
B16: beta | C16: =A02b!$C$63 -> 0.73 | E16: U.S. EPA/ORD 1993
A17: Caloric requirement per day | B17: KR | C17: = alpha x (BW x 1kg/1000g)beta
C18: =C15*((C13*1000)^C16) -> 5226.28803 | D18: kcal/day | E18: Eq
A19: Caloric content of commodity (dry weight) | B19: KCD | C19: ='A03'!$E$65 -> 2.26 | D19: kcal/gdw [Note 1] | E19: U.S. EPA/ORD 1993
A20: Food consumed per day (dry weight) | B20: AmntDry | C20: = KR ÷ KCD
C21: =C18/C19 -> 2312.516827 | D21: gdry/day | E21: Eq
A22: Water content of food item as a proportion | B22: PropWater | C22: ='A03'!$E$66 -> 0.85 | D22: gwater/gfood | E22: U.S. EPA/ORD 1993
A23: Dry weight content of food item as a proportion | B23: PropDry | C23: = 1-PropWater
C24: =1-C22 -> 0.15 | D24: gdry/gfood | E24: Eq
A25: Variability in caloric requirements not accounted for by allometric equation | B25: Error
B26: Central | C26: 1 | D26: Note 2
B27: Lower | C27: 0.3
B28: Upper | C28: 1.7
A29: Amount of food consumed per day, wet weight | B29: AmntFood | C29: = Error x (AmntDry ÷ PropDry) ÷ (1000g/kg)
B30: Central | C30: =C26*(C$21/C$24)/1000 -> 15.41677885 | D30: kgfood/day | E30: Eq
B31: Lower | C31: =C27*(C$21/C$24)/1000 -> 4.625033655 | E31: Eq
B32: Upper | C32: 26.20852404 | E32: Eq
A33: Estimate
A34: Dose | B34: Dose | C34: = AmntFood × Conc / BW
B35: Central | C35: =$C30 * C9/C$13 -> 3.744074863 | D35: mg/kg bw/day | E35: Eq
B36: Lower | C36: =$C31 * C10/C$13 -> 0.3964314561 | E36: Eq
B37: Upper | C37: =$C32 * C11/C$13 -> 17.97155934 | E37: Eq

Sheet F07d
A1: Consumption of Short grass by a Bird, small after Acute exposure.
A2: Short Title | B2: Short grass | E2: FdKcalV6
A3: Receptor | B3: Bird, small
A4: Duration | B4: Acute | E4: Scenario parameter
A5: Material consumed | B5: Short grass
A6: Parameter/Assumption | B6: Code / Range | C6: Equation/ Value | D6: Units | E6: Reference/Designation
A7: Commodity
A8: Concentration on consumed commodity | B8: Conc
B9: Central | C9: =B05c!Acute_C -> 17 | D9: mg/kg food wet weight | E9: ='B05c'!Acute_C
B10: Lower | C10: =B05c!Acute_L -> 6 | E10: ='B05c'!Acute_L
B11: Upper | C11: =B05c!Acute_U -> 48 | E11: ='B05c'!Acute_U
A12: Receptor
A13: Body weight | B13: BW | C13: =A02b!$C$31 -> 0.01 | D13: kg | E13: Default
A14: Allometric coefficients for caloric requirement per day in kilocalories and BW in grams
B15: alpha | C15: =A02b!$C$32 -> 3.12 | E15: U.S. EPA/ORD 1993
B16: beta | C16: =A02b!$C$33 -> 0.605 | E16: U.S. EPA/ORD 1993
A17: Caloric requirement per day | B17: KR | C17: = alpha x (BW x 1kg/1000g)beta
C18: =C15*((C13*1000)^C16) -> 12.56477147 | D18: kcal/day | E18: Eq
A19: Caloric content of commodity (dry weight) | B19: KCD | C19: ='A03'!$E$42 -> 2 | D19: kcal/gdw [Note 1] | E19: U.S. EPA/ORD 1993
A20: Food consumed per day (dry weight) | B20: AmntDry | C20: = KR ÷ KCD
C21: =C18/C19 -> 6.282385735 | D21: gdry/day | E21: Eq
A22: Water content of food item as a proportion | B22: PropWater | C22: ='A03'!$E$43 -> 0.85 | D22: gwater/gfood | E22: U.S. EPA/ORD 1993
A23: Dry weight content of food item as a proportion | B23: PropDry | C23: = 1-PropWater
C24: =1-C22 -> 0.15 | D24: gdry/gfood | E24: Eq
A25: Variability in caloric requirements not accounted for by allometric equation | B25: Error
B26: Central | C26: 1 | D26: Note 2
B27: Lower | C27: 0.3
B28: Upper | C28: 1.7
A29: Amount of food consumed per day, wet weight | B29: AmntFood | C29: = Error x (AmntDry ÷ PropDry) ÷ (1000g/kg)
B30: Central | C30: =C26*(C$21/C$24)/1000 -> 0.04188257157 | D30: kgfood/day | E30: Eq
B31: Lower | C31: =C27*(C$21/C$24)/1000 -> 0.01256477147 | E31: Eq
B32: Upper | C32: 0.07120037167 | E32: Eq
A33: Estimate
A34: Dose | B34: Dose | C34: = AmntFood × Conc / BW
B35: Central | C35: =$C30 * C9/C$13 -> 71.20037167 | D35: mg/kg bw/day | E35: Eq
B36: Lower | C36: =$C31 * C10/C$13 -> 7.538862883 | E36: Eq
B37: Upper | C37: =$C32 * C11/C$13 -> 341.761784 | E37: Eq

Sheet F07e
A1: Consumption of Short grass by a Bird, large after Acute exposure.
A2: Short Title | B2: Short grass | E2: FdKcalV6
A3: Receptor | B3: Bird, large
A4: Duration | B4: Acute | E4: Scenario parameter
A5: Material consumed | B5: Short grass
A6: Parameter/Assumption | B6: Code / Range | C6: Equation/ Value | D6: Units | E6: Reference/Designation
A7: Commodity
A8: Concentration on consumed commodity | B8: Conc
B9: Central | C9: =B05c!Acute_C -> 17 | D9: mg/kg food wet weight | E9: ='B05c'!Acute_C
B10: Lower | C10: =B05c!Acute_L -> 6 | E10: ='B05c'!Acute_L
B11: Upper | C11: =B05c!Acute_U -> 48 | E11: ='B05c'!Acute_U
A12: Receptor
A13: Body weight | B13: BW | C13: =A02b!$C$15 -> 4 | D13: kg | E13: Default
A14: Allometric coefficients for caloric requirement per day in kilocalories and BW in grams
B15: alpha | C15: =A02b!$C$16 -> 1.146 | E15: U.S. EPA/ORD 1993
B16: beta | C16: =A02b!$C$17 -> 0.749 | E16: U.S. EPA/ORD 1993
A17: Caloric requirement per day | B17: KR | C17: = alpha x (BW x 1kg/1000g)beta
C18: =C15*((C13*1000)^C16) -> 571.6465031 | D18: kcal/day | E18: Eq
A19: Caloric content of commodity (dry weight) | B19: KCD | C19: ='A03'!$E$42 -> 2 | D19: kcal/gdw [Note 1] | E19: U.S. EPA/ORD 1993
A20: Food consumed per day (dry weight) | B20: AmntDry | C20: = KR ÷ KCD
C21: =C18/C19 -> 285.8232515 | D21: gdry/day | E21: Eq
A22: Water content of food item as a proportion | B22: PropWater | C22: ='A03'!$E$43 -> 0.85 | D22: gwater/gfood | E22: U.S. EPA/ORD 1993
A23: Dry weight content of food item as a proportion | B23: PropDry | C23: = 1-PropWater
C24: =1-C22 -> 0.15 | D24: gdry/gfood | E24: Eq
A25: Variability in caloric requirements not accounted for by allometric equation | B25: Error
B26: Central | C26: 1 | D26: Note 2
B27: Lower | C27: 0.3
B28: Upper | C28: 1.7
A29: Amount of food consumed per day, wet weight | B29: AmntFood | C29: = Error x (AmntDry ÷ PropDry) ÷ (1000g/kg)
B30: Central | C30: =C26*(C$21/C$24)/1000 -> 1.905488344 | D30: kgfood/day | E30: Eq
B31: Lower | C31: =C27*(C$21/C$24)/1000 -> 0.5716465031 | E31: Eq
B32: Upper | C32: 3.239330184 | E32: Eq
A33: Estimate
A34: Dose | B34: Dose | C34: = AmntFood × Conc / BW
B35: Central | C35: =$C30 * C9/C$13 -> 8.09832546 | D35: mg/kg bw/day | E35: Eq
B36: Lower | C36: =$C31 * C10/C$13 -> 0.8574697546 | E36: Eq
B37: Upper | C37: =$C32 * C11/C$13 -> 38.87196221 | E37: Eq

Sheet F08a
A1: Consumption of contaminated water by Mammal, small, Peak Concentrations
A2: Short Title | B2: Peak Concentrations | E2: WatAlloV6
A3: Receptor | B3: Mammal, small
A4: Duration | B4: Acute | E4: Scenario parameter
A5: Parameter/Assumption | B5: Code / Range | C5: Equation/ Value | D5: Units | E5: Reference/Designation
A6: Concentration in water | B6: ConcWat
B7: Central | C7: =B04a!Acute_C -> 1.4e-05 | D7: mg/L | E7: ='B04a'!Acute_C
B8: Lower | C8: =B04a!Acute_L -> 1e-05 | E8: ='B04a'!Acute_L
B9: Upper | C9: =B04a!Acute_U -> 1.4e-05 | E9: ='B04a'!Acute_U
A10: Receptor
A11: Body weight | B11: BW | C11: =A02b!$C$71 -> 0.02 | D11: kg | E11: Default
A12: Allometric coefficients forwater consumption per day in liters and BW in kilograms
B13: alpha | C13: =A02b!$C$79 -> 0.099 | E13: U.S. EPA/ORD 1993
B14: beta | C14: =A02b!$C$80 -> 0.9 | E14: U.S. EPA/ORD 1993
A15: Amount of water consumed per day | C15: Amnt = alpha BW beta
B16: Amnt | C16: =C13*(C11^C14) -> 0.002927940121 | D16: liters | E16: Eq
A17: Absorbed Dose | B17: Dose | C17: ConcWat × Amnt ÷ BW
B18: Central | C18: =C7*C$16/C$11 -> 2.049558084e-06 | D18: mg/kg | E18: Eq
B19: Lower | C19: =C8*C$16/C$11 -> 1.46397006e-06 | D19: mg/kg | E19: Eq
B20: Upper | C20: =C9*C$16/C$11 -> 2.049558084e-06 | D20: mg/kg | E20: Eq

Sheet F08b
A1: Consumption of contaminated water by Mammal, 400 g, Peak Concentrations
A2: Short Title | B2: Peak Concentrations | E2: WatAlloV6
A3: Receptor | B3: Mammal, 400 g
A4: Duration | B4: Acute | E4: Scenario parameter
A5: Parameter/Assumption | B5: Code / Range | C5: Equation/ Value | D5: Units | E5: Reference/Designation
A6: Concentration in water | B6: ConcWat
B7: Central | C7: =B04a!Acute_C -> 1.4e-05 | D7: mg/L | E7: ='B04a'!Acute_C
B8: Lower | C8: =B04a!Acute_L -> 1e-05 | E8: ='B04a'!Acute_L
B9: Upper | C9: =B04a!Acute_U -> 1.4e-05 | E9: ='B04a'!Acute_U
A10: Receptor
A11: Body weight | B11: BW | C11: =A02b!$C$40 -> 0.4 | D11: kg | E11: Default
A12: Allometric coefficients forwater consumption per day in liters and BW in kilograms
B13: alpha | C13: =A02b!$C$45 -> 0.099 | E13: U.S. EPA/ORD 1993
B14: beta | C14: =A02b!$C$46 -> 0.9 | E14: U.S. EPA/ORD 1993
A15: Amount of water consumed per day | C15: Amnt = alpha BW beta
B16: Amnt | C16: =C13*(C11^C14) -> 0.04339994576 | D16: liters | E16: Eq
A17: Absorbed Dose | B17: Dose | C17: ConcWat × Amnt ÷ BW
B18: Central | C18: =C7*C$16/C$11 -> 1.518998102e-06 | D18: mg/kg | E18: Eq
B19: Lower | C19: =C8*C$16/C$11 -> 1.084998644e-06 | D19: mg/kg | E19: Eq
B20: Upper | C20: =C9*C$16/C$11 -> 1.518998102e-06 | D20: mg/kg | E20: Eq

Sheet F08c
A1: Consumption of contaminated water by Mammal, carnivorous, Peak Concentrations
A2: Short Title | B2: Peak Concentrations | E2: WatAlloV6
A3: Receptor | B3: Mammal, carnivorous
A4: Duration | B4: Acute | E4: Scenario parameter
A5: Parameter/Assumption | B5: Code / Range | C5: Equation/ Value | D5: Units | E5: Reference/Designation
A6: Concentration in water | B6: ConcWat
B7: Central | C7: =B04a!Acute_C -> 1.4e-05 | D7: mg/L | E7: ='B04a'!Acute_C
B8: Lower | C8: =B04a!Acute_L -> 1e-05 | E8: ='B04a'!Acute_L
B9: Upper | C9: =B04a!Acute_U -> 1.4e-05 | E9: ='B04a'!Acute_U
A10: Receptor
A11: Body weight | B11: BW | C11: =A02b!$C$47 -> 5 | D11: kg | E11: U.S. EPA/ORD 1993
A12: Allometric coefficients forwater consumption per day in liters and BW in kilograms
B13: alpha | C13: =A02b!$C$50 -> 0.099 | E13: U.S. EPA/ORD 1993
B14: beta | C14: =A02b!$C$51 -> 0.9 | E14: U.S. EPA/ORD 1993
A15: Amount of water consumed per day | C15: Amnt = alpha BW beta
B16: Amnt | C16: =C13*(C11^C14) -> 0.4214132616 | D16: liters | E16: Eq
A17: Absorbed Dose | B17: Dose | C17: ConcWat × Amnt ÷ BW
B18: Central | C18: =C7*C$16/C$11 -> 1.179957133e-06 | D18: mg/kg | E18: Eq
B19: Lower | C19: =C8*C$16/C$11 -> 8.428265233e-07 | D19: mg/kg | E19: Eq
B20: Upper | C20: =C9*C$16/C$11 -> 1.179957133e-06 | D20: mg/kg | E20: Eq

Sheet F08d
A1: Consumption of contaminated water by Mammal, large, Peak Concentrations
A2: Short Title | B2: Peak Concentrations | E2: WatAlloV6
A3: Receptor | B3: Mammal, large
A4: Duration | B4: Acute | E4: Scenario parameter
A5: Parameter/Assumption | B5: Code / Range | C5: Equation/ Value | D5: Units | E5: Reference/Designation
A6: Concentration in water | B6: ConcWat
B7: Central | C7: =B04a!Acute_C -> 1.4e-05 | D7: mg/L | E7: ='B04a'!Acute_C
B8: Lower | C8: =B04a!Acute_L -> 1e-05 | E8: ='B04a'!Acute_L
B9: Upper | C9: =B04a!Acute_U -> 1.4e-05 | E9: ='B04a'!Acute_U
A10: Receptor
A11: Body weight | B11: BW | C11: =A02b!$C$61 -> 70 | D11: kg | E11: Default
A12: Allometric coefficients forwater consumption per day in liters and BW in kilograms
B13: alpha | C13: =A02b!$C$64 -> 0.099 | E13: U.S. EPA/ORD 1993
B14: beta | C14: =A02b!$C$65 -> 0.9 | E14: U.S. EPA/ORD 1993
A15: Amount of water consumed per day | C15: Amnt = alpha BW beta
B16: Amnt | C16: =C13*(C11^C14) -> 4.531306412 | D16: liters | E16: Eq
A17: Absorbed Dose | B17: Dose | C17: ConcWat × Amnt ÷ BW
B18: Central | C18: =C7*C$16/C$11 -> 9.062612823e-07 | D18: mg/kg | E18: Eq
B19: Lower | C19: =C8*C$16/C$11 -> 6.473294874e-07 | D19: mg/kg | E19: Eq
B20: Upper | C20: =C9*C$16/C$11 -> 9.062612823e-07 | D20: mg/kg | E20: Eq

Sheet F08e
A1: Consumption of contaminated water by Bird, small, Peak Concentrations
A2: Short Title | B2: Peak Concentrations | E2: WatAlloV6
A3: Receptor | B3: Bird, small
A4: Duration | B4: Acute | E4: Scenario parameter
A5: Parameter/Assumption | B5: Code / Range | C5: Equation/ Value | D5: Units | E5: Reference/Designation
A6: Concentration in water | B6: ConcWat
B7: Central | C7: =B04a!Acute_C -> 1.4e-05 | D7: mg/L | E7: ='B04a'!Acute_C
B8: Lower | C8: =B04a!Acute_L -> 1e-05 | E8: ='B04a'!Acute_L
B9: Upper | C9: =B04a!Acute_U -> 1.4e-05 | E9: ='B04a'!Acute_U
A10: Receptor
A11: Body weight | B11: BW | C11: =A02b!$C$31 -> 0.01 | D11: kg | E11: Default
A12: Allometric coefficients forwater consumption per day in liters and BW in kilograms
B13: alpha | C13: =A02b!$C$34 -> 0.059 | E13: U.S. EPA/ORD 1993
B14: beta | C14: =A02b!$C$35 -> 0.67 | E14: U.S. EPA/ORD 1993
A15: Amount of water consumed per day | C15: Amnt = alpha BW beta
B16: Amnt | C16: =C13*(C11^C14) -> 0.002696820319 | D16: liters | E16: Eq
A17: Absorbed Dose | B17: Dose | C17: ConcWat × Amnt ÷ BW
B18: Central | C18: =C7*C$16/C$11 -> 3.775548446e-06 | D18: mg/kg | E18: Eq
B19: Lower | C19: =C8*C$16/C$11 -> 2.696820319e-06 | D19: mg/kg | E19: Eq
B20: Upper | C20: =C9*C$16/C$11 -> 3.775548446e-06 | D20: mg/kg | E20: Eq

Sheet F08f
A1: Consumption of contaminated water by Bird, large, Peak Concentrations
A2: Short Title | B2: Peak Concentrations | E2: WatAlloV6
A3: Receptor | B3: Bird, large
A4: Duration | B4: Acute | E4: Scenario parameter
A5: Parameter/Assumption | B5: Code / Range | C5: Equation/ Value | D5: Units | E5: Reference/Designation
A6: Concentration in water | B6: ConcWat
B7: Central | C7: =B04a!Acute_C -> 1.4e-05 | D7: mg/L | E7: ='B04a'!Acute_C
B8: Lower | C8: =B04a!Acute_L -> 1e-05 | E8: ='B04a'!Acute_L
B9: Upper | C9: =B04a!Acute_U -> 1.4e-05 | E9: ='B04a'!Acute_U
A10: Receptor
A11: Body weight | B11: BW | C11: =A02b!$C$15 -> 4 | D11: kg | E11: Default
A12: Allometric coefficients forwater consumption per day in liters and BW in kilograms
B13: alpha | C13: =A02b!$C$18 -> 0.059 | E13: U.S. EPA/ORD 1993
B14: beta | C14: =A02b!$C$19 -> 0.67 | E14: U.S. EPA/ORD 1993
A15: Amount of water consumed per day | C15: Amnt = alpha BW beta
B16: Amnt | C16: =C13*(C11^C14) -> 0.1493592781 | D16: liters | E16: Eq
A17: Absorbed Dose | B17: Dose | C17: ConcWat × Amnt ÷ BW
B18: Central | C18: =C7*C$16/C$11 -> 5.227574733e-07 | D18: mg/kg | E18: Eq
B19: Lower | C19: =C8*C$16/C$11 -> 3.733981952e-07 | D19: mg/kg | E19: Eq
B20: Upper | C20: =C9*C$16/C$11 -> 5.227574733e-07 | D20: mg/kg | E20: Eq

Sheet F09a
A1: Consumption of Small Insects by a Mammal, small after Acute exposure.
A2: Short Title | B2: Small Insects | E2: FdKcalV6
A3: Receptor | B3: Mammal, small
A4: Duration | B4: Acute | E4: Scenario parameter
A5: Material consumed | B5: Small Insects
A6: Parameter/Assumption | B6: Code / Range | C6: Equation/ Value | D6: Units | E6: Reference/Designation
A7: Commodity
A8: Concentration on consumed commodity | B8: Conc
B9: Central | C9: =B05b!Acute_C -> 9 | D9: mg/kg food wet weight | E9: ='B05b'!Acute_C
B10: Lower | C10: =B05b!Acute_L -> 3 | E10: ='B05b'!Acute_L
B11: Upper | C11: =B05b!Acute_U -> 27 | E11: ='B05b'!Acute_U
A12: Receptor
A13: Body weight | B13: BW | C13: =A02b!$C$71 -> 0.02 | D13: kg | E13: Default
A14: Allometric coefficients for caloric requirement per day in kilocalories and BW in grams
B15: alpha | C15: =A02b!$C$75 -> 2.514 | E15: U.S. EPA/ORD 1993
B16: beta | C16: =A02b!$C$76 -> 0.507 | E16: U.S. EPA/ORD 1993
A17: Caloric requirement per day | B17: KR | C17: = alpha x (BW x 1kg/1000g)beta
C18: =C15*((C13*1000)^C16) -> 11.48120526 | D18: kcal/day | E18: Eq
A19: Caloric content of commodity (dry weight) | B19: KCD | C19: ='A03'!$E$63 -> 4.47 | D19: kcal/gdw [Note 1] | E19: U.S. EPA/ORD 1993
A20: Food consumed per day (dry weight) | B20: AmntDry | C20: = KR ÷ KCD
C21: =C18/C19 -> 2.568502294 | D21: gdry/day | E21: Eq
A22: Water content of food item as a proportion | B22: PropWater | C22: ='A03'!$E$64 -> 0.7 | D22: gwater/gfood | E22: Chapman 1998
A23: Dry weight content of food item as a proportion | B23: PropDry | C23: = 1-PropWater
C24: =1-C22 -> 0.3 | D24: gdry/gfood | E24: Eq
A25: Variability in caloric requirements not accounted for by allometric equation | B25: Error
B26: Central | C26: 1 | D26: Note 2
B27: Lower | C27: 0.3
B28: Upper | C28: 1.7
A29: Amount of food consumed per day, wet weight | B29: AmntFood | C29: = Error x (AmntDry ÷ PropDry) ÷ (1000g/kg)
B30: Central | C30: =C26*(C$21/C$24)/1000 -> 0.008561674315 | D30: kgfood/day | E30: Eq
B31: Lower | C31: =C27*(C$21/C$24)/1000 -> 0.002568502294 | E31: Eq
B32: Upper | C32: 0.01455484634 | E32: Eq
A33: Estimate
A34: Dose | B34: Dose | C34: = AmntFood × Conc / BW
B35: Central | C35: =$C30 * C9/C$13 -> 3.852753442 | D35: mg/kg bw/day | E35: Eq
B36: Lower | C36: =$C31 * C10/C$13 -> 0.3852753442 | E36: Eq
B37: Upper | C37: =$C32 * C11/C$13 -> 19.64904255 | E37: Eq

Sheet F09b
A1: Consumption of Small Insects by a Mammal, 400 g after Acute exposure.
A2: Short Title | B2: Small Insects | E2: FdKcalV6
A3: Receptor | B3: Mammal, 400 g
A4: Duration | B4: Acute | E4: Scenario parameter
A5: Material consumed | B5: Small Insects
A6: Parameter/Assumption | B6: Code / Range | C6: Equation/ Value | D6: Units | E6: Reference/Designation
A7: Commodity
A8: Concentration on consumed commodity | B8: Conc
B9: Central | C9: =B05b!Acute_C -> 9 | D9: mg/kg food wet weight | E9: ='B05b'!Acute_C
B10: Lower | C10: =B05b!Acute_L -> 3 | E10: ='B05b'!Acute_L
B11: Upper | C11: =B05b!Acute_U -> 27 | E11: ='B05b'!Acute_U
A12: Receptor
A13: Body weight | B13: BW | C13: =A02b!$C$40 -> 0.4 | D13: kg | E13: Default
A14: Allometric coefficients for caloric requirement per day in kilocalories and BW in grams
B15: alpha | C15: =A02b!$C$43 -> 2.514 | E15: U.S. EPA/ORD 1993
B16: beta | C16: =A02b!$C$44 -> 0.507 | E16: U.S. EPA/ORD 1993
A17: Caloric requirement per day | B17: KR | C17: = alpha x (BW x 1kg/1000g)beta
C18: =C15*((C13*1000)^C16) -> 52.43360149 | D18: kcal/day | E18: Eq
A19: Caloric content of commodity (dry weight) | B19: KCD | C19: ='A03'!$E$63 -> 4.47 | D19: kcal/gdw [Note 1] | E19: U.S. EPA/ORD 1993
A20: Food consumed per day (dry weight) | B20: AmntDry | C20: = KR ÷ KCD
C21: =C18/C19 -> 11.73011219 | D21: gdry/day | E21: Eq
A22: Water content of food item as a proportion | B22: PropWater | C22: ='A03'!$E$64 -> 0.7 | D22: gwater/gfood | E22: Chapman 1998
A23: Dry weight content of food item as a proportion | B23: PropDry | C23: = 1-PropWater
C24: =1-C22 -> 0.3 | D24: gdry/gfood | E24: Eq
A25: Variability in caloric requirements not accounted for by allometric equation | B25: Error
B26: Central | C26: 1 | D26: Note 2
B27: Lower | C27: 0.3
B28: Upper | C28: 1.7
A29: Amount of food consumed per day, wet weight | B29: AmntFood | C29: = Error x (AmntDry ÷ PropDry) ÷ (1000g/kg)
B30: Central | C30: =C26*(C$21/C$24)/1000 -> 0.03910037396 | D30: kgfood/day | E30: Eq
B31: Lower | C31: =C27*(C$21/C$24)/1000 -> 0.01173011219 | E31: Eq
B32: Upper | C32: 0.06647063574 | E32: Eq
A33: Estimate
A34: Dose | B34: Dose | C34: = AmntFood × Conc / BW
B35: Central | C35: =$C30 * C9/C$13 -> 0.8797584142 | D35: mg/kg bw/day | E35: Eq
B36: Lower | C36: =$C31 * C10/C$13 -> 0.08797584142 | E36: Eq
B37: Upper | C37: =$C32 * C11/C$13 -> 4.486767912 | E37: Eq

Sheet F09c
A1: Consumption of Small Insects by a Bird, small after Acute exposure.
A2: Short Title | B2: Small Insects | E2: FdKcalV6
A3: Receptor | B3: Bird, small
A4: Duration | B4: Acute | E4: Scenario parameter
A5: Material consumed | B5: Small Insects
A6: Parameter/Assumption | B6: Code / Range | C6: Equation/ Value | D6: Units | E6: Reference/Designation
A7: Commodity
A8: Concentration on consumed commodity | B8: Conc
B9: Central | C9: =B05b!Acute_C -> 9 | D9: mg/kg food wet weight | E9: ='B05b'!Acute_C
B10: Lower | C10: =B05b!Acute_L -> 3 | E10: ='B05b'!Acute_L
B11: Upper | C11: =B05b!Acute_U -> 27 | E11: ='B05b'!Acute_U
A12: Receptor
A13: Body weight | B13: BW | C13: =A02b!$C$31 -> 0.01 | D13: kg | E13: Default
A14: Allometric coefficients for caloric requirement per day in kilocalories and BW in grams
B15: alpha | C15: =A02b!$C$32 -> 3.12 | E15: U.S. EPA/ORD 1993
B16: beta | C16: =A02b!$C$33 -> 0.605 | E16: U.S. EPA/ORD 1993
A17: Caloric requirement per day | B17: KR | C17: = alpha x (BW x 1kg/1000g)beta
C18: =C15*((C13*1000)^C16) -> 12.56477147 | D18: kcal/day | E18: Eq
A19: Caloric content of commodity (dry weight) | B19: KCD | C19: ='A03'!$E$40 -> 4.3 | D19: kcal/gdw [Note 1] | E19: U.S. EPA/ORD 1993
A20: Food consumed per day (dry weight) | B20: AmntDry | C20: = KR ÷ KCD
C21: =C18/C19 -> 2.922039877 | D21: gdry/day | E21: Eq
A22: Water content of food item as a proportion | B22: PropWater | C22: ='A03'!$E$41 -> 0.7 | D22: gwater/gfood | E22: Chapman 1998
A23: Dry weight content of food item as a proportion | B23: PropDry | C23: = 1-PropWater
C24: =1-C22 -> 0.3 | D24: gdry/gfood | E24: Eq
A25: Variability in caloric requirements not accounted for by allometric equation | B25: Error
B26: Central | C26: 1 | D26: Note 2
B27: Lower | C27: 0.3
B28: Upper | C28: 1.7
A29: Amount of food consumed per day, wet weight | B29: AmntFood | C29: = Error x (AmntDry ÷ PropDry) ÷ (1000g/kg)
B30: Central | C30: =C26*(C$21/C$24)/1000 -> 0.009740132923 | D30: kgfood/day | E30: Eq
B31: Lower | C31: =C27*(C$21/C$24)/1000 -> 0.002922039877 | E31: Eq
B32: Upper | C32: 0.01655822597 | E32: Eq
A33: Estimate
A34: Dose | B34: Dose | C34: = AmntFood × Conc / BW
B35: Central | C35: =$C30 * C9/C$13 -> 8.766119631 | D35: mg/kg bw/day | E35: Eq
B36: Lower | C36: =$C31 * C10/C$13 -> 0.8766119631 | E36: Eq
B37: Upper | C37: =$C32 * C11/C$13 -> 44.70721012 | E37: Eq

Sheet F10a
A1: Consumption of Small Mammal by Mammal, carnivorous, acute exposure scenario
A2: Short Title | B2: Consumption of Abrev(Prey) | E2: SmMKcalInd_Ac
A3: Predator | B3: Mammal, carnivorous
A4: Duration | B4: Acute
A5: Prey | B5: Mammal, small
A6: Parameter/Assumption | B6: Code / Range | C6: Equation/ Value | D6: Units | E6: Reference/Designation
A7: Application rate, lb/acre | B7: ApRlb/ac | C7: ='A01'!ApRt_C -> 0.2 | D7: lb/acre | E7: Worksheet A01
A8: Conversion Factor for lbs/acre to mg/cm2 | B8: CnvF | C8: 0.01121 | D8: mg/cm2/lb/acre
A9: Application rate, mg/cm2 | B9: ApRmgcm | C9: ApRlb/a × CnvF
C10: =C7*C$8 -> 0.002242 | D10: lb/acre | E10: Eq
A11: Prey
A12: Body weight | B12: BWPrey | C12: =A02b!$C$71 -> 0.02 | D12: kg | E12: Default
A13: Allometric coefficients for surface area
B14: alpha | C14: =A02b!$C$77 -> 0.11 | E14: U.S. EPA/ORD 1993
B15: beta | C15: =A02b!$C$78 -> 0.65 | E15: U.S. EPA/ORD 1993
A16: Surface Area of Prey Species (m2) | B16: SAPreyM | C16: alpha x Bwbeta
C17: =C14 * C12^C15 -> 0.008650917739 | D17: meters
A18: Surface Area of Prey Species (cm2) | B18: SAPrey | C18: SAPreyM x 10,000 cm/m2
C19: =C17*10000 -> 86.50917739 | D19: cm2 | E19: Eq
A20: Proportion of body surface sprayed | B20: PrpSA | C20: 0.5 | D20: unitless | E20: Scenario parameter
A21: Amount Deposited on Skin | B21: AmntPrey | C21: ApRmgcm × SA × PrpSA
B22: Central | C22: =C$10*C$19*C$20 -> 0.09697678785 | D22: mg | E22: Eq
A23: Toxic Equivalency Factor for formulation: (See risk assessment if this has a value other than 1.) | B23: TEF
B24: Central | C24: ='A01'!C$35 -> 1 | D24: unitless | E24: Worksheet A01
B25: Lower | C25: ='A01'!C$36 -> 1 | E25: Worksheet A01
B26: Upper | C26: ='A01'!C$37 -> 1 | E26: Worksheet A01
A27: Concentration on prey item after direct spray | B27: DosePrey | C27: NPrey x Amnt x TEF ÷ BW
B28: Central | C28: =C$22*C24/C$12 -> 4.848839392 | D28: mg/kg bw | E28: Eq
B29: Lower | C29: =C$22*C25/C$12 -> 4.848839392 | E29: Eq
B30: Upper | C30: =C$22*C26/C$12 -> 4.848839392 | E30: Eq
A31: Predator
A32: Body weight | B32: BW | C32: =A02b!$C$47 -> 5 | D32: kg | E32: U.S. EPA/ORD 1993
A33: Allometric coefficients for caloric requirement per day in kilocalories and BW in grams
B34: alpha | C34: =A02b!$C$48 -> 0.6167 | E34: U.S. EPA/ORD 1993
B35: beta | C35: =A02b!$C$49 -> 0.862 | E35: U.S. EPA/ORD 1993
A36: Caloric requirement per day | B36: KR | C36: =C34*((C32*1000)^C35) -> 951.8885266 | D36: kcal/day | E36: Eq
A37: Caloric content of prey (wet weight) | B37: KCW | C37: =A02b!$C$72 -> 1.7 | D37: kcal/g | E37: U.S. EPA/ORD 1993
A38: Variability in caloric requirements not accounted for by allometric equation | B38: Error
B39: Central | C39: 1 | D39: Note 1
B40: Lower | C40: 0.3
B41: Upper | C41: 1.7
A42: Amount of food consumed per day, wet weight | B42: Amnt | C42: (KR ÷ KCW)/1000 g/kg
C43: =(C36/C37)/1000 -> 0.5599344274 | D43: kg | E43: Eq
A44: Dose | B44: Dose | C44: Error × Amnt × DosePrey / BW
B45: Central | C45: =C39* C$43 * C28/C$32 -> 0.5430064218 | D45: mg/kg bw | E45: Eq
B46: Lower | C46: =C40* C$43 * C29/C$32 -> 0.1629019265 | E46: Eq
B47: Upper | C47: 0.923110917 | E47: Eq

Sheet F10b
A1: Consumption of Small Mammal by Bird, carnivorous, acute exposure scenario
A2: Short Title | B2: Consumption of Abrev(Prey) | E2: SmMKcalInd_Ac
A3: Predator | B3: Bird, carnivorous
A4: Duration | B4: Acute
A5: Prey | B5: Mammal, small
A6: Parameter/Assumption | B6: Code / Range | C6: Equation/ Value | D6: Units | E6: Reference/Designation
A7: Application rate, lb/acre | B7: ApRlb/ac | C7: ='A01'!ApRt_C -> 0.2 | D7: lb/acre | E7: Worksheet A01
A8: Conversion Factor for lbs/acre to mg/cm2 | B8: CnvF | C8: 0.01121 | D8: mg/cm2/lb/acre
A9: Application rate, mg/cm2 | B9: ApRmgcm | C9: ApRlb/a × CnvF
C10: =C7*C$8 -> 0.002242 | D10: lb/acre | E10: Eq
A11: Prey
A12: Body weight | B12: BWPrey | C12: =A02b!$C$71 -> 0.02 | D12: kg | E12: Default
A13: Allometric coefficients for surface area
B14: alpha | C14: =A02b!$C$77 -> 0.11 | E14: U.S. EPA/ORD 1993
B15: beta | C15: =A02b!$C$78 -> 0.65 | E15: U.S. EPA/ORD 1993
A16: Surface Area of Prey Species (m2) | B16: SAPreyM | C16: alpha x Bwbeta
C17: =C14 * C12^C15 -> 0.008650917739 | D17: meters
A18: Surface Area of Prey Species (cm2) | B18: SAPrey | C18: SAPreyM x 10,000 cm/m2
C19: =C17*10000 -> 86.50917739 | D19: cm2 | E19: Eq
A20: Proportion of body surface sprayed | B20: PrpSA | C20: 0.5 | D20: unitless | E20: Scenario parameter
A21: Amount Deposited on Skin | B21: AmntPrey | C21: ApRmgcm × SA × PrpSA
B22: Central | C22: =C$10*C$19*C$20 -> 0.09697678785 | D22: mg | E22: Eq
A23: Toxic Equivalency Factor for formulation: (See risk assessment if this has a value other than 1.) | B23: TEF
B24: Central | C24: ='A01'!C$35 -> 1 | D24: unitless | E24: Worksheet A01
B25: Lower | C25: ='A01'!C$36 -> 1 | E25: Worksheet A01
B26: Upper | C26: ='A01'!C$37 -> 1 | E26: Worksheet A01
A27: Concentration on prey item after direct spray | B27: DosePrey | C27: NPrey x Amnt x TEF ÷ BW
B28: Central | C28: =C$22*C24/C$12 -> 4.848839392 | D28: mg/kg bw | E28: Eq
B29: Lower | C29: =C$22*C25/C$12 -> 4.848839392 | E29: Eq
B30: Upper | C30: =C$22*C26/C$12 -> 4.848839392 | E30: Eq
A31: Predator
A32: Body weight | B32: BW | C32: =A02b!$C$10 -> 0.64 | D32: kg | E32: Dunning 1993
A33: Allometric coefficients for caloric requirement per day in kilocalories and BW in grams
B34: alpha | C34: =A02b!$C$11 -> 1.146 | E34: U.S. EPA/ORD 1993
B35: beta | C35: =A02b!$C$12 -> 0.749 | E35: U.S. EPA/ORD 1993
A36: Caloric requirement per day | B36: KR | C36: =C34*((C32*1000)^C35) -> 144.8816616 | D36: kcal/day | E36: Eq
A37: Caloric content of prey (wet weight) | B37: KCW | C37: =A02b!$C$72 -> 1.7 | D37: kcal/g | E37: U.S. EPA/ORD 1993
A38: Variability in caloric requirements not accounted for by allometric equation | B38: Error
B39: Central | C39: 1 | D39: Note 1
B40: Lower | C40: 0.3
B41: Upper | C41: 1.7
A42: Amount of food consumed per day, wet weight | B42: Amnt | C42: (KR ÷ KCW)/1000 g/kg
C43: =(C36/C37)/1000 -> 0.08522450683 | D43: kg | E43: Eq
A44: Dose | B44: Dose | C44: Error × Amnt × DosePrey / BW
B45: Central | C45: =C39* C$43 * C28/C$32 -> 0.6456874155 | D45: mg/kg bw | E45: Eq
B46: Lower | C46: =C40* C$43 * C29/C$32 -> 0.1937062247 | E46: Eq
B47: Upper | C47: 1.097668606 | E47: Eq

Sheet F11a
A1: Acute scenario for the consumption of Contaminated Fish (Peak) by Mammal, large carnivorous
A2: Short Title | B2: Fish consumption, accidental spill | E2: FishKcalV6
A3: Predator | B3: Mammal, large carnivorous
A4: Food Item (Prey) | B4: Fish
A5: Duration | B5: Acute | E5: Scenario parameter
A6: Parameter/Assumption | B6: Code / Range | C6: Equation/ Value | D6: Units | E6: Reference/Designation
A7: Water
A8: Concentration in water | B8: ConcWat
B9: Central | C9: =B04a!Acute_C -> 1.4e-05 | D9: mg/L | E9: ='B04a'!Acute_C
B10: Lower | C10: =B04a!Acute_L -> 1e-05 | E10: ='B04a'!Acute_L
B11: Upper | C11: =B04a!Acute_U -> 1.4e-05 | E11: ='B04a'!Acute_U
A12: Fish
A13: Bioconcentration factor | B13: BCF
B14: Central | C14: ='B01'!$C$6 -> 6090 | D14: L/kg
B15: Lower | C15: ='B01'!$C$6 -> 6090
B16: Upper | C16: ='B01'!$C$6 -> 6090
A17: Concentration in fish | B17: ConcFish | C17: ConcWat × BCF
B18: Central | C18: =C9*C14 -> 0.08526 | D18: mg/kg | E18: Eq
B19: Lower | C19: =C10*C15 -> 0.0609 | E19: Eq
B20: Upper | C20: =C11*C16 -> 0.08526 | E20: Eq
A21: Receptor
A22: Body weight | B22: BW | C22: =A02b!$C$52 -> 70 | D22: kg | E22: Reid 2006
A23: Allometric coefficients for caloric requirement per day in kilocalories and BW in grams
B24: alpha | C24: =A02b!$C$53 -> 0.6167 | E24: U.S. EPA/ORD 1993
B25: beta | C25: =A02b!$C$54 -> 0.862 | E25: U.S. EPA/ORD 1993
A26: Caloric requirement per day | B26: KR | C26: =C24*(C22*1000)^C25 -> 9258.666883 | D26: kcal/day | E26: Eq
A27: Caloric content of commodity (dry weight) | B27: KCD | C27: ='A03'!$E$59 -> 4.47 | D27: kcal/gdw [Note 1] | E27: U.S. EPA/ORD 1993
A28: Food consumed per day (dry weight) | B28: AmntDry | C28: = KR ÷ KCD
C29: =C26/C27 -> 2071.29013 | D29: gdry/day | E29: Eq
A30: Water content of vegetation as a proportion | B30: PropWater | C30: ='A03'!$E$60 -> 0.7 | D30: gwater/gfood | E30: Ali et al. 2005
A31: Dry weight content of vegetation as a proportion | B31: PropDry | C31: = 1-PropWater
C32: =1-C30 -> 0.3 | D32: gdry/gfood | E32: Eq
A33: Amount of fish consumed per day, wet weight | B33: AmntFish | C33: = (AmntDry ÷ PropDry) ÷ (1000g/kg)
B34: Central | C34: =(C29/C32)/1000 -> 6.904300435 | D34: kgfood/day | E34: Eq
B35: Lower | C35: =C34*0.3 -> 2.07129013 | D35: Note 1 | E35: Eq
B36: Upper | C36: =C34*1.7 -> 11.73731074 | D36: Note 1 | E36: Eq
A37: Proportion of diet that is contaminated | B37: Prop
B38: Central | C38: 0.3 | D38: Unitless | E38: Scenario parameter
B39: Lower | C39: 0.1 | E39: Scenario parameter
B40: Upper | C40: 1 | E40: Scenario parameter
A41: Dose
A42: Toxic Equivalency Factor for formulation: (See risk assessment if this has a value other than 1.) | B42: TEF
B43: Central | C43: ='A01'!C$35 -> 1 | D43: Unitless | E43: Worksheet A01
B44: Lower | C44: ='A01'!C$36 -> 1 | D44: Note 2 | E44: Worksheet A01
B45: Upper | C45: ='A01'!C$37 -> 1 | D45: Note 2 | E45: Worksheet A01
A46: Dose | B46: Dose | C46: = ConcFish × AmntFish × Prop ÷ BW
B47: Central | C47: =C18*C34*C38/C$22 -> 0.002522831379 | D47: mg/kg | E47: Eq
B48: Lower | C48: =C19*C35*C39/C$22 -> 0.0001802022413 | D48: mg/kg | E48: Eq
B49: Upper | C49: 0.01429604448 | D49: mg/kg | E49: Eq
E50: FishKcalV6

Sheet F11b
A1: Acute scenario for the consumption of Contaminated Fish (Peak) by Mammal, carnivorous
A2: Short Title | B2: Fish consumption, accidental spill | E2: FishKcalV6
A3: Predator | B3: Mammal, carnivorous
A4: Food Item (Prey) | B4: Fish
A5: Duration | B5: Acute | E5: Scenario parameter
A6: Parameter/Assumption | B6: Code / Range | C6: Equation/ Value | D6: Units | E6: Reference/Designation
A7: Water
A8: Concentration in water | B8: ConcWat
B9: Central | C9: =B04a!Acute_C -> 1.4e-05 | D9: mg/L | E9: ='B04a'!Acute_C
B10: Lower | C10: =B04a!Acute_L -> 1e-05 | E10: ='B04a'!Acute_L
B11: Upper | C11: =B04a!Acute_U -> 1.4e-05 | E11: ='B04a'!Acute_U
A12: Fish
A13: Bioconcentration factor | B13: BCF
B14: Central | C14: ='B01'!$C$6 -> 6090 | D14: L/kg
B15: Lower | C15: ='B01'!$C$6 -> 6090
B16: Upper | C16: ='B01'!$C$6 -> 6090
A17: Concentration in fish | B17: ConcFish | C17: ConcWat × BCF
B18: Central | C18: =C9*C14 -> 0.08526 | D18: mg/kg | E18: Eq
B19: Lower | C19: =C10*C15 -> 0.0609 | E19: Eq
B20: Upper | C20: =C11*C16 -> 0.08526 | E20: Eq
A21: Receptor
A22: Body weight | B22: BW | C22: =A02b!$C$47 -> 5 | D22: kg | E22: U.S. EPA/ORD 1993
A23: Allometric coefficients for caloric requirement per day in kilocalories and BW in grams
B24: alpha | C24: =A02b!$C$48 -> 0.6167 | E24: U.S. EPA/ORD 1993
B25: beta | C25: =A02b!$C$49 -> 0.862 | E25: U.S. EPA/ORD 1993
A26: Caloric requirement per day | B26: KR | C26: =C24*(C22*1000)^C25 -> 951.8885266 | D26: kcal/day | E26: Eq
A27: Caloric content of commodity (dry weight) | B27: KCD | C27: ='A03'!$E$59 -> 4.47 | D27: kcal/gdw [Note 1] | E27: U.S. EPA/ORD 1993
A28: Food consumed per day (dry weight) | B28: AmntDry | C28: = KR ÷ KCD
C29: =C26/C27 -> 212.9504534 | D29: gdry/day | E29: Eq
A30: Water content of vegetation as a proportion | B30: PropWater | C30: ='A03'!$E$60 -> 0.7 | D30: gwater/gfood | E30: Ali et al. 2005
A31: Dry weight content of vegetation as a proportion | B31: PropDry | C31: = 1-PropWater
C32: =1-C30 -> 0.3 | D32: gdry/gfood | E32: Eq
A33: Amount of fish consumed per day, wet weight | B33: AmntFish | C33: = (AmntDry ÷ PropDry) ÷ (1000g/kg)
B34: Central | C34: =(C29/C32)/1000 -> 0.7098348446 | D34: kgfood/day | E34: Eq
B35: Lower | C35: =C34*0.3 -> 0.2129504534 | D35: Note 1 | E35: Eq
B36: Upper | C36: =C34*1.7 -> 1.206719236 | D36: Note 1 | E36: Eq
A37: Proportion of diet that is contaminated | B37: Prop
B38: Central | C38: 0.3 | D38: Unitless | E38: Scenario parameter
B39: Lower | C39: 0.1 | E39: Scenario parameter
B40: Upper | C40: 1 | E40: Scenario parameter
A41: Dose
A42: Toxic Equivalency Factor for formulation: (See risk assessment if this has a value other than 1.) | B42: TEF
B43: Central | C43: ='A01'!C$35 -> 1 | D43: Unitless | E43: Worksheet A01
B44: Lower | C44: ='A01'!C$36 -> 1 | D44: Note 2 | E44: Worksheet A01
B45: Upper | C45: ='A01'!C$37 -> 1 | D45: Note 2 | E45: Worksheet A01
A46: Dose | B46: Dose | C46: = ConcFish × AmntFish × Prop ÷ BW
B47: Central | C47: =C18*C34*C38/C$22 -> 0.003631231131 | D47: mg/kg | E47: Eq
B48: Lower | C48: =C19*C35*C39/C$22 -> 0.0002593736522 | D48: mg/kg | E48: Eq
B49: Upper | C49: 0.02057697641 | D49: mg/kg | E49: Eq
E50: FishKcalV6

Sheet F11c
A1: Acute scenario for the consumption of Contaminated Fish (Peak) by Bird, piscivorous
A2: Short Title | B2: Fish consumption, accidental spill | E2: FishKcalV6
A3: Predator | B3: Bird, piscivorous
A4: Food Item (Prey) | B4: Fish
A5: Duration | B5: Acute | E5: Scenario parameter
A6: Parameter/Assumption | B6: Code / Range | C6: Equation/ Value | D6: Units | E6: Reference/Designation
A7: Water
A8: Concentration in water | B8: ConcWat
B9: Central | C9: =B04a!Acute_C -> 1.4e-05 | D9: mg/L | E9: ='B04a'!Acute_C
B10: Lower | C10: =B04a!Acute_L -> 1e-05 | E10: ='B04a'!Acute_L
B11: Upper | C11: =B04a!Acute_U -> 1.4e-05 | E11: ='B04a'!Acute_U
A12: Fish
A13: Bioconcentration factor | B13: BCF
B14: Central | C14: ='B01'!$C$6 -> 6090 | D14: L/kg
B15: Lower | C15: ='B01'!$C$6 -> 6090
B16: Upper | C16: ='B01'!$C$6 -> 6090
A17: Concentration in fish | B17: ConcFish | C17: ConcWat × BCF
B18: Central | C18: =C9*C14 -> 0.08526 | D18: mg/kg | E18: Eq
B19: Lower | C19: =C10*C15 -> 0.0609 | E19: Eq
B20: Upper | C20: =C11*C16 -> 0.08526 | E20: Eq
A21: Receptor
A22: Body weight | B22: BW | C22: =A02b!$C$24 -> 2.4 | D22: kg | E22: Sibley 2000
A23: Allometric coefficients for caloric requirement per day in kilocalories and BW in grams
B24: alpha | C24: =A02b!$C$27 -> 1.916 | E24: U.S. EPA/ORD 1993
B25: beta | C25: =A02b!$C$28 -> 0.704 | E25: U.S. EPA/ORD 1993
A26: Caloric requirement per day | B26: KR | C26: =C24*(C22*1000)^C25 -> 459.2659192 | D26: kcal/day | E26: Eq
A27: Caloric content of commodity (dry weight) | B27: KCD | C27: ='A03'!$E$36 -> 3.87 | D27: kcal/gdw [Note 1] | E27: U.S. EPA/ORD 1993
A28: Food consumed per day (dry weight) | B28: AmntDry | C28: = KR ÷ KCD
C29: =C26/C27 -> 118.6733641 | D29: gdry/day | E29: Eq
A30: Water content of vegetation as a proportion | B30: PropWater | C30: ='A03'!$E$37 -> 0.7 | D30: gwater/gfood | E30: Ali et al. 2005
A31: Dry weight content of vegetation as a proportion | B31: PropDry | C31: = 1-PropWater
C32: =1-C30 -> 0.3 | D32: gdry/gfood | E32: Eq
A33: Amount of fish consumed per day, wet weight | B33: AmntFish | C33: = (AmntDry ÷ PropDry) ÷ (1000g/kg)
B34: Central | C34: =(C29/C32)/1000 -> 0.3955778805 | D34: kgfood/day | E34: Eq
B35: Lower | C35: =C34*0.3 -> 0.1186733641 | D35: Note 1 | E35: Eq
B36: Upper | C36: =C34*1.7 -> 0.6724823968 | D36: Note 1 | E36: Eq
A37: Proportion of diet that is contaminated | B37: Prop
B38: Central | C38: 0.3 | D38: Unitless | E38: Scenario parameter
B39: Lower | C39: 0.1 | E39: Scenario parameter
B40: Upper | C40: 1 | E40: Scenario parameter
A41: Dose
A42: Toxic Equivalency Factor for formulation: (See risk assessment if this has a value other than 1.) | B42: TEF
B43: Central | C43: ='A01'!C$35 -> 1 | D43: Unitless | E43: Worksheet A01
B44: Lower | C44: ='A01'!C$36 -> 1 | D44: Note 2 | E44: Worksheet A01
B45: Upper | C45: ='A01'!C$37 -> 1 | D45: Note 2 | E45: Worksheet A01
A46: Dose | B46: Dose | C46: = ConcFish × AmntFish × Prop ÷ BW
B47: Central | C47: =C18*C34*C38/C$22 -> 0.004215871261 | D47: mg/kg | E47: Eq
B48: Lower | C48: =C19*C35*C39/C$22 -> 0.0003011336615 | D48: mg/kg | E48: Eq
B49: Upper | C49: 0.02388993715 | D49: mg/kg | E49: Eq
E50: FishKcalV6

Sheet F12a
A1: Consumption of Fruit by a Mammal, small after Chronic exposure.
A2: Short Title | B2: Fruit | E2: FdKcalV6
A3: Receptor | B3: Mammal, small
A4: Duration | B4: Chronic | E4: Scenario parameter
A5: Material consumed | B5: Fruit
A6: Parameter/Assumption | B6: Code / Range | C6: Equation/ Value | D6: Units | E6: Reference/Designation
A7: Commodity
A8: Concentration on consumed commodity | B8: Conc
B9: Central | C9: =B05a!Chronic_C -> 0.1570722875 | D9: mg/kg food wet weight | E9: ='B05a'!Chronic_C
B10: Lower | C10: =B05a!Chronic_L -> 0.02051832947 | E10: ='B05a'!Chronic_L
B11: Upper | C11: =B05a!Chronic_U -> 0.5738900806 | E11: ='B05a'!Chronic_U
A12: Receptor
A13: Body weight | B13: BW | C13: =A02b!$C$71 -> 0.02 | D13: kg | E13: Default
A14: Allometric coefficients for caloric requirement per day in kilocalories and BW in grams
B15: alpha | C15: =A02b!$C$75 -> 2.514 | E15: U.S. EPA/ORD 1993
B16: beta | C16: =A02b!$C$76 -> 0.507 | E16: U.S. EPA/ORD 1993
A17: Caloric requirement per day | B17: KR | C17: = alpha x (BW x 1kg/1000g)beta
C18: =C15*((C13*1000)^C16) -> 11.48120526 | D18: kcal/day | E18: Eq
A19: Caloric content of commodity (dry weight) | B19: KCD | C19: ='A03'!$E$61 -> 1.1 | D19: kcal/gdw [Note 1] | E19: U.S. EPA/ORD 1993
A20: Food consumed per day (dry weight) | B20: AmntDry | C20: = KR ÷ KCD
C21: =C18/C19 -> 10.43745932 | D21: gdry/day | E21: Eq
A22: Water content of food item as a proportion | B22: PropWater | C22: ='A03'!$E$62 -> 0.77 | D22: gwater/gfood | E22: U.S. EPA/ORD 1993
A23: Dry weight content of food item as a proportion | B23: PropDry | C23: = 1-PropWater
C24: =1-C22 -> 0.23 | D24: gdry/gfood | E24: Eq
A25: Variability in caloric requirements not accounted for by allometric equation | B25: Error
B26: Central | C26: 1 | D26: Note 2
B27: Lower | C27: 0.3
B28: Upper | C28: 1.7
A29: Amount of food consumed per day, wet weight | B29: AmntFood | C29: = Error x (AmntDry ÷ PropDry) ÷ (1000g/kg)
B30: Central | C30: =C26*(C$21/C$24)/1000 -> 0.04538025793 | D30: kgfood/day | E30: Eq
B31: Lower | C31: =C27*(C$21/C$24)/1000 -> 0.01361407738 | E31: Eq
B32: Upper | C32: 0.07714643848 | E32: Eq
A33: Estimate
A34: Dose | B34: Dose | C34: = AmntFood × Conc / BW
B35: Central | C35: =$C30 * C9/C$13 -> 0.356399046 | D35: mg/kg bw/day | E35: Eq
B36: Lower | C36: =$C31 * C10/C$13 -> 0.01396690625 | E36: Eq
B37: Upper | C37: =$C32 * C11/C$13 -> 2.21367879 | E37: Eq

Sheet F12b
A1: Consumption of Fruit by a Mammal, 400 g after Chronic exposure.
A2: Short Title | B2: Fruit | E2: FdKcalV6
A3: Receptor | B3: Mammal, 400 g
A4: Duration | B4: Chronic | E4: Scenario parameter
A5: Material consumed | B5: Fruit
A6: Parameter/Assumption | B6: Code / Range | C6: Equation/ Value | D6: Units | E6: Reference/Designation
A7: Commodity
A8: Concentration on consumed commodity | B8: Conc
B9: Central | C9: =B05a!Chronic_C -> 0.1570722875 | D9: mg/kg food wet weight | E9: ='B05a'!Chronic_C
B10: Lower | C10: =B05a!Chronic_L -> 0.02051832947 | E10: ='B05a'!Chronic_L
B11: Upper | C11: =B05a!Chronic_U -> 0.5738900806 | E11: ='B05a'!Chronic_U
A12: Receptor
A13: Body weight | B13: BW | C13: =A02b!$C$40 -> 0.4 | D13: kg | E13: Default
A14: Allometric coefficients for caloric requirement per day in kilocalories and BW in grams
B15: alpha | C15: =A02b!$C$43 -> 2.514 | E15: U.S. EPA/ORD 1993
B16: beta | C16: =A02b!$C$44 -> 0.507 | E16: U.S. EPA/ORD 1993
A17: Caloric requirement per day | B17: KR | C17: = alpha x (BW x 1kg/1000g)beta
C18: =C15*((C13*1000)^C16) -> 52.43360149 | D18: kcal/day | E18: Eq
A19: Caloric content of commodity (dry weight) | B19: KCD | C19: ='A03'!$E$61 -> 1.1 | D19: kcal/gdw [Note 1] | E19: U.S. EPA/ORD 1993
A20: Food consumed per day (dry weight) | B20: AmntDry | C20: = KR ÷ KCD
C21: =C18/C19 -> 47.66691044 | D21: gdry/day | E21: Eq
A22: Water content of food item as a proportion | B22: PropWater | C22: ='A03'!$E$62 -> 0.77 | D22: gwater/gfood | E22: U.S. EPA/ORD 1993
A23: Dry weight content of food item as a proportion | B23: PropDry | C23: = 1-PropWater
C24: =1-C22 -> 0.23 | D24: gdry/gfood | E24: Eq
A25: Variability in caloric requirements not accounted for by allometric equation | B25: Error
B26: Central | C26: 1 | D26: Note 2
B27: Lower | C27: 0.3
B28: Upper | C28: 1.7
A29: Amount of food consumed per day, wet weight | B29: AmntFood | C29: = Error x (AmntDry ÷ PropDry) ÷ (1000g/kg)
B30: Central | C30: =C26*(C$21/C$24)/1000 -> 0.2072474367 | D30: kgfood/day | E30: Eq
B31: Lower | C31: =C27*(C$21/C$24)/1000 -> 0.06217423101 | E31: Eq
B32: Upper | C32: 0.3523206424 | E32: Eq
A33: Estimate
A34: Dose | B34: Dose | C34: = AmntFood × Conc / BW
B35: Central | C35: =$C30 * C9/C$13 -> 0.0813820724 | D35: mg/kg bw/day | E35: Eq
B36: Lower | C36: =$C31 * C10/C$13 -> 0.003189278391 | E36: Eq
B37: Upper | C37: =$C32 * C11/C$13 -> 0.5054833046 | E37: Eq

Sheet F12c
A1: Consumption of Fruit by a Mammal, large after Chronic exposure.
A2: Short Title | B2: Fruit | E2: FdKcalV6
A3: Receptor | B3: Mammal, large
A4: Duration | B4: Chronic | E4: Scenario parameter
A5: Material consumed | B5: Fruit
A6: Parameter/Assumption | B6: Code / Range | C6: Equation/ Value | D6: Units | E6: Reference/Designation
A7: Commodity
A8: Concentration on consumed commodity | B8: Conc
B9: Central | C9: =B05a!Chronic_C -> 0.1570722875 | D9: mg/kg food wet weight | E9: ='B05a'!Chronic_C
B10: Lower | C10: =B05a!Chronic_L -> 0.02051832947 | E10: ='B05a'!Chronic_L
B11: Upper | C11: =B05a!Chronic_U -> 0.5738900806 | E11: ='B05a'!Chronic_U
A12: Receptor
A13: Body weight | B13: BW | C13: =A02b!$C$61 -> 70 | D13: kg | E13: Default
A14: Allometric coefficients for caloric requirement per day in kilocalories and BW in grams
B15: alpha | C15: =A02b!$C$62 -> 1.518 | E15: U.S. EPA/ORD 1993
B16: beta | C16: =A02b!$C$63 -> 0.73 | E16: U.S. EPA/ORD 1993
A17: Caloric requirement per day | B17: KR | C17: = alpha x (BW x 1kg/1000g)beta
C18: =C15*((C13*1000)^C16) -> 5226.28803 | D18: kcal/day | E18: Eq
A19: Caloric content of commodity (dry weight) | B19: KCD | C19: ='A03'!$E$61 -> 1.1 | D19: kcal/gdw [Note 1] | E19: U.S. EPA/ORD 1993
A20: Food consumed per day (dry weight) | B20: AmntDry | C20: = KR ÷ KCD
C21: =C18/C19 -> 4751.170936 | D21: gdry/day | E21: Eq
A22: Water content of food item as a proportion | B22: PropWater | C22: ='A03'!$E$62 -> 0.77 | D22: gwater/gfood | E22: U.S. EPA/ORD 1993
A23: Dry weight content of food item as a proportion | B23: PropDry | C23: = 1-PropWater
C24: =1-C22 -> 0.23 | D24: gdry/gfood | E24: Eq
A25: Variability in caloric requirements not accounted for by allometric equation | B25: Error
B26: Central | C26: 1 | D26: Note 2
B27: Lower | C27: 0.3
B28: Upper | C28: 1.7
A29: Amount of food consumed per day, wet weight | B29: AmntFood | C29: = Error x (AmntDry ÷ PropDry) ÷ (1000g/kg)
B30: Central | C30: =C26*(C$21/C$24)/1000 -> 20.65726494 | D30: kgfood/day | E30: Eq
B31: Lower | C31: =C27*(C$21/C$24)/1000 -> 6.197179482 | E31: Eq
B32: Upper | C32: 35.1173504 | E32: Eq
A33: Estimate
A34: Dose | B34: Dose | C34: = AmntFood × Conc / BW
B35: Central | C35: =$C30 * C9/C$13 -> 0.04635262653 | D35: mg/kg bw/day | E35: Eq
B36: Lower | C36: =$C31 * C10/C$13 -> 0.001816511006 | E36: Eq
B37: Upper | C37: =$C32 * C11/C$13 -> 0.2879071293 | E37: Eq

Sheet F12d
A1: Consumption of Fruit by a Bird, small after Chronic exposure.
A2: Short Title | B2: Fruit | E2: FdKcalV6
A3: Receptor | B3: Bird, small
A4: Duration | B4: Chronic | E4: Scenario parameter
A5: Material consumed | B5: Fruit
A6: Parameter/Assumption | B6: Code / Range | C6: Equation/ Value | D6: Units | E6: Reference/Designation
A7: Commodity
A8: Concentration on consumed commodity | B8: Conc
B9: Central | C9: =B05a!Chronic_C -> 0.1570722875 | D9: mg/kg food wet weight | E9: ='B05a'!Chronic_C
B10: Lower | C10: =B05a!Chronic_L -> 0.02051832947 | E10: ='B05a'!Chronic_L
B11: Upper | C11: =B05a!Chronic_U -> 0.5738900806 | E11: ='B05a'!Chronic_U
A12: Receptor
A13: Body weight | B13: BW | C13: =A02b!$C$31 -> 0.01 | D13: kg | E13: Default
A14: Allometric coefficients for caloric requirement per day in kilocalories and BW in grams
B15: alpha | C15: =A02b!$C$32 -> 3.12 | E15: U.S. EPA/ORD 1993
B16: beta | C16: =A02b!$C$33 -> 0.605 | E16: U.S. EPA/ORD 1993
A17: Caloric requirement per day | B17: KR | C17: = alpha x (BW x 1kg/1000g)beta
C18: =C15*((C13*1000)^C16) -> 12.56477147 | D18: kcal/day | E18: Eq
A19: Caloric content of commodity (dry weight) | B19: KCD | C19: ='A03'!$E$38 -> 1.1 | D19: kcal/gdw [Note 1] | E19: U.S. EPA/ORD 1993
A20: Food consumed per day (dry weight) | B20: AmntDry | C20: = KR ÷ KCD
C21: =C18/C19 -> 11.42251952 | D21: gdry/day | E21: Eq
A22: Water content of food item as a proportion | B22: PropWater | C22: ='A03'!$E$39 -> 0.77 | D22: gwater/gfood | E22: U.S. EPA/ORD 1993
A23: Dry weight content of food item as a proportion | B23: PropDry | C23: = 1-PropWater
C24: =1-C22 -> 0.23 | D24: gdry/gfood | E24: Eq
A25: Variability in caloric requirements not accounted for by allometric equation | B25: Error
B26: Central | C26: 1 | D26: Note 2
B27: Lower | C27: 0.3
B28: Upper | C28: 1.7
A29: Amount of food consumed per day, wet weight | B29: AmntFood | C29: = Error x (AmntDry ÷ PropDry) ÷ (1000g/kg)
B30: Central | C30: =C26*(C$21/C$24)/1000 -> 0.04966312834 | D30: kgfood/day | E30: Eq
B31: Lower | C31: =C27*(C$21/C$24)/1000 -> 0.0148989385 | E31: Eq
B32: Upper | C32: 0.08442731818 | E32: Eq
A33: Estimate
A34: Dose | B34: Dose | C34: = AmntFood × Conc / BW
B35: Central | C35: =$C30 * C9/C$13 -> 0.7800701173 | D35: mg/kg bw/day | E35: Eq
B36: Lower | C36: =$C31 * C10/C$13 -> 0.0305701329 | E36: Eq
B37: Upper | C37: =$C32 * C11/C$13 -> 4.845200044 | E37: Eq

Sheet F12e
A1: Consumption of Fruit by a Bird, large after Chronic exposure.
A2: Short Title | B2: Fruit | E2: FdKcalV6
A3: Receptor | B3: Bird, large
A4: Duration | B4: Chronic | E4: Scenario parameter
A5: Material consumed | B5: Fruit
A6: Parameter/Assumption | B6: Code / Range | C6: Equation/ Value | D6: Units | E6: Reference/Designation
A7: Commodity
A8: Concentration on consumed commodity | B8: Conc
B9: Central | C9: =B05a!Chronic_C -> 0.1570722875 | D9: mg/kg food wet weight | E9: ='B05a'!Chronic_C
B10: Lower | C10: =B05a!Chronic_L -> 0.02051832947 | E10: ='B05a'!Chronic_L
B11: Upper | C11: =B05a!Chronic_U -> 0.5738900806 | E11: ='B05a'!Chronic_U
A12: Receptor
A13: Body weight | B13: BW | C13: =A02b!$C$15 -> 4 | D13: kg | E13: Default
A14: Allometric coefficients for caloric requirement per day in kilocalories and BW in grams
B15: alpha | C15: =A02b!$C$16 -> 1.146 | E15: U.S. EPA/ORD 1993
B16: beta | C16: =A02b!$C$17 -> 0.749 | E16: U.S. EPA/ORD 1993
A17: Caloric requirement per day | B17: KR | C17: = alpha x (BW x 1kg/1000g)beta
C18: =C15*((C13*1000)^C16) -> 571.6465031 | D18: kcal/day | E18: Eq
A19: Caloric content of commodity (dry weight) | B19: KCD | C19: ='A03'!$E$38 -> 1.1 | D19: kcal/gdw [Note 1] | E19: U.S. EPA/ORD 1993
A20: Food consumed per day (dry weight) | B20: AmntDry | C20: = KR ÷ KCD
C21: =C18/C19 -> 519.6786392 | D21: gdry/day | E21: Eq
A22: Water content of food item as a proportion | B22: PropWater | C22: ='A03'!$E$39 -> 0.77 | D22: gwater/gfood | E22: U.S. EPA/ORD 1993
A23: Dry weight content of food item as a proportion | B23: PropDry | C23: = 1-PropWater
C24: =1-C22 -> 0.23 | D24: gdry/gfood | E24: Eq
A25: Variability in caloric requirements not accounted for by allometric equation | B25: Error
B26: Central | C26: 1 | D26: Note 2
B27: Lower | C27: 0.3
B28: Upper | C28: 1.7
A29: Amount of food consumed per day, wet weight | B29: AmntFood | C29: = Error x (AmntDry ÷ PropDry) ÷ (1000g/kg)
B30: Central | C30: =C26*(C$21/C$24)/1000 -> 2.259472344 | D30: kgfood/day | E30: Eq
B31: Lower | C31: =C27*(C$21/C$24)/1000 -> 0.6778417033 | E31: Eq
B32: Upper | C32: 3.841102985 | E32: Eq
A33: Estimate
A34: Dose | B34: Dose | C34: = AmntFood × Conc / BW
B35: Central | C35: =$C30 * C9/C$13 -> 0.08872512241 | D35: mg/kg bw/day | E35: Eq
B36: Lower | C36: =$C31 * C10/C$13 -> 0.003477044849 | E36: Eq
B37: Upper | C37: =$C32 * C11/C$13 -> 0.5510927254 | E37: Eq

Sheet F13a
A1: Consumption of Broadleaf Vegetation by a Mammal, small after Chronic exposure.
A2: Short Title | B2: Broadleaf | E2: FdKcalV6
A3: Receptor | B3: Mammal, small
A4: Duration | B4: Chronic | E4: Scenario parameter
A5: Material consumed | B5: Broadleaf Vegetation
A6: Parameter/Assumption | B6: Code / Range | C6: Equation/ Value | D6: Units | E6: Reference/Designation
A7: Commodity
A8: Concentration on consumed commodity | B8: Conc
B9: Central | C9: =B05b!Chronic_C -> 1.818742549 | D9: mg/kg food wet weight | E9: ='B05b'!Chronic_C
B10: Lower | C10: =B05b!Chronic_L -> 0.1154156033 | E10: ='B05b'!Chronic_L
B11: Upper | C11: =B05b!Chronic_U -> 9.293780362 | E11: ='B05b'!Chronic_U
A12: Receptor
A13: Body weight | B13: BW | C13: =A02b!$C$71 -> 0.02 | D13: kg | E13: Default
A14: Allometric coefficients for caloric requirement per day in kilocalories and BW in grams
B15: alpha | C15: =A02b!$C$75 -> 2.514 | E15: U.S. EPA/ORD 1993
B16: beta | C16: =A02b!$C$76 -> 0.507 | E16: U.S. EPA/ORD 1993
A17: Caloric requirement per day | B17: KR | C17: = alpha x (BW x 1kg/1000g)beta
C18: =C15*((C13*1000)^C16) -> 11.48120526 | D18: kcal/day | E18: Eq
A19: Caloric content of commodity (dry weight) | B19: KCD | C19: ='A03'!$E$65 -> 2.26 | D19: kcal/gdw [Note 1] | E19: U.S. EPA/ORD 1993
A20: Food consumed per day (dry weight) | B20: AmntDry | C20: = KR ÷ KCD
C21: =C18/C19 -> 5.080179317 | D21: gdry/day | E21: Eq
A22: Water content of food item as a proportion | B22: PropWater | C22: ='A03'!$E$66 -> 0.85 | D22: gwater/gfood | E22: U.S. EPA/ORD 1993
A23: Dry weight content of food item as a proportion | B23: PropDry | C23: = 1-PropWater
C24: =1-C22 -> 0.15 | D24: gdry/gfood | E24: Eq
A25: Variability in caloric requirements not accounted for by allometric equation | B25: Error
B26: Central | C26: 1 | D26: Note 2
B27: Lower | C27: 0.3
B28: Upper | C28: 1.7
A29: Amount of food consumed per day, wet weight | B29: AmntFood | C29: = Error x (AmntDry ÷ PropDry) ÷ (1000g/kg)
B30: Central | C30: =C26*(C$21/C$24)/1000 -> 0.03386786211 | D30: kgfood/day | E30: Eq
B31: Lower | C31: =C27*(C$21/C$24)/1000 -> 0.01016035863 | E31: Eq
B32: Upper | C32: 0.05757536559 | E32: Eq
A33: Estimate
A34: Dose | B34: Dose | C34: = AmntFood × Conc / BW
B35: Central | C35: =$C30 * C9/C$13 -> 3.079846093 | D35: mg/kg bw/day | E35: Eq
B36: Lower | C36: =$C31 * C10/C$13 -> 0.05863319606 | E36: Eq
B37: Upper | C37: =$C32 * C11/C$13 -> 26.7546401 | E37: Eq

Sheet F13b
A1: Consumption of Broadleaf Vegetation by a Mammal, 400 g after Chronic exposure.
A2: Short Title | B2: Broadleaf | E2: FdKcalV6
A3: Receptor | B3: Mammal, 400 g
A4: Duration | B4: Chronic | E4: Scenario parameter
A5: Material consumed | B5: Broadleaf Vegetation
A6: Parameter/Assumption | B6: Code / Range | C6: Equation/ Value | D6: Units | E6: Reference/Designation
A7: Commodity
A8: Concentration on consumed commodity | B8: Conc
B9: Central | C9: =B05b!Chronic_C -> 1.818742549 | D9: mg/kg food wet weight | E9: ='B05b'!Chronic_C
B10: Lower | C10: =B05b!Chronic_L -> 0.1154156033 | E10: ='B05b'!Chronic_L
B11: Upper | C11: =B05b!Chronic_U -> 9.293780362 | E11: ='B05b'!Chronic_U
A12: Receptor
A13: Body weight | B13: BW | C13: =A02b!$C$40 -> 0.4 | D13: kg | E13: Default
A14: Allometric coefficients for caloric requirement per day in kilocalories and BW in grams
B15: alpha | C15: =A02b!$C$43 -> 2.514 | E15: U.S. EPA/ORD 1993
B16: beta | C16: =A02b!$C$44 -> 0.507 | E16: U.S. EPA/ORD 1993
A17: Caloric requirement per day | B17: KR | C17: = alpha x (BW x 1kg/1000g)beta
C18: =C15*((C13*1000)^C16) -> 52.43360149 | D18: kcal/day | E18: Eq
A19: Caloric content of commodity (dry weight) | B19: KCD | C19: ='A03'!$E$65 -> 2.26 | D19: kcal/gdw [Note 1] | E19: U.S. EPA/ORD 1993
A20: Food consumed per day (dry weight) | B20: AmntDry | C20: = KR ÷ KCD
C21: =C18/C19 -> 23.20070862 | D21: gdry/day | E21: Eq
A22: Water content of food item as a proportion | B22: PropWater | C22: ='A03'!$E$66 -> 0.85 | D22: gwater/gfood | E22: U.S. EPA/ORD 1993
A23: Dry weight content of food item as a proportion | B23: PropDry | C23: = 1-PropWater
C24: =1-C22 -> 0.15 | D24: gdry/gfood | E24: Eq
A25: Variability in caloric requirements not accounted for by allometric equation | B25: Error
B26: Central | C26: 1 | D26: Note 2
B27: Lower | C27: 0.3
B28: Upper | C28: 1.7
A29: Amount of food consumed per day, wet weight | B29: AmntFood | C29: = Error x (AmntDry ÷ PropDry) ÷ (1000g/kg)
B30: Central | C30: =C26*(C$21/C$24)/1000 -> 0.1546713908 | D30: kgfood/day | E30: Eq
B31: Lower | C31: =C27*(C$21/C$24)/1000 -> 0.04640141724 | E31: Eq
B32: Upper | C32: 0.2629413644 | E32: Eq
A33: Estimate
A34: Dose | B34: Dose | C34: = AmntFood × Conc / BW
B35: Central | C35: =$C30 * C9/C$13 -> 0.7032685989 | D35: mg/kg bw/day | E35: Eq
B36: Lower | C36: =$C31 * C10/C$13 -> 0.01338861891 | E36: Eq
B37: Upper | C37: =$C32 * C11/C$13 -> 6.109298222 | E37: Eq

Sheet F13c
A1: Consumption of Broadleaf Vegetation by a Mammal, large after Chronic exposure.
A2: Short Title | B2: Broadleaf | E2: FdKcalV6
A3: Receptor | B3: Mammal, large
A4: Duration | B4: Chronic | E4: Scenario parameter
A5: Material consumed | B5: Broadleaf Vegetation
A6: Parameter/Assumption | B6: Code / Range | C6: Equation/ Value | D6: Units | E6: Reference/Designation
A7: Commodity
A8: Concentration on consumed commodity | B8: Conc
B9: Central | C9: =B05b!Chronic_C -> 1.818742549 | D9: mg/kg food wet weight | E9: ='B05b'!Chronic_C
B10: Lower | C10: =B05b!Chronic_L -> 0.1154156033 | E10: ='B05b'!Chronic_L
B11: Upper | C11: =B05b!Chronic_U -> 9.293780362 | E11: ='B05b'!Chronic_U
A12: Receptor
A13: Body weight | B13: BW | C13: =A02b!$C$61 -> 70 | D13: kg | E13: Default
A14: Allometric coefficients for caloric requirement per day in kilocalories and BW in grams
B15: alpha | C15: =A02b!$C$62 -> 1.518 | E15: U.S. EPA/ORD 1993
B16: beta | C16: =A02b!$C$63 -> 0.73 | E16: U.S. EPA/ORD 1993
A17: Caloric requirement per day | B17: KR | C17: = alpha x (BW x 1kg/1000g)beta
C18: =C15*((C13*1000)^C16) -> 5226.28803 | D18: kcal/day | E18: Eq
A19: Caloric content of commodity (dry weight) | B19: KCD | C19: ='A03'!$E$65 -> 2.26 | D19: kcal/gdw [Note 1] | E19: U.S. EPA/ORD 1993
A20: Food consumed per day (dry weight) | B20: AmntDry | C20: = KR ÷ KCD
C21: =C18/C19 -> 2312.516827 | D21: gdry/day | E21: Eq
A22: Water content of food item as a proportion | B22: PropWater | C22: ='A03'!$E$66 -> 0.85 | D22: gwater/gfood | E22: U.S. EPA/ORD 1993
A23: Dry weight content of food item as a proportion | B23: PropDry | C23: = 1-PropWater
C24: =1-C22 -> 0.15 | D24: gdry/gfood | E24: Eq
A25: Variability in caloric requirements not accounted for by allometric equation | B25: Error
B26: Central | C26: 1 | D26: Note 2
B27: Lower | C27: 0.3
B28: Upper | C28: 1.7
A29: Amount of food consumed per day, wet weight | B29: AmntFood | C29: = Error x (AmntDry ÷ PropDry) ÷ (1000g/kg)
B30: Central | C30: =C26*(C$21/C$24)/1000 -> 15.41677885 | D30: kgfood/day | E30: Eq
B31: Lower | C31: =C27*(C$21/C$24)/1000 -> 4.625033655 | E31: Eq
B32: Upper | C32: 26.20852404 | E32: Eq
A33: Estimate
A34: Dose | B34: Dose | C34: = AmntFood × Conc / BW
B35: Central | C35: =$C30 * C9/C$13 -> 0.4005593094 | D35: mg/kg bw/day | E35: Eq
B36: Lower | C36: =$C31 * C10/C$13 -> 0.007625729277 | E36: Eq
B37: Upper | C37: =$C32 * C11/C$13 -> 3.479660944 | E37: Eq

Sheet F13d
A1: Consumption of Broadleaf Vegetation by a Bird, small after Chronic exposure.
A2: Short Title | B2: Broadleaf | E2: FdKcalV6
A3: Receptor | B3: Bird, small
A4: Duration | B4: Chronic | E4: Scenario parameter
A5: Material consumed | B5: Broadleaf Vegetation
A6: Parameter/Assumption | B6: Code / Range | C6: Equation/ Value | D6: Units | E6: Reference/Designation
A7: Commodity
A8: Concentration on consumed commodity | B8: Conc
B9: Central | C9: =B05b!Chronic_C -> 1.818742549 | D9: mg/kg food wet weight | E9: ='B05b'!Chronic_C
B10: Lower | C10: =B05b!Chronic_L -> 0.1154156033 | E10: ='B05b'!Chronic_L
B11: Upper | C11: =B05b!Chronic_U -> 9.293780362 | E11: ='B05b'!Chronic_U
A12: Receptor
A13: Body weight | B13: BW | C13: =A02b!$C$31 -> 0.01 | D13: kg | E13: Default
A14: Allometric coefficients for caloric requirement per day in kilocalories and BW in grams
B15: alpha | C15: =A02b!$C$32 -> 3.12 | E15: U.S. EPA/ORD 1993
B16: beta | C16: =A02b!$C$33 -> 0.605 | E16: U.S. EPA/ORD 1993
A17: Caloric requirement per day | B17: KR | C17: = alpha x (BW x 1kg/1000g)beta
C18: =C15*((C13*1000)^C16) -> 12.56477147 | D18: kcal/day | E18: Eq
A19: Caloric content of commodity (dry weight) | B19: KCD | C19: ='A03'!$E$42 -> 2 | D19: kcal/gdw [Note 1] | E19: U.S. EPA/ORD 1993
A20: Food consumed per day (dry weight) | B20: AmntDry | C20: = KR ÷ KCD
C21: =C18/C19 -> 6.282385735 | D21: gdry/day | E21: Eq
A22: Water content of food item as a proportion | B22: PropWater | C22: ='A03'!$E$43 -> 0.85 | D22: gwater/gfood | E22: U.S. EPA/ORD 1993
A23: Dry weight content of food item as a proportion | B23: PropDry | C23: = 1-PropWater
C24: =1-C22 -> 0.15 | D24: gdry/gfood | E24: Eq
A25: Variability in caloric requirements not accounted for by allometric equation | B25: Error
B26: Central | C26: 1 | D26: Note 2
B27: Lower | C27: 0.3
B28: Upper | C28: 1.7
A29: Amount of food consumed per day, wet weight | B29: AmntFood | C29: = Error x (AmntDry ÷ PropDry) ÷ (1000g/kg)
B30: Central | C30: =C26*(C$21/C$24)/1000 -> 0.04188257157 | D30: kgfood/day | E30: Eq
B31: Lower | C31: =C27*(C$21/C$24)/1000 -> 0.01256477147 | E31: Eq
B32: Upper | C32: 0.07120037167 | E32: Eq
A33: Estimate
A34: Dose | B34: Dose | C34: = AmntFood × Conc / BW
B35: Central | C35: =$C30 * C9/C$13 -> 7.617361497 | D35: mg/kg bw/day | E35: Eq
B36: Lower | C36: =$C31 * C10/C$13 -> 0.1450170679 | E36: Eq
B37: Upper | C37: =$C32 * C11/C$13 -> 66.1720616 | E37: Eq

Sheet F13e
A1: Consumption of Broadleaf Vegetation by a Bird, large after Chronic exposure.
A2: Short Title | B2: Broadleaf | E2: FdKcalV6
A3: Receptor | B3: Bird, large
A4: Duration | B4: Chronic | E4: Scenario parameter
A5: Material consumed | B5: Broadleaf Vegetation
A6: Parameter/Assumption | B6: Code / Range | C6: Equation/ Value | D6: Units | E6: Reference/Designation
A7: Commodity
A8: Concentration on consumed commodity | B8: Conc
B9: Central | C9: =B05b!Chronic_C -> 1.818742549 | D9: mg/kg food wet weight | E9: ='B05b'!Chronic_C
B10: Lower | C10: =B05b!Chronic_L -> 0.1154156033 | E10: ='B05b'!Chronic_L
B11: Upper | C11: =B05b!Chronic_U -> 9.293780362 | E11: ='B05b'!Chronic_U
A12: Receptor
A13: Body weight | B13: BW | C13: =A02b!$C$15 -> 4 | D13: kg | E13: Default
A14: Allometric coefficients for caloric requirement per day in kilocalories and BW in grams
B15: alpha | C15: =A02b!$C$16 -> 1.146 | E15: U.S. EPA/ORD 1993
B16: beta | C16: =A02b!$C$17 -> 0.749 | E16: U.S. EPA/ORD 1993
A17: Caloric requirement per day | B17: KR | C17: = alpha x (BW x 1kg/1000g)beta
C18: =C15*((C13*1000)^C16) -> 571.6465031 | D18: kcal/day | E18: Eq
A19: Caloric content of commodity (dry weight) | B19: KCD | C19: ='A03'!$E$42 -> 2 | D19: kcal/gdw [Note 1] | E19: U.S. EPA/ORD 1993
A20: Food consumed per day (dry weight) | B20: AmntDry | C20: = KR ÷ KCD
C21: =C18/C19 -> 285.8232515 | D21: gdry/day | E21: Eq
A22: Water content of food item as a proportion | B22: PropWater | C22: ='A03'!$E$43 -> 0.85 | D22: gwater/gfood | E22: U.S. EPA/ORD 1993
A23: Dry weight content of food item as a proportion | B23: PropDry | C23: = 1-PropWater
C24: =1-C22 -> 0.15 | D24: gdry/gfood | E24: Eq
A25: Variability in caloric requirements not accounted for by allometric equation | B25: Error
B26: Central | C26: 1 | D26: Note 2
B27: Lower | C27: 0.3
B28: Upper | C28: 1.7
A29: Amount of food consumed per day, wet weight | B29: AmntFood | C29: = Error x (AmntDry ÷ PropDry) ÷ (1000g/kg)
B30: Central | C30: =C26*(C$21/C$24)/1000 -> 1.905488344 | D30: kgfood/day | E30: Eq
B31: Lower | C31: =C27*(C$21/C$24)/1000 -> 0.5716465031 | E31: Eq
B32: Upper | C32: 3.239330184 | E32: Eq
A33: Estimate
A34: Dose | B34: Dose | C34: = AmntFood × Conc / BW
B35: Central | C35: =$C30 * C9/C$13 -> 0.8663981817 | D35: mg/kg bw/day | E35: Eq
B36: Lower | C36: =$C31 * C10/C$13 -> 0.0164942315 | E36: Eq
B37: Upper | C37: =$C32 * C11/C$13 -> 7.526405813 | E37: Eq

Sheet F14a
A1: Consumption of Tall grass by a Mammal, small after Chronic exposure.
A2: Short Title | B2: Tall Grass | E2: FdKcalV6
A3: Receptor | B3: Mammal, small
A4: Duration | B4: Chronic | E4: Scenario parameter
A5: Material consumed | B5: Tall grass
A6: Parameter/Assumption | B6: Code / Range | C6: Equation/ Value | D6: Units | E6: Reference/Designation
A7: Commodity
A8: Concentration on consumed commodity | B8: Conc
B9: Central | C9: =B05d!Chronic_C -> 1.454994039 | D9: mg/kg food wet weight | E9: ='B05d'!Chronic_C
B10: Lower | C10: =B05d!Chronic_L -> 0.09233248262 | E10: ='B05d'!Chronic_L
B11: Upper | C11: =B05d!Chronic_U -> 7.572709925 | E11: ='B05d'!Chronic_U
A12: Receptor
A13: Body weight | B13: BW | C13: =A02b!$C$71 -> 0.02 | D13: kg | E13: Default
A14: Allometric coefficients for caloric requirement per day in kilocalories and BW in grams
B15: alpha | C15: =A02b!$C$75 -> 2.514 | E15: U.S. EPA/ORD 1993
B16: beta | C16: =A02b!$C$76 -> 0.507 | E16: U.S. EPA/ORD 1993
A17: Caloric requirement per day | B17: KR | C17: = alpha x (BW x 1kg/1000g)beta
C18: =C15*((C13*1000)^C16) -> 11.48120526 | D18: kcal/day | E18: Eq
A19: Caloric content of commodity (dry weight) | B19: KCD | C19: ='A03'!$E$65 -> 2.26 | D19: kcal/gdw [Note 1] | E19: U.S. EPA/ORD 1993
A20: Food consumed per day (dry weight) | B20: AmntDry | C20: = KR ÷ KCD
C21: =C18/C19 -> 5.080179317 | D21: gdry/day | E21: Eq
A22: Water content of food item as a proportion | B22: PropWater | C22: ='A03'!$E$66 -> 0.85 | D22: gwater/gfood | E22: U.S. EPA/ORD 1993
A23: Dry weight content of food item as a proportion | B23: PropDry | C23: = 1-PropWater
C24: =1-C22 -> 0.15 | D24: gdry/gfood | E24: Eq
A25: Variability in caloric requirements not accounted for by allometric equation | B25: Error
B26: Central | C26: 1 | D26: Note 2
B27: Lower | C27: 0.3
B28: Upper | C28: 1.7
A29: Amount of food consumed per day, wet weight | B29: AmntFood | C29: = Error x (AmntDry ÷ PropDry) ÷ (1000g/kg)
B30: Central | C30: =C26*(C$21/C$24)/1000 -> 0.03386786211 | D30: kgfood/day | E30: Eq
B31: Lower | C31: =C27*(C$21/C$24)/1000 -> 0.01016035863 | E31: Eq
B32: Upper | C32: 0.05757536559 | E32: Eq
A33: Estimate
A34: Dose | B34: Dose | C34: = AmntFood × Conc / BW
B35: Central | C35: =$C30 * C9/C$13 -> 2.463876874 | D35: mg/kg bw/day | E35: Eq
B36: Lower | C36: =$C31 * C10/C$13 -> 0.04690655685 | E36: Eq
B37: Upper | C37: =$C32 * C11/C$13 -> 21.80007712 | E37: Eq

Sheet F14b
A1: Consumption of Tall grass by a Mammal, 400 g after Chronic exposure.
A2: Short Title | B2: Tall Grass | E2: FdKcalV6
A3: Receptor | B3: Mammal, 400 g
A4: Duration | B4: Chronic | E4: Scenario parameter
A5: Material consumed | B5: Tall grass
A6: Parameter/Assumption | B6: Code / Range | C6: Equation/ Value | D6: Units | E6: Reference/Designation
A7: Commodity
A8: Concentration on consumed commodity | B8: Conc
B9: Central | C9: =B05d!Chronic_C -> 1.454994039 | D9: mg/kg food wet weight | E9: ='B05d'!Chronic_C
B10: Lower | C10: =B05d!Chronic_L -> 0.09233248262 | E10: ='B05d'!Chronic_L
B11: Upper | C11: =B05d!Chronic_U -> 7.572709925 | E11: ='B05d'!Chronic_U
A12: Receptor
A13: Body weight | B13: BW | C13: =A02b!$C$40 -> 0.4 | D13: kg | E13: Default
A14: Allometric coefficients for caloric requirement per day in kilocalories and BW in grams
B15: alpha | C15: =A02b!$C$43 -> 2.514 | E15: U.S. EPA/ORD 1993
B16: beta | C16: =A02b!$C$44 -> 0.507 | E16: U.S. EPA/ORD 1993
A17: Caloric requirement per day | B17: KR | C17: = alpha x (BW x 1kg/1000g)beta
C18: =C15*((C13*1000)^C16) -> 52.43360149 | D18: kcal/day | E18: Eq
A19: Caloric content of commodity (dry weight) | B19: KCD | C19: ='A03'!$E$65 -> 2.26 | D19: kcal/gdw [Note 1] | E19: U.S. EPA/ORD 1993
A20: Food consumed per day (dry weight) | B20: AmntDry | C20: = KR ÷ KCD
C21: =C18/C19 -> 23.20070862 | D21: gdry/day | E21: Eq
A22: Water content of food item as a proportion | B22: PropWater | C22: ='A03'!$E$66 -> 0.85 | D22: gwater/gfood | E22: U.S. EPA/ORD 1993
A23: Dry weight content of food item as a proportion | B23: PropDry | C23: = 1-PropWater
C24: =1-C22 -> 0.15 | D24: gdry/gfood | E24: Eq
A25: Variability in caloric requirements not accounted for by allometric equation | B25: Error
B26: Central | C26: 1 | D26: Note 2
B27: Lower | C27: 0.3
B28: Upper | C28: 1.7
A29: Amount of food consumed per day, wet weight | B29: AmntFood | C29: = Error x (AmntDry ÷ PropDry) ÷ (1000g/kg)
B30: Central | C30: =C26*(C$21/C$24)/1000 -> 0.1546713908 | D30: kgfood/day | E30: Eq
B31: Lower | C31: =C27*(C$21/C$24)/1000 -> 0.04640141724 | E31: Eq
B32: Upper | C32: 0.2629413644 | E32: Eq
A33: Estimate
A34: Dose | B34: Dose | C34: = AmntFood × Conc / BW
B35: Central | C35: =$C30 * C9/C$13 -> 0.5626148791 | D35: mg/kg bw/day | E35: Eq
B36: Lower | C36: =$C31 * C10/C$13 -> 0.01071089513 | E36: Eq
B37: Upper | C37: =$C32 * C11/C$13 -> 4.977946699 | E37: Eq

Sheet F14c
A1: Consumption of Tall grass by a Mammal, large after Chronic exposure.
A2: Short Title | B2: Tall Grass | E2: FdKcalV6
A3: Receptor | B3: Mammal, large
A4: Duration | B4: Chronic | E4: Scenario parameter
A5: Material consumed | B5: Tall grass
A6: Parameter/Assumption | B6: Code / Range | C6: Equation/ Value | D6: Units | E6: Reference/Designation
A7: Commodity
A8: Concentration on consumed commodity | B8: Conc
B9: Central | C9: =B05d!Chronic_C -> 1.454994039 | D9: mg/kg food wet weight | E9: ='B05d'!Chronic_C
B10: Lower | C10: =B05d!Chronic_L -> 0.09233248262 | E10: ='B05d'!Chronic_L
B11: Upper | C11: =B05d!Chronic_U -> 7.572709925 | E11: ='B05d'!Chronic_U
A12: Receptor
A13: Body weight | B13: BW | C13: =A02b!$C$61 -> 70 | D13: kg | E13: Default
A14: Allometric coefficients for caloric requirement per day in kilocalories and BW in grams
B15: alpha | C15: =A02b!$C$62 -> 1.518 | E15: U.S. EPA/ORD 1993
B16: beta | C16: =A02b!$C$63 -> 0.73 | E16: U.S. EPA/ORD 1993
A17: Caloric requirement per day | B17: KR | C17: = alpha x (BW x 1kg/1000g)beta
C18: =C15*((C13*1000)^C16) -> 5226.28803 | D18: kcal/day | E18: Eq
A19: Caloric content of commodity (dry weight) | B19: KCD | C19: ='A03'!$E$65 -> 2.26 | D19: kcal/gdw [Note 1] | E19: U.S. EPA/ORD 1993
A20: Food consumed per day (dry weight) | B20: AmntDry | C20: = KR ÷ KCD
C21: =C18/C19 -> 2312.516827 | D21: gdry/day | E21: Eq
A22: Water content of food item as a proportion | B22: PropWater | C22: ='A03'!$E$66 -> 0.85 | D22: gwater/gfood | E22: U.S. EPA/ORD 1993
A23: Dry weight content of food item as a proportion | B23: PropDry | C23: = 1-PropWater
C24: =1-C22 -> 0.15 | D24: gdry/gfood | E24: Eq
A25: Variability in caloric requirements not accounted for by allometric equation | B25: Error
B26: Central | C26: 1 | D26: Note 2
B27: Lower | C27: 0.3
B28: Upper | C28: 1.7
A29: Amount of food consumed per day, wet weight | B29: AmntFood | C29: = Error x (AmntDry ÷ PropDry) ÷ (1000g/kg)
B30: Central | C30: =C26*(C$21/C$24)/1000 -> 15.41677885 | D30: kgfood/day | E30: Eq
B31: Lower | C31: =C27*(C$21/C$24)/1000 -> 4.625033655 | E31: Eq
B32: Upper | C32: 26.20852404 | E32: Eq
A33: Estimate
A34: Dose | B34: Dose | C34: = AmntFood × Conc / BW
B35: Central | C35: =$C30 * C9/C$13 -> 0.3204474475 | D35: mg/kg bw/day | E35: Eq
B36: Lower | C36: =$C31 * C10/C$13 -> 0.006100583422 | E36: Eq
B37: Upper | C37: =$C32 * C11/C$13 -> 2.835279288 | E37: Eq

Sheet F14d
A1: Consumption of Tall grass by a Bird, small after Chronic exposure.
A2: Short Title | B2: Tall Grass | E2: FdKcalV6
A3: Receptor | B3: Bird, small
A4: Duration | B4: Chronic | E4: Scenario parameter
A5: Material consumed | B5: Tall grass
A6: Parameter/Assumption | B6: Code / Range | C6: Equation/ Value | D6: Units | E6: Reference/Designation
A7: Commodity
A8: Concentration on consumed commodity | B8: Conc
B9: Central | C9: =B05d!Chronic_C -> 1.454994039 | D9: mg/kg food wet weight | E9: ='B05d'!Chronic_C
B10: Lower | C10: =B05d!Chronic_L -> 0.09233248262 | E10: ='B05d'!Chronic_L
B11: Upper | C11: =B05d!Chronic_U -> 7.572709925 | E11: ='B05d'!Chronic_U
A12: Receptor
A13: Body weight | B13: BW | C13: =A02b!$C$31 -> 0.01 | D13: kg | E13: Default
A14: Allometric coefficients for caloric requirement per day in kilocalories and BW in grams
B15: alpha | C15: =A02b!$C$32 -> 3.12 | E15: U.S. EPA/ORD 1993
B16: beta | C16: =A02b!$C$33 -> 0.605 | E16: U.S. EPA/ORD 1993
A17: Caloric requirement per day | B17: KR | C17: = alpha x (BW x 1kg/1000g)beta
C18: =C15*((C13*1000)^C16) -> 12.56477147 | D18: kcal/day | E18: Eq
A19: Caloric content of commodity (dry weight) | B19: KCD | C19: ='A03'!$E$42 -> 2 | D19: kcal/gdw [Note 1] | E19: U.S. EPA/ORD 1993
A20: Food consumed per day (dry weight) | B20: AmntDry | C20: = KR ÷ KCD
C21: =C18/C19 -> 6.282385735 | D21: gdry/day | E21: Eq
A22: Water content of food item as a proportion | B22: PropWater | C22: ='A03'!$E$43 -> 0.85 | D22: gwater/gfood | E22: U.S. EPA/ORD 1993
A23: Dry weight content of food item as a proportion | B23: PropDry | C23: = 1-PropWater
C24: =1-C22 -> 0.15 | D24: gdry/gfood | E24: Eq
A25: Variability in caloric requirements not accounted for by allometric equation | B25: Error
B26: Central | C26: 1 | D26: Note 2
B27: Lower | C27: 0.3
B28: Upper | C28: 1.7
A29: Amount of food consumed per day, wet weight | B29: AmntFood | C29: = Error x (AmntDry ÷ PropDry) ÷ (1000g/kg)
B30: Central | C30: =C26*(C$21/C$24)/1000 -> 0.04188257157 | D30: kgfood/day | E30: Eq
B31: Lower | C31: =C27*(C$21/C$24)/1000 -> 0.01256477147 | E31: Eq
B32: Upper | C32: 0.07120037167 | E32: Eq
A33: Estimate
A34: Dose | B34: Dose | C34: = AmntFood × Conc / BW
B35: Central | C35: =$C30 * C9/C$13 -> 6.093889197 | D35: mg/kg bw/day | E35: Eq
B36: Lower | C36: =$C31 * C10/C$13 -> 0.1160136543 | E36: Eq
B37: Upper | C37: =$C32 * C11/C$13 -> 53.91797612 | E37: Eq

Sheet F14e
A1: Consumption of Tall grass by a Bird, large after Chronic exposure.
A2: Short Title | B2: Tall Grass | E2: FdKcalV6
A3: Receptor | B3: Bird, large
A4: Duration | B4: Chronic | E4: Scenario parameter
A5: Material consumed | B5: Tall grass
A6: Parameter/Assumption | B6: Code / Range | C6: Equation/ Value | D6: Units | E6: Reference/Designation
A7: Commodity
A8: Concentration on consumed commodity | B8: Conc
B9: Central | C9: =B05d!Chronic_C -> 1.454994039 | D9: mg/kg food wet weight | E9: ='B05d'!Chronic_C
B10: Lower | C10: =B05d!Chronic_L -> 0.09233248262 | E10: ='B05d'!Chronic_L
B11: Upper | C11: =B05d!Chronic_U -> 7.572709925 | E11: ='B05d'!Chronic_U
A12: Receptor
A13: Body weight | B13: BW | C13: =A02b!$C$15 -> 4 | D13: kg | E13: Default
A14: Allometric coefficients for caloric requirement per day in kilocalories and BW in grams
B15: alpha | C15: =A02b!$C$16 -> 1.146 | E15: U.S. EPA/ORD 1993
B16: beta | C16: =A02b!$C$17 -> 0.749 | E16: U.S. EPA/ORD 1993
A17: Caloric requirement per day | B17: KR | C17: = alpha x (BW x 1kg/1000g)beta
C18: =C15*((C13*1000)^C16) -> 571.6465031 | D18: kcal/day | E18: Eq
A19: Caloric content of commodity (dry weight) | B19: KCD | C19: ='A03'!$E$42 -> 2 | D19: kcal/gdw [Note 1] | E19: U.S. EPA/ORD 1993
A20: Food consumed per day (dry weight) | B20: AmntDry | C20: = KR ÷ KCD
C21: =C18/C19 -> 285.8232515 | D21: gdry/day | E21: Eq
A22: Water content of food item as a proportion | B22: PropWater | C22: ='A03'!$E$43 -> 0.85 | D22: gwater/gfood | E22: U.S. EPA/ORD 1993
A23: Dry weight content of food item as a proportion | B23: PropDry | C23: = 1-PropWater
C24: =1-C22 -> 0.15 | D24: gdry/gfood | E24: Eq
A25: Variability in caloric requirements not accounted for by allometric equation | B25: Error
B26: Central | C26: 1 | D26: Note 2
B27: Lower | C27: 0.3
B28: Upper | C28: 1.7
A29: Amount of food consumed per day, wet weight | B29: AmntFood | C29: = Error x (AmntDry ÷ PropDry) ÷ (1000g/kg)
B30: Central | C30: =C26*(C$21/C$24)/1000 -> 1.905488344 | D30: kgfood/day | E30: Eq
B31: Lower | C31: =C27*(C$21/C$24)/1000 -> 0.5716465031 | E31: Eq
B32: Upper | C32: 3.239330184 | E32: Eq
A33: Estimate
A34: Dose | B34: Dose | C34: = AmntFood × Conc / BW
B35: Central | C35: =$C30 * C9/C$13 -> 0.6931185453 | D35: mg/kg bw/day | E35: Eq
B36: Lower | C36: =$C31 * C10/C$13 -> 0.0131953852 | E36: Eq
B37: Upper | C37: =$C32 * C11/C$13 -> 6.132626959 | E37: Eq

Sheet F15a
A1: Consumption of Short grass by a Mammal, small after Chronic exposure.
A2: Short Title | B2: Short Grass | E2: FdKcalV6
A3: Receptor | B3: Mammal, small
A4: Duration | B4: Chronic | E4: Scenario parameter
A5: Material consumed | B5: Short grass
A6: Parameter/Assumption | B6: Code / Range | C6: Equation/ Value | D6: Units | E6: Reference/Designation
A7: Commodity
A8: Concentration on consumed commodity | B8: Conc
B9: Central | C9: =B05c!Chronic_C -> 3.435402592 | D9: mg/kg food wet weight | E9: ='B05c'!Chronic_C
B10: Lower | C10: =B05c!Chronic_L -> 0.2308312065 | E10: ='B05c'!Chronic_L
B11: Upper | C11: =B05c!Chronic_U -> 16.5222762 | E11: ='B05c'!Chronic_U
A12: Receptor
A13: Body weight | B13: BW | C13: =A02b!$C$71 -> 0.02 | D13: kg | E13: Default
A14: Allometric coefficients for caloric requirement per day in kilocalories and BW in grams
B15: alpha | C15: =A02b!$C$75 -> 2.514 | E15: U.S. EPA/ORD 1993
B16: beta | C16: =A02b!$C$76 -> 0.507 | E16: U.S. EPA/ORD 1993
A17: Caloric requirement per day | B17: KR | C17: = alpha x (BW x 1kg/1000g)beta
C18: =C15*((C13*1000)^C16) -> 11.48120526 | D18: kcal/day | E18: Eq
A19: Caloric content of commodity (dry weight) | B19: KCD | C19: ='A03'!$E$65 -> 2.26 | D19: kcal/gdw [Note 1] | E19: U.S. EPA/ORD 1993
A20: Food consumed per day (dry weight) | B20: AmntDry | C20: = KR ÷ KCD
C21: =C18/C19 -> 5.080179317 | D21: gdry/day | E21: Eq
A22: Water content of food item as a proportion | B22: PropWater | C22: ='A03'!$E$66 -> 0.85 | D22: gwater/gfood | E22: U.S. EPA/ORD 1993
A23: Dry weight content of food item as a proportion | B23: PropDry | C23: = 1-PropWater
C24: =1-C22 -> 0.15 | D24: gdry/gfood | E24: Eq
A25: Variability in caloric requirements not accounted for by allometric equation | B25: Error
B26: Central | C26: 1 | D26: Note 2
B27: Lower | C27: 0.3
B28: Upper | C28: 1.7
A29: Amount of food consumed per day, wet weight | B29: AmntFood | C29: = Error x (AmntDry ÷ PropDry) ÷ (1000g/kg)
B30: Central | C30: =C26*(C$21/C$24)/1000 -> 0.03386786211 | D30: kgfood/day | E30: Eq
B31: Lower | C31: =C27*(C$21/C$24)/1000 -> 0.01016035863 | E31: Eq
B32: Upper | C32: 0.05757536559 | E32: Eq
A33: Estimate
A34: Dose | B34: Dose | C34: = AmntFood × Conc / BW
B35: Central | C35: =$C30 * C9/C$13 -> 5.817487065 | D35: mg/kg bw/day | E35: Eq
B36: Lower | C36: =$C31 * C10/C$13 -> 0.1172663921 | E36: Eq
B37: Upper | C37: =$C32 * C11/C$13 -> 47.56380463 | E37: Eq

Sheet F15b
A1: Consumption of Short grass by a Mammal, 400 g after Chronic exposure.
A2: Short Title | B2: Short Grass | E2: FdKcalV6
A3: Receptor | B3: Mammal, 400 g
A4: Duration | B4: Chronic | E4: Scenario parameter
A5: Material consumed | B5: Short grass
A6: Parameter/Assumption | B6: Code / Range | C6: Equation/ Value | D6: Units | E6: Reference/Designation
A7: Commodity
A8: Concentration on consumed commodity | B8: Conc
B9: Central | C9: =B05c!Chronic_C -> 3.435402592 | D9: mg/kg food wet weight | E9: ='B05c'!Chronic_C
B10: Lower | C10: =B05c!Chronic_L -> 0.2308312065 | E10: ='B05c'!Chronic_L
B11: Upper | C11: =B05c!Chronic_U -> 16.5222762 | E11: ='B05c'!Chronic_U
A12: Receptor
A13: Body weight | B13: BW | C13: =A02b!$C$40 -> 0.4 | D13: kg | E13: Default
A14: Allometric coefficients for caloric requirement per day in kilocalories and BW in grams
B15: alpha | C15: =A02b!$C$43 -> 2.514 | E15: U.S. EPA/ORD 1993
B16: beta | C16: =A02b!$C$44 -> 0.507 | E16: U.S. EPA/ORD 1993
A17: Caloric requirement per day | B17: KR | C17: = alpha x (BW x 1kg/1000g)beta
C18: =C15*((C13*1000)^C16) -> 52.43360149 | D18: kcal/day | E18: Eq
A19: Caloric content of commodity (dry weight) | B19: KCD | C19: ='A03'!$E$65 -> 2.26 | D19: kcal/gdw [Note 1] | E19: U.S. EPA/ORD 1993
A20: Food consumed per day (dry weight) | B20: AmntDry | C20: = KR ÷ KCD
C21: =C18/C19 -> 23.20070862 | D21: gdry/day | E21: Eq
A22: Water content of food item as a proportion | B22: PropWater | C22: ='A03'!$E$66 -> 0.85 | D22: gwater/gfood | E22: U.S. EPA/ORD 1993
A23: Dry weight content of food item as a proportion | B23: PropDry | C23: = 1-PropWater
C24: =1-C22 -> 0.15 | D24: gdry/gfood | E24: Eq
A25: Variability in caloric requirements not accounted for by allometric equation | B25: Error
B26: Central | C26: 1 | D26: Note 2
B27: Lower | C27: 0.3
B28: Upper | C28: 1.7
A29: Amount of food consumed per day, wet weight | B29: AmntFood | C29: = Error x (AmntDry ÷ PropDry) ÷ (1000g/kg)
B30: Central | C30: =C26*(C$21/C$24)/1000 -> 0.1546713908 | D30: kgfood/day | E30: Eq
B31: Lower | C31: =C27*(C$21/C$24)/1000 -> 0.04640141724 | E31: Eq
B32: Upper | C32: 0.2629413644 | E32: Eq
A33: Estimate
A34: Dose | B34: Dose | C34: = AmntFood × Conc / BW
B35: Central | C35: =$C30 * C9/C$13 -> 1.328396242 | D35: mg/kg bw/day | E35: Eq
B36: Lower | C36: =$C31 * C10/C$13 -> 0.02677723782 | E36: Eq
B37: Upper | C37: =$C32 * C11/C$13 -> 10.86097462 | E37: Eq

Sheet F15c
A1: Consumption of Short grass by a Mammal, large after Chronic exposure.
A2: Short Title | B2: Short Grass | E2: FdKcalV6
A3: Receptor | B3: Mammal, large
A4: Duration | B4: Chronic | E4: Scenario parameter
A5: Material consumed | B5: Short grass
A6: Parameter/Assumption | B6: Code / Range | C6: Equation/ Value | D6: Units | E6: Reference/Designation
A7: Commodity
A8: Concentration on consumed commodity | B8: Conc
B9: Central | C9: =B05c!Chronic_C -> 3.435402592 | D9: mg/kg food wet weight | E9: ='B05c'!Chronic_C
B10: Lower | C10: =B05c!Chronic_L -> 0.2308312065 | E10: ='B05c'!Chronic_L
B11: Upper | C11: =B05c!Chronic_U -> 16.5222762 | E11: ='B05c'!Chronic_U
A12: Receptor
A13: Body weight | B13: BW | C13: =A02b!$C$61 -> 70 | D13: kg | E13: Default
A14: Allometric coefficients for caloric requirement per day in kilocalories and BW in grams
B15: alpha | C15: =A02b!$C$62 -> 1.518 | E15: U.S. EPA/ORD 1993
B16: beta | C16: =A02b!$C$63 -> 0.73 | E16: U.S. EPA/ORD 1993
A17: Caloric requirement per day | B17: KR | C17: = alpha x (BW x 1kg/1000g)beta
C18: =C15*((C13*1000)^C16) -> 5226.28803 | D18: kcal/day | E18: Eq
A19: Caloric content of commodity (dry weight) | B19: KCD | C19: ='A03'!$E$65 -> 2.26 | D19: kcal/gdw [Note 1] | E19: U.S. EPA/ORD 1993
A20: Food consumed per day (dry weight) | B20: AmntDry | C20: = KR ÷ KCD
C21: =C18/C19 -> 2312.516827 | D21: gdry/day | E21: Eq
A22: Water content of food item as a proportion | B22: PropWater | C22: ='A03'!$E$66 -> 0.85 | D22: gwater/gfood | E22: U.S. EPA/ORD 1993
A23: Dry weight content of food item as a proportion | B23: PropDry | C23: = 1-PropWater
C24: =1-C22 -> 0.15 | D24: gdry/gfood | E24: Eq
A25: Variability in caloric requirements not accounted for by allometric equation | B25: Error
B26: Central | C26: 1 | D26: Note 2
B27: Lower | C27: 0.3
B28: Upper | C28: 1.7
A29: Amount of food consumed per day, wet weight | B29: AmntFood | C29: = Error x (AmntDry ÷ PropDry) ÷ (1000g/kg)
B30: Central | C30: =C26*(C$21/C$24)/1000 -> 15.41677885 | D30: kgfood/day | E30: Eq
B31: Lower | C31: =C27*(C$21/C$24)/1000 -> 4.625033655 | E31: Eq
B32: Upper | C32: 26.20852404 | E32: Eq
A33: Estimate
A34: Dose | B34: Dose | C34: = AmntFood × Conc / BW
B35: Central | C35: =$C30 * C9/C$13 -> 0.7566120289 | D35: mg/kg bw/day | E35: Eq
B36: Lower | C36: =$C31 * C10/C$13 -> 0.01525145855 | E36: Eq
B37: Upper | C37: =$C32 * C11/C$13 -> 6.1860639 | E37: Eq

Sheet F15d
A1: Consumption of Short grass by a Bird, small after Chronic exposure.
A2: Short Title | B2: Short Grass | E2: FdKcalV6
A3: Receptor | B3: Bird, small
A4: Duration | B4: Chronic | E4: Scenario parameter
A5: Material consumed | B5: Short grass
A6: Parameter/Assumption | B6: Code / Range | C6: Equation/ Value | D6: Units | E6: Reference/Designation
A7: Commodity
A8: Concentration on consumed commodity | B8: Conc
B9: Central | C9: =B05c!Chronic_C -> 3.435402592 | D9: mg/kg food wet weight | E9: ='B05c'!Chronic_C
B10: Lower | C10: =B05c!Chronic_L -> 0.2308312065 | E10: ='B05c'!Chronic_L
B11: Upper | C11: =B05c!Chronic_U -> 16.5222762 | E11: ='B05c'!Chronic_U
A12: Receptor
A13: Body weight | B13: BW | C13: =A02b!$C$31 -> 0.01 | D13: kg | E13: Default
A14: Allometric coefficients for caloric requirement per day in kilocalories and BW in grams
B15: alpha | C15: =A02b!$C$32 -> 3.12 | E15: U.S. EPA/ORD 1993
B16: beta | C16: =A02b!$C$33 -> 0.605 | E16: U.S. EPA/ORD 1993
A17: Caloric requirement per day | B17: KR | C17: = alpha x (BW x 1kg/1000g)beta
C18: =C15*((C13*1000)^C16) -> 12.56477147 | D18: kcal/day | E18: Eq
A19: Caloric content of commodity (dry weight) | B19: KCD | C19: ='A03'!$E$42 -> 2 | D19: kcal/gdw [Note 1] | E19: U.S. EPA/ORD 1993
A20: Food consumed per day (dry weight) | B20: AmntDry | C20: = KR ÷ KCD
C21: =C18/C19 -> 6.282385735 | D21: gdry/day | E21: Eq
A22: Water content of food item as a proportion | B22: PropWater | C22: ='A03'!$E$43 -> 0.85 | D22: gwater/gfood | E22: U.S. EPA/ORD 1993
A23: Dry weight content of food item as a proportion | B23: PropDry | C23: = 1-PropWater
C24: =1-C22 -> 0.15 | D24: gdry/gfood | E24: Eq
A25: Variability in caloric requirements not accounted for by allometric equation | B25: Error
B26: Central | C26: 1 | D26: Note 2
B27: Lower | C27: 0.3
B28: Upper | C28: 1.7
A29: Amount of food consumed per day, wet weight | B29: AmntFood | C29: = Error x (AmntDry ÷ PropDry) ÷ (1000g/kg)
B30: Central | C30: =C26*(C$21/C$24)/1000 -> 0.04188257157 | D30: kgfood/day | E30: Eq
B31: Lower | C31: =C27*(C$21/C$24)/1000 -> 0.01256477147 | E31: Eq
B32: Upper | C32: 0.07120037167 | E32: Eq
A33: Estimate
A34: Dose | B34: Dose | C34: = AmntFood × Conc / BW
B35: Central | C35: =$C30 * C9/C$13 -> 14.38834949 | D35: mg/kg bw/day | E35: Eq
B36: Lower | C36: =$C31 * C10/C$13 -> 0.2900341359 | E36: Eq
B37: Upper | C37: =$C32 * C11/C$13 -> 117.6392206 | E37: Eq

Sheet F15e
A1: Consumption of Short grass by a Bird, large after Chronic exposure.
A2: Short Title | B2: Grass Chronic | E2: FdKcalV6
A3: Receptor | B3: Bird, large
A4: Duration | B4: Chronic | E4: Scenario parameter
A5: Material consumed | B5: Short grass
A6: Parameter/Assumption | B6: Code / Range | C6: Equation/ Value | D6: Units | E6: Reference/Designation
A7: Commodity
A8: Concentration on consumed commodity | B8: Conc
B9: Central | C9: =B05c!Chronic_C -> 3.435402592 | D9: mg/kg food wet weight | E9: ='B05c'!Chronic_C
B10: Lower | C10: =B05c!Chronic_L -> 0.2308312065 | E10: ='B05c'!Chronic_L
B11: Upper | C11: =B05c!Chronic_U -> 16.5222762 | E11: ='B05c'!Chronic_U
A12: Receptor
A13: Body weight | B13: BW | C13: =A02b!$C$15 -> 4 | D13: kg | E13: Default
A14: Allometric coefficients for caloric requirement per day in kilocalories and BW in grams
B15: alpha | C15: =A02b!$C$16 -> 1.146 | E15: U.S. EPA/ORD 1993
B16: beta | C16: =A02b!$C$17 -> 0.749 | E16: U.S. EPA/ORD 1993
A17: Caloric requirement per day | B17: KR | C17: = alpha x (BW x 1kg/1000g)beta
C18: =C15*((C13*1000)^C16) -> 571.6465031 | D18: kcal/day | E18: Eq
A19: Caloric content of commodity (dry weight) | B19: KCD | C19: ='A03'!$E$42 -> 2 | D19: kcal/gdw [Note 1] | E19: U.S. EPA/ORD 1993
A20: Food consumed per day (dry weight) | B20: AmntDry | C20: = KR ÷ KCD
C21: =C18/C19 -> 285.8232515 | D21: gdry/day | E21: Eq
A22: Water content of food item as a proportion | B22: PropWater | C22: ='A03'!$E$43 -> 0.85 | D22: gwater/gfood | E22: U.S. EPA/ORD 1993
A23: Dry weight content of food item as a proportion | B23: PropDry | C23: = 1-PropWater
C24: =1-C22 -> 0.15 | D24: gdry/gfood | E24: Eq
A25: Variability in caloric requirements not accounted for by allometric equation | B25: Error
B26: Central | C26: 1 | D26: Note 2
B27: Lower | C27: 0.3
B28: Upper | C28: 1.7
A29: Amount of food consumed per day, wet weight | B29: AmntFood | C29: = Error x (AmntDry ÷ PropDry) ÷ (1000g/kg)
